Workbook

Sheet Sample Report (hidden)
A2: Date
A3: Hen
A4: Program
A5: Start at 999999
A6: Sequence component 1 | B6: Time 1 | C6: Seqeunce Component 2 | D6: Time 2 | E6: Seqeunce Component 3 | F6: Time 3 | G6: Correct 0 = No 1=Yes | J6: Seqeunce | K6: Time
A7: 12 | B7: 7 | C7: 12 | D7: 42 | E7: 13 | F7: 18 | G7: if 77 new line, if 31 or 41 = yes new line on 77, | J7: =string of Seqeunce compponent 1, 2 & 3 | K7: =time 3
A8: This continues until ther is a 1 on its own to indicate start of summary data
J9: 10-19 =1
A10: Summary Data | J10: 20-29 =2
A11: Correct | B11: Incorrect | C11: Rft | D11: total | E11: Av Correct | F11: Av Incorrect | G11: Percent correct | H11: Time | J11: in this example the seqeunce would be 111
A12: 40 | B12: 33 | C12: 40 | D12: 73 | E12: 23.95 | F12: 15 | G12: 54 | H12: 806

Sheet Summary
A2: Day | B2: Date | C2: Average Response Rate | D2: Target % | E2: RF for non correct sequence | F2: U Value | K2: Block 1 | L2: Block 2 | M2: Block 3 | N2: Block 4 | O2: Block 5 | P2: Block 6
A3: 1 | B3: ='!M830900.102'!B2:C2 -> <date> | C3: =('!M830900.102'!H203/60)/'!M830900.102'!Q3 -> 2.025803723 | D3: ='!M830900.102'!N28/'!M830900.102'!Q3 -> 0 | E3: =SUM('!M830900.102'!L28:Q28)/'!M830900.102'!Q3 -> 5.974619289 | F3: ='!M830900.102'!Q24 -> 0.1360700862 | J3: Average Response Rate | K3: =AVERAGE(C3:C7) -> 5.664124906 | L3: =AVERAGE(C8:C12) -> 11.87301407 | M3: =AVERAGE(C13:C17) -> 21.56812976 | N3: =AVERAGE(C18:C22) -> 17.22268347 | O3: =AVERAGE(C23:C27) -> 16.8647465 | P3: =AVERAGE(C28:C32) -> 13.34564815
A4: 2 | B4: ='!M831940.102'!B2:C2 -> <date> | C4: =('!M831940.102'!H150/60)/'!M831940.102'!Q3 -> 2.771412037 | D4: ='!M831940.102'!N28/'!M831940.102'!Q3 -> 0 | E4: =SUM('!M831940.102'!L28:Q28)/'!M831940.102'!Q3 -> 8.819444444 | F4: ='!M831940.102'!Q24 -> 0.2675244822 | J4: Target % | K4: =AVERAGE(D3:D7) -> 0 | L4: =AVERAGE(D8:D12) -> 0 | M4: =AVERAGE(D13:D17) -> 0 | N4: =AVERAGE(D18:D22) -> 0 | O4: =AVERAGE(D23:D27) -> 0 | P4: =AVERAGE(D28:D32) -> 0
A5: 3 | B5: ='!M901820.102'!B2:C2 -> <date> | C5: =('!M901820.102'!H77/60)/'!M901820.102'!Q3 -> 4.963380282 | D5: ='!M901820.102'!N28/'!M901820.102'!Q3 -> 0 | E5: =SUM('!M901820.102'!L28:Q28)/'!M901820.102'!Q3 -> 16.14084507 | F5: ='!M901820.102'!Q24 -> 0.2613246662 | J5: CCRF | K5: =AVERAGE(E3:E7) -> 19.80681082 | L5: =AVERAGE(E8:E12) -> 30.45999727 | M5: =AVERAGE(E13:E17) -> 0.3559324009 | N5: =AVERAGE(E18:E22) -> 0.3277310924 | O5: =AVERAGE(E23:E27) -> 0.347254902 | P5: =AVERAGE(E28:E32) -> 0.3248717949
A6: 4 | B6: ='!M902940.102'!B2:C2 -> <date> | C6: =('!M902940.102'!H32/60)/'!M902940.102'!Q3 -> 12.9474359 | D6: ='!M902940.102'!N28/'!M902940.102'!Q3 -> 0 | E6: =SUM('!M902940.102'!L28:Q28)/'!M902940.102'!Q3 -> 43.07692308 | F6: ='!M902940.102'!Q24 -> 0.4376217147 | J6: U Value | K6: =AVERAGE(F3:F7) -> 0.2679352611 | L6: =AVERAGE(F8:F12) -> 0.3395921055 | M6: =AVERAGE(F13:F17) -> 0.3363413253 | N6: =AVERAGE(F18:F22) -> 0.4464996915 | O6: =AVERAGE(F23:F27) -> 0.1537805596 | P6: =AVERAGE(F28:F32) -> 0.2771844293
A7: 5 | B7: ='!M903900.102'!B2:C2 -> <date> | C7: =('!M903900.102'!H51/60)/'!M903900.102'!Q3 -> 5.612592593 | D7: ='!M903900.102'!N28/'!M903900.102'!Q3 -> 0 | E7: =SUM('!M903900.102'!L28:Q28)/'!M903900.102'!Q3 -> 25.02222222 | F7: ='!M903900.102'!Q24 -> 0.2371353563
A8: 6 | B8: ='!M904A00.102'!B2:C2 -> <date> | C8: =('!M904A00.102'!H48/60)/'!M904A00.102'!Q3 -> 0 | D8: ='!M904A00.102'!N28/'!M904A00.102'!Q3 -> 0 | E8: =SUM('!M904A00.102'!L28:Q28)/'!M904A00.102'!Q3 -> 26.80952381 | F8: ='!M904A00.102'!Q24 -> 0.3207656865
A9: 7 | B9: ='!M905910.102'!B2:C2 -> <date> | C9: =('!M905910.102'!H44/60)/'!M905910.102'!Q3 -> 7.546491228 | D9: ='!M905910.102'!N28/'!M905910.102'!Q3 -> 0 | E9: =SUM('!M905910.102'!L28:Q28)/'!M905910.102'!Q3 -> 29.57894737 | F9: ='!M905910.102'!Q24 -> 0.3410936483 | G9: =K3 -> 5.664124906 | H9: 11.87301407 | I9: 21.56812976 | J9: 17.22268347 | K9: 16.8647465 | L9: 13.34564815 | M9: =K4 -> 0 | N9: 0 | O9: 0 | P9: 0 | Q9: 0 | R9: 0 | S9: =K6 -> 0.2679352611 | T9: 0.3395921055 | U9: 0.3363413253 | V9: 0.4464996915 | W9: 0.1537805596 | X9: 0.2771844293
A10: 8 | B10: ='!M906910.102'!B2:C2 -> <date> | C10: =('!M906910.102'!H31/60)/'!M906910.102'!Q3 -> 14.01066667 | D10: ='!M906910.102'!N28/'!M906910.102'!Q3 -> 0 | E10: =SUM('!M906910.102'!L28:Q28)/'!M906910.102'!Q3 -> 44.76 | F10: ='!M906910.102'!Q24 -> 0.4451311742
A11: 9 | B11: ='!M907940.102'!B2:C2 -> <date> | C11: =('!M907940.102'!H24/60)/'!M907940.102'!Q3 -> 19.77685185 | D11: ='!M907940.102'!N28/'!M907940.102'!Q3 -> 0 | E11: =SUM('!M907940.102'!L28:Q28)/'!M907940.102'!Q3 -> 0.3333333333 | F11: ='!M907940.102'!Q24 -> 0.2690968487
A12: 10 | B12: ='!M908900.102'!B2:C2 -> <date> | C12: =('!M908900.102'!H28/60)/'!M908900.102'!Q3 -> 18.03106061 | D12: ='!M908900.102'!N28/'!M908900.102'!Q3 -> 0 | E12: =SUM('!M908900.102'!L28:Q28)/'!M908900.102'!Q3 -> 50.81818182 | F12: ='!M908900.102'!Q24 -> 0.3218731698
A13: 11 | B13: ='!M909940.102'!B2:C2 -> <date> | C13: =('!M909940.102'!H18/60)/'!M909940.102'!Q3 -> 2.662820513 | D13: ='!M909940.102'!N28/'!M909940.102'!Q3 -> 0 | E13: =SUM('!M909940.102'!L28:Q28)/'!M909940.102'!Q3 -> 0.3076923077 | F13: ='!M909940.102'!Q24 -> 0.290338346
A14: 12 | B14: ='!M910900.102'!B2:C2 -> <date> | C14: =('!M910900.102'!H16/60)/'!M910900.102'!Q3 -> 5.577272727 | D14: ='!M910900.102'!N28/'!M910900.102'!Q3 -> 0 | E14: =SUM('!M910900.102'!L28:Q28)/'!M910900.102'!Q3 -> 0.3636363636 | F14: ='!M910900.102'!Q24 -> 0.4471726223
A15: 13 | B15: ='!M911910.102'!B2:C2 -> <date> | C15: =('!M911910.102'!H10/60)/'!M911910.102'!Q3 -> 79.38666667 | D15: ='!M911910.102'!N28/'!M911910.102'!Q3 -> 0 | E15: =SUM('!M911910.102'!L28:Q28)/'!M911910.102'!Q3 -> 0.4 | F15: ='!M911910.102'!Q24 -> 0
A16: 14 | B16: ='!M912A10.102'!B2:C2 -> <date> | C16: =('!M912A10.102'!H14/60)/'!M912A10.102'!Q3 -> 18.09166667 | D16: ='!M912A10.102'!N28/'!M912A10.102'!Q3 -> 0 | E16: =SUM('!M912A10.102'!L28:Q28)/'!M912A10.102'!Q3 -> 0.375 | F16: ='!M912A10.102'!Q24 -> 0.3537593748
A17: 15 | B17: ='!M913830.102'!B2:C2 -> <date> | C17: =('!M913830.102'!H11/60)/'!M913830.102'!Q3 -> 2.122222222 | D17: ='!M913830.102'!N28/'!M913830.102'!Q3 -> 0 | E17: =SUM('!M913830.102'!L28:Q28)/'!M913830.102'!Q3 -> 0.3333333333 | F17: ='!M913830.102'!Q24 -> 0.5904362833
A18: 16 | B18: ='!M914A10.102'!B2:C2 -> <date> | C18: =('!M914A10.102'!H21/60)/'!M914A10.102'!Q3 -> 17.67555556 | D18: ='!M914A10.102'!N28/'!M914A10.102'!Q3 -> 0 | E18: =SUM('!M914A10.102'!L28:Q28)/'!M914A10.102'!Q3 -> 0.3333333333 | F18: ='!M914A10.102'!Q24 -> 0.3979148438
A19: 17 | B19: ='!M915840.102'!B2:C2 -> <date> | C19: =('!M915840.102'!H9/60)/'!M915840.102'!Q3 -> 4.577777778 | D19: ='!M915840.102'!N28/'!M915840.102'!Q3 -> 0 | E19: =SUM('!M915840.102'!L28:Q28)/'!M915840.102'!Q3 -> 0.3333333333 | F19: ='!M915840.102'!Q24 -> 0
A20: 18 | B20: ='!M916A10.102'!B2:C2 -> <date> | C20: =('!M916A10.102'!H9/60)/'!M916A10.102'!Q3 -> 4.766666667 | D20: ='!M916A10.102'!N28/'!M916A10.102'!Q3 -> 0 | E20: =SUM('!M916A10.102'!L28:Q28)/'!M916A10.102'!Q3 -> 0.3333333333 | F20: ='!M916A10.102'!Q24 -> 0.5793801643
A21: 19 | B21: ='!M917840.102'!B2:C2 -> <date> | C21: =('!M917840.102'!H12/60)/'!M917840.102'!Q3 -> 56.79047619 | D21: ='!M917840.102'!N28/'!M917840.102'!Q3 -> 0 | E21: =SUM('!M917840.102'!L28:Q28)/'!M917840.102'!Q3 -> 0.2857142857 | F21: ='!M917840.102'!Q24 -> 0.7420981285
A22: 20 | B22: ='!M918B00.102'!B2:C2 -> <date> | C22: =('!M918B00.102'!H22/60)/'!M918B00.102'!Q3 -> 2.302941176 | D22: ='!M918B00.102'!N28/'!M918B00.102'!Q3 -> 0 | E22: =SUM('!M918B00.102'!L28:Q28)/'!M918B00.102'!Q3 -> 0.3529411765 | F22: ='!M918B00.102'!Q24 -> 0.513105321
A23: 21 | B23: ='!M919950.102'!B2:C2 -> <date> | C23: =('!M919950.102'!H27/60)/'!M919950.102'!Q3 -> 15.1047619 | D23: ='!M919950.102'!N28/'!M919950.102'!Q3 -> 0 | E23: =SUM('!M919950.102'!L28:Q28)/'!M919950.102'!Q3 -> 0.3333333333 | F23: ='!M919950.102'!Q24 -> 0.265414345
A24: 22 | B24: ='!M920A00.102'!B2:C2 -> <date> | C24: =('!M920A00.102'!H23/60)/'!M920A00.102'!Q3 -> 19.22647059 | D24: ='!M920A00.102'!N28/'!M920A00.102'!Q3 -> 0 | E24: =SUM('!M920A00.102'!L28:Q28)/'!M920A00.102'!Q3 -> 0.3529411765 | F24: ='!M920A00.102'!Q24 -> 0.192570946
A25: 23 | B25: ='!M921930.102'!B2:C2 -> <date> | C25: =('!M921930.102'!H11/60)/'!M921930.102'!Q3 -> 44.65666667 | D25: ='!M921930.102'!N28/'!M921930.102'!Q3 -> 0 | E25: =SUM('!M921930.102'!L28:Q28)/'!M921930.102'!Q3 -> 0.4 | F25: ='!M921930.102'!Q24 -> 0.3109175071
A26: 24 | B26: ='!M922900.102'!B2:C2 -> <date> | C26: =('!M922900.102'!H10/60)/'!M922900.102'!Q3 -> 2.5625 | D26: ='!M922900.102'!N28/'!M922900.102'!Q3 -> 0 | E26: =SUM('!M922900.102'!L28:Q28)/'!M922900.102'!Q3 -> 0.25 | F26: ='!M922900.102'!Q24 -> 0
A27: 25 | B27: ='!M923A10.102'!B2:C2 -> <date> | C27: =('!M923A10.102'!H10/60)/'!M923A10.102'!Q3 -> 2.773333333 | D27: ='!M923A10.102'!N28/'!M923A10.102'!Q3 -> 0 | E27: =SUM('!M923A10.102'!L28:Q28)/'!M923A10.102'!Q3 -> 0.4 | F27: ='!M923A10.102'!Q24 -> 0
A28: 26 | B28: ='!M924950.102'!B2:C2 -> <date> | C28: =('!M924950.102'!H10/60)/'!M924950.102'!Q3 -> 3.2875 | D28: ='!M924950.102'!N28/'!M924950.102'!Q3 -> 0 | E28: =SUM('!M924950.102'!L28:Q28)/'!M924950.102'!Q3 -> 0.25 | F28: ='!M924950.102'!Q24 -> 0.4056390622
A29: 27 | B29: ='!M925720.102'!B2:C2 -> <date> | C29: =('!M925720.102'!H18/60)/'!M925720.102'!Q3 -> 2.536111111 | D29: ='!M925720.102'!N28/'!M925720.102'!Q3 -> 0 | E29: =SUM('!M925720.102'!L28:Q28)/'!M925720.102'!Q3 -> 0.3333333333 | F29: ='!M925720.102'!Q24 -> 0.3861774019
A30: 28 | B30: ='!M926740.102'!B2:C2 -> <date> | C30: =('!M926740.102'!H24/60)/'!M926740.102'!Q3 -> 2.95462963 | D30: ='!M926740.102'!N28/'!M926740.102'!Q3 -> 0 | E30: =SUM('!M926740.102'!L28:Q28)/'!M926740.102'!Q3 -> 0.3333333333 | F30: ='!M926740.102'!Q24 -> 0.07423237325
A31: 29 | B31: ='!M926B20.102'!B2:C2 -> <date> | C31: 21.48333333 | D31: 0 | E31: 0.3076923077 | F31: 0.2089558019
A32: 30 | B32: ='!M927830.102'!B2:C2 -> <date> | C32: 36.46666667 | D32: 0 | E32: 0.4 | F32: 0.3109175071
B33: ='!M928930.102'!B2:C2 -> <date> | C33: =('!M928930.102'!H11/60)/'!M928930.102'!Q3 -> 36.46666667 | D33: ='!M928930.102'!N28/'!M928930.102'!Q3 -> 0 | E33: =SUM('!M928930.102'!L28:Q28)/'!M928930.102'!Q3 -> 0.4 | F33: ='!M928930.102'!Q24 -> 0.3109175071

Sheet Start
F1: Use Folder 51 | H1: Auto Clean Up | J1: Correct sequence
F2: FALSE | H2: TRUE | J2: 2212
A4: Working with Folder | G4: Process All/Or Pick A number: ALL or an integer
A5: E:\Hen Data\Raw Data\102_182\phase 3 var\ | G5: ALL
A6: Filenames:
A7: !M911910.102 | G7: Paint Cells
A8: !M912A10.102 | G8: FALSE
A9: !M913830.102
A10: !M914A10.102
A11: !M915840.102
A12: !M916A10.102
A13: !M917840.102
A14: !M918B00.102
A15: !M919950.102
A16: !M920A00.102
A17: !M921930.102
A18: !M922900.102
A19: !M923A10.102
A20: !M924950.102
A21: !M925720.102
A22: !M926740.102
A23: !M926B20.102
A24: !M927830.102
A25: !M928930.102
A26: !M830900.102
A27: !M831940.102
A28: !M901820.102
A29: !M902940.102
A30: !M903900.102
A31: !M904A00.102
A32: !M905910.102
A33: !M906910.102
A34: !M907940.102
A35: !M908900.102
A36: !M909940.102
A37: !M910900.102

Sheet !M830900.102
A1: Report for:!M830900.102
A2: Date: | B2: <date>
A3: Hen: | B3: <hen> | F3: Correct Sequence | G3: =Start!J2 -> 2212 | P3: Total Sequences in Data | Q3: =4994-COUNTBLANK(L7:L5000) -> 197 | V3: Total Sequences in Block Data | W3: =COUNTA(L7:L39) -> 33 | AA3: Total Sequences in Block Data | AB3: =COUNTA(L40:L72) -> 33 | AF3: Total Sequences in Block Data | AG3: =COUNTA(L73:L104) -> 32 | AK3: Total Sequences in Block Data | AL3: =COUNTA(L105:L137) -> 33 | AP3: Total Sequences in Block Data | AQ3: =COUNTA(L138:L170) -> 33 | AU3: Total Sequences in Block Data | AV3: =COUNTA(L171:L203) -> 33
P4: Total Sequences in Summary | Q4: =SUM(O7:O22) -> 197 | V4: Total Sequences in Block Summary | W4: =SUM(U7:U22) -> 33 | AA4: Total Sequences in Block Summary | AB4: =SUM(Z7:Z22) -> 33 | AF4: Total Sequences in Block Summary | AG4: =SUM(AE7:AE22) -> 32 | AK4: Total Sequences in Block Summary | AL4: =SUM(AJ7:AJ22) -> 33 | AP4: Total Sequences in Block Summary | AQ4: =SUM(AO7:AO22) -> 33 | AU4: Total Sequences in Block Summary | AV4: =SUM(AT7:AT22) -> 33
T5: Block 1 | Y5: Block 2 | AD5: Block 3 | AI5: Block 4 | AN5: Block 5 | AS5: Block 6
A6: Sequence Component 1 | B6: Time 1 | C6: Sequence Component 2 | D6: Time 2 | E6: Sequence Component 3 | F6: Time 3 | G6: Sequence Component 4 | H6: Time 4 | I6: Sequence Component 5 | J6: Time 5 | K6: Correct? 0=No 1=Yes | L6: Sequence | N6: Frequency | P6: Relative Frequency | Q6: Variability | T6: Frequency | V6: Relative Frequency | W6: Variability | Y6: Frequency | AA6: Relative Frequency | AB6: Variability | AD6: Frequency | AF6: Relative Frequency | AG6: Variability | AI6: Frequency | AK6: Relative Frequency | AL6: Variability | AN6: Frequency | AP6: Relative Frequency | AQ6: Variability | AS6: Frequency | AU6: Relative Frequency | AV6: Variability
A7: 12 | B7: 9 | C7: 23 | D7: 21 | E7: 24 | F7: 36 | G7: 23 | H7: 54 | K7: 0 | L7: 1222 | N7: 1111 | O7: =COUNTIF($L$7:$L$500,N7) -> 147 | P7: =O7/$Q$4 -> 0.7461928934 | Q7: =IF(P7=0,0,(P7*((LOG(P7))/LOG(2)))) -> -0.3151765623 | T7: =N7 -> 1111 | U7: =COUNTIF(L7:L39,T7) -> 11 | V7: =U7/(W4-U20) -> 0.3333333333 | W7: =IF(V7=0,0,(V7*((LOG(V7))/LOG(2)))) -> -0.5283208336 | Y7: =N7 -> 1111 | Z7: =COUNTIF(L40:L72,Y7) -> 23 | AA7: =Z7/(AB4-Z20) -> 0.696969697 | AB7: =IF(AA7=0,0,(AA7*((LOG(AA7))/LOG(2)))) -> -0.363004235 | AD7: =N7 -> 1111 | AE7: =COUNTIF(L73:L104,AD7) -> 26 | AF7: =AE7/(AG4-AE20) -> 0.8125 | AG7: =IF(AF7=0,0,(AF7*((LOG(AF7))/LOG(2)))) -> -0.243392729 | AI7: =N7 -> 1111 | AJ7: =COUNTIF(L105:L137,AI7) -> 28 | AK7: =AJ7/(AL4-AJ20) -> 0.8484848485 | AL7: =IF(AK7=0,0,(AK7*((LOG(AK7))/LOG(2)))) -> -0.2011241674 | AN7: =N7 -> 1111 | AO7: =COUNTIF(L138:L170,AN7) -> 30 | AP7: =AO7/(AQ4-AO20) -> 0.9090909091 | AQ7: =IF(AP7=0,0,(AP7*((LOG(AP7))/LOG(2)))) -> -0.1250032034 | AS7: =N7 -> 1111 | AT7: =COUNTIF(L171:L203,AS7) -> 29 | AU7: =AT7/(AV4-AT20) -> 0.8787878788 | AV7: =IF(AU7=0,0,(AU7*((LOG(AU7))/LOG(2)))) -> -0.163817594
A8: 12 | B8: 155 | C8: 14 | D8: 160 | E8: 13 | F8: 168 | G8: 23 | H8: 195 | K8: 0 | L8: 1112 | N8: 1112 | O8: =COUNTIF($L$7:$L$500,N8) -> 40 | P8: =O8/$Q$4 -> 0.2030456853 | Q8: =IF(P8=0,0,(P8*((LOG(P8))/LOG(2)))) -> -0.4670301979 | T8: =N8 -> 1112 | U8: =COUNTIF(L7:L39,T8) -> 17 | V8: =U8/(W4-U20) -> 0.5151515152 | W8: =IF(V8=0,0,(V8*((LOG(V8))/LOG(2)))) -> -0.4929645978 | Y8: =N8 -> 1112 | Z8: =COUNTIF(L40:L72,Y8) -> 10 | AA8: =Z8/(AB4-Z20) -> 0.303030303 | AB8: =IF(AA8=0,0,(AA8*((LOG(AA8))/LOG(2)))) -> -0.5219594014 | AD8: =N8 -> 1112 | AE8: =COUNTIF(L73:L104,AD8) -> 5 | AF8: =AE8/(AG4-AE20) -> 0.15625 | AG8: =IF(AF8=0,0,(AF8*((LOG(AF8))/LOG(2)))) -> -0.4184487352 | AI8: =N8 -> 1112 | AJ8: =COUNTIF(L105:L137,AI8) -> 4 | AK8: =AJ8/(AL4-AJ20) -> 0.1212121212 | AL8: =IF(AK8=0,0,(AK8*((LOG(AK8))/LOG(2)))) -> -0.369017469 | AN8: =N8 -> 1112 | AO8: =COUNTIF(L138:L170,AN8) -> 1 | AP8: =AO8/(AQ4-AO20) -> 0.0303030303 | AQ8: =IF(AP8=0,0,(AP8*((LOG(AP8))/LOG(2)))) -> -0.1528604279 | AS8: =N8 -> 1112 | AT8: =COUNTIF(L171:L203,AS8) -> 3 | AU8: =AT8/(AV4-AT20) -> 0.09090909091 | AV8: =IF(AU8=0,0,(AU8*((LOG(AU8))/LOG(2)))) -> -0.3144937835
A9: 12 | B9: 295 | C9: 23 | D9: 319 | E9: 24 | F9: 330 | G9: 23 | H9: 335 | K9: 0 | L9: 1222 | N9: 1121 | O9: =COUNTIF($L$7:$L$500,N9) -> 0 | P9: =O9/$Q$4 -> 0 | Q9: =IF(P9=0,0,(P9*((LOG(P9))/LOG(2)))) -> 0 | T9: =N9 -> 1121 | U9: =COUNTIF(L7:L39,T9) -> 0 | V9: =U9/(W4-U20) -> 0 | W9: =IF(V9=0,0,(V9*((LOG(V9))/LOG(2)))) -> 0 | Y9: =N9 -> 1121 | Z9: =COUNTIF(L40:L72,Y9) -> 0 | AA9: =Z9/(AB4-Z20) -> 0 | AB9: =IF(AA9=0,0,(AA9*((LOG(AA9))/LOG(2)))) -> 0 | AD9: =N9 -> 1121 | AE9: =COUNTIF(L73:L104,AD9) -> 0 | AF9: =AE9/(AG4-AE20) -> 0 | AG9: =IF(AF9=0,0,(AF9*((LOG(AF9))/LOG(2)))) -> 0 | AI9: =N9 -> 1121 | AJ9: =COUNTIF(L105:L137,AI9) -> 0 | AK9: =AJ9/(AL4-AJ20) -> 0 | AL9: =IF(AK9=0,0,(AK9*((LOG(AK9))/LOG(2)))) -> 0 | AN9: =N9 -> 1121 | AO9: =COUNTIF(L138:L170,AN9) -> 0 | AP9: =AO9/(AQ4-AO20) -> 0 | AQ9: =IF(AP9=0,0,(AP9*((LOG(AP9))/LOG(2)))) -> 0 | AS9: =N9 -> 1121 | AT9: =COUNTIF(L171:L203,AS9) -> 0 | AU9: =AT9/(AV4-AT20) -> 0 | AV9: =IF(AU9=0,0,(AU9*((LOG(AU9))/LOG(2)))) -> 0
A10: 12 | B10: 434 | C10: 14 | D10: 439 | E10: 13 | F10: 445 | G10: 23 | H10: 456 | K10: 0 | L10: 1112 | N10: 1122 | O10: =COUNTIF($L$7:$L$500,N10) -> 8 | P10: =O10/$Q$4 -> 0.04060913706 | Q10: =IF(P10=0,0,(P10*((LOG(P10))/LOG(2)))) -> -0.1876975358 | T10: =N10 -> 1122 | U10: =COUNTIF(L7:L39,T10) -> 3 | V10: =U10/(W4-U20) -> 0.09090909091 | W10: =IF(V10=0,0,(V10*((LOG(V10))/LOG(2)))) -> -0.3144937835 | Y10: =N10 -> 1122 | Z10: =COUNTIF(L40:L72,Y10) -> 0 | AA10: =Z10/(AB4-Z20) -> 0 | AB10: =IF(AA10=0,0,(AA10*((LOG(AA10))/LOG(2)))) -> 0 | AD10: =N10 -> 1122 | AE10: =COUNTIF(L73:L104,AD10) -> 1 | AF10: =AE10/(AG4-AE20) -> 0.03125 | AG10: =IF(AF10=0,0,(AF10*((LOG(AF10))/LOG(2)))) -> -0.15625 | AI10: =N10 -> 1122 | AJ10: =COUNTIF(L105:L137,AI10) -> 1 | AK10: =AJ10/(AL4-AJ20) -> 0.0303030303 | AL10: =IF(AK10=0,0,(AK10*((LOG(AK10))/LOG(2)))) -> -0.1528604279 | AN10: =N10 -> 1122 | AO10: =COUNTIF(L138:L170,AN10) -> 2 | AP10: =AO10/(AQ4-AO20) -> 0.06060606061 | AQ10: =IF(AP10=0,0,(AP10*((LOG(AP10))/LOG(2)))) -> -0.2451147951 | AS10: =N10 -> 1122 | AT10: =COUNTIF(L171:L203,AS10) -> 1 | AU10: =AT10/(AV4-AT20) -> 0.0303030303 | AV10: =IF(AU10=0,0,(AU10*((LOG(AU10))/LOG(2)))) -> -0.1528604279
A11: 12 | B11: 560 | C11: 14 | D11: 565 | E11: 24 | F11: 575 | G11: 23 | H11: 586 | K11: 0 | L11: 1122 | N11: 1211 | O11: =COUNTIF($L$7:$L$500,N11) -> 0 | P11: =O11/$Q$4 -> 0 | Q11: =IF(P11=0,0,(P11*((LOG(P11))/LOG(2)))) -> 0 | T11: =N11 -> 1211 | U11: =COUNTIF(L7:L39,T11) -> 0 | V11: =U11/(W4-U20) -> 0 | W11: =IF(V11=0,0,(V11*((LOG(V11))/LOG(2)))) -> 0 | Y11: =N11 -> 1211 | Z11: =COUNTIF(L40:L72,Y11) -> 0 | AA11: =Z11/(AB4-Z20) -> 0 | AB11: =IF(AA11=0,0,(AA11*((LOG(AA11))/LOG(2)))) -> 0 | AD11: =N11 -> 1211 | AE11: =COUNTIF(L73:L104,AD11) -> 0 | AF11: =AE11/(AG4-AE20) -> 0 | AG11: =IF(AF11=0,0,(AF11*((LOG(AF11))/LOG(2)))) -> 0 | AI11: =N11 -> 1211 | AJ11: =COUNTIF(L105:L137,AI11) -> 0 | AK11: =AJ11/(AL4-AJ20) -> 0 | AL11: =IF(AK11=0,0,(AK11*((LOG(AK11))/LOG(2)))) -> 0 | AN11: =N11 -> 1211 | AO11: =COUNTIF(L138:L170,AN11) -> 0 | AP11: =AO11/(AQ4-AO20) -> 0 | AQ11: =IF(AP11=0,0,(AP11*((LOG(AP11))/LOG(2)))) -> 0 | AS11: =N11 -> 1211 | AT11: =COUNTIF(L171:L203,AS11) -> 0 | AU11: =AT11/(AV4-AT20) -> 0 | AV11: =IF(AU11=0,0,(AU11*((LOG(AU11))/LOG(2)))) -> 0
A12: 12 | B12: 685 | C12: 14 | D12: 690 | E12: 13 | F12: 695 | G12: 23 | H12: 706 | K12: 0 | L12: 1112 | N12: 1212 | O12: =COUNTIF($L$7:$L$500,N12) -> 0 | P12: =O12/$Q$4 -> 0 | Q12: =IF(P12=0,0,(P12*((LOG(P12))/LOG(2)))) -> 0 | T12: =N12 -> 1212 | U12: =COUNTIF(L7:L39,T12) -> 0 | V12: =U12/(W4-U20) -> 0 | W12: =IF(V12=0,0,(V12*((LOG(V12))/LOG(2)))) -> 0 | Y12: =N12 -> 1212 | Z12: =COUNTIF(L40:L72,Y12) -> 0 | AA12: =Z12/(AB4-Z20) -> 0 | AB12: =IF(AA12=0,0,(AA12*((LOG(AA12))/LOG(2)))) -> 0 | AD12: =N12 -> 1212 | AE12: =COUNTIF(L73:L104,AD12) -> 0 | AF12: =AE12/(AG4-AE20) -> 0 | AG12: =IF(AF12=0,0,(AF12*((LOG(AF12))/LOG(2)))) -> 0 | AI12: =N12 -> 1212 | AJ12: =COUNTIF(L105:L137,AI12) -> 0 | AK12: =AJ12/(AL4-AJ20) -> 0 | AL12: =IF(AK12=0,0,(AK12*((LOG(AK12))/LOG(2)))) -> 0 | AN12: =N12 -> 1212 | AO12: =COUNTIF(L138:L170,AN12) -> 0 | AP12: =AO12/(AQ4-AO20) -> 0 | AQ12: =IF(AP12=0,0,(AP12*((LOG(AP12))/LOG(2)))) -> 0 | AS12: =N12 -> 1212 | AT12: =COUNTIF(L171:L203,AS12) -> 0 | AU12: =AT12/(AV4-AT20) -> 0 | AV12: =IF(AU12=0,0,(AU12*((LOG(AU12))/LOG(2)))) -> 0
A13: 12 | B13: 809 | C13: 14 | D13: 813 | E13: 13 | F13: 818 | G13: 23 | H13: 828 | K13: 0 | L13: 1112 | N13: 1221 | O13: =COUNTIF($L$7:$L$500,N13) -> 0 | P13: =O13/$Q$4 -> 0 | Q13: =IF(P13=0,0,(P13*((LOG(P13))/LOG(2)))) -> 0 | T13: =N13 -> 1221 | U13: =COUNTIF(L7:L39,T13) -> 0 | V13: =U13/(W4-U20) -> 0 | W13: =IF(V13=0,0,(V13*((LOG(V13))/LOG(2)))) -> 0 | Y13: =N13 -> 1221 | Z13: =COUNTIF(L40:L72,Y13) -> 0 | AA13: =Z13/(AB4-Z20) -> 0 | AB13: =IF(AA13=0,0,(AA13*((LOG(AA13))/LOG(2)))) -> 0 | AD13: =N13 -> 1221 | AE13: =COUNTIF(L73:L104,AD13) -> 0 | AF13: =AE13/(AG4-AE20) -> 0 | AG13: =IF(AF13=0,0,(AF13*((LOG(AF13))/LOG(2)))) -> 0 | AI13: =N13 -> 1221 | AJ13: =COUNTIF(L105:L137,AI13) -> 0 | AK13: =AJ13/(AL4-AJ20) -> 0 | AL13: =IF(AK13=0,0,(AK13*((LOG(AK13))/LOG(2)))) -> 0 | AN13: =N13 -> 1221 | AO13: =COUNTIF(L138:L170,AN13) -> 0 | AP13: =AO13/(AQ4-AO20) -> 0 | AQ13: =IF(AP13=0,0,(AP13*((LOG(AP13))/LOG(2)))) -> 0 | AS13: =N13 -> 1221 | AT13: =COUNTIF(L171:L203,AS13) -> 0 | AU13: =AT13/(AV4-AT20) -> 0 | AV13: =IF(AU13=0,0,(AU13*((LOG(AU13))/LOG(2)))) -> 0
A14: 12 | B14: 927 | C14: 14 | D14: 932 | E14: 13 | F14: 938 | G14: 23 | H14: 951 | K14: 0 | L14: 1112 | N14: 1222 | O14: =COUNTIF($L$7:$L$500,N14) -> 2 | P14: =O14/$Q$4 -> 0.01015228426 | Q14: =IF(P14=0,0,(P14*((LOG(P14))/LOG(2)))) -> -0.06722895248 | T14: =N14 -> 1222 | U14: =COUNTIF(L7:L39,T14) -> 2 | V14: =U14/(W4-U20) -> 0.06060606061 | W14: =IF(V14=0,0,(V14*((LOG(V14))/LOG(2)))) -> -0.2451147951 | Y14: =N14 -> 1222 | Z14: =COUNTIF(L40:L72,Y14) -> 0 | AA14: =Z14/(AB4-Z20) -> 0 | AB14: =IF(AA14=0,0,(AA14*((LOG(AA14))/LOG(2)))) -> 0 | AD14: =N14 -> 1222 | AE14: =COUNTIF(L73:L104,AD14) -> 0 | AF14: =AE14/(AG4-AE20) -> 0 | AG14: =IF(AF14=0,0,(AF14*((LOG(AF14))/LOG(2)))) -> 0 | AI14: =N14 -> 1222 | AJ14: =COUNTIF(L105:L137,AI14) -> 0 | AK14: =AJ14/(AL4-AJ20) -> 0 | AL14: =IF(AK14=0,0,(AK14*((LOG(AK14))/LOG(2)))) -> 0 | AN14: =N14 -> 1222 | AO14: =COUNTIF(L138:L170,AN14) -> 0 | AP14: =AO14/(AQ4-AO20) -> 0 | AQ14: =IF(AP14=0,0,(AP14*((LOG(AP14))/LOG(2)))) -> 0 | AS14: =N14 -> 1222 | AT14: =COUNTIF(L171:L203,AS14) -> 0 | AU14: =AT14/(AV4-AT20) -> 0 | AV14: =IF(AU14=0,0,(AU14*((LOG(AU14))/LOG(2)))) -> 0
A15: 12 | B15: 1050 | C15: 14 | D15: 1054 | E15: 13 | F15: 1059 | G15: 14 | H15: 1065 | K15: 0 | L15: 1111 | N15: 2111 | O15: =COUNTIF($L$7:$L$500,N15) -> 0 | P15: =O15/$Q$4 -> 0 | Q15: =IF(P15=0,0,(P15*((LOG(P15))/LOG(2)))) -> 0 | T15: =N15 -> 2111 | U15: =COUNTIF(L7:L39,T15) -> 0 | V15: =U15/(W4-U20) -> 0 | W15: =IF(V15=0,0,(V15*((LOG(V15))/LOG(2)))) -> 0 | Y15: =N15 -> 2111 | Z15: =COUNTIF(L40:L72,Y15) -> 0 | AA15: =Z15/(AB4-Z20) -> 0 | AB15: =IF(AA15=0,0,(AA15*((LOG(AA15))/LOG(2)))) -> 0 | AD15: =N15 -> 2111 | AE15: =COUNTIF(L73:L104,AD15) -> 0 | AF15: =AE15/(AG4-AE20) -> 0 | AG15: =IF(AF15=0,0,(AF15*((LOG(AF15))/LOG(2)))) -> 0 | AI15: =N15 -> 2111 | AJ15: =COUNTIF(L105:L137,AI15) -> 0 | AK15: =AJ15/(AL4-AJ20) -> 0 | AL15: =IF(AK15=0,0,(AK15*((LOG(AK15))/LOG(2)))) -> 0 | AN15: =N15 -> 2111 | AO15: =COUNTIF(L138:L170,AN15) -> 0 | AP15: =AO15/(AQ4-AO20) -> 0 | AQ15: =IF(AP15=0,0,(AP15*((LOG(AP15))/LOG(2)))) -> 0 | AS15: =N15 -> 2111 | AT15: =COUNTIF(L171:L203,AS15) -> 0 | AU15: =AT15/(AV4-AT20) -> 0 | AV15: =IF(AU15=0,0,(AU15*((LOG(AU15))/LOG(2)))) -> 0
A16: 12 | B16: 1165 | C16: 14 | D16: 1170 | E16: 13 | F16: 1179 | G16: 23 | H16: 1189 | K16: 0 | L16: 1112 | N16: 2112 | O16: =COUNTIF($L$7:$L$500,N16) -> 0 | P16: =O16/$Q$4 -> 0 | Q16: =IF(P16=0,0,(P16*((LOG(P16))/LOG(2)))) -> 0 | T16: =N16 -> 2112 | U16: =COUNTIF(L7:L39,T16) -> 0 | V16: =U16/(W4-U20) -> 0 | W16: =IF(V16=0,0,(V16*((LOG(V16))/LOG(2)))) -> 0 | Y16: =N16 -> 2112 | Z16: =COUNTIF(L40:L72,Y16) -> 0 | AA16: =Z16/(AB4-Z20) -> 0 | AB16: =IF(AA16=0,0,(AA16*((LOG(AA16))/LOG(2)))) -> 0 | AD16: =N16 -> 2112 | AE16: =COUNTIF(L73:L104,AD16) -> 0 | AF16: =AE16/(AG4-AE20) -> 0 | AG16: =IF(AF16=0,0,(AF16*((LOG(AF16))/LOG(2)))) -> 0 | AI16: =N16 -> 2112 | AJ16: =COUNTIF(L105:L137,AI16) -> 0 | AK16: =AJ16/(AL4-AJ20) -> 0 | AL16: =IF(AK16=0,0,(AK16*((LOG(AK16))/LOG(2)))) -> 0 | AN16: =N16 -> 2112 | AO16: =COUNTIF(L138:L170,AN16) -> 0 | AP16: =AO16/(AQ4-AO20) -> 0 | AQ16: =IF(AP16=0,0,(AP16*((LOG(AP16))/LOG(2)))) -> 0 | AS16: =N16 -> 2112 | AT16: =COUNTIF(L171:L203,AS16) -> 0 | AU16: =AT16/(AV4-AT20) -> 0 | AV16: =IF(AU16=0,0,(AU16*((LOG(AU16))/LOG(2)))) -> 0
A17: 12 | B17: 1288 | C17: 14 | D17: 1292 | E17: 13 | F17: 1298 | G17: 23 | H17: 1316 | K17: 0 | L17: 1112 | N17: 2121 | O17: =COUNTIF($L$7:$L$500,N17) -> 0 | P17: =O17/$Q$4 -> 0 | Q17: =IF(P17=0,0,(P17*((LOG(P17))/LOG(2)))) -> 0 | T17: =N17 -> 2121 | U17: =COUNTIF(L7:L39,T17) -> 0 | V17: =U17/(W4-U20) -> 0 | W17: =IF(V17=0,0,(V17*((LOG(V17))/LOG(2)))) -> 0 | Y17: =N17 -> 2121 | Z17: =COUNTIF(L40:L72,Y17) -> 0 | AA17: =Z17/(AB4-Z20) -> 0 | AB17: =IF(AA17=0,0,(AA17*((LOG(AA17))/LOG(2)))) -> 0 | AD17: =N17 -> 2121 | AE17: =COUNTIF(L73:L104,AD17) -> 0 | AF17: =AE17/(AG4-AE20) -> 0 | AG17: =IF(AF17=0,0,(AF17*((LOG(AF17))/LOG(2)))) -> 0 | AI17: =N17 -> 2121 | AJ17: =COUNTIF(L105:L137,AI17) -> 0 | AK17: =AJ17/(AL4-AJ20) -> 0 | AL17: =IF(AK17=0,0,(AK17*((LOG(AK17))/LOG(2)))) -> 0 | AN17: =N17 -> 2121 | AO17: =COUNTIF(L138:L170,AN17) -> 0 | AP17: =AO17/(AQ4-AO20) -> 0 | AQ17: =IF(AP17=0,0,(AP17*((LOG(AP17))/LOG(2)))) -> 0 | AS17: =N17 -> 2121 | AT17: =COUNTIF(L171:L203,AS17) -> 0 | AU17: =AT17/(AV4-AT20) -> 0 | AV17: =IF(AU17=0,0,(AU17*((LOG(AU17))/LOG(2)))) -> 0
A18: 12 | B18: 1417 | C18: 14 | D18: 1422 | E18: 13 | F18: 1428 | G18: 14 | H18: 1434 | K18: 0 | L18: 1111 | N18: 2122 | O18: =COUNTIF($L$7:$L$500,N18) -> 0 | P18: =O18/$Q$4 -> 0 | Q18: =IF(P18=0,0,(P18*((LOG(P18))/LOG(2)))) -> 0 | T18: =N18 -> 2122 | U18: =COUNTIF(L7:L39,T18) -> 0 | V18: =U18/(W4-U20) -> 0 | W18: =IF(V18=0,0,(V18*((LOG(V18))/LOG(2)))) -> 0 | Y18: =N18 -> 2122 | Z18: =COUNTIF(L40:L72,Y18) -> 0 | AA18: =Z18/(AB4-Z20) -> 0 | AB18: =IF(AA18=0,0,(AA18*((LOG(AA18))/LOG(2)))) -> 0 | AD18: =N18 -> 2122 | AE18: =COUNTIF(L73:L104,AD18) -> 0 | AF18: =AE18/(AG4-AE20) -> 0 | AG18: =IF(AF18=0,0,(AF18*((LOG(AF18))/LOG(2)))) -> 0 | AI18: =N18 -> 2122 | AJ18: =COUNTIF(L105:L137,AI18) -> 0 | AK18: =AJ18/(AL4-AJ20) -> 0 | AL18: =IF(AK18=0,0,(AK18*((LOG(AK18))/LOG(2)))) -> 0 | AN18: =N18 -> 2122 | AO18: =COUNTIF(L138:L170,AN18) -> 0 | AP18: =AO18/(AQ4-AO20) -> 0 | AQ18: =IF(AP18=0,0,(AP18*((LOG(AP18))/LOG(2)))) -> 0 | AS18: =N18 -> 2122 | AT18: =COUNTIF(L171:L203,AS18) -> 0 | AU18: =AT18/(AV4-AT20) -> 0 | AV18: =IF(AU18=0,0,(AU18*((LOG(AU18))/LOG(2)))) -> 0
A19: 12 | B19: 1530 | C19: 14 | D19: 1534 | E19: 13 | F19: 1540 | G19: 23 | H19: 1553 | K19: 0 | L19: 1112 | N19: 2211 | O19: =COUNTIF($L$7:$L$500,N19) -> 0 | P19: =O19/$Q$4 -> 0 | Q19: =IF(P19=0,0,(P19*((LOG(P19))/LOG(2)))) -> 0 | T19: =N19 -> 2211 | U19: =COUNTIF(L7:L39,T19) -> 0 | V19: =U19/(W4-U20) -> 0 | W19: =IF(V19=0,0,(V19*((LOG(V19))/LOG(2)))) -> 0 | Y19: =N19 -> 2211 | Z19: =COUNTIF(L40:L72,Y19) -> 0 | AA19: =Z19/(AB4-Z20) -> 0 | AB19: =IF(AA19=0,0,(AA19*((LOG(AA19))/LOG(2)))) -> 0 | AD19: =N19 -> 2211 | AE19: =COUNTIF(L73:L104,AD19) -> 0 | AF19: =AE19/(AG4-AE20) -> 0 | AG19: =IF(AF19=0,0,(AF19*((LOG(AF19))/LOG(2)))) -> 0 | AI19: =N19 -> 2211 | AJ19: =COUNTIF(L105:L137,AI19) -> 0 | AK19: =AJ19/(AL4-AJ20) -> 0 | AL19: =IF(AK19=0,0,(AK19*((LOG(AK19))/LOG(2)))) -> 0 | AN19: =N19 -> 2211 | AO19: =COUNTIF(L138:L170,AN19) -> 0 | AP19: =AO19/(AQ4-AO20) -> 0 | AQ19: =IF(AP19=0,0,(AP19*((LOG(AP19))/LOG(2)))) -> 0 | AS19: =N19 -> 2211 | AT19: =COUNTIF(L171:L203,AS19) -> 0 | AU19: =AT19/(AV4-AT20) -> 0 | AV19: =IF(AU19=0,0,(AU19*((LOG(AU19))/LOG(2)))) -> 0
A20: 12 | B20: 1654 | C20: 14 | D20: 1658 | E20: 13 | F20: 1662 | G20: 14 | H20: 1667 | K20: 0 | L20: 1111 | N20: 2212 | O20: =COUNTIF($L$7:$L$500,N20) -> 0 | P20: =O20/$Q$4 -> 0 | Q20: =IF(P20=0,0,(P20*((LOG(P20))/LOG(2)))) -> 0 | T20: =N20 -> 2212 | U20: =COUNTIF(L7:L39,T20) -> 0 | Y20: =N20 -> 2212 | Z20: =COUNTIF(L40:L72,Y20) -> 0 | AD20: =N20 -> 2212 | AE20: =COUNTIF(L73:L104,AD20) -> 0 | AI20: =N20 -> 2212 | AJ20: =COUNTIF(L105:L137,AI20) -> 0 | AN20: =N20 -> 2212 | AO20: =COUNTIF(L138:L170,AN20) -> 0 | AS20: =N20 -> 2212 | AT20: =COUNTIF(L171:L203,AS20) -> 0
A21: 12 | B21: 1769 | C21: 14 | D21: 1773 | E21: 13 | F21: 1778 | G21: 14 | H21: 1784 | K21: 0 | L21: 1111 | N21: 2221 | O21: =COUNTIF($L$7:$L$500,N21) -> 0 | P21: =O21/$Q$4 -> 0 | Q21: =IF(P21=0,0,(P21*((LOG(P21))/LOG(2)))) -> 0 | T21: =N21 -> 2221 | U21: =COUNTIF(L7:L39,T21) -> 0 | V21: =U21/(W4-U20) -> 0 | W21: =IF(V21=0,0,(V21*((LOG(V21))/LOG(2)))) -> 0 | Y21: =N21 -> 2221 | Z21: =COUNTIF(L40:L72,Y21) -> 0 | AA21: =Z21/(AB4-Z20) -> 0 | AB21: =IF(AA21=0,0,(AA21*((LOG(AA21))/LOG(2)))) -> 0 | AD21: =N21 -> 2221 | AE21: =COUNTIF(L73:L104,AD21) -> 0 | AF21: =AE21/(AG4-AE20) -> 0 | AG21: =IF(AF21=0,0,(AF21*((LOG(AF21))/LOG(2)))) -> 0 | AI21: =N21 -> 2221 | AJ21: =COUNTIF(L105:L137,AI21) -> 0 | AK21: =AJ21/(AL4-AJ20) -> 0 | AL21: =IF(AK21=0,0,(AK21*((LOG(AK21))/LOG(2)))) -> 0 | AN21: =N21 -> 2221 | AO21: =COUNTIF(L138:L170,AN21) -> 0 | AP21: =AO21/(AQ4-AO20) -> 0 | AQ21: =IF(AP21=0,0,(AP21*((LOG(AP21))/LOG(2)))) -> 0 | AS21: =N21 -> 2221 | AT21: =COUNTIF(L171:L203,AS21) -> 0 | AU21: =AT21/(AV4-AT20) -> 0 | AV21: =IF(AU21=0,0,(AU21*((LOG(AU21))/LOG(2)))) -> 0
A22: 12 | B22: 1888 | C22: 14 | D22: 1894 | E22: 24 | F22: 1907 | G22: 23 | H22: 1918 | K22: 0 | L22: 1122 | N22: 2222 | O22: =COUNTIF($L$7:$L$500,N22) -> 0 | P22: =O22/$Q$4 -> 0 | Q22: =IF(P22=0,0,(P22*((LOG(P22))/LOG(2)))) -> 0 | T22: =N22 -> 2222 | U22: =COUNTIF(L7:L39,T22) -> 0 | V22: =U22/(W4-U20) -> 0 | W22: =IF(V22=0,0,(V22*((LOG(V22))/LOG(2)))) -> 0 | Y22: =N22 -> 2222 | Z22: =COUNTIF(L40:L72,Y22) -> 0 | AA22: =Z22/(AB4-Z20) -> 0 | AB22: =IF(AA22=0,0,(AA22*((LOG(AA22))/LOG(2)))) -> 0 | AD22: =N22 -> 2222 | AE22: =COUNTIF(L73:L104,AD22) -> 0 | AF22: =AE22/(AG4-AE20) -> 0 | AG22: =IF(AF22=0,0,(AF22*((LOG(AF22))/LOG(2)))) -> 0 | AI22: =N22 -> 2222 | AJ22: =COUNTIF(L105:L137,AI22) -> 0 | AK22: =AJ22/(AL4-AJ20) -> 0 | AL22: =IF(AK22=0,0,(AK22*((LOG(AK22))/LOG(2)))) -> 0 | AN22: =N22 -> 2222 | AO22: =COUNTIF(L138:L170,AN22) -> 0 | AP22: =AO22/(AQ4-AO20) -> 0 | AQ22: =IF(AP22=0,0,(AP22*((LOG(AP22))/LOG(2)))) -> 0 | AS22: =N22 -> 2222 | AT22: =COUNTIF(L171:L203,AS22) -> 0 | AU22: =AT22/(AV4-AT20) -> 0 | AV22: =IF(AU22=0,0,(AU22*((LOG(AU22))/LOG(2)))) -> 0
A23: 12 | B23: 2018 | C23: 14 | D23: 2024 | E23: 13 | F23: 2029 | G23: 23 | H23: 2049 | K23: 0 | L23: 1112 | P23: =SUM(P7:P22) -> 1 | Q23: =-SUM(Q7:Q22) -> 1.037133248 | V23: =SUM(V7:V22) -> 1 | W23: =-SUM(W7:W22) -> 1.58089401 | AA23: =SUM(AA7:AA22) -> 1 | AB23: =-SUM(AB7:AB22) -> 0.8849636364 | AF23: =SUM(AF7:AF22) -> 1 | AG23: =-SUM(AG7:AG22) -> 0.8180914642 | AK23: =SUM(AK7:AK22) -> 1 | AL23: =-SUM(AL7:AL22) -> 0.7230020643 | AP23: =SUM(AP7:AP22) -> 1 | AQ23: =-SUM(AQ7:AQ22) -> 0.5229784264 | AU23: =SUM(AU7:AU22) -> 1 | AV23: =-SUM(AV7:AV22) -> 0.6311718054
A24: 12 | B24: 2154 | C24: 14 | D24: 2159 | E24: 13 | F24: 2165 | G24: 23 | H24: 2176 | K24: 0 | L24: 1112 | P24: U= | Q24: =Q23/(LOG(Q4)/LOG(2)) -> 0.1360700862 | V24: U1= | W24: =W23/(LOG(W4)/LOG(2)) -> 0.3133962122 | AA24: U2= | AB24: =AB23/(LOG(AB4)/LOG(2)) -> 0.1754350702 | AF24: U3= | AG24: =AG23/(LOG(AG4)/LOG(2)) -> 0.1636182928 | AK24: U4= | AL24: =AL23/(LOG(AL4)/LOG(2)) -> 0.1433278303 | AP24: U5= | AQ24: =AQ23/(LOG(AQ4)/LOG(2)) -> 0.1036751717 | AU24: U6= | AV24: =AV23/(LOG(AV4)/LOG(2)) -> 0.1251234123
A25: 12 | B25: 2280 | C25: 14 | D25: 2286 | E25: 24 | F25: 2299 | G25: 23 | H25: 2310 | K25: 0 | L25: 1122
A26: 12 | B26: 2414 | C26: 14 | D26: 2424 | E26: 13 | F26: 2429 | G26: 23 | H26: 2443 | K26: 0 | L26: 1112
A27: 12 | B27: 2548 | C27: 14 | D27: 2553 | E27: 13 | F27: 2564 | G27: 23 | H27: 2578 | K27: 0 | L27: 1112 | N27: Total Target Seq
A28: 12 | B28: 2678 | C28: 14 | D28: 2683 | E28: 13 | F28: 2688 | G28: 14 | H28: 2693 | K28: 0 | L28: 1111 | N28: =COUNTIF(L7:L203,G3) -> 0 | P28: 33 | Q28: 33 | R28: 32 | S28: 33 | T28: 33 | U28: 33
A29: 12 | B29: 2792 | C29: 14 | D29: 2796 | E29: 13 | F29: 2801 | G29: 23 | H29: 2811 | K29: 0 | L29: 1112 | P29: % of reinforcement given in 6 equal intervals based on number of trials
A30: 12 | B30: 2914 | C30: 14 | D30: 2919 | E30: 13 | F30: 2927 | G30: 23 | H30: 2938 | K30: 0 | L30: 1112 | P30: %_1 | Q30: %_2 | R30: %_3 | S30: %_4 | T30: %_5 | U30: %_6
A31: 12 | B31: 3039 | C31: 14 | D31: 3044 | E31: 13 | F31: 3049 | G31: 14 | H31: 3056 | K31: 0 | L31: 1111 | O31: target sequence | P31: =$G$3 -> 2212 | Q31: =$G$3 -> 2212 | R31: =$G$3 -> 2212 | S31: =$G$3 -> 2212 | T31: =$G$3 -> 2212 | U31: =$G$3 -> 2212
A32: 12 | B32: 3158 | C32: 14 | D32: 3162 | E32: 13 | F32: 3169 | G32: 23 | H32: 3188 | K32: 0 | L32: 1112 | O32: total reinforcement | P32: =U20 -> 0 | Q32: =Z20 -> 0 | R32: =AE20 -> 0 | S32: =AJ20 -> 0 | T32: =AO20 -> 0 | U32: =AT20 -> 0
A33: 12 | B33: 3286 | C33: 14 | D33: 3291 | E33: 13 | F33: 3295 | G33: 14 | H33: 3306 | K33: 0 | L33: 1111 | O33: % target
A34: 12 | B34: 3405 | C34: 14 | D34: 3410 | E34: 13 | F34: 3415 | G34: 14 | H34: 3424 | K34: 0 | L34: 1111 | O34: CCRF
A35: 12 | B35: 3530 | C35: 14 | D35: 3535 | E35: 13 | F35: 3540 | G35: 23 | H35: 3556 | K35: 0 | L35: 1112 | O35: % CCRf
A36: 12 | B36: 3658 | C36: 14 | D36: 3663 | E36: 13 | F36: 3669 | G36: 14 | H36: 3673 | K36: 0 | L36: 1111 | O36: average response rate | P36: =H39/P28 -> 122.1212121 | Q36: =(H72-H39)/Q28 -> 122.1212121 | R36: =(H104-H72)/R28 -> 121.78125 | S36: =(H137-H104)/S28 -> 121.2727273 | T36: =(H170-H137)/T28 -> 119.1818182 | U36: =(H203-H170)/U28 -> 122.8181818
A37: 12 | B37: 3774 | C37: 14 | D37: 3779 | E37: 13 | F37: 3785 | G37: 23 | H37: 3799 | K37: 0 | L37: 1112
A38: 12 | B38: 3899 | C38: 14 | D38: 3903 | E38: 13 | F38: 3908 | G38: 14 | H38: 3913 | K38: 0 | L38: 1111
A39: 12 | B39: 4014 | C39: 14 | D39: 4018 | E39: 13 | F39: 4022 | G39: 14 | H39: 4030 | K39: 0 | L39: 1111
A40: 12 | B40: 4132 | C40: 14 | D40: 4136 | E40: 13 | F40: 4141 | G40: 23 | H40: 4156 | K40: 0 | L40: 1112
A41: 12 | B41: 4256 | C41: 14 | D41: 4261 | E41: 13 | F41: 4265 | G41: 14 | H41: 4275 | K41: 0 | L41: 1111
A42: 12 | B42: 4374 | C42: 14 | D42: 4379 | E42: 13 | F42: 4384 | G42: 23 | H42: 4402 | K42: 0 | L42: 1112
A43: 12 | B43: 4505 | C43: 14 | D43: 4510 | E43: 13 | F43: 4515 | G43: 14 | H43: 4521 | K43: 0 | L43: 1111
A44: 12 | B44: 4621 | C44: 14 | D44: 4626 | E44: 13 | F44: 4631 | G44: 14 | H44: 4641 | K44: 0 | L44: 1111
A45: 12 | B45: 4743 | C45: 14 | D45: 4748 | E45: 13 | F45: 4752 | G45: 23 | H45: 4770 | K45: 0 | L45: 1112
A46: 12 | B46: 4870 | C46: 14 | D46: 4875 | E46: 13 | F46: 4879 | G46: 14 | H46: 4886 | K46: 0 | L46: 1111
A47: 12 | B47: 4991 | C47: 14 | D47: 4996 | E47: 13 | F47: 5003 | G47: 23 | H47: 5016 | K47: 0 | L47: 1112
A48: 12 | B48: 5123 | C48: 14 | D48: 5129 | E48: 13 | F48: 5133 | G48: 23 | H48: 5147 | K48: 0 | L48: 1112
A49: 12 | B49: 5249 | C49: 14 | D49: 5261 | E49: 13 | F49: 5272 | G49: 23 | H49: 5292 | K49: 0 | L49: 1112
A50: 12 | B50: 5392 | C50: 14 | D50: 5401 | E50: 13 | F50: 5411 | G50: 23 | H50: 5424 | K50: 0 | L50: 1112
A51: 12 | B51: 5525 | C51: 14 | D51: 5530 | E51: 13 | F51: 5534 | G51: 14 | H51: 5540 | K51: 0 | L51: 1111
A52: 12 | B52: 5643 | C52: 14 | D52: 5650 | E52: 13 | F52: 5658 | G52: 14 | H52: 5663 | K52: 0 | L52: 1111
A53: 12 | B53: 5765 | C53: 14 | D53: 5770 | E53: 13 | F53: 5776 | G53: 14 | H53: 5781 | K53: 0 | L53: 1111
A54: 12 | B54: 5883 | C54: 14 | D54: 5887 | E54: 13 | F54: 5892 | G54: 14 | H54: 5902 | K54: 0 | L54: 1111
A55: 12 | B55: 6004 | C55: 14 | D55: 6008 | E55: 13 | F55: 6013 | G55: 14 | H55: 6020 | K55: 0 | L55: 1111
A56: 12 | B56: 6116 | C56: 14 | D56: 6121 | E56: 13 | F56: 6126 | G56: 14 | H56: 6131 | K56: 0 | L56: 1111
A57: 12 | B57: 6236 | C57: 14 | D57: 6240 | E57: 13 | F57: 6249 | G57: 23 | H57: 6264 | K57: 0 | L57: 1112
A58: 12 | B58: 6364 | C58: 14 | D58: 6369 | E58: 13 | F58: 6375 | G58: 14 | H58: 6379 | K58: 0 | L58: 1111
A59: 12 | B59: 6480 | C59: 14 | D59: 6484 | E59: 13 | F59: 6491 | G59: 14 | H59: 6496 | K59: 0 | L59: 1111
A60: 12 | B60: 6594 | C60: 14 | D60: 6598 | E60: 13 | F60: 6603 | G60: 14 | H60: 6608 | K60: 0 | L60: 1111
A61: 12 | B61: 6709 | C61: 14 | D61: 6715 | E61: 13 | F61: 6720 | G61: 14 | H61: 6726 | K61: 0 | L61: 1111
A62: 12 | B62: 6826 | C62: 14 | D62: 6831 | E62: 13 | F62: 6840 | G62: 14 | H62: 6846 | K62: 0 | L62: 1111
A63: 12 | B63: 6945 | C63: 14 | D63: 6950 | E63: 13 | F63: 6954 | G63: 14 | H63: 6960 | K63: 0 | L63: 1111
A64: 12 | B64: 7061 | C64: 14 | D64: 7066 | E64: 13 | F64: 7071 | G64: 23 | H64: 7095 | K64: 0 | L64: 1112
A65: 12 | B65: 7197 | C65: 14 | D65: 7203 | E65: 13 | F65: 7213 | G65: 14 | H65: 7218 | K65: 0 | L65: 1111
A66: 12 | B66: 7318 | C66: 14 | D66: 7322 | E66: 13 | F66: 7327 | G66: 14 | H66: 7332 | K66: 0 | L66: 1111
A67: 12 | B67: 7426 | C67: 14 | D67: 7430 | E67: 13 | F67: 7435 | G67: 14 | H67: 7440 | K67: 0 | L67: 1111
A68: 12 | B68: 7541 | C68: 14 | D68: 7545 | E68: 13 | F68: 7549 | G68: 14 | H68: 7556 | K68: 0 | L68: 1111
A69: 12 | B69: 7656 | C69: 14 | D69: 7660 | E69: 13 | F69: 7667 | G69: 14 | H69: 7672 | K69: 0 | L69: 1111
A70: 12 | B70: 7778 | C70: 14 | D70: 7785 | E70: 13 | F70: 7791 | G70: 23 | H70: 7806 | K70: 0 | L70: 1112
A71: 12 | B71: 7920 | C71: 14 | D71: 7927 | E71: 13 | F71: 7933 | G71: 14 | H71: 7944 | K71: 0 | L71: 1111
A72: 12 | B72: 8044 | C72: 14 | D72: 8049 | E72: 13 | F72: 8053 | G72: 14 | H72: 8060 | K72: 0 | L72: 1111
A73: 12 | B73: 8160 | C73: 14 | D73: 8165 | E73: 13 | F73: 8170 | G73: 14 | H73: 8174 | K73: 0 | L73: 1111
A74: 12 | B74: 8274 | C74: 14 | D74: 8279 | E74: 13 | F74: 8285 | G74: 14 | H74: 8291 | K74: 0 | L74: 1111
A75: 12 | B75: 8394 | C75: 14 | D75: 8406 | E75: 13 | F75: 8410 | G75: 14 | H75: 8415 | K75: 0 | L75: 1111
A76: 12 | B76: 8518 | C76: 14 | D76: 8522 | E76: 13 | F76: 8527 | G76: 14 | H76: 8532 | K76: 0 | L76: 1111
A77: 12 | B77: 8632 | C77: 14 | D77: 8637 | E77: 13 | F77: 8644 | G77: 14 | H77: 8650 | K77: 0 | L77: 1111
A78: 12 | B78: 8746 | C78: 14 | D78: 8752 | E78: 13 | F78: 8758 | G78: 14 | H78: 8769 | K78: 0 | L78: 1111
A79: 12 | B79: 8869 | C79: 14 | D79: 8873 | E79: 13 | F79: 8878 | G79: 14 | H79: 8883 | K79: 0 | L79: 1111
A80: 12 | B80: 8983 | C80: 14 | D80: 8988 | E80: 13 | F80: 8992 | G80: 14 | H80: 8997 | K80: 0 | L80: 1111
A81: 12 | B81: 9099 | C81: 14 | D81: 9104 | E81: 13 | F81: 9109 | G81: 14 | H81: 9114 | K81: 0 | L81: 1111
A82: 12 | B82: 9214 | C82: 14 | D82: 9218 | E82: 13 | F82: 9223 | G82: 14 | H82: 9229 | K82: 0 | L82: 1111
A83: 12 | B83: 9331 | C83: 14 | D83: 9336 | E83: 13 | F83: 9341 | G83: 23 | H83: 9365 | K83: 0 | L83: 1112
A84: 12 | B84: 9469 | C84: 14 | D84: 9474 | E84: 13 | F84: 9478 | G84: 14 | H84: 9498 | K84: 0 | L84: 1111
A85: 12 | B85: 9603 | C85: 14 | D85: 9608 | E85: 13 | F85: 9615 | G85: 23 | H85: 9631 | K85: 0 | L85: 1112
A86: 12 | B86: 9733 | C86: 14 | D86: 9737 | E86: 13 | F86: 9745 | G86: 14 | H86: 9767 | K86: 0 | L86: 1111
A87: 12 | B87: 9870 | C87: 14 | D87: 9874 | E87: 13 | F87: 9879 | G87: 14 | H87: 9885 | K87: 0 | L87: 1111
A88: 12 | B88: 9987 | C88: 14 | D88: 9993 | E88: 24 | F88: 10009 | G88: 23 | H88: 10017 | K88: 0 | L88: 1122
A89: 12 | B89: 10117 | C89: 14 | D89: 10122 | E89: 13 | F89: 10126 | G89: 14 | H89: 10131 | K89: 0 | L89: 1111
A90: 12 | B90: 10236 | C90: 14 | D90: 10241 | E90: 13 | F90: 10247 | G90: 23 | H90: 10269 | K90: 0 | L90: 1112
A91: 12 | B91: 10370 | C91: 14 | D91: 10374 | E91: 13 | F91: 10380 | G91: 23 | H91: 10405 | K91: 0 | L91: 1112
A92: 12 | B92: 10507 | C92: 14 | D92: 10511 | E92: 13 | F92: 10516 | G92: 14 | H92: 10526 | K92: 0 | L92: 1111
A93: 12 | B93: 10626 | C93: 14 | D93: 10630 | E93: 13 | F93: 10636 | G93: 14 | H93: 10641 | K93: 0 | L93: 1111
A94: 12 | B94: 10746 | C94: 14 | D94: 10751 | E94: 13 | F94: 10756 | G94: 14 | H94: 10766 | K94: 0 | L94: 1111
A95: 12 | B95: 10867 | C95: 14 | D95: 10872 | E95: 13 | F95: 10878 | G95: 14 | H95: 10884 | K95: 0 | L95: 1111
A96: 12 | B96: 10989 | C96: 14 | D96: 10994 | E96: 13 | F96: 10999 | G96: 14 | H96: 11004 | K96: 0 | L96: 1111
A97: 12 | B97: 11105 | C97: 14 | D97: 11111 | E97: 13 | F97: 11116 | G97: 14 | H97: 11124 | K97: 0 | L97: 1111
A98: 12 | B98: 11226 | C98: 14 | D98: 11230 | E98: 13 | F98: 11235 | G98: 14 | H98: 11241 | K98: 0 | L98: 1111
A99: 12 | B99: 11346 | C99: 14 | D99: 11353 | E99: 13 | F99: 11358 | G99: 23 | H99: 11380 | K99: 0 | L99: 1112
A100: 12 | B100: 11482 | C100: 14 | D100: 11486 | E100: 13 | F100: 11494 | G100: 14 | H100: 11501 | K100: 0 | L100: 1111
A101: 12 | B101: 11598 | C101: 14 | D101: 11602 | E101: 13 | F101: 11608 | G101: 14 | H101: 11613 | K101: 0 | L101: 1111
A102: 12 | B102: 11713 | C102: 14 | D102: 11718 | E102: 13 | F102: 11722 | G102: 14 | H102: 11728 | K102: 0 | L102: 1111
A103: 12 | B103: 11829 | C103: 14 | D103: 11833 | E103: 13 | F103: 11839 | G103: 14 | H103: 11844 | K103: 0 | L103: 1111
A104: 12 | B104: 11944 | C104: 14 | D104: 11948 | E104: 13 | F104: 11953 | G104: 14 | H104: 11957 | K104: 0 | L104: 1111
A105: 12 | B105: 12058 | C105: 14 | D105: 12063 | E105: 13 | F105: 12067 | G105: 14 | H105: 12072 | K105: 0 | L105: 1111
A106: 12 | B106: 12168 | C106: 14 | D106: 12173 | E106: 13 | F106: 12178 | G106: 14 | H106: 12183 | K106: 0 | L106: 1111
A107: 12 | B107: 12285 | C107: 14 | D107: 12291 | E107: 13 | F107: 12300 | G107: 14 | H107: 12310 | K107: 0 | L107: 1111
A108: 12 | B108: 12410 | C108: 14 | D108: 12414 | E108: 13 | F108: 12419 | G108: 14 | H108: 12428 | K108: 0 | L108: 1111
A109: 12 | B109: 12527 | C109: 14 | D109: 12531 | E109: 13 | F109: 12539 | G109: 14 | H109: 12544 | K109: 0 | L109: 1111
A110: 12 | B110: 12645 | C110: 14 | D110: 12650 | E110: 13 | F110: 12656 | G110: 14 | H110: 12662 | K110: 0 | L110: 1111
A111: 12 | B111: 12760 | C111: 14 | D111: 12765 | E111: 13 | F111: 12770 | G111: 14 | H111: 12775 | K111: 0 | L111: 1111
A112: 12 | B112: 12877 | C112: 14 | D112: 12882 | E112: 13 | F112: 12887 | G112: 14 | H112: 12895 | K112: 0 | L112: 1111
A113: 12 | B113: 12997 | C113: 14 | D113: 13002 | E113: 13 | F113: 13007 | G113: 14 | H113: 13016 | K113: 0 | L113: 1111
A114: 12 | B114: 13118 | C114: 14 | D114: 13122 | E114: 13 | F114: 13129 | G114: 14 | H114: 13134 | K114: 0 | L114: 1111
A115: 12 | B115: 13233 | C115: 14 | D115: 13237 | E115: 13 | F115: 13242 | G115: 14 | H115: 13247 | K115: 0 | L115: 1111
A116: 12 | B116: 13355 | C116: 14 | D116: 13361 | E116: 13 | F116: 13368 | G116: 14 | H116: 13374 | K116: 0 | L116: 1111
A117: 12 | B117: 13479 | C117: 14 | D117: 13485 | E117: 13 | F117: 13490 | G117: 23 | H117: 13507 | K117: 0 | L117: 1112
A118: 12 | B118: 13608 | C118: 14 | D118: 13612 | E118: 13 | F118: 13617 | G118: 14 | H118: 13621 | K118: 0 | L118: 1111
A119: 12 | B119: 13723 | C119: 14 | D119: 13727 | E119: 13 | F119: 13732 | G119: 14 | H119: 13737 | K119: 0 | L119: 1111
A120: 12 | B120: 13836 | C120: 14 | D120: 13844 | E120: 13 | F120: 13848 | G120: 14 | H120: 13855 | K120: 0 | L120: 1111
A121: 12 | B121: 13956 | C121: 14 | D121: 13962 | E121: 13 | F121: 13967 | G121: 14 | H121: 13973 | K121: 0 | L121: 1111
A122: 12 | B122: 14077 | C122: 14 | D122: 14081 | E122: 13 | F122: 14086 | G122: 14 | H122: 14091 | K122: 0 | L122: 1111
A123: 12 | B123: 14192 | C123: 14 | D123: 14197 | E123: 13 | F123: 14204 | G123: 23 | H123: 14219 | K123: 0 | L123: 1112
A124: 12 | B124: 14323 | C124: 14 | D124: 14328 | E124: 13 | F124: 14333 | G124: 14 | H124: 14342 | K124: 0 | L124: 1111
A125: 12 | B125: 14443 | C125: 14 | D125: 14447 | E125: 13 | F125: 14452 | G125: 14 | H125: 14457 | K125: 0 | L125: 1111
A126: 12 | B126: 14560 | C126: 14 | D126: 14565 | E126: 13 | F126: 14571 | G126: 14 | H126: 14577 | K126: 0 | L126: 1111
A127: 12 | B127: 14677 | C127: 14 | D127: 14683 | E127: 13 | F127: 14689 | G127: 23 | H127: 14704 | K127: 0 | L127: 1112
A128: 12 | B128: 14805 | C128: 14 | D128: 14810 | E128: 13 | F128: 14817 | G128: 14 | H128: 14823 | K128: 0 | L128: 1111
A129: 12 | B129: 14928 | C129: 14 | D129: 14934 | E129: 13 | F129: 14944 | G129: 14 | H129: 14955 | K129: 0 | L129: 1111
A130: 12 | B130: 15056 | C130: 14 | D130: 15060 | E130: 13 | F130: 15065 | G130: 14 | H130: 15071 | K130: 0 | L130: 1111
A131: 12 | B131: 15183 | C131: 14 | D131: 15188 | E131: 13 | F131: 15194 | G131: 14 | H131: 15203 | K131: 0 | L131: 1111
A132: 12 | B132: 15303 | C132: 14 | D132: 15307 | E132: 13 | F132: 15311 | G132: 14 | H132: 15317 | K132: 0 | L132: 1111
A133: 12 | B133: 15417 | C133: 14 | D133: 15422 | E133: 13 | F133: 15427 | G133: 14 | H133: 15431 | K133: 0 | L133: 1111
A134: 12 | B134: 15523 | C134: 14 | D134: 15534 | E134: 13 | F134: 15540 | G134: 14 | H134: 15545 | K134: 0 | L134: 1111
A135: 12 | B135: 15657 | C135: 14 | D135: 15663 | E135: 24 | F135: 15688 | G135: 23 | H135: 15696 | K135: 0 | L135: 1122
A136: 12 | B136: 15796 | C136: 14 | D136: 15802 | E136: 13 | F136: 15813 | G136: 23 | H136: 15828 | K136: 0 | L136: 1112
A137: 12 | B137: 15929 | C137: 14 | D137: 15934 | E137: 13 | F137: 15941 | G137: 14 | H137: 15959 | K137: 0 | L137: 1111
A138: 12 | B138: 16059 | C138: 14 | D138: 16064 | E138: 13 | F138: 16069 | G138: 14 | H138: 16074 | K138: 0 | L138: 1111
A139: 12 | B139: 16172 | C139: 14 | D139: 16177 | E139: 13 | F139: 16182 | G139: 14 | H139: 16187 | K139: 0 | L139: 1111
A140: 12 | B140: 16285 | C140: 14 | D140: 16290 | E140: 13 | F140: 16295 | G140: 14 | H140: 16300 | K140: 0 | L140: 1111
A141: 12 | B141: 16399 | C141: 14 | D141: 16404 | E141: 13 | F141: 16408 | G141: 14 | H141: 16413 | K141: 0 | L141: 1111
A142: 12 | B142: 16514 | C142: 14 | D142: 16519 | E142: 13 | F142: 16526 | G142: 14 | H142: 16532 | K142: 0 | L142: 1111
A143: 12 | B143: 16634 | C143: 14 | D143: 16639 | E143: 13 | F143: 16644 | G143: 14 | H143: 16650 | K143: 0 | L143: 1111
A144: 12 | B144: 16751 | C144: 14 | D144: 16756 | E144: 13 | F144: 16760 | G144: 14 | H144: 16766 | K144: 0 | L144: 1111
A145: 12 | B145: 16866 | C145: 14 | D145: 16870 | E145: 13 | F145: 16881 | G145: 14 | H145: 16886 | K145: 0 | L145: 1111
A146: 12 | B146: 16987 | C146: 14 | D146: 16992 | E146: 13 | F146: 16998 | G146: 14 | H146: 17003 | K146: 0 | L146: 1111
A147: 12 | B147: 17104 | C147: 14 | D147: 17109 | E147: 24 | F147: 17123 | G147: 23 | H147: 17128 | K147: 0 | L147: 1122
A148: 12 | B148: 17228 | C148: 14 | D148: 17232 | E148: 13 | F148: 17238 | G148: 14 | H148: 17247 | K148: 0 | L148: 1111
A149: 12 | B149: 17347 | C149: 14 | D149: 17352 | E149: 13 | F149: 17358 | G149: 23 | H149: 17372 | K149: 0 | L149: 1112
A150: 12 | B150: 17472 | C150: 14 | D150: 17476 | E150: 13 | F150: 17481 | G150: 14 | H150: 17486 | K150: 0 | L150: 1111
A151: 12 | B151: 17585 | C151: 14 | D151: 17589 | E151: 13 | F151: 17595 | G151: 14 | H151: 17599 | K151: 0 | L151: 1111
A152: 12 | B152: 17707 | C152: 14 | D152: 17712 | E152: 13 | F152: 17717 | G152: 14 | H152: 17731 | K152: 0 | L152: 1111
A153: 12 | B153: 17833 | C153: 14 | D153: 17843 | E153: 13 | F153: 17847 | G153: 14 | H153: 17858 | K153: 0 | L153: 1111
A154: 12 | B154: 17958 | C154: 14 | D154: 17962 | E154: 13 | F154: 17968 | G154: 14 | H154: 17975 | K154: 0 | L154: 1111
A155: 12 | B155: 18076 | C155: 14 | D155: 18081 | E155: 13 | F155: 18086 | G155: 14 | H155: 18090 | K155: 0 | L155: 1111
A156: 12 | B156: 18192 | C156: 14 | D156: 18197 | E156: 13 | F156: 18203 | G156: 14 | H156: 18208 | K156: 0 | L156: 1111
A157: 12 | B157: 18309 | C157: 14 | D157: 18314 | E157: 13 | F157: 18319 | G157: 14 | H157: 18324 | K157: 0 | L157: 1111
A158: 12 | B158: 18427 | C158: 14 | D158: 18431 | E158: 13 | F158: 18435 | G158: 14 | H158: 18441 | K158: 0 | L158: 1111
A159: 12 | B159: 18543 | C159: 14 | D159: 18548 | E159: 13 | F159: 18554 | G159: 14 | H159: 18560 | K159: 0 | L159: 1111
A160: 12 | B160: 18665 | C160: 14 | D160: 18670 | E160: 13 | F160: 18676 | G160: 14 | H160: 18682 | K160: 0 | L160: 1111
A161: 12 | B161: 18787 | C161: 14 | D161: 18791 | E161: 13 | F161: 18796 | G161: 14 | H161: 18801 | K161: 0 | L161: 1111
A162: 12 | B162: 18901 | C162: 14 | D162: 18907 | E162: 13 | F162: 18912 | G162: 14 | H162: 18918 | K162: 0 | L162: 1111
A163: 12 | B163: 19028 | C163: 14 | D163: 19033 | E163: 24 | F163: 19053 | G163: 23 | H163: 19063 | K163: 0 | L163: 1122
A164: 12 | B164: 19166 | C164: 14 | D164: 19172 | E164: 13 | F164: 19176 | G164: 14 | H164: 19182 | K164: 0 | L164: 1111
A165: 12 | B165: 19282 | C165: 14 | D165: 19286 | E165: 13 | F165: 19291 | G165: 14 | H165: 19297 | K165: 0 | L165: 1111
A166: 12 | B166: 19397 | C166: 14 | D166: 19402 | E166: 13 | F166: 19407 | G166: 14 | H166: 19412 | K166: 0 | L166: 1111
A167: 12 | B167: 19515 | C167: 14 | D167: 19520 | E167: 13 | F167: 19525 | G167: 14 | H167: 19530 | K167: 0 | L167: 1111
A168: 12 | B168: 19630 | C168: 14 | D168: 19634 | E168: 13 | F168: 19638 | G168: 14 | H168: 19650 | K168: 0 | L168: 1111
A169: 12 | B169: 19756 | C169: 14 | D169: 19761 | E169: 13 | F169: 19766 | G169: 14 | H169: 19772 | K169: 0 | L169: 1111
A170: 12 | B170: 19875 | C170: 14 | D170: 19880 | E170: 13 | F170: 19886 | G170: 14 | H170: 19892 | K170: 0 | L170: 1111
A171: 12 | B171: 19992 | C171: 14 | D171: 19997 | E171: 13 | F171: 20002 | G171: 14 | H171: 20010 | K171: 0 | L171: 1111
A172: 12 | B172: 20111 | C172: 14 | D172: 20115 | E172: 13 | F172: 20120 | G172: 14 | H172: 20127 | K172: 0 | L172: 1111
A173: 12 | B173: 20228 | C173: 14 | D173: 20234 | E173: 24 | F173: 20250 | G173: 23 | H173: 20257 | K173: 0 | L173: 1122
A174: 12 | B174: 20358 | C174: 14 | D174: 20363 | E174: 13 | F174: 20368 | G174: 14 | H174: 20374 | K174: 0 | L174: 1111
A175: 12 | B175: 20478 | C175: 14 | D175: 20482 | E175: 13 | F175: 20488 | G175: 14 | H175: 20493 | K175: 0 | L175: 1111
A176: 12 | B176: 20596 | C176: 14 | D176: 20600 | E176: 13 | F176: 20605 | G176: 14 | H176: 20609 | K176: 0 | L176: 1111
A177: 12 | B177: 20756 | C177: 14 | D177: 20761 | E177: 13 | F177: 20768 | G177: 23 | H177: 20785 | K177: 0 | L177: 1112
A178: 12 | B178: 20885 | C178: 14 | D178: 20890 | E178: 13 | F178: 20895 | G178: 14 | H178: 20902 | K178: 0 | L178: 1111
A179: 12 | B179: 21002 | C179: 14 | D179: 21007 | E179: 13 | F179: 21012 | G179: 14 | H179: 21018 | K179: 0 | L179: 1111
A180: 12 | B180: 21120 | C180: 14 | D180: 21125 | E180: 13 | F180: 21131 | G180: 14 | H180: 21140 | K180: 0 | L180: 1111
A181: 12 | B181: 21242 | C181: 14 | D181: 21248 | E181: 13 | F181: 21253 | G181: 14 | H181: 21262 | K181: 0 | L181: 1111
A182: 12 | B182: 21367 | C182: 14 | D182: 21373 | E182: 13 | F182: 21377 | G182: 14 | H182: 21382 | K182: 0 | L182: 1111
A183: 12 | B183: 21493 | C183: 14 | D183: 21498 | E183: 13 | F183: 21503 | G183: 14 | H183: 21513 | K183: 0 | L183: 1111
A184: 12 | B184: 21616 | C184: 14 | D184: 21623 | E184: 13 | F184: 21628 | G184: 14 | H184: 21634 | K184: 0 | L184: 1111
A185: 12 | B185: 21733 | C185: 14 | D185: 21738 | E185: 13 | F185: 21743 | G185: 14 | H185: 21749 | K185: 0 | L185: 1111
A186: 12 | B186: 21851 | C186: 14 | D186: 21856 | E186: 13 | F186: 21861 | G186: 23 | H186: 21891 | K186: 0 | L186: 1112
A187: 12 | B187: 21997 | C187: 14 | D187: 22003 | E187: 13 | F187: 22008 | G187: 23 | H187: 22039 | K187: 0 | L187: 1112
A188: 12 | B188: 22148 | C188: 14 | D188: 22155 | E188: 13 | F188: 22161 | G188: 14 | H188: 22166 | K188: 0 | L188: 1111
A189: 12 | B189: 22267 | C189: 14 | D189: 22272 | E189: 13 | F189: 22277 | G189: 14 | H189: 22282 | K189: 0 | L189: 1111
A190: 12 | B190: 22383 | C190: 14 | D190: 22388 | E190: 13 | F190: 22392 | G190: 14 | H190: 22398 | K190: 0 | L190: 1111
A191: 12 | B191: 22497 | C191: 14 | D191: 22503 | E191: 13 | F191: 22509 | G191: 14 | H191: 22515 | K191: 0 | L191: 1111
A192: 12 | B192: 22617 | C192: 14 | D192: 22623 | E192: 13 | F192: 22628 | G192: 14 | H192: 22633 | K192: 0 | L192: 1111
A193: 12 | B193: 22733 | C193: 14 | D193: 22738 | E193: 13 | F193: 22752 | G193: 14 | H193: 22758 | K193: 0 | L193: 1111
A194: 12 | B194: 22860 | C194: 14 | D194: 22865 | E194: 13 | F194: 22869 | G194: 14 | H194: 22877 | K194: 0 | L194: 1111
A195: 12 | B195: 22978 | C195: 14 | D195: 22983 | E195: 13 | F195: 22988 | G195: 14 | H195: 22996 | K195: 0 | L195: 1111
A196: 12 | B196: 23096 | C196: 14 | D196: 23100 | E196: 13 | F196: 23104 | G196: 14 | H196: 23109 | K196: 0 | L196: 1111
A197: 12 | B197: 23207 | C197: 14 | D197: 23212 | E197: 13 | F197: 23217 | G197: 14 | H197: 23221 | K197: 0 | L197: 1111
A198: 12 | B198: 23322 | C198: 14 | D198: 23327 | E198: 13 | F198: 23332 | G198: 14 | H198: 23337 | K198: 0 | L198: 1111
A199: 12 | B199: 23435 | C199: 14 | D199: 23439 | E199: 13 | F199: 23444 | G199: 14 | H199: 23449 | K199: 0 | L199: 1111
A200: 12 | B200: 23553 | C200: 14 | D200: 23559 | E200: 13 | F200: 23564 | G200: 14 | H200: 23573 | K200: 0 | L200: 1111
... 3 more rows

Sheet !M831940.102
A1: Report for:!M831940.102
A2: Date: | B2: <date>
A3: Hen: | B3: <hen> | F3: Correct Sequence | G3: =Start!J2 -> 2212 | P3: Total Sequences in Data | Q3: =4994-COUNTBLANK(L7:L5000) -> 144 | V3: Total Sequences in Block Data | W3: =COUNTA(L7:L30) -> 24 | AA3: Total Sequences in Block Data | AB3: =COUNTA(L31:L54) -> 24 | AF3: Total Sequences in Block Data | AG3: =COUNTA(L55:L78) -> 24 | AK3: Total Sequences in Block Data | AL3: =COUNTA(L79:L102) -> 24 | AP3: Total Sequences in Block Data | AQ3: =COUNTA(L103:L126) -> 24 | AU3: Total Sequences in Block Data | AV3: =COUNTA(L127:L150) -> 24
P4: Total Sequences in Summary | Q4: =SUM(O7:O22) -> 144 | V4: Total Sequences in Block Summary | W4: =SUM(U7:U22) -> 24 | AA4: Total Sequences in Block Summary | AB4: =SUM(Z7:Z22) -> 24 | AF4: Total Sequences in Block Summary | AG4: =SUM(AE7:AE22) -> 24 | AK4: Total Sequences in Block Summary | AL4: =SUM(AJ7:AJ22) -> 24 | AP4: Total Sequences in Block Summary | AQ4: =SUM(AO7:AO22) -> 24 | AU4: Total Sequences in Block Summary | AV4: =SUM(AT7:AT22) -> 24
T5: Block 1 | Y5: Block 2 | AD5: Block 3 | AI5: Block 4 | AN5: Block 5 | AS5: Block 6
A6: Sequence Component 1 | B6: Time 1 | C6: Sequence Component 2 | D6: Time 2 | E6: Sequence Component 3 | F6: Time 3 | G6: Sequence Component 4 | H6: Time 4 | I6: Sequence Component 5 | J6: Time 5 | K6: Correct? 0=No 1=Yes | L6: Sequence | N6: Frequency | P6: Relative Frequency | Q6: Variability | T6: Frequency | V6: Relative Frequency | W6: Variability | Y6: Frequency | AA6: Relative Frequency | AB6: Variability | AD6: Frequency | AF6: Relative Frequency | AG6: Variability | AI6: Frequency | AK6: Relative Frequency | AL6: Variability | AN6: Frequency | AP6: Relative Frequency | AQ6: Variability | AS6: Frequency | AU6: Relative Frequency | AV6: Variability
A7: 12 | B7: 9 | C7: 14 | D7: 24 | E7: 13 | F7: 38 | G7: 23 | H7: 54 | K7: 0 | L7: 1112 | N7: 1111 | O7: =COUNTIF($L$7:$L$500,N7) -> 67 | P7: =O7/$Q$4 -> 0.4652777778 | Q7: =IF(P7=0,0,(P7*((LOG(P7))/LOG(2)))) -> -0.5135902732 | T7: =N7 -> 1111 | U7: =COUNTIF(L7:L30,T7) -> 7 | V7: =U7/(W4-U20) -> 0.2916666667 | W7: =IF(V7=0,0,(V7*((LOG(V7))/LOG(2)))) -> -0.5184688771 | Y7: =N7 -> 1111 | Z7: =COUNTIF(L31:L54,Y7) -> 16 | AA7: =Z7/(AB4-Z20) -> 0.6666666667 | AB7: =IF(AA7=0,0,(AA7*((LOG(AA7))/LOG(2)))) -> -0.3899750005 | AD7: =N7 -> 1111 | AE7: =COUNTIF(L55:L78,AD7) -> 18 | AF7: =AE7/(AG4-AE20) -> 0.75 | AG7: =IF(AF7=0,0,(AF7*((LOG(AF7))/LOG(2)))) -> -0.3112781245 | AI7: =N7 -> 1111 | AJ7: =COUNTIF(L79:L102,AI7) -> 11 | AK7: =AJ7/(AL4-AJ20) -> 0.4583333333 | AL7: =IF(AK7=0,0,(AK7*((LOG(AK7))/LOG(2)))) -> -0.515868321 | AN7: =N7 -> 1111 | AO7: =COUNTIF(L103:L126,AN7) -> 7 | AP7: =AO7/(AQ4-AO20) -> 0.2916666667 | AQ7: =IF(AP7=0,0,(AP7*((LOG(AP7))/LOG(2)))) -> -0.5184688771 | AS7: =N7 -> 1111 | AT7: =COUNTIF(L127:L150,AS7) -> 8 | AU7: =AT7/(AV4-AT20) -> 0.3333333333 | AV7: =IF(AU7=0,0,(AU7*((LOG(AU7))/LOG(2)))) -> -0.5283208336
A8: 12 | B8: 153 | C8: 14 | D8: 158 | E8: 13 | F8: 163 | G8: 23 | H8: 177 | K8: 0 | L8: 1112 | N8: 1112 | O8: =COUNTIF($L$7:$L$500,N8) -> 27 | P8: =O8/$Q$4 -> 0.1875 | Q8: =IF(P8=0,0,(P8*((LOG(P8))/LOG(2)))) -> -0.4528195311 | T8: =N8 -> 1112 | U8: =COUNTIF(L7:L30,T8) -> 11 | V8: =U8/(W4-U20) -> 0.4583333333 | W8: =IF(V8=0,0,(V8*((LOG(V8))/LOG(2)))) -> -0.515868321 | Y8: =N8 -> 1112 | Z8: =COUNTIF(L31:L54,Y8) -> 6 | AA8: =Z8/(AB4-Z20) -> 0.25 | AB8: =IF(AA8=0,0,(AA8*((LOG(AA8))/LOG(2)))) -> -0.5 | AD8: =N8 -> 1112 | AE8: =COUNTIF(L55:L78,AD8) -> 5 | AF8: =AE8/(AG4-AE20) -> 0.2083333333 | AG8: =IF(AF8=0,0,(AF8*((LOG(AF8))/LOG(2)))) -> -0.4714655012 | AI8: =N8 -> 1112 | AJ8: =COUNTIF(L79:L102,AI8) -> 2 | AK8: =AJ8/(AL4-AJ20) -> 0.08333333333 | AL8: =IF(AK8=0,0,(AK8*((LOG(AK8))/LOG(2)))) -> -0.2987468751 | AN8: =N8 -> 1112 | AO8: =COUNTIF(L103:L126,AN8) -> 3 | AP8: =AO8/(AQ4-AO20) -> 0.125 | AQ8: =IF(AP8=0,0,(AP8*((LOG(AP8))/LOG(2)))) -> -0.375 | AS8: =N8 -> 1112 | AT8: =COUNTIF(L127:L150,AS8) -> 0 | AU8: =AT8/(AV4-AT20) -> 0 | AV8: =IF(AU8=0,0,(AU8*((LOG(AU8))/LOG(2)))) -> 0
A9: 12 | B9: 276 | C9: 14 | D9: 281 | E9: 13 | F9: 285 | G9: 14 | H9: 303 | K9: 0 | L9: 1111 | N9: 1121 | O9: =COUNTIF($L$7:$L$500,N9) -> 0 | P9: =O9/$Q$4 -> 0 | Q9: =IF(P9=0,0,(P9*((LOG(P9))/LOG(2)))) -> 0 | T9: =N9 -> 1121 | U9: =COUNTIF(L7:L30,T9) -> 0 | V9: =U9/(W4-U20) -> 0 | W9: =IF(V9=0,0,(V9*((LOG(V9))/LOG(2)))) -> 0 | Y9: =N9 -> 1121 | Z9: =COUNTIF(L31:L54,Y9) -> 0 | AA9: =Z9/(AB4-Z20) -> 0 | AB9: =IF(AA9=0,0,(AA9*((LOG(AA9))/LOG(2)))) -> 0 | AD9: =N9 -> 1121 | AE9: =COUNTIF(L55:L78,AD9) -> 0 | AF9: =AE9/(AG4-AE20) -> 0 | AG9: =IF(AF9=0,0,(AF9*((LOG(AF9))/LOG(2)))) -> 0 | AI9: =N9 -> 1121 | AJ9: =COUNTIF(L79:L102,AI9) -> 0 | AK9: =AJ9/(AL4-AJ20) -> 0 | AL9: =IF(AK9=0,0,(AK9*((LOG(AK9))/LOG(2)))) -> 0 | AN9: =N9 -> 1121 | AO9: =COUNTIF(L103:L126,AN9) -> 0 | AP9: =AO9/(AQ4-AO20) -> 0 | AQ9: =IF(AP9=0,0,(AP9*((LOG(AP9))/LOG(2)))) -> 0 | AS9: =N9 -> 1121 | AT9: =COUNTIF(L127:L150,AS9) -> 0 | AU9: =AT9/(AV4-AT20) -> 0 | AV9: =IF(AU9=0,0,(AU9*((LOG(AU9))/LOG(2)))) -> 0
A10: 12 | B10: 411 | C10: 14 | D10: 416 | E10: 13 | F10: 420 | G10: 23 | H10: 432 | K10: 0 | L10: 1112 | N10: 1122 | O10: =COUNTIF($L$7:$L$500,N10) -> 17 | P10: =O10/$Q$4 -> 0.1180555556 | Q10: =IF(P10=0,0,(P10*((LOG(P10))/LOG(2)))) -> -0.3639017828 | T10: =N10 -> 1122 | U10: =COUNTIF(L7:L30,T10) -> 4 | V10: =U10/(W4-U20) -> 0.1666666667 | W10: =IF(V10=0,0,(V10*((LOG(V10))/LOG(2)))) -> -0.4308270835 | Y10: =N10 -> 1122 | Z10: =COUNTIF(L31:L54,Y10) -> 2 | AA10: =Z10/(AB4-Z20) -> 0.08333333333 | AB10: =IF(AA10=0,0,(AA10*((LOG(AA10))/LOG(2)))) -> -0.2987468751 | AD10: =N10 -> 1122 | AE10: =COUNTIF(L55:L78,AD10) -> 1 | AF10: =AE10/(AG4-AE20) -> 0.04166666667 | AG10: =IF(AF10=0,0,(AF10*((LOG(AF10))/LOG(2)))) -> -0.1910401042 | AI10: =N10 -> 1122 | AJ10: =COUNTIF(L79:L102,AI10) -> 5 | AK10: =AJ10/(AL4-AJ20) -> 0.2083333333 | AL10: =IF(AK10=0,0,(AK10*((LOG(AK10))/LOG(2)))) -> -0.4714655012 | AN10: =N10 -> 1122 | AO10: =COUNTIF(L103:L126,AN10) -> 3 | AP10: =AO10/(AQ4-AO20) -> 0.125 | AQ10: =IF(AP10=0,0,(AP10*((LOG(AP10))/LOG(2)))) -> -0.375 | AS10: =N10 -> 1122 | AT10: =COUNTIF(L127:L150,AS10) -> 2 | AU10: =AT10/(AV4-AT20) -> 0.08333333333 | AV10: =IF(AU10=0,0,(AU10*((LOG(AU10))/LOG(2)))) -> -0.2987468751
A11: 12 | B11: 531 | C11: 14 | D11: 537 | E11: 24 | F11: 546 | G11: 23 | H11: 553 | K11: 0 | L11: 1122 | N11: 1211 | O11: =COUNTIF($L$7:$L$500,N11) -> 0 | P11: =O11/$Q$4 -> 0 | Q11: =IF(P11=0,0,(P11*((LOG(P11))/LOG(2)))) -> 0 | T11: =N11 -> 1211 | U11: =COUNTIF(L7:L30,T11) -> 0 | V11: =U11/(W4-U20) -> 0 | W11: =IF(V11=0,0,(V11*((LOG(V11))/LOG(2)))) -> 0 | Y11: =N11 -> 1211 | Z11: =COUNTIF(L31:L54,Y11) -> 0 | AA11: =Z11/(AB4-Z20) -> 0 | AB11: =IF(AA11=0,0,(AA11*((LOG(AA11))/LOG(2)))) -> 0 | AD11: =N11 -> 1211 | AE11: =COUNTIF(L55:L78,AD11) -> 0 | AF11: =AE11/(AG4-AE20) -> 0 | AG11: =IF(AF11=0,0,(AF11*((LOG(AF11))/LOG(2)))) -> 0 | AI11: =N11 -> 1211 | AJ11: =COUNTIF(L79:L102,AI11) -> 0 | AK11: =AJ11/(AL4-AJ20) -> 0 | AL11: =IF(AK11=0,0,(AK11*((LOG(AK11))/LOG(2)))) -> 0 | AN11: =N11 -> 1211 | AO11: =COUNTIF(L103:L126,AN11) -> 0 | AP11: =AO11/(AQ4-AO20) -> 0 | AQ11: =IF(AP11=0,0,(AP11*((LOG(AP11))/LOG(2)))) -> 0 | AS11: =N11 -> 1211 | AT11: =COUNTIF(L127:L150,AS11) -> 0 | AU11: =AT11/(AV4-AT20) -> 0 | AV11: =IF(AU11=0,0,(AU11*((LOG(AU11))/LOG(2)))) -> 0
A12: 12 | B12: 655 | C12: 14 | D12: 660 | E12: 13 | F12: 667 | G12: 23 | H12: 677 | K12: 0 | L12: 1112 | N12: 1212 | O12: =COUNTIF($L$7:$L$500,N12) -> 0 | P12: =O12/$Q$4 -> 0 | Q12: =IF(P12=0,0,(P12*((LOG(P12))/LOG(2)))) -> 0 | T12: =N12 -> 1212 | U12: =COUNTIF(L7:L30,T12) -> 0 | V12: =U12/(W4-U20) -> 0 | W12: =IF(V12=0,0,(V12*((LOG(V12))/LOG(2)))) -> 0 | Y12: =N12 -> 1212 | Z12: =COUNTIF(L31:L54,Y12) -> 0 | AA12: =Z12/(AB4-Z20) -> 0 | AB12: =IF(AA12=0,0,(AA12*((LOG(AA12))/LOG(2)))) -> 0 | AD12: =N12 -> 1212 | AE12: =COUNTIF(L55:L78,AD12) -> 0 | AF12: =AE12/(AG4-AE20) -> 0 | AG12: =IF(AF12=0,0,(AF12*((LOG(AF12))/LOG(2)))) -> 0 | AI12: =N12 -> 1212 | AJ12: =COUNTIF(L79:L102,AI12) -> 0 | AK12: =AJ12/(AL4-AJ20) -> 0 | AL12: =IF(AK12=0,0,(AK12*((LOG(AK12))/LOG(2)))) -> 0 | AN12: =N12 -> 1212 | AO12: =COUNTIF(L103:L126,AN12) -> 0 | AP12: =AO12/(AQ4-AO20) -> 0 | AQ12: =IF(AP12=0,0,(AP12*((LOG(AP12))/LOG(2)))) -> 0 | AS12: =N12 -> 1212 | AT12: =COUNTIF(L127:L150,AS12) -> 0 | AU12: =AT12/(AV4-AT20) -> 0 | AV12: =IF(AU12=0,0,(AU12*((LOG(AU12))/LOG(2)))) -> 0
A13: 12 | B13: 775 | C13: 14 | D13: 780 | E13: 13 | F13: 789 | G13: 14 | H13: 794 | K13: 0 | L13: 1111 | N13: 1221 | O13: =COUNTIF($L$7:$L$500,N13) -> 0 | P13: =O13/$Q$4 -> 0 | Q13: =IF(P13=0,0,(P13*((LOG(P13))/LOG(2)))) -> 0 | T13: =N13 -> 1221 | U13: =COUNTIF(L7:L30,T13) -> 0 | V13: =U13/(W4-U20) -> 0 | W13: =IF(V13=0,0,(V13*((LOG(V13))/LOG(2)))) -> 0 | Y13: =N13 -> 1221 | Z13: =COUNTIF(L31:L54,Y13) -> 0 | AA13: =Z13/(AB4-Z20) -> 0 | AB13: =IF(AA13=0,0,(AA13*((LOG(AA13))/LOG(2)))) -> 0 | AD13: =N13 -> 1221 | AE13: =COUNTIF(L55:L78,AD13) -> 0 | AF13: =AE13/(AG4-AE20) -> 0 | AG13: =IF(AF13=0,0,(AF13*((LOG(AF13))/LOG(2)))) -> 0 | AI13: =N13 -> 1221 | AJ13: =COUNTIF(L79:L102,AI13) -> 0 | AK13: =AJ13/(AL4-AJ20) -> 0 | AL13: =IF(AK13=0,0,(AK13*((LOG(AK13))/LOG(2)))) -> 0 | AN13: =N13 -> 1221 | AO13: =COUNTIF(L103:L126,AN13) -> 0 | AP13: =AO13/(AQ4-AO20) -> 0 | AQ13: =IF(AP13=0,0,(AP13*((LOG(AP13))/LOG(2)))) -> 0 | AS13: =N13 -> 1221 | AT13: =COUNTIF(L127:L150,AS13) -> 0 | AU13: =AT13/(AV4-AT20) -> 0 | AV13: =IF(AU13=0,0,(AU13*((LOG(AU13))/LOG(2)))) -> 0
A14: 12 | B14: 890 | C14: 14 | D14: 895 | E14: 13 | F14: 900 | G14: 14 | H14: 904 | K14: 0 | L14: 1111 | N14: 1222 | O14: =COUNTIF($L$7:$L$500,N14) -> 3 | P14: =O14/$Q$4 -> 0.02083333333 | Q14: =IF(P14=0,0,(P14*((LOG(P14))/LOG(2)))) -> -0.1163533854 | T14: =N14 -> 1222 | U14: =COUNTIF(L7:L30,T14) -> 1 | V14: =U14/(W4-U20) -> 0.04166666667 | W14: =IF(V14=0,0,(V14*((LOG(V14))/LOG(2)))) -> -0.1910401042 | Y14: =N14 -> 1222 | Z14: =COUNTIF(L31:L54,Y14) -> 0 | AA14: =Z14/(AB4-Z20) -> 0 | AB14: =IF(AA14=0,0,(AA14*((LOG(AA14))/LOG(2)))) -> 0 | AD14: =N14 -> 1222 | AE14: =COUNTIF(L55:L78,AD14) -> 0 | AF14: =AE14/(AG4-AE20) -> 0 | AG14: =IF(AF14=0,0,(AF14*((LOG(AF14))/LOG(2)))) -> 0 | AI14: =N14 -> 1222 | AJ14: =COUNTIF(L79:L102,AI14) -> 0 | AK14: =AJ14/(AL4-AJ20) -> 0 | AL14: =IF(AK14=0,0,(AK14*((LOG(AK14))/LOG(2)))) -> 0 | AN14: =N14 -> 1222 | AO14: =COUNTIF(L103:L126,AN14) -> 1 | AP14: =AO14/(AQ4-AO20) -> 0.04166666667 | AQ14: =IF(AP14=0,0,(AP14*((LOG(AP14))/LOG(2)))) -> -0.1910401042 | AS14: =N14 -> 1222 | AT14: =COUNTIF(L127:L150,AS14) -> 1 | AU14: =AT14/(AV4-AT20) -> 0.04166666667 | AV14: =IF(AU14=0,0,(AU14*((LOG(AU14))/LOG(2)))) -> -0.1910401042
A15: 12 | B15: 1003 | C15: 14 | D15: 1009 | E15: 13 | F15: 1014 | G15: 23 | H15: 1036 | K15: 0 | L15: 1112 | N15: 2111 | O15: =COUNTIF($L$7:$L$500,N15) -> 0 | P15: =O15/$Q$4 -> 0 | Q15: =IF(P15=0,0,(P15*((LOG(P15))/LOG(2)))) -> 0 | T15: =N15 -> 2111 | U15: =COUNTIF(L7:L30,T15) -> 0 | V15: =U15/(W4-U20) -> 0 | W15: =IF(V15=0,0,(V15*((LOG(V15))/LOG(2)))) -> 0 | Y15: =N15 -> 2111 | Z15: =COUNTIF(L31:L54,Y15) -> 0 | AA15: =Z15/(AB4-Z20) -> 0 | AB15: =IF(AA15=0,0,(AA15*((LOG(AA15))/LOG(2)))) -> 0 | AD15: =N15 -> 2111 | AE15: =COUNTIF(L55:L78,AD15) -> 0 | AF15: =AE15/(AG4-AE20) -> 0 | AG15: =IF(AF15=0,0,(AF15*((LOG(AF15))/LOG(2)))) -> 0 | AI15: =N15 -> 2111 | AJ15: =COUNTIF(L79:L102,AI15) -> 0 | AK15: =AJ15/(AL4-AJ20) -> 0 | AL15: =IF(AK15=0,0,(AK15*((LOG(AK15))/LOG(2)))) -> 0 | AN15: =N15 -> 2111 | AO15: =COUNTIF(L103:L126,AN15) -> 0 | AP15: =AO15/(AQ4-AO20) -> 0 | AQ15: =IF(AP15=0,0,(AP15*((LOG(AP15))/LOG(2)))) -> 0 | AS15: =N15 -> 2111 | AT15: =COUNTIF(L127:L150,AS15) -> 0 | AU15: =AT15/(AV4-AT20) -> 0 | AV15: =IF(AU15=0,0,(AU15*((LOG(AU15))/LOG(2)))) -> 0
A16: 12 | B16: 1138 | C16: 14 | D16: 1143 | E16: 13 | F16: 1148 | G16: 14 | H16: 1156 | K16: 0 | L16: 1111 | N16: 2112 | O16: =COUNTIF($L$7:$L$500,N16) -> 0 | P16: =O16/$Q$4 -> 0 | Q16: =IF(P16=0,0,(P16*((LOG(P16))/LOG(2)))) -> 0 | T16: =N16 -> 2112 | U16: =COUNTIF(L7:L30,T16) -> 0 | V16: =U16/(W4-U20) -> 0 | W16: =IF(V16=0,0,(V16*((LOG(V16))/LOG(2)))) -> 0 | Y16: =N16 -> 2112 | Z16: =COUNTIF(L31:L54,Y16) -> 0 | AA16: =Z16/(AB4-Z20) -> 0 | AB16: =IF(AA16=0,0,(AA16*((LOG(AA16))/LOG(2)))) -> 0 | AD16: =N16 -> 2112 | AE16: =COUNTIF(L55:L78,AD16) -> 0 | AF16: =AE16/(AG4-AE20) -> 0 | AG16: =IF(AF16=0,0,(AF16*((LOG(AF16))/LOG(2)))) -> 0 | AI16: =N16 -> 2112 | AJ16: =COUNTIF(L79:L102,AI16) -> 0 | AK16: =AJ16/(AL4-AJ20) -> 0 | AL16: =IF(AK16=0,0,(AK16*((LOG(AK16))/LOG(2)))) -> 0 | AN16: =N16 -> 2112 | AO16: =COUNTIF(L103:L126,AN16) -> 0 | AP16: =AO16/(AQ4-AO20) -> 0 | AQ16: =IF(AP16=0,0,(AP16*((LOG(AP16))/LOG(2)))) -> 0 | AS16: =N16 -> 2112 | AT16: =COUNTIF(L127:L150,AS16) -> 0 | AU16: =AT16/(AV4-AT20) -> 0 | AV16: =IF(AU16=0,0,(AU16*((LOG(AU16))/LOG(2)))) -> 0
A17: 12 | B17: 1252 | C17: 14 | D17: 1256 | E17: 13 | F17: 1261 | G17: 14 | H17: 1265 | K17: 0 | L17: 1111 | N17: 2121 | O17: =COUNTIF($L$7:$L$500,N17) -> 0 | P17: =O17/$Q$4 -> 0 | Q17: =IF(P17=0,0,(P17*((LOG(P17))/LOG(2)))) -> 0 | T17: =N17 -> 2121 | U17: =COUNTIF(L7:L30,T17) -> 0 | V17: =U17/(W4-U20) -> 0 | W17: =IF(V17=0,0,(V17*((LOG(V17))/LOG(2)))) -> 0 | Y17: =N17 -> 2121 | Z17: =COUNTIF(L31:L54,Y17) -> 0 | AA17: =Z17/(AB4-Z20) -> 0 | AB17: =IF(AA17=0,0,(AA17*((LOG(AA17))/LOG(2)))) -> 0 | AD17: =N17 -> 2121 | AE17: =COUNTIF(L55:L78,AD17) -> 0 | AF17: =AE17/(AG4-AE20) -> 0 | AG17: =IF(AF17=0,0,(AF17*((LOG(AF17))/LOG(2)))) -> 0 | AI17: =N17 -> 2121 | AJ17: =COUNTIF(L79:L102,AI17) -> 0 | AK17: =AJ17/(AL4-AJ20) -> 0 | AL17: =IF(AK17=0,0,(AK17*((LOG(AK17))/LOG(2)))) -> 0 | AN17: =N17 -> 2121 | AO17: =COUNTIF(L103:L126,AN17) -> 0 | AP17: =AO17/(AQ4-AO20) -> 0 | AQ17: =IF(AP17=0,0,(AP17*((LOG(AP17))/LOG(2)))) -> 0 | AS17: =N17 -> 2121 | AT17: =COUNTIF(L127:L150,AS17) -> 0 | AU17: =AT17/(AV4-AT20) -> 0 | AV17: =IF(AU17=0,0,(AU17*((LOG(AU17))/LOG(2)))) -> 0
A18: 12 | B18: 1364 | C18: 14 | D18: 1369 | E18: 13 | F18: 1374 | G18: 23 | H18: 1387 | K18: 0 | L18: 1112 | N18: 2122 | O18: =COUNTIF($L$7:$L$500,N18) -> 0 | P18: =O18/$Q$4 -> 0 | Q18: =IF(P18=0,0,(P18*((LOG(P18))/LOG(2)))) -> 0 | T18: =N18 -> 2122 | U18: =COUNTIF(L7:L30,T18) -> 0 | V18: =U18/(W4-U20) -> 0 | W18: =IF(V18=0,0,(V18*((LOG(V18))/LOG(2)))) -> 0 | Y18: =N18 -> 2122 | Z18: =COUNTIF(L31:L54,Y18) -> 0 | AA18: =Z18/(AB4-Z20) -> 0 | AB18: =IF(AA18=0,0,(AA18*((LOG(AA18))/LOG(2)))) -> 0 | AD18: =N18 -> 2122 | AE18: =COUNTIF(L55:L78,AD18) -> 0 | AF18: =AE18/(AG4-AE20) -> 0 | AG18: =IF(AF18=0,0,(AF18*((LOG(AF18))/LOG(2)))) -> 0 | AI18: =N18 -> 2122 | AJ18: =COUNTIF(L79:L102,AI18) -> 0 | AK18: =AJ18/(AL4-AJ20) -> 0 | AL18: =IF(AK18=0,0,(AK18*((LOG(AK18))/LOG(2)))) -> 0 | AN18: =N18 -> 2122 | AO18: =COUNTIF(L103:L126,AN18) -> 0 | AP18: =AO18/(AQ4-AO20) -> 0 | AQ18: =IF(AP18=0,0,(AP18*((LOG(AP18))/LOG(2)))) -> 0 | AS18: =N18 -> 2122 | AT18: =COUNTIF(L127:L150,AS18) -> 0 | AU18: =AT18/(AV4-AT20) -> 0 | AV18: =IF(AU18=0,0,(AU18*((LOG(AU18))/LOG(2)))) -> 0
A19: 12 | B19: 1482 | C19: 14 | D19: 1487 | E19: 13 | F19: 1494 | G19: 14 | H19: 1511 | K19: 0 | L19: 1111 | N19: 2211 | O19: =COUNTIF($L$7:$L$500,N19) -> 0 | P19: =O19/$Q$4 -> 0 | Q19: =IF(P19=0,0,(P19*((LOG(P19))/LOG(2)))) -> 0 | T19: =N19 -> 2211 | U19: =COUNTIF(L7:L30,T19) -> 0 | V19: =U19/(W4-U20) -> 0 | W19: =IF(V19=0,0,(V19*((LOG(V19))/LOG(2)))) -> 0 | Y19: =N19 -> 2211 | Z19: =COUNTIF(L31:L54,Y19) -> 0 | AA19: =Z19/(AB4-Z20) -> 0 | AB19: =IF(AA19=0,0,(AA19*((LOG(AA19))/LOG(2)))) -> 0 | AD19: =N19 -> 2211 | AE19: =COUNTIF(L55:L78,AD19) -> 0 | AF19: =AE19/(AG4-AE20) -> 0 | AG19: =IF(AF19=0,0,(AF19*((LOG(AF19))/LOG(2)))) -> 0 | AI19: =N19 -> 2211 | AJ19: =COUNTIF(L79:L102,AI19) -> 0 | AK19: =AJ19/(AL4-AJ20) -> 0 | AL19: =IF(AK19=0,0,(AK19*((LOG(AK19))/LOG(2)))) -> 0 | AN19: =N19 -> 2211 | AO19: =COUNTIF(L103:L126,AN19) -> 0 | AP19: =AO19/(AQ4-AO20) -> 0 | AQ19: =IF(AP19=0,0,(AP19*((LOG(AP19))/LOG(2)))) -> 0 | AS19: =N19 -> 2211 | AT19: =COUNTIF(L127:L150,AS19) -> 0 | AU19: =AT19/(AV4-AT20) -> 0 | AV19: =IF(AU19=0,0,(AU19*((LOG(AU19))/LOG(2)))) -> 0
A20: 12 | B20: 1612 | C20: 14 | D20: 1617 | E20: 24 | F20: 1630 | G20: 23 | H20: 1638 | K20: 0 | L20: 1122 | N20: 2212 | O20: =COUNTIF($L$7:$L$500,N20) -> 0 | P20: =O20/$Q$4 -> 0 | Q20: =IF(P20=0,0,(P20*((LOG(P20))/LOG(2)))) -> 0 | T20: =N20 -> 2212 | U20: =COUNTIF(L7:L30,T20) -> 0 | Y20: =N20 -> 2212 | Z20: =COUNTIF(L31:L54,Y20) -> 0 | AD20: =N20 -> 2212 | AE20: =COUNTIF(L55:L78,AD20) -> 0 | AI20: =N20 -> 2212 | AJ20: =COUNTIF(L79:L102,AI20) -> 0 | AN20: =N20 -> 2212 | AO20: =COUNTIF(L103:L126,AN20) -> 0 | AS20: =N20 -> 2212 | AT20: =COUNTIF(L127:L150,AS20) -> 0
A21: 12 | B21: 1736 | C21: 14 | D21: 1741 | E21: 13 | F21: 1746 | G21: 23 | H21: 1759 | K21: 0 | L21: 1112 | N21: 2221 | O21: =COUNTIF($L$7:$L$500,N21) -> 0 | P21: =O21/$Q$4 -> 0 | Q21: =IF(P21=0,0,(P21*((LOG(P21))/LOG(2)))) -> 0 | T21: =N21 -> 2221 | U21: =COUNTIF(L7:L30,T21) -> 0 | V21: =U21/(W4-U20) -> 0 | W21: =IF(V21=0,0,(V21*((LOG(V21))/LOG(2)))) -> 0 | Y21: =N21 -> 2221 | Z21: =COUNTIF(L31:L54,Y21) -> 0 | AA21: =Z21/(AB4-Z20) -> 0 | AB21: =IF(AA21=0,0,(AA21*((LOG(AA21))/LOG(2)))) -> 0 | AD21: =N21 -> 2221 | AE21: =COUNTIF(L55:L78,AD21) -> 0 | AF21: =AE21/(AG4-AE20) -> 0 | AG21: =IF(AF21=0,0,(AF21*((LOG(AF21))/LOG(2)))) -> 0 | AI21: =N21 -> 2221 | AJ21: =COUNTIF(L79:L102,AI21) -> 0 | AK21: =AJ21/(AL4-AJ20) -> 0 | AL21: =IF(AK21=0,0,(AK21*((LOG(AK21))/LOG(2)))) -> 0 | AN21: =N21 -> 2221 | AO21: =COUNTIF(L103:L126,AN21) -> 0 | AP21: =AO21/(AQ4-AO20) -> 0 | AQ21: =IF(AP21=0,0,(AP21*((LOG(AP21))/LOG(2)))) -> 0 | AS21: =N21 -> 2221 | AT21: =COUNTIF(L127:L150,AS21) -> 0 | AU21: =AT21/(AV4-AT20) -> 0 | AV21: =IF(AU21=0,0,(AU21*((LOG(AU21))/LOG(2)))) -> 0
A22: 12 | B22: 1859 | C22: 14 | D22: 1863 | E22: 13 | F22: 1870 | G22: 23 | H22: 1883 | K22: 0 | L22: 1112 | N22: 2222 | O22: =COUNTIF($L$7:$L$500,N22) -> 30 | P22: =O22/$Q$4 -> 0.2083333333 | Q22: =IF(P22=0,0,(P22*((LOG(P22))/LOG(2)))) -> -0.4714655012 | T22: =N22 -> 2222 | U22: =COUNTIF(L7:L30,T22) -> 1 | V22: =U22/(W4-U20) -> 0.04166666667 | W22: =IF(V22=0,0,(V22*((LOG(V22))/LOG(2)))) -> -0.1910401042 | Y22: =N22 -> 2222 | Z22: =COUNTIF(L31:L54,Y22) -> 0 | AA22: =Z22/(AB4-Z20) -> 0 | AB22: =IF(AA22=0,0,(AA22*((LOG(AA22))/LOG(2)))) -> 0 | AD22: =N22 -> 2222 | AE22: =COUNTIF(L55:L78,AD22) -> 0 | AF22: =AE22/(AG4-AE20) -> 0 | AG22: =IF(AF22=0,0,(AF22*((LOG(AF22))/LOG(2)))) -> 0 | AI22: =N22 -> 2222 | AJ22: =COUNTIF(L79:L102,AI22) -> 6 | AK22: =AJ22/(AL4-AJ20) -> 0.25 | AL22: =IF(AK22=0,0,(AK22*((LOG(AK22))/LOG(2)))) -> -0.5 | AN22: =N22 -> 2222 | AO22: =COUNTIF(L103:L126,AN22) -> 10 | AP22: =AO22/(AQ4-AO20) -> 0.4166666667 | AQ22: =IF(AP22=0,0,(AP22*((LOG(AP22))/LOG(2)))) -> -0.5262643358 | AS22: =N22 -> 2222 | AT22: =COUNTIF(L127:L150,AS22) -> 13 | AU22: =AT22/(AV4-AT20) -> 0.5416666667 | AV22: =IF(AU22=0,0,(AU22*((LOG(AU22))/LOG(2)))) -> -0.4791165072
A23: 12 | B23: 1992 | C23: 14 | D23: 1997 | E23: 24 | F23: 2010 | G23: 23 | H23: 2017 | K23: 0 | L23: 1122 | P23: =SUM(P7:P22) -> 1 | Q23: =-SUM(Q7:Q22) -> 1.918130474 | V23: =SUM(V7:V22) -> 1 | W23: =-SUM(W7:W22) -> 1.84724449 | AA23: =SUM(AA7:AA22) -> 1 | AB23: =-SUM(AB7:AB22) -> 1.188721876 | AF23: =SUM(AF7:AF22) -> 1 | AG23: =-SUM(AG7:AG22) -> 0.9737837299 | AK23: =SUM(AK7:AK22) -> 1 | AL23: =-SUM(AL7:AL22) -> 1.786080697 | AP23: =SUM(AP7:AP22) -> 1 | AQ23: =-SUM(AQ7:AQ22) -> 1.985773317 | AU23: =SUM(AU7:AU22) -> 1 | AV23: =-SUM(AV7:AV22) -> 1.49722432
A24: 12 | B24: 2117 | C24: 14 | D24: 2122 | E24: 13 | F24: 2126 | G24: 14 | H24: 2132 | K24: 0 | L24: 1111 | P24: U= | Q24: =Q23/(LOG(Q4)/LOG(2)) -> 0.2675244822 | V24: U1= | W24: =W23/(LOG(W4)/LOG(2)) -> 0.4028919516 | AA24: U2= | AB24: =AB23/(LOG(AB4)/LOG(2)) -> 0.259265343 | AF24: U3= | AG24: =AG23/(LOG(AG4)/LOG(2)) -> 0.212386411 | AK24: U4= | AL24: =AL23/(LOG(AL4)/LOG(2)) -> 0.3895518659 | AP24: U5= | AQ24: =AQ23/(LOG(AQ4)/LOG(2)) -> 0.4331056834 | AU24: U6= | AV24: =AV23/(LOG(AV4)/LOG(2)) -> 0.3265510503
A25: 12 | B25: 2234 | C25: 14 | D25: 2238 | E25: 24 | F25: 2253 | G25: 23 | H25: 2261 | K25: 0 | L25: 1122
A26: 12 | B26: 2360 | C26: 14 | D26: 2365 | E26: 13 | F26: 2372 | G26: 23 | H26: 2386 | K26: 0 | L26: 1112
A27: 12 | B27: 2485 | C27: 14 | D27: 2490 | E27: 13 | F27: 2497 | G27: 23 | H27: 2514 | K27: 0 | L27: 1112 | N27: Total Target Seq
A28: 12 | B28: 2626 | C28: 23 | D28: 2730 | E28: 24 | F28: 2741 | G28: 23 | H28: 2754 | K28: 0 | L28: 1222 | N28: =COUNTIF(L7:L150,G3) -> 0 | P28: 24 | Q28: 24 | R28: 24 | S28: 24 | T28: 24 | U28: 24
A29: 12 | B29: 2857 | C29: 14 | D29: 2862 | E29: 13 | F29: 2867 | G29: 23 | H29: 2886 | K29: 0 | L29: 1112 | P29: % of reinforcement given in 6 equal intervals based on number of trials
A30: 21 | B30: 2994 | C30: 21 | D30: 3002 | E30: 22 | F30: 3012 | G30: 23 | H30: 3019 | K30: 0 | L30: 2222 | P30: %_1 | Q30: %_2 | R30: %_3 | S30: %_4 | T30: %_5 | U30: %_6
A31: 12 | B31: 3119 | C31: 14 | D31: 3124 | E31: 13 | F31: 3129 | G31: 14 | H31: 3133 | K31: 0 | L31: 1111 | O31: target sequence | P31: =$G$3 -> 2212 | Q31: =$G$3 -> 2212 | R31: =$G$3 -> 2212 | S31: =$G$3 -> 2212 | T31: =$G$3 -> 2212 | U31: =$G$3 -> 2212
A32: 12 | B32: 3241 | C32: 14 | D32: 3247 | E32: 13 | F32: 3252 | G32: 23 | H32: 3273 | K32: 0 | L32: 1112 | O32: total reinforcement | P32: =U20 -> 0 | Q32: =Z20 -> 0 | R32: =AE20 -> 0 | S32: =AJ20 -> 0 | T32: =AO20 -> 0 | U32: =AT20 -> 0
A33: 12 | B33: 3373 | C33: 14 | D33: 3377 | E33: 13 | F33: 3388 | G33: 23 | H33: 3411 | K33: 0 | L33: 1112 | O33: % target
A34: 12 | B34: 3511 | C34: 14 | D34: 3515 | E34: 13 | F34: 3520 | G34: 14 | H34: 3527 | K34: 0 | L34: 1111 | O34: CCRF
A35: 12 | B35: 3625 | C35: 14 | D35: 3629 | E35: 13 | F35: 3635 | G35: 14 | H35: 3640 | K35: 0 | L35: 1111 | O35: % CCRf
A36: 12 | B36: 3743 | C36: 14 | D36: 3747 | E36: 13 | F36: 3757 | G36: 23 | H36: 3779 | K36: 0 | L36: 1112 | O36: average response rate | P36: =H30/P28 -> 125.7916667 | Q36: =(H54-H30)/Q28 -> 123.7083333 | R36: =(H78-H54)/R28 -> 119.5416667 | S36: =(H102-H78)/S28 -> 158 | T36: =(H126-H102)/T28 -> 155.7916667 | U36: =(H150-H126)/U28 -> 314.875
A37: 12 | B37: 3880 | C37: 14 | D37: 3886 | E37: 13 | F37: 3891 | G37: 14 | H37: 3903 | K37: 0 | L37: 1111
A38: 12 | B38: 4007 | C38: 14 | D38: 4011 | E38: 13 | F38: 4017 | G38: 23 | H38: 4030 | K38: 0 | L38: 1112
A39: 12 | B39: 4129 | C39: 14 | D39: 4133 | E39: 13 | F39: 4140 | G39: 14 | H39: 4148 | K39: 0 | L39: 1111
A40: 12 | B40: 4247 | C40: 14 | D40: 4252 | E40: 13 | F40: 4258 | G40: 23 | H40: 4279 | K40: 0 | L40: 1112
A41: 12 | B41: 4378 | C41: 14 | D41: 4382 | E41: 13 | F41: 4388 | G41: 14 | H41: 4394 | K41: 0 | L41: 1111
A42: 12 | B42: 4497 | C42: 14 | D42: 4501 | E42: 13 | F42: 4505 | G42: 14 | H42: 4511 | K42: 0 | L42: 1111
A43: 12 | B43: 4621 | C43: 14 | D43: 4631 | E43: 24 | F43: 4642 | G43: 23 | H43: 4648 | K43: 0 | L43: 1122
A44: 12 | B44: 4750 | C44: 14 | D44: 4756 | E44: 13 | F44: 4762 | G44: 14 | H44: 4766 | K44: 0 | L44: 1111
A45: 12 | B45: 4879 | C45: 14 | D45: 4884 | E45: 13 | F45: 4890 | G45: 23 | H45: 4908 | K45: 0 | L45: 1112
A46: 12 | B46: 5009 | C46: 14 | D46: 5014 | E46: 13 | F46: 5019 | G46: 14 | H46: 5027 | K46: 0 | L46: 1111
A47: 12 | B47: 5128 | C47: 14 | D47: 5132 | E47: 13 | F47: 5136 | G47: 14 | H47: 5143 | K47: 0 | L47: 1111
A48: 12 | B48: 5244 | C48: 14 | D48: 5250 | E48: 13 | F48: 5254 | G48: 14 | H48: 5263 | K48: 0 | L48: 1111
A49: 12 | B49: 5365 | C49: 14 | D49: 5369 | E49: 13 | F49: 5373 | G49: 14 | H49: 5381 | K49: 0 | L49: 1111
A50: 12 | B50: 5479 | C50: 14 | D50: 5483 | E50: 13 | F50: 5490 | G50: 14 | H50: 5498 | K50: 0 | L50: 1111
A51: 12 | B51: 5600 | C51: 14 | D51: 5605 | E51: 13 | F51: 5609 | G51: 14 | H51: 5615 | K51: 0 | L51: 1111
A52: 12 | B52: 5720 | C52: 14 | D52: 5725 | E52: 13 | F52: 5729 | G52: 14 | H52: 5734 | K52: 0 | L52: 1111
A53: 12 | B53: 5837 | C53: 14 | D53: 5843 | E53: 24 | F53: 5862 | G53: 23 | H53: 5869 | K53: 0 | L53: 1122
A54: 12 | B54: 5965 | C54: 14 | D54: 5978 | E54: 13 | F54: 5983 | G54: 14 | H54: 5988 | K54: 0 | L54: 1111
A55: 12 | B55: 6090 | C55: 14 | D55: 6096 | E55: 13 | F55: 6102 | G55: 14 | H55: 6107 | K55: 0 | L55: 1111
A56: 12 | B56: 6209 | C56: 14 | D56: 6213 | E56: 13 | F56: 6218 | G56: 23 | H56: 6231 | K56: 0 | L56: 1112
A57: 12 | B57: 6333 | C57: 14 | D57: 6337 | E57: 13 | F57: 6342 | G57: 14 | H57: 6346 | K57: 0 | L57: 1111
A58: 12 | B58: 6446 | C58: 14 | D58: 6450 | E58: 13 | F58: 6456 | G58: 14 | H58: 6460 | K58: 0 | L58: 1111
A59: 12 | B59: 6561 | C59: 14 | D59: 6565 | E59: 13 | F59: 6569 | G59: 14 | H59: 6578 | K59: 0 | L59: 1111
A60: 12 | B60: 6676 | C60: 14 | D60: 6681 | E60: 13 | F60: 6686 | G60: 14 | H60: 6692 | K60: 0 | L60: 1111
A61: 12 | B61: 6790 | C61: 14 | D61: 6796 | E61: 13 | F61: 6801 | G61: 14 | H61: 6806 | K61: 0 | L61: 1111
A62: 12 | B62: 6907 | C62: 14 | D62: 6912 | E62: 13 | F62: 6918 | G62: 23 | H62: 6931 | K62: 0 | L62: 1112
A63: 12 | B63: 7034 | C63: 14 | D63: 7038 | E63: 13 | F63: 7044 | G63: 14 | H63: 7048 | K63: 0 | L63: 1111
A64: 12 | B64: 7151 | C64: 14 | D64: 7156 | E64: 13 | F64: 7169 | G64: 23 | H64: 7185 | K64: 0 | L64: 1112
A65: 12 | B65: 7284 | C65: 14 | D65: 7288 | E65: 13 | F65: 7292 | G65: 14 | H65: 7298 | K65: 0 | L65: 1111
A66: 12 | B66: 7399 | C66: 14 | D66: 7403 | E66: 13 | F66: 7412 | G66: 14 | H66: 7417 | K66: 0 | L66: 1111
A67: 12 | B67: 7515 | C67: 14 | D67: 7520 | E67: 13 | F67: 7524 | G67: 14 | H67: 7528 | K67: 0 | L67: 1111
A68: 12 | B68: 7625 | C68: 14 | D68: 7632 | E68: 13 | F68: 7637 | G68: 14 | H68: 7642 | K68: 0 | L68: 1111
A69: 12 | B69: 7741 | C69: 14 | D69: 7746 | E69: 13 | F69: 7752 | G69: 14 | H69: 7757 | K69: 0 | L69: 1111
A70: 12 | B70: 7859 | C70: 14 | D70: 7864 | E70: 24 | F70: 7892 | G70: 23 | H70: 7898 | K70: 0 | L70: 1122
A71: 12 | B71: 7997 | C71: 14 | D71: 8001 | E71: 13 | F71: 8007 | G71: 14 | H71: 8013 | K71: 0 | L71: 1111
A72: 12 | B72: 8113 | C72: 14 | D72: 8127 | E72: 13 | F72: 8135 | G72: 23 | H72: 8151 | K72: 0 | L72: 1112
A73: 12 | B73: 8251 | C73: 14 | D73: 8256 | E73: 13 | F73: 8260 | G73: 14 | H73: 8264 | K73: 0 | L73: 1111
A74: 12 | B74: 8361 | C74: 14 | D74: 8365 | E74: 13 | F74: 8370 | G74: 14 | H74: 8376 | K74: 0 | L74: 1111
A75: 12 | B75: 8475 | C75: 14 | D75: 8481 | E75: 13 | F75: 8486 | G75: 14 | H75: 8492 | K75: 0 | L75: 1111
A76: 12 | B76: 8590 | C76: 14 | D76: 8595 | E76: 13 | F76: 8600 | G76: 14 | H76: 8605 | K76: 0 | L76: 1111
A77: 12 | B77: 8707 | C77: 14 | D77: 8712 | E77: 13 | F77: 8717 | G77: 14 | H77: 8723 | K77: 0 | L77: 1111
A78: 12 | B78: 8829 | C78: 14 | D78: 8835 | E78: 13 | F78: 8841 | G78: 23 | H78: 8857 | K78: 0 | L78: 1112
A79: 12 | B79: 8957 | C79: 14 | D79: 8961 | E79: 13 | F79: 8966 | G79: 14 | H79: 8971 | K79: 0 | L79: 1111
A80: 12 | B80: 9073 | C80: 14 | D80: 9078 | E80: 13 | F80: 9082 | G80: 14 | H80: 9089 | K80: 0 | L80: 1111
A81: 12 | B81: 9187 | C81: 14 | D81: 9191 | E81: 13 | F81: 9196 | G81: 14 | H81: 9207 | K81: 0 | L81: 1111
A82: 12 | B82: 9309 | C82: 14 | D82: 9317 | E82: 13 | F82: 9325 | G82: 14 | H82: 9339 | K82: 0 | L82: 1111
A83: 12 | B83: 9442 | C83: 14 | D83: 9451 | E83: 13 | F83: 9455 | G83: 14 | H83: 9464 | K83: 0 | L83: 1111
A84: 21 | B84: 9614 | C84: 21 | D84: 9620 | E84: 22 | F84: 9625 | G84: 23 | H84: 9633 | K84: 0 | L84: 2222
A85: 21 | B85: 9737 | C85: 21 | D85: 9745 | E85: 22 | F85: 9753 | G85: 23 | H85: 9759 | K85: 0 | L85: 2222
A86: 12 | B86: 9870 | C86: 14 | D86: 9874 | E86: 24 | F86: 9888 | G86: 23 | H86: 9892 | K86: 0 | L86: 1122
A87: 12 | B87: 10021 | C87: 14 | D87: 10025 | E87: 13 | F87: 10030 | G87: 23 | H87: 10043 | K87: 0 | L87: 1112
A88: 12 | B88: 10145 | C88: 14 | D88: 10150 | E88: 13 | F88: 10166 | G88: 23 | H88: 10183 | K88: 0 | L88: 1112
A89: 12 | B89: 10285 | C89: 14 | D89: 10291 | E89: 13 | F89: 10295 | G89: 14 | H89: 10299 | K89: 0 | L89: 1111
A90: 12 | B90: 10420 | C90: 14 | D90: 10425 | E90: 13 | F90: 10430 | G90: 14 | H90: 10435 | K90: 0 | L90: 1111
A91: 12 | B91: 10548 | C91: 14 | D91: 10558 | E91: 24 | F91: 10572 | G91: 23 | H91: 10576 | K91: 0 | L91: 1122
A92: 12 | B92: 10702 | C92: 14 | D92: 10711 | E92: 13 | F92: 10715 | G92: 14 | H92: 10721 | K92: 0 | L92: 1111
A93: 12 | B93: 10826 | C93: 14 | D93: 10830 | E93: 24 | F93: 10849 | G93: 23 | H93: 10856 | K93: 0 | L93: 1122
A94: 12 | B94: 10966 | C94: 14 | D94: 10972 | E94: 13 | F94: 10979 | G94: 14 | H94: 10984 | K94: 0 | L94: 1111
A95: 21 | B95: 11103 | C95: 21 | D95: 11109 | E95: 22 | F95: 11113 | G95: 23 | H95: 11120 | K95: 0 | L95: 2222
A96: 12 | B96: 11264 | C96: 14 | D96: 11273 | E96: 24 | F96: 11287 | G96: 23 | H96: 11291 | K96: 0 | L96: 1122
A97: 21 | B97: 11432 | C97: 21 | D97: 11438 | E97: 22 | F97: 11442 | G97: 23 | H97: 11451 | K97: 0 | L97: 2222
A98: 21 | B98: 11739 | C98: 21 | D98: 11749 | E98: 22 | F98: 11759 | G98: 23 | H98: 11768 | K98: 0 | L98: 2222
A99: 12 | B99: 11881 | C99: 14 | D99: 11885 | E99: 13 | F99: 11890 | G99: 14 | H99: 11900 | K99: 0 | L99: 1111
A100: 12 | B100: 12018 | C100: 14 | D100: 12022 | E100: 24 | F100: 12038 | G100: 23 | H100: 12042 | K100: 0 | L100: 1122
A101: 12 | B101: 12167 | C101: 14 | D101: 12173 | E101: 13 | F101: 12179 | G101: 14 | H101: 12184 | K101: 0 | L101: 1111
A102: 21 | B102: 12589 | C102: 21 | D102: 12594 | E102: 22 | F102: 12639 | G102: 23 | H102: 12649 | K102: 0 | L102: 2222
A103: 12 | B103: 12775 | C103: 14 | D103: 12779 | E103: 13 | F103: 12784 | G103: 14 | H103: 12793 | K103: 0 | L103: 1111
A104: 12 | B104: 12908 | C104: 14 | D104: 12913 | E104: 13 | F104: 12917 | G104: 14 | H104: 12922 | K104: 0 | L104: 1111
A105: 12 | B105: 13043 | C105: 14 | D105: 13052 | E105: 24 | F105: 13071 | G105: 23 | H105: 13078 | K105: 0 | L105: 1122
A106: 21 | B106: 13282 | C106: 21 | D106: 13289 | E106: 22 | F106: 13297 | G106: 23 | H106: 13303 | K106: 0 | L106: 2222
A107: 12 | B107: 13520 | C107: 14 | D107: 13545 | E107: 24 | F107: 13563 | G107: 23 | H107: 13569 | K107: 0 | L107: 1122
A108: 12 | B108: 13673 | C108: 14 | D108: 13677 | E108: 13 | F108: 13682 | G108: 14 | H108: 13687 | K108: 0 | L108: 1111
A109: 12 | B109: 13795 | C109: 14 | D109: 13800 | E109: 13 | F109: 13806 | G109: 23 | H109: 13824 | K109: 0 | L109: 1112
A110: 12 | B110: 13927 | C110: 14 | D110: 13933 | E110: 13 | F110: 13938 | G110: 14 | H110: 13944 | K110: 0 | L110: 1111
A111: 12 | B111: 14050 | C111: 14 | D111: 14054 | E111: 13 | F111: 14061 | G111: 23 | H111: 14074 | K111: 0 | L111: 1112
A112: 12 | B112: 14177 | C112: 14 | D112: 14181 | E112: 13 | F112: 14188 | G112: 14 | H112: 14194 | K112: 0 | L112: 1111
A113: 12 | B113: 14382 | C113: 14 | D113: 14387 | E113: 13 | F113: 14392 | G113: 14 | H113: 14396 | K113: 0 | L113: 1111
A114: 21 | B114: 14503 | C114: 21 | D114: 14508 | E114: 22 | F114: 14520 | G114: 23 | H114: 14524 | K114: 0 | L114: 2222
A115: 21 | B115: 14637 | C115: 21 | D115: 14642 | E115: 22 | F115: 14647 | G115: 23 | H115: 14660 | K115: 0 | L115: 2222
A116: 21 | B116: 14762 | C116: 21 | D116: 14767 | E116: 22 | F116: 14774 | G116: 23 | H116: 14781 | K116: 0 | L116: 2222
A117: 21 | B117: 14884 | C117: 21 | D117: 14890 | E117: 22 | F117: 14895 | G117: 23 | H117: 14900 | K117: 0 | L117: 2222
A118: 21 | B118: 15145 | C118: 21 | D118: 15153 | E118: 22 | F118: 15164 | G118: 23 | H118: 15177 | K118: 0 | L118: 2222
A119: 21 | B119: 15308 | C119: 21 | D119: 15314 | E119: 22 | F119: 15321 | G119: 23 | H119: 15327 | K119: 0 | L119: 2222
A120: 12 | B120: 15435 | C120: 14 | D120: 15440 | E120: 13 | F120: 15446 | G120: 14 | H120: 15450 | K120: 0 | L120: 1111
A121: 21 | B121: 15554 | C121: 21 | D121: 15563 | E121: 22 | F121: 15573 | G121: 23 | H121: 15578 | K121: 0 | L121: 2222
A122: 21 | B122: 15757 | C122: 21 | D122: 15762 | E122: 22 | F122: 15768 | G122: 23 | H122: 15773 | K122: 0 | L122: 2222
A123: 21 | B123: 15897 | C123: 21 | D123: 15902 | E123: 22 | F123: 15907 | G123: 23 | H123: 15912 | K123: 0 | L123: 2222
A124: 12 | B124: 16040 | C124: 14 | D124: 16045 | E124: 13 | F124: 16051 | G124: 23 | H124: 16065 | K124: 0 | L124: 1112
A125: 12 | B125: 16176 | C125: 14 | D125: 16187 | E125: 24 | F125: 16201 | G125: 23 | H125: 16205 | K125: 0 | L125: 1122
A126: 12 | B126: 16340 | C126: 23 | D126: 16379 | E126: 24 | F126: 16383 | G126: 23 | H126: 16388 | K126: 0 | L126: 1222
A127: 12 | B127: 16506 | C127: 23 | D127: 16527 | E127: 24 | F127: 16531 | G127: 23 | H127: 16546 | K127: 0 | L127: 1222
A128: 12 | B128: 16654 | C128: 14 | D128: 16672 | E128: 13 | F128: 16677 | G128: 14 | H128: 16682 | K128: 0 | L128: 1111
A129: 12 | B129: 16792 | C129: 14 | D129: 16798 | E129: 13 | F129: 16804 | G129: 14 | H129: 16810 | K129: 0 | L129: 1111
A130: 12 | B130: 16943 | C130: 14 | D130: 16953 | E130: 13 | F130: 16960 | G130: 14 | H130: 16965 | K130: 0 | L130: 1111
A131: 21 | B131: 17081 | C131: 21 | D131: 17085 | E131: 22 | F131: 17090 | G131: 23 | H131: 17094 | K131: 0 | L131: 2222
A132: 21 | B132: 17210 | C132: 21 | D132: 17214 | E132: 22 | F132: 17218 | G132: 23 | H132: 17223 | K132: 0 | L132: 2222
A133: 21 | B133: 17708 | C133: 21 | D133: 17716 | E133: 22 | F133: 17726 | G133: 23 | H133: 17734 | K133: 0 | L133: 2222
A134: 12 | B134: 18368 | C134: 14 | D134: 18374 | E134: 13 | F134: 18378 | G134: 14 | H134: 18390 | K134: 0 | L134: 1111
A135: 21 | B135: 19179 | C135: 21 | D135: 19188 | E135: 22 | F135: 19197 | G135: 23 | H135: 19205 | K135: 0 | L135: 2222
A136: 21 | B136: 19316 | C136: 21 | D136: 19322 | E136: 22 | F136: 19326 | G136: 23 | H136: 19331 | K136: 0 | L136: 2222
A137: 21 | B137: 21493 | C137: 21 | D137: 21501 | E137: 22 | F137: 21506 | G137: 23 | H137: 21511 | K137: 0 | L137: 2222
A138: 21 | B138: 22012 | C138: 21 | D138: 22023 | E138: 22 | F138: 22029 | G138: 23 | H138: 22034 | K138: 0 | L138: 2222
A139: 12 | B139: 22210 | C139: 14 | D139: 22223 | E139: 24 | F139: 22236 | G139: 23 | H139: 22244 | K139: 0 | L139: 1122
A140: 12 | B140: 22347 | C140: 14 | D140: 22351 | E140: 24 | F140: 22367 | G140: 23 | H140: 22372 | K140: 0 | L140: 1122
A141: 21 | B141: 22498 | C141: 21 | D141: 22504 | E141: 22 | F141: 22511 | G141: 23 | H141: 22516 | K141: 0 | L141: 2222
A142: 12 | B142: 22626 | C142: 14 | D142: 22633 | E142: 13 | F142: 22639 | G142: 14 | H142: 22647 | K142: 0 | L142: 1111
A143: 12 | B143: 22761 | C143: 14 | D143: 22766 | E143: 13 | F143: 22772 | G143: 14 | H143: 22778 | K143: 0 | L143: 1111
A144: 12 | B144: 22917 | C144: 14 | D144: 22933 | E144: 13 | F144: 22938 | G144: 14 | H144: 22948 | K144: 0 | L144: 1111
A145: 21 | B145: 23083 | C145: 21 | D145: 23095 | E145: 22 | F145: 23100 | G145: 23 | H145: 23108 | K145: 0 | L145: 2222
A146: 21 | B146: 23262 | C146: 21 | D146: 23266 | E146: 22 | F146: 23271 | G146: 23 | H146: 23276 | K146: 0 | L146: 2222
A147: 12 | B147: 23384 | C147: 14 | D147: 23392 | E147: 13 | F147: 23397 | G147: 14 | H147: 23407 | K147: 0 | L147: 1111
A148: 21 | B148: 23517 | C148: 21 | D148: 23526 | E148: 22 | F148: 23532 | G148: 23 | H148: 23541 | K148: 0 | L148: 2222
A149: 21 | B149: 23753 | C149: 21 | D149: 23760 | E149: 22 | F149: 23766 | G149: 23 | H149: 23771 | K149: 0 | L149: 2222
A150: 21 | B150: 23926 | C150: 21 | D150: 23932 | E150: 22 | F150: 23939 | G150: 23 | H150: 23945 | L150: 2222

Sheet !M901820.102
A1: Report for:!M901820.102
A2: Date: | B2: <date>
A3: Hen: | B3: <hen> | F3: Correct Sequence | G3: =Start!J2 -> 2212 | P3: Total Sequences in Data | Q3: =4994-COUNTBLANK(L7:L5000) -> 71 | V3: Total Sequences in Block Data | W3: =COUNTA(L7:L18) -> 12 | AA3: Total Sequences in Block Data | AB3: =COUNTA(L19:L30) -> 12 | AF3: Total Sequences in Block Data | AG3: =COUNTA(L31:L41) -> 11 | AK3: Total Sequences in Block Data | AL3: =COUNTA(L42:L53) -> 12 | AP3: Total Sequences in Block Data | AQ3: =COUNTA(L54:L65) -> 12 | AU3: Total Sequences in Block Data | AV3: =COUNTA(L66:L77) -> 12
P4: Total Sequences in Summary | Q4: =SUM(O7:O22) -> 71 | V4: Total Sequences in Block Summary | W4: =SUM(U7:U22) -> 12 | AA4: Total Sequences in Block Summary | AB4: =SUM(Z7:Z22) -> 12 | AF4: Total Sequences in Block Summary | AG4: =SUM(AE7:AE22) -> 11 | AK4: Total Sequences in Block Summary | AL4: =SUM(AJ7:AJ22) -> 12 | AP4: Total Sequences in Block Summary | AQ4: =SUM(AO7:AO22) -> 12 | AU4: Total Sequences in Block Summary | AV4: =SUM(AT7:AT22) -> 12
T5: Block 1 | Y5: Block 2 | AD5: Block 3 | AI5: Block 4 | AN5: Block 5 | AS5: Block 6
A6: Sequence Component 1 | B6: Time 1 | C6: Sequence Component 2 | D6: Time 2 | E6: Sequence Component 3 | F6: Time 3 | G6: Sequence Component 4 | H6: Time 4 | I6: Sequence Component 5 | J6: Time 5 | K6: Correct? 0=No 1=Yes | L6: Sequence | N6: Frequency | P6: Relative Frequency | Q6: Variability | T6: Frequency | V6: Relative Frequency | W6: Variability | Y6: Frequency | AA6: Relative Frequency | AB6: Variability | AD6: Frequency | AF6: Relative Frequency | AG6: Variability | AI6: Frequency | AK6: Relative Frequency | AL6: Variability | AN6: Frequency | AP6: Relative Frequency | AQ6: Variability | AS6: Frequency | AU6: Relative Frequency | AV6: Variability
A7: 12 | B7: 16 | C7: 14 | D7: 22 | E7: 13 | F7: 43 | G7: 14 | H7: 58 | K7: 0 | L7: 1111 | N7: 1111 | O7: =COUNTIF($L$7:$L$500,N7) -> 46 | P7: =O7/$Q$4 -> 0.6478873239 | Q7: =IF(P7=0,0,(P7*((LOG(P7))/LOG(2)))) -> -0.4056974298 | T7: =N7 -> 1111 | U7: =COUNTIF(L7:L18,T7) -> 9 | V7: =U7/(W4-U20) -> 0.75 | W7: =IF(V7=0,0,(V7*((LOG(V7))/LOG(2)))) -> -0.3112781245 | Y7: =N7 -> 1111 | Z7: =COUNTIF(L19:L30,Y7) -> 4 | AA7: =Z7/(AB4-Z20) -> 0.3333333333 | AB7: =IF(AA7=0,0,(AA7*((LOG(AA7))/LOG(2)))) -> -0.5283208336 | AD7: =N7 -> 1111 | AE7: =COUNTIF(L31:L41,AD7) -> 6 | AF7: =AE7/(AG4-AE20) -> 0.5454545455 | AG7: =IF(AF7=0,0,(AF7*((LOG(AF7))/LOG(2)))) -> -0.4769831552 | AI7: =N7 -> 1111 | AJ7: =COUNTIF(L42:L53,AI7) -> 10 | AK7: =AJ7/(AL4-AJ20) -> 0.8333333333 | AL7: =IF(AK7=0,0,(AK7*((LOG(AK7))/LOG(2)))) -> -0.2191953382 | AN7: =N7 -> 1111 | AO7: =COUNTIF(L54:L65,AN7) -> 8 | AP7: =AO7/(AQ4-AO20) -> 0.6666666667 | AQ7: =IF(AP7=0,0,(AP7*((LOG(AP7))/LOG(2)))) -> -0.3899750005 | AS7: =N7 -> 1111 | AT7: =COUNTIF(L66:L77,AS7) -> 9 | AU7: =AT7/(AV4-AT20) -> 0.75 | AV7: =IF(AU7=0,0,(AU7*((LOG(AU7))/LOG(2)))) -> -0.3112781245
A8: 12 | B8: 156 | C8: 14 | D8: 161 | E8: 13 | F8: 171 | G8: 14 | H8: 177 | K8: 0 | L8: 1111 | N8: 1112 | O8: =COUNTIF($L$7:$L$500,N8) -> 9 | P8: =O8/$Q$4 -> 0.1267605634 | Q8: =IF(P8=0,0,(P8*((LOG(P8))/LOG(2)))) -> -0.3777239305 | T8: =N8 -> 1112 | U8: =COUNTIF(L7:L18,T8) -> 2 | V8: =U8/(W4-U20) -> 0.1666666667 | W8: =IF(V8=0,0,(V8*((LOG(V8))/LOG(2)))) -> -0.4308270835 | Y8: =N8 -> 1112 | Z8: =COUNTIF(L19:L30,Y8) -> 1 | AA8: =Z8/(AB4-Z20) -> 0.08333333333 | AB8: =IF(AA8=0,0,(AA8*((LOG(AA8))/LOG(2)))) -> -0.2987468751 | AD8: =N8 -> 1112 | AE8: =COUNTIF(L31:L41,AD8) -> 4 | AF8: =AE8/(AG4-AE20) -> 0.3636363636 | AG8: =IF(AF8=0,0,(AF8*((LOG(AF8))/LOG(2)))) -> -0.5307024068 | AI8: =N8 -> 1112 | AJ8: =COUNTIF(L42:L53,AI8) -> 0 | AK8: =AJ8/(AL4-AJ20) -> 0 | AL8: =IF(AK8=0,0,(AK8*((LOG(AK8))/LOG(2)))) -> 0 | AN8: =N8 -> 1112 | AO8: =COUNTIF(L54:L65,AN8) -> 2 | AP8: =AO8/(AQ4-AO20) -> 0.1666666667 | AQ8: =IF(AP8=0,0,(AP8*((LOG(AP8))/LOG(2)))) -> -0.4308270835 | AS8: =N8 -> 1112 | AT8: =COUNTIF(L66:L77,AS8) -> 0 | AU8: =AT8/(AV4-AT20) -> 0 | AV8: =IF(AU8=0,0,(AU8*((LOG(AU8))/LOG(2)))) -> 0
A9: 12 | B9: 276 | C9: 14 | D9: 283 | E9: 13 | F9: 287 | G9: 14 | H9: 294 | K9: 0 | L9: 1111 | N9: 1121 | O9: =COUNTIF($L$7:$L$500,N9) -> 0 | P9: =O9/$Q$4 -> 0 | Q9: =IF(P9=0,0,(P9*((LOG(P9))/LOG(2)))) -> 0 | T9: =N9 -> 1121 | U9: =COUNTIF(L7:L18,T9) -> 0 | V9: =U9/(W4-U20) -> 0 | W9: =IF(V9=0,0,(V9*((LOG(V9))/LOG(2)))) -> 0 | Y9: =N9 -> 1121 | Z9: =COUNTIF(L19:L30,Y9) -> 0 | AA9: =Z9/(AB4-Z20) -> 0 | AB9: =IF(AA9=0,0,(AA9*((LOG(AA9))/LOG(2)))) -> 0 | AD9: =N9 -> 1121 | AE9: =COUNTIF(L31:L41,AD9) -> 0 | AF9: =AE9/(AG4-AE20) -> 0 | AG9: =IF(AF9=0,0,(AF9*((LOG(AF9))/LOG(2)))) -> 0 | AI9: =N9 -> 1121 | AJ9: =COUNTIF(L42:L53,AI9) -> 0 | AK9: =AJ9/(AL4-AJ20) -> 0 | AL9: =IF(AK9=0,0,(AK9*((LOG(AK9))/LOG(2)))) -> 0 | AN9: =N9 -> 1121 | AO9: =COUNTIF(L54:L65,AN9) -> 0 | AP9: =AO9/(AQ4-AO20) -> 0 | AQ9: =IF(AP9=0,0,(AP9*((LOG(AP9))/LOG(2)))) -> 0 | AS9: =N9 -> 1121 | AT9: =COUNTIF(L66:L77,AS9) -> 0 | AU9: =AT9/(AV4-AT20) -> 0 | AV9: =IF(AU9=0,0,(AU9*((LOG(AU9))/LOG(2)))) -> 0
A10: 12 | B10: 392 | C10: 14 | D10: 396 | E10: 13 | F10: 402 | G10: 23 | H10: 418 | K10: 0 | L10: 1112 | N10: 1122 | O10: =COUNTIF($L$7:$L$500,N10) -> 6 | P10: =O10/$Q$4 -> 0.08450704225 | Q10: =IF(P10=0,0,(P10*((LOG(P10))/LOG(2)))) -> -0.3012494044 | T10: =N10 -> 1122 | U10: =COUNTIF(L7:L18,T10) -> 0 | V10: =U10/(W4-U20) -> 0 | W10: =IF(V10=0,0,(V10*((LOG(V10))/LOG(2)))) -> 0 | Y10: =N10 -> 1122 | Z10: =COUNTIF(L19:L30,Y10) -> 4 | AA10: =Z10/(AB4-Z20) -> 0.3333333333 | AB10: =IF(AA10=0,0,(AA10*((LOG(AA10))/LOG(2)))) -> -0.5283208336 | AD10: =N10 -> 1122 | AE10: =COUNTIF(L31:L41,AD10) -> 0 | AF10: =AE10/(AG4-AE20) -> 0 | AG10: =IF(AF10=0,0,(AF10*((LOG(AF10))/LOG(2)))) -> 0 | AI10: =N10 -> 1122 | AJ10: =COUNTIF(L42:L53,AI10) -> 0 | AK10: =AJ10/(AL4-AJ20) -> 0 | AL10: =IF(AK10=0,0,(AK10*((LOG(AK10))/LOG(2)))) -> 0 | AN10: =N10 -> 1122 | AO10: =COUNTIF(L54:L65,AN10) -> 1 | AP10: =AO10/(AQ4-AO20) -> 0.08333333333 | AQ10: =IF(AP10=0,0,(AP10*((LOG(AP10))/LOG(2)))) -> -0.2987468751 | AS10: =N10 -> 1122 | AT10: =COUNTIF(L66:L77,AS10) -> 1 | AU10: =AT10/(AV4-AT20) -> 0.08333333333 | AV10: =IF(AU10=0,0,(AU10*((LOG(AU10))/LOG(2)))) -> -0.2987468751
A11: 12 | B11: 520 | C11: 14 | D11: 524 | E11: 13 | F11: 529 | G11: 14 | H11: 536 | K11: 0 | L11: 1111 | N11: 1211 | O11: =COUNTIF($L$7:$L$500,N11) -> 0 | P11: =O11/$Q$4 -> 0 | Q11: =IF(P11=0,0,(P11*((LOG(P11))/LOG(2)))) -> 0 | T11: =N11 -> 1211 | U11: =COUNTIF(L7:L18,T11) -> 0 | V11: =U11/(W4-U20) -> 0 | W11: =IF(V11=0,0,(V11*((LOG(V11))/LOG(2)))) -> 0 | Y11: =N11 -> 1211 | Z11: =COUNTIF(L19:L30,Y11) -> 0 | AA11: =Z11/(AB4-Z20) -> 0 | AB11: =IF(AA11=0,0,(AA11*((LOG(AA11))/LOG(2)))) -> 0 | AD11: =N11 -> 1211 | AE11: =COUNTIF(L31:L41,AD11) -> 0 | AF11: =AE11/(AG4-AE20) -> 0 | AG11: =IF(AF11=0,0,(AF11*((LOG(AF11))/LOG(2)))) -> 0 | AI11: =N11 -> 1211 | AJ11: =COUNTIF(L42:L53,AI11) -> 0 | AK11: =AJ11/(AL4-AJ20) -> 0 | AL11: =IF(AK11=0,0,(AK11*((LOG(AK11))/LOG(2)))) -> 0 | AN11: =N11 -> 1211 | AO11: =COUNTIF(L54:L65,AN11) -> 0 | AP11: =AO11/(AQ4-AO20) -> 0 | AQ11: =IF(AP11=0,0,(AP11*((LOG(AP11))/LOG(2)))) -> 0 | AS11: =N11 -> 1211 | AT11: =COUNTIF(L66:L77,AS11) -> 0 | AU11: =AT11/(AV4-AT20) -> 0 | AV11: =IF(AU11=0,0,(AU11*((LOG(AU11))/LOG(2)))) -> 0
A12: 12 | B12: 643 | C12: 14 | D12: 647 | E12: 13 | F12: 654 | G12: 14 | H12: 660 | K12: 0 | L12: 1111 | N12: 1212 | O12: =COUNTIF($L$7:$L$500,N12) -> 0 | P12: =O12/$Q$4 -> 0 | Q12: =IF(P12=0,0,(P12*((LOG(P12))/LOG(2)))) -> 0 | T12: =N12 -> 1212 | U12: =COUNTIF(L7:L18,T12) -> 0 | V12: =U12/(W4-U20) -> 0 | W12: =IF(V12=0,0,(V12*((LOG(V12))/LOG(2)))) -> 0 | Y12: =N12 -> 1212 | Z12: =COUNTIF(L19:L30,Y12) -> 0 | AA12: =Z12/(AB4-Z20) -> 0 | AB12: =IF(AA12=0,0,(AA12*((LOG(AA12))/LOG(2)))) -> 0 | AD12: =N12 -> 1212 | AE12: =COUNTIF(L31:L41,AD12) -> 0 | AF12: =AE12/(AG4-AE20) -> 0 | AG12: =IF(AF12=0,0,(AF12*((LOG(AF12))/LOG(2)))) -> 0 | AI12: =N12 -> 1212 | AJ12: =COUNTIF(L42:L53,AI12) -> 0 | AK12: =AJ12/(AL4-AJ20) -> 0 | AL12: =IF(AK12=0,0,(AK12*((LOG(AK12))/LOG(2)))) -> 0 | AN12: =N12 -> 1212 | AO12: =COUNTIF(L54:L65,AN12) -> 0 | AP12: =AO12/(AQ4-AO20) -> 0 | AQ12: =IF(AP12=0,0,(AP12*((LOG(AP12))/LOG(2)))) -> 0 | AS12: =N12 -> 1212 | AT12: =COUNTIF(L66:L77,AS12) -> 0 | AU12: =AT12/(AV4-AT20) -> 0 | AV12: =IF(AU12=0,0,(AU12*((LOG(AU12))/LOG(2)))) -> 0
A13: 12 | B13: 760 | C13: 14 | D13: 766 | E13: 13 | F13: 771 | G13: 14 | H13: 776 | K13: 0 | L13: 1111 | N13: 1221 | O13: =COUNTIF($L$7:$L$500,N13) -> 0 | P13: =O13/$Q$4 -> 0 | Q13: =IF(P13=0,0,(P13*((LOG(P13))/LOG(2)))) -> 0 | T13: =N13 -> 1221 | U13: =COUNTIF(L7:L18,T13) -> 0 | V13: =U13/(W4-U20) -> 0 | W13: =IF(V13=0,0,(V13*((LOG(V13))/LOG(2)))) -> 0 | Y13: =N13 -> 1221 | Z13: =COUNTIF(L19:L30,Y13) -> 0 | AA13: =Z13/(AB4-Z20) -> 0 | AB13: =IF(AA13=0,0,(AA13*((LOG(AA13))/LOG(2)))) -> 0 | AD13: =N13 -> 1221 | AE13: =COUNTIF(L31:L41,AD13) -> 0 | AF13: =AE13/(AG4-AE20) -> 0 | AG13: =IF(AF13=0,0,(AF13*((LOG(AF13))/LOG(2)))) -> 0 | AI13: =N13 -> 1221 | AJ13: =COUNTIF(L42:L53,AI13) -> 0 | AK13: =AJ13/(AL4-AJ20) -> 0 | AL13: =IF(AK13=0,0,(AK13*((LOG(AK13))/LOG(2)))) -> 0 | AN13: =N13 -> 1221 | AO13: =COUNTIF(L54:L65,AN13) -> 0 | AP13: =AO13/(AQ4-AO20) -> 0 | AQ13: =IF(AP13=0,0,(AP13*((LOG(AP13))/LOG(2)))) -> 0 | AS13: =N13 -> 1221 | AT13: =COUNTIF(L66:L77,AS13) -> 0 | AU13: =AT13/(AV4-AT20) -> 0 | AV13: =IF(AU13=0,0,(AU13*((LOG(AU13))/LOG(2)))) -> 0
A14: 12 | B14: 882 | C14: 14 | D14: 887 | E14: 13 | F14: 892 | G14: 14 | H14: 897 | K14: 0 | L14: 1111 | N14: 1222 | O14: =COUNTIF($L$7:$L$500,N14) -> 3 | P14: =O14/$Q$4 -> 0.04225352113 | Q14: =IF(P14=0,0,(P14*((LOG(P14))/LOG(2)))) -> -0.1928782233 | T14: =N14 -> 1222 | U14: =COUNTIF(L7:L18,T14) -> 0 | V14: =U14/(W4-U20) -> 0 | W14: =IF(V14=0,0,(V14*((LOG(V14))/LOG(2)))) -> 0 | Y14: =N14 -> 1222 | Z14: =COUNTIF(L19:L30,Y14) -> 3 | AA14: =Z14/(AB4-Z20) -> 0.25 | AB14: =IF(AA14=0,0,(AA14*((LOG(AA14))/LOG(2)))) -> -0.5 | AD14: =N14 -> 1222 | AE14: =COUNTIF(L31:L41,AD14) -> 0 | AF14: =AE14/(AG4-AE20) -> 0 | AG14: =IF(AF14=0,0,(AF14*((LOG(AF14))/LOG(2)))) -> 0 | AI14: =N14 -> 1222 | AJ14: =COUNTIF(L42:L53,AI14) -> 0 | AK14: =AJ14/(AL4-AJ20) -> 0 | AL14: =IF(AK14=0,0,(AK14*((LOG(AK14))/LOG(2)))) -> 0 | AN14: =N14 -> 1222 | AO14: =COUNTIF(L54:L65,AN14) -> 0 | AP14: =AO14/(AQ4-AO20) -> 0 | AQ14: =IF(AP14=0,0,(AP14*((LOG(AP14))/LOG(2)))) -> 0 | AS14: =N14 -> 1222 | AT14: =COUNTIF(L66:L77,AS14) -> 0 | AU14: =AT14/(AV4-AT20) -> 0 | AV14: =IF(AU14=0,0,(AU14*((LOG(AU14))/LOG(2)))) -> 0
A15: 21 | B15: 1006 | C15: 21 | D15: 1011 | E15: 22 | F15: 1017 | G15: 23 | H15: 1031 | K15: 0 | L15: 2222 | N15: 2111 | O15: =COUNTIF($L$7:$L$500,N15) -> 0 | P15: =O15/$Q$4 -> 0 | Q15: =IF(P15=0,0,(P15*((LOG(P15))/LOG(2)))) -> 0 | T15: =N15 -> 2111 | U15: =COUNTIF(L7:L18,T15) -> 0 | V15: =U15/(W4-U20) -> 0 | W15: =IF(V15=0,0,(V15*((LOG(V15))/LOG(2)))) -> 0 | Y15: =N15 -> 2111 | Z15: =COUNTIF(L19:L30,Y15) -> 0 | AA15: =Z15/(AB4-Z20) -> 0 | AB15: =IF(AA15=0,0,(AA15*((LOG(AA15))/LOG(2)))) -> 0 | AD15: =N15 -> 2111 | AE15: =COUNTIF(L31:L41,AD15) -> 0 | AF15: =AE15/(AG4-AE20) -> 0 | AG15: =IF(AF15=0,0,(AF15*((LOG(AF15))/LOG(2)))) -> 0 | AI15: =N15 -> 2111 | AJ15: =COUNTIF(L42:L53,AI15) -> 0 | AK15: =AJ15/(AL4-AJ20) -> 0 | AL15: =IF(AK15=0,0,(AK15*((LOG(AK15))/LOG(2)))) -> 0 | AN15: =N15 -> 2111 | AO15: =COUNTIF(L54:L65,AN15) -> 0 | AP15: =AO15/(AQ4-AO20) -> 0 | AQ15: =IF(AP15=0,0,(AP15*((LOG(AP15))/LOG(2)))) -> 0 | AS15: =N15 -> 2111 | AT15: =COUNTIF(L66:L77,AS15) -> 0 | AU15: =AT15/(AV4-AT20) -> 0 | AV15: =IF(AU15=0,0,(AU15*((LOG(AU15))/LOG(2)))) -> 0
A16: 12 | B16: 1135 | C16: 14 | D16: 1140 | E16: 13 | F16: 1145 | G16: 14 | H16: 1150 | K16: 0 | L16: 1111 | N16: 2112 | O16: =COUNTIF($L$7:$L$500,N16) -> 0 | P16: =O16/$Q$4 -> 0 | Q16: =IF(P16=0,0,(P16*((LOG(P16))/LOG(2)))) -> 0 | T16: =N16 -> 2112 | U16: =COUNTIF(L7:L18,T16) -> 0 | V16: =U16/(W4-U20) -> 0 | W16: =IF(V16=0,0,(V16*((LOG(V16))/LOG(2)))) -> 0 | Y16: =N16 -> 2112 | Z16: =COUNTIF(L19:L30,Y16) -> 0 | AA16: =Z16/(AB4-Z20) -> 0 | AB16: =IF(AA16=0,0,(AA16*((LOG(AA16))/LOG(2)))) -> 0 | AD16: =N16 -> 2112 | AE16: =COUNTIF(L31:L41,AD16) -> 0 | AF16: =AE16/(AG4-AE20) -> 0 | AG16: =IF(AF16=0,0,(AF16*((LOG(AF16))/LOG(2)))) -> 0 | AI16: =N16 -> 2112 | AJ16: =COUNTIF(L42:L53,AI16) -> 0 | AK16: =AJ16/(AL4-AJ20) -> 0 | AL16: =IF(AK16=0,0,(AK16*((LOG(AK16))/LOG(2)))) -> 0 | AN16: =N16 -> 2112 | AO16: =COUNTIF(L54:L65,AN16) -> 0 | AP16: =AO16/(AQ4-AO20) -> 0 | AQ16: =IF(AP16=0,0,(AP16*((LOG(AP16))/LOG(2)))) -> 0 | AS16: =N16 -> 2112 | AT16: =COUNTIF(L66:L77,AS16) -> 0 | AU16: =AT16/(AV4-AT20) -> 0 | AV16: =IF(AU16=0,0,(AU16*((LOG(AU16))/LOG(2)))) -> 0
A17: 12 | B17: 1256 | C17: 14 | D17: 1267 | E17: 13 | F17: 1273 | G17: 14 | H17: 1278 | K17: 0 | L17: 1111 | N17: 2121 | O17: =COUNTIF($L$7:$L$500,N17) -> 0 | P17: =O17/$Q$4 -> 0 | Q17: =IF(P17=0,0,(P17*((LOG(P17))/LOG(2)))) -> 0 | T17: =N17 -> 2121 | U17: =COUNTIF(L7:L18,T17) -> 0 | V17: =U17/(W4-U20) -> 0 | W17: =IF(V17=0,0,(V17*((LOG(V17))/LOG(2)))) -> 0 | Y17: =N17 -> 2121 | Z17: =COUNTIF(L19:L30,Y17) -> 0 | AA17: =Z17/(AB4-Z20) -> 0 | AB17: =IF(AA17=0,0,(AA17*((LOG(AA17))/LOG(2)))) -> 0 | AD17: =N17 -> 2121 | AE17: =COUNTIF(L31:L41,AD17) -> 0 | AF17: =AE17/(AG4-AE20) -> 0 | AG17: =IF(AF17=0,0,(AF17*((LOG(AF17))/LOG(2)))) -> 0 | AI17: =N17 -> 2121 | AJ17: =COUNTIF(L42:L53,AI17) -> 0 | AK17: =AJ17/(AL4-AJ20) -> 0 | AL17: =IF(AK17=0,0,(AK17*((LOG(AK17))/LOG(2)))) -> 0 | AN17: =N17 -> 2121 | AO17: =COUNTIF(L54:L65,AN17) -> 0 | AP17: =AO17/(AQ4-AO20) -> 0 | AQ17: =IF(AP17=0,0,(AP17*((LOG(AP17))/LOG(2)))) -> 0 | AS17: =N17 -> 2121 | AT17: =COUNTIF(L66:L77,AS17) -> 0 | AU17: =AT17/(AV4-AT20) -> 0 | AV17: =IF(AU17=0,0,(AU17*((LOG(AU17))/LOG(2)))) -> 0
A18: 12 | B18: 1391 | C18: 14 | D18: 1397 | E18: 13 | F18: 1411 | G18: 23 | H18: 1425 | K18: 0 | L18: 1112 | N18: 2122 | O18: =COUNTIF($L$7:$L$500,N18) -> 0 | P18: =O18/$Q$4 -> 0 | Q18: =IF(P18=0,0,(P18*((LOG(P18))/LOG(2)))) -> 0 | T18: =N18 -> 2122 | U18: =COUNTIF(L7:L18,T18) -> 0 | V18: =U18/(W4-U20) -> 0 | W18: =IF(V18=0,0,(V18*((LOG(V18))/LOG(2)))) -> 0 | Y18: =N18 -> 2122 | Z18: =COUNTIF(L19:L30,Y18) -> 0 | AA18: =Z18/(AB4-Z20) -> 0 | AB18: =IF(AA18=0,0,(AA18*((LOG(AA18))/LOG(2)))) -> 0 | AD18: =N18 -> 2122 | AE18: =COUNTIF(L31:L41,AD18) -> 0 | AF18: =AE18/(AG4-AE20) -> 0 | AG18: =IF(AF18=0,0,(AF18*((LOG(AF18))/LOG(2)))) -> 0 | AI18: =N18 -> 2122 | AJ18: =COUNTIF(L42:L53,AI18) -> 0 | AK18: =AJ18/(AL4-AJ20) -> 0 | AL18: =IF(AK18=0,0,(AK18*((LOG(AK18))/LOG(2)))) -> 0 | AN18: =N18 -> 2122 | AO18: =COUNTIF(L54:L65,AN18) -> 0 | AP18: =AO18/(AQ4-AO20) -> 0 | AQ18: =IF(AP18=0,0,(AP18*((LOG(AP18))/LOG(2)))) -> 0 | AS18: =N18 -> 2122 | AT18: =COUNTIF(L66:L77,AS18) -> 0 | AU18: =AT18/(AV4-AT20) -> 0 | AV18: =IF(AU18=0,0,(AU18*((LOG(AU18))/LOG(2)))) -> 0
A19: 12 | B19: 1524 | C19: 14 | D19: 1529 | E19: 13 | F19: 1533 | G19: 14 | H19: 1539 | K19: 0 | L19: 1111 | N19: 2211 | O19: =COUNTIF($L$7:$L$500,N19) -> 0 | P19: =O19/$Q$4 -> 0 | Q19: =IF(P19=0,0,(P19*((LOG(P19))/LOG(2)))) -> 0 | T19: =N19 -> 2211 | U19: =COUNTIF(L7:L18,T19) -> 0 | V19: =U19/(W4-U20) -> 0 | W19: =IF(V19=0,0,(V19*((LOG(V19))/LOG(2)))) -> 0 | Y19: =N19 -> 2211 | Z19: =COUNTIF(L19:L30,Y19) -> 0 | AA19: =Z19/(AB4-Z20) -> 0 | AB19: =IF(AA19=0,0,(AA19*((LOG(AA19))/LOG(2)))) -> 0 | AD19: =N19 -> 2211 | AE19: =COUNTIF(L31:L41,AD19) -> 0 | AF19: =AE19/(AG4-AE20) -> 0 | AG19: =IF(AF19=0,0,(AF19*((LOG(AF19))/LOG(2)))) -> 0 | AI19: =N19 -> 2211 | AJ19: =COUNTIF(L42:L53,AI19) -> 0 | AK19: =AJ19/(AL4-AJ20) -> 0 | AL19: =IF(AK19=0,0,(AK19*((LOG(AK19))/LOG(2)))) -> 0 | AN19: =N19 -> 2211 | AO19: =COUNTIF(L54:L65,AN19) -> 0 | AP19: =AO19/(AQ4-AO20) -> 0 | AQ19: =IF(AP19=0,0,(AP19*((LOG(AP19))/LOG(2)))) -> 0 | AS19: =N19 -> 2211 | AT19: =COUNTIF(L66:L77,AS19) -> 0 | AU19: =AT19/(AV4-AT20) -> 0 | AV19: =IF(AU19=0,0,(AU19*((LOG(AU19))/LOG(2)))) -> 0
A20: 12 | B20: 1645 | C20: 14 | D20: 1650 | E20: 13 | F20: 1655 | G20: 14 | H20: 1661 | K20: 0 | L20: 1111 | N20: 2212 | O20: =COUNTIF($L$7:$L$500,N20) -> 0 | P20: =O20/$Q$4 -> 0 | Q20: =IF(P20=0,0,(P20*((LOG(P20))/LOG(2)))) -> 0 | T20: =N20 -> 2212 | U20: =COUNTIF(L7:L18,T20) -> 0 | Y20: =N20 -> 2212 | Z20: =COUNTIF(L19:L30,Y20) -> 0 | AD20: =N20 -> 2212 | AE20: =COUNTIF(L31:L41,AD20) -> 0 | AI20: =N20 -> 2212 | AJ20: =COUNTIF(L42:L53,AI20) -> 0 | AN20: =N20 -> 2212 | AO20: =COUNTIF(L54:L65,AN20) -> 0 | AS20: =N20 -> 2212 | AT20: =COUNTIF(L66:L77,AS20) -> 0
A21: 12 | B21: 1908 | C21: 14 | D21: 1913 | E21: 13 | F21: 1918 | G21: 14 | H21: 1932 | K21: 0 | L21: 1111 | N21: 2221 | O21: =COUNTIF($L$7:$L$500,N21) -> 0 | P21: =O21/$Q$4 -> 0 | Q21: =IF(P21=0,0,(P21*((LOG(P21))/LOG(2)))) -> 0 | T21: =N21 -> 2221 | U21: =COUNTIF(L7:L18,T21) -> 0 | V21: =U21/(W4-U20) -> 0 | W21: =IF(V21=0,0,(V21*((LOG(V21))/LOG(2)))) -> 0 | Y21: =N21 -> 2221 | Z21: =COUNTIF(L19:L30,Y21) -> 0 | AA21: =Z21/(AB4-Z20) -> 0 | AB21: =IF(AA21=0,0,(AA21*((LOG(AA21))/LOG(2)))) -> 0 | AD21: =N21 -> 2221 | AE21: =COUNTIF(L31:L41,AD21) -> 0 | AF21: =AE21/(AG4-AE20) -> 0 | AG21: =IF(AF21=0,0,(AF21*((LOG(AF21))/LOG(2)))) -> 0 | AI21: =N21 -> 2221 | AJ21: =COUNTIF(L42:L53,AI21) -> 0 | AK21: =AJ21/(AL4-AJ20) -> 0 | AL21: =IF(AK21=0,0,(AK21*((LOG(AK21))/LOG(2)))) -> 0 | AN21: =N21 -> 2221 | AO21: =COUNTIF(L54:L65,AN21) -> 0 | AP21: =AO21/(AQ4-AO20) -> 0 | AQ21: =IF(AP21=0,0,(AP21*((LOG(AP21))/LOG(2)))) -> 0 | AS21: =N21 -> 2221 | AT21: =COUNTIF(L66:L77,AS21) -> 0 | AU21: =AT21/(AV4-AT20) -> 0 | AV21: =IF(AU21=0,0,(AU21*((LOG(AU21))/LOG(2)))) -> 0
A22: 12 | B22: 2044 | C22: 14 | D22: 2049 | E22: 24 | F22: 2069 | G22: 23 | H22: 2077 | K22: 0 | L22: 1122 | N22: 2222 | O22: =COUNTIF($L$7:$L$500,N22) -> 7 | P22: =O22/$Q$4 -> 0.0985915493 | Q22: =IF(P22=0,0,(P22*((LOG(P22))/LOG(2)))) -> -0.3295316251 | T22: =N22 -> 2222 | U22: =COUNTIF(L7:L18,T22) -> 1 | V22: =U22/(W4-U20) -> 0.08333333333 | W22: =IF(V22=0,0,(V22*((LOG(V22))/LOG(2)))) -> -0.2987468751 | Y22: =N22 -> 2222 | Z22: =COUNTIF(L19:L30,Y22) -> 0 | AA22: =Z22/(AB4-Z20) -> 0 | AB22: =IF(AA22=0,0,(AA22*((LOG(AA22))/LOG(2)))) -> 0 | AD22: =N22 -> 2222 | AE22: =COUNTIF(L31:L41,AD22) -> 1 | AF22: =AE22/(AG4-AE20) -> 0.09090909091 | AG22: =IF(AF22=0,0,(AF22*((LOG(AF22))/LOG(2)))) -> -0.3144937835 | AI22: =N22 -> 2222 | AJ22: =COUNTIF(L42:L53,AI22) -> 2 | AK22: =AJ22/(AL4-AJ20) -> 0.1666666667 | AL22: =IF(AK22=0,0,(AK22*((LOG(AK22))/LOG(2)))) -> -0.4308270835 | AN22: =N22 -> 2222 | AO22: =COUNTIF(L54:L65,AN22) -> 1 | AP22: =AO22/(AQ4-AO20) -> 0.08333333333 | AQ22: =IF(AP22=0,0,(AP22*((LOG(AP22))/LOG(2)))) -> -0.2987468751 | AS22: =N22 -> 2222 | AT22: =COUNTIF(L66:L77,AS22) -> 2 | AU22: =AT22/(AV4-AT20) -> 0.1666666667 | AV22: =IF(AU22=0,0,(AU22*((LOG(AU22))/LOG(2)))) -> -0.4308270835
A23: 12 | B23: 2200 | C23: 23 | D23: 2212 | E23: 24 | F23: 2216 | G23: 23 | H23: 2221 | K23: 0 | L23: 1222 | P23: =SUM(P7:P22) -> 1 | Q23: =-SUM(Q7:Q22) -> 1.607080613 | V23: =SUM(V7:V22) -> 1 | W23: =-SUM(W7:W22) -> 1.040852083 | AA23: =SUM(AA7:AA22) -> 1 | AB23: =-SUM(AB7:AB22) -> 1.855388542 | AF23: =SUM(AF7:AF22) -> 1 | AG23: =-SUM(AG7:AG22) -> 1.322179346 | AK23: =SUM(AK7:AK22) -> 1 | AL23: =-SUM(AL7:AL22) -> 0.6500224216 | AP23: =SUM(AP7:AP22) -> 1 | AQ23: =-SUM(AQ7:AQ22) -> 1.418295834 | AU23: =SUM(AU7:AU22) -> 1 | AV23: =-SUM(AV7:AV22) -> 1.040852083
A24: 12 | B24: 2344 | C24: 23 | D24: 2359 | E24: 24 | F24: 2364 | G24: 23 | H24: 2369 | K24: 0 | L24: 1222 | P24: U= | Q24: =Q23/(LOG(Q4)/LOG(2)) -> 0.2613246662 | V24: U1= | W24: =W23/(LOG(W4)/LOG(2)) -> 0.290338346 | AA24: U2= | AB24: =AB23/(LOG(AB4)/LOG(2)) -> 0.5175475453 | AF24: U3= | AG24: =AG23/(LOG(AG4)/LOG(2)) -> 0.3821955429 | AK24: U4= | AL24: =AL23/(LOG(AL4)/LOG(2)) -> 0.181319169 | AP24: U5= | AQ24: =AQ23/(LOG(AQ4)/LOG(2)) -> 0.3956236178 | AU24: U6= | AV24: =AV23/(LOG(AV4)/LOG(2)) -> 0.290338346
A25: 12 | B25: 2476 | C25: 14 | D25: 2481 | E25: 24 | F25: 2496 | G25: 23 | H25: 2502 | K25: 0 | L25: 1122
A26: 12 | B26: 2839 | C26: 23 | D26: 2857 | E26: 24 | F26: 2864 | G26: 23 | H26: 2878 | K26: 0 | L26: 1222
A27: 12 | B27: 2994 | C27: 14 | D27: 3003 | E27: 24 | F27: 3016 | G27: 23 | H27: 3027 | K27: 0 | L27: 1122 | N27: Total Target Seq
A28: 12 | B28: 3134 | C28: 14 | D28: 3144 | E28: 24 | F28: 3159 | G28: 23 | H28: 3164 | K28: 0 | L28: 1122 | N28: =COUNTIF(L7:L77,G3) -> 0 | P28: 12 | Q28: 12 | R28: 11 | S28: 12 | T28: 12 | U28: 12
A29: 12 | B29: 3314 | C29: 14 | D29: 3320 | E29: 13 | F29: 3329 | G29: 23 | H29: 3344 | K29: 0 | L29: 1112 | P29: % of reinforcement given in 6 equal intervals based on number of trials
A30: 12 | B30: 3450 | C30: 14 | D30: 3456 | E30: 13 | F30: 3463 | G30: 14 | H30: 3473 | K30: 0 | L30: 1111 | P30: %_1 | Q30: %_2 | R30: %_3 | S30: %_4 | T30: %_5 | U30: %_6
A31: 12 | B31: 3578 | C31: 14 | D31: 3583 | E31: 13 | F31: 3592 | G31: 23 | H31: 3621 | K31: 0 | L31: 1112 | O31: target sequence | P31: =$G$3 -> 2212 | Q31: =$G$3 -> 2212 | R31: =$G$3 -> 2212 | S31: =$G$3 -> 2212 | T31: =$G$3 -> 2212 | U31: =$G$3 -> 2212
A32: 12 | B32: 3725 | C32: 14 | D32: 3730 | E32: 13 | F32: 3737 | G32: 23 | H32: 3758 | K32: 0 | L32: 1112 | O32: total reinforcement | P32: =U20 -> 0 | Q32: =Z20 -> 0 | R32: =AE20 -> 0 | S32: =AJ20 -> 0 | T32: =AO20 -> 0 | U32: =AT20 -> 0
A33: 12 | B33: 3900 | C33: 14 | D33: 3906 | E33: 13 | F33: 3915 | G33: 14 | H33: 3920 | K33: 0 | L33: 1111 | O33: % target
A34: 21 | B34: 4082 | C34: 21 | D34: 4089 | E34: 22 | F34: 4093 | G34: 23 | H34: 4100 | K34: 0 | L34: 2222 | O34: CCRF
A35: 12 | B35: 4251 | C35: 14 | D35: 4264 | E35: 13 | F35: 4270 | G35: 14 | H35: 4280 | K35: 0 | L35: 1111 | O35: % CCRf
A36: 12 | B36: 4423 | C36: 14 | D36: 4429 | E36: 13 | F36: 4436 | G36: 14 | H36: 4445 | K36: 0 | L36: 1111 | O36: average response rate | P36: =H18/P28 -> 118.75 | Q36: =(H30-H18)/Q28 -> 170.6666667 | R36: =(H41-H30)/R28 -> 159.1818182 | S36: =(H53-H41)/S28 -> 339.0833333 | T36: =(H65-H53)/T28 -> 133.0833333 | U36: =(H77-H65)/U28 -> 854.5
A37: 12 | B37: 4584 | C37: 14 | D37: 4589 | E37: 13 | F37: 4594 | G37: 14 | H37: 4600 | K37: 0 | L37: 1111
A38: 12 | B38: 4728 | C38: 14 | D38: 4736 | E38: 13 | F38: 4750 | G38: 23 | H38: 4770 | K38: 0 | L38: 1112
A39: 12 | B39: 4894 | C39: 14 | D39: 4900 | E39: 13 | F39: 4907 | G39: 14 | H39: 4913 | K39: 0 | L39: 1111
A40: 12 | B40: 5046 | C40: 14 | D40: 5057 | E40: 13 | F40: 5063 | G40: 14 | H40: 5069 | K40: 0 | L40: 1111
A41: 12 | B41: 5185 | C41: 14 | D41: 5192 | E41: 13 | F41: 5204 | G41: 23 | H41: 5224 | K41: 0 | L41: 1112
A42: 12 | B42: 5332 | C42: 14 | D42: 5341 | E42: 13 | F42: 5369 | G42: 14 | H42: 5381 | K42: 0 | L42: 1111
A43: 12 | B43: 5544 | C43: 14 | D43: 5554 | E43: 13 | F43: 5560 | G43: 14 | H43: 5565 | K43: 0 | L43: 1111
A44: 21 | B44: 5831 | C44: 21 | D44: 5836 | E44: 22 | F44: 5842 | G44: 23 | H44: 5848 | K44: 0 | L44: 2222
A45: 21 | B45: 6063 | C45: 21 | D45: 6074 | E45: 22 | F45: 6083 | G45: 23 | H45: 6091 | K45: 0 | L45: 2222
A46: 12 | B46: 6206 | C46: 14 | D46: 6212 | E46: 13 | F46: 6217 | G46: 14 | H46: 6223 | K46: 0 | L46: 1111
A47: 12 | B47: 6332 | C47: 14 | D47: 6339 | E47: 13 | F47: 6349 | G47: 14 | H47: 6359 | K47: 0 | L47: 1111
A48: 12 | B48: 7051 | C48: 14 | D48: 7057 | E48: 13 | F48: 7066 | G48: 14 | H48: 7081 | K48: 0 | L48: 1111
A49: 12 | B49: 7197 | C49: 14 | D49: 7211 | E49: 13 | F49: 7223 | G49: 14 | H49: 7231 | K49: 0 | L49: 1111
A50: 12 | B50: 7330 | C50: 14 | D50: 7335 | E50: 13 | F50: 7341 | G50: 14 | H50: 7346 | K50: 0 | L50: 1111
A51: 12 | B51: 7501 | C51: 14 | D51: 7532 | E51: 13 | F51: 7537 | G51: 14 | H51: 7546 | K51: 0 | L51: 1111
A52: 12 | B52: 9140 | C52: 14 | D52: 9146 | E52: 13 | F52: 9155 | G52: 14 | H52: 9161 | K52: 0 | L52: 1111
A53: 12 | B53: 9277 | C53: 14 | D53: 9282 | E53: 13 | F53: 9287 | G53: 14 | H53: 9293 | K53: 0 | L53: 1111
A54: 12 | B54: 9407 | C54: 14 | D54: 9413 | E54: 13 | F54: 9418 | G54: 14 | H54: 9423 | K54: 0 | L54: 1111
A55: 21 | B55: 9556 | C55: 21 | D55: 9561 | E55: 22 | F55: 9566 | G55: 23 | H55: 9571 | K55: 0 | L55: 2222
A56: 12 | B56: 9681 | C56: 14 | D56: 9686 | E56: 13 | F56: 9693 | G56: 23 | H56: 9706 | K56: 0 | L56: 1112
A57: 12 | B57: 9808 | C57: 14 | D57: 9815 | E57: 13 | F57: 9820 | G57: 14 | H57: 9825 | K57: 0 | L57: 1111
A58: 12 | B58: 9928 | C58: 14 | D58: 9934 | E58: 13 | F58: 9941 | G58: 14 | H58: 9945 | K58: 0 | L58: 1111
A59: 12 | B59: 10108 | C59: 14 | D59: 10113 | E59: 13 | F59: 10123 | G59: 23 | H59: 10145 | K59: 0 | L59: 1112
A60: 12 | B60: 10248 | C60: 14 | D60: 10253 | E60: 13 | F60: 10258 | G60: 14 | H60: 10265 | K60: 0 | L60: 1111
A61: 12 | B61: 10366 | C61: 14 | D61: 10371 | E61: 13 | F61: 10377 | G61: 14 | H61: 10383 | K61: 0 | L61: 1111
A62: 12 | B62: 10488 | C62: 14 | D62: 10493 | E62: 13 | F62: 10498 | G62: 14 | H62: 10503 | K62: 0 | L62: 1111
A63: 12 | B63: 10609 | C63: 14 | D63: 10614 | E63: 13 | F63: 10619 | G63: 14 | H63: 10625 | K63: 0 | L63: 1111
A64: 12 | B64: 10750 | C64: 14 | D64: 10757 | E64: 24 | F64: 10768 | G64: 23 | H64: 10775 | K64: 0 | L64: 1122
A65: 12 | B65: 10876 | C65: 14 | D65: 10880 | E65: 13 | F65: 10884 | G65: 14 | H65: 10890 | K65: 0 | L65: 1111
A66: 12 | B66: 10992 | C66: 14 | D66: 10997 | E66: 13 | F66: 11001 | G66: 14 | H66: 11006 | K66: 0 | L66: 1111
A67: 12 | B67: 11105 | C67: 14 | D67: 11110 | E67: 13 | F67: 11115 | G67: 14 | H67: 11120 | K67: 0 | L67: 1111
A68: 12 | B68: 11220 | C68: 14 | D68: 11225 | E68: 13 | F68: 11229 | G68: 14 | H68: 11237 | K68: 0 | L68: 1111
A69: 12 | B69: 11357 | C69: 14 | D69: 11365 | E69: 13 | F69: 11445 | G69: 14 | H69: 11454 | K69: 0 | L69: 1111
A70: 12 | B70: 14741 | C70: 14 | D70: 14747 | E70: 13 | F70: 14752 | G70: 14 | H70: 14767 | K70: 0 | L70: 1111
A71: 21 | B71: 17044 | C71: 21 | D71: 17050 | E71: 22 | F71: 17059 | G71: 23 | H71: 17064 | K71: 0 | L71: 2222
A72: 12 | B72: 17218 | C72: 14 | D72: 17242 | E72: 13 | F72: 17252 | G72: 14 | H72: 17259 | K72: 0 | L72: 1111
A73: 12 | B73: 18775 | C73: 14 | D73: 18791 | E73: 13 | F73: 18800 | G73: 14 | H73: 18806 | K73: 0 | L73: 1111
A74: 21 | B74: 20599 | C74: 21 | D74: 20606 | E74: 22 | F74: 20615 | G74: 23 | H74: 20620 | K74: 0 | L74: 2222
A75: 12 | B75: 20848 | C75: 14 | D75: 20853 | E75: 13 | F75: 20859 | G75: 14 | H75: 20866 | K75: 0 | L75: 1111
A76: 12 | B76: 20983 | C76: 14 | D76: 20989 | E76: 13 | F76: 20995 | G76: 14 | H76: 21006 | K76: 0 | L76: 1111
A77: 12 | B77: 21110 | C77: 14 | D77: 21120 | E77: 24 | F77: 21139 | G77: 23 | H77: 21144 | K77: 0 | L77: 1122

Sheet !M902940.102
A1: Report for:!M902940.102
A2: Date: | B2: <date>
A3: Hen: | B3: <hen> | F3: Correct Sequence | G3: =Start!J2 -> 2212 | P3: Total Sequences in Data | Q3: =4994-COUNTBLANK(L7:L5000) -> 26 | V3: Total Sequences in Block Data | W3: =COUNTA(L7:L10) -> 4 | AA3: Total Sequences in Block Data | AB3: =COUNTA(L11:L15) -> 5 | AF3: Total Sequences in Block Data | AG3: =COUNTA(L16:L19) -> 4 | AK3: Total Sequences in Block Data | AL3: =COUNTA(L20:L23) -> 4 | AP3: Total Sequences in Block Data | AQ3: =COUNTA(L24:L28) -> 5 | AU3: Total Sequences in Block Data | AV3: =COUNTA(L29:L32) -> 4
P4: Total Sequences in Summary | Q4: =SUM(O7:O22) -> 26 | V4: Total Sequences in Block Summary | W4: =SUM(U7:U22) -> 4 | AA4: Total Sequences in Block Summary | AB4: =SUM(Z7:Z22) -> 5 | AF4: Total Sequences in Block Summary | AG4: =SUM(AE7:AE22) -> 4 | AK4: Total Sequences in Block Summary | AL4: =SUM(AJ7:AJ22) -> 4 | AP4: Total Sequences in Block Summary | AQ4: =SUM(AO7:AO22) -> 5 | AU4: Total Sequences in Block Summary | AV4: =SUM(AT7:AT22) -> 4
T5: Block 1 | Y5: Block 2 | AD5: Block 3 | AI5: Block 4 | AN5: Block 5 | AS5: Block 6
A6: Sequence Component 1 | B6: Time 1 | C6: Sequence Component 2 | D6: Time 2 | E6: Sequence Component 3 | F6: Time 3 | G6: Sequence Component 4 | H6: Time 4 | I6: Sequence Component 5 | J6: Time 5 | K6: Correct? 0=No 1=Yes | L6: Sequence | N6: Frequency | P6: Relative Frequency | Q6: Variability | T6: Frequency | V6: Relative Frequency | W6: Variability | Y6: Frequency | AA6: Relative Frequency | AB6: Variability | AD6: Frequency | AF6: Relative Frequency | AG6: Variability | AI6: Frequency | AK6: Relative Frequency | AL6: Variability | AN6: Frequency | AP6: Relative Frequency | AQ6: Variability | AS6: Frequency | AU6: Relative Frequency | AV6: Variability
A7: 21 | B7: 116 | C7: 21 | D7: 122 | E7: 22 | F7: 193 | G7: 23 | H7: 216 | K7: 0 | L7: 2222 | N7: 1111 | O7: =COUNTIF($L$7:$L$500,N7) -> 10 | P7: =O7/$Q$4 -> 0.3846153846 | Q7: =IF(P7=0,0,(P7*((LOG(P7))/LOG(2)))) -> -0.5301967782 | T7: =N7 -> 1111 | U7: =COUNTIF(L7:L10,T7) -> 0 | V7: =U7/(W4-U20) -> 0 | W7: =IF(V7=0,0,(V7*((LOG(V7))/LOG(2)))) -> 0 | Y7: =N7 -> 1111 | Z7: =COUNTIF(L11:L15,Y7) -> 1 | AA7: =Z7/(AB4-Z20) -> 0.2 | AB7: =IF(AA7=0,0,(AA7*((LOG(AA7))/LOG(2)))) -> -0.464385619 | AD7: =N7 -> 1111 | AE7: =COUNTIF(L16:L19,AD7) -> 2 | AF7: =AE7/(AG4-AE20) -> 0.5 | AG7: =IF(AF7=0,0,(AF7*((LOG(AF7))/LOG(2)))) -> -0.5 | AI7: =N7 -> 1111 | AJ7: =COUNTIF(L20:L23,AI7) -> 2 | AK7: =AJ7/(AL4-AJ20) -> 0.5 | AL7: =IF(AK7=0,0,(AK7*((LOG(AK7))/LOG(2)))) -> -0.5 | AN7: =N7 -> 1111 | AO7: =COUNTIF(L24:L28,AN7) -> 3 | AP7: =AO7/(AQ4-AO20) -> 0.6 | AQ7: =IF(AP7=0,0,(AP7*((LOG(AP7))/LOG(2)))) -> -0.4421793565 | AS7: =N7 -> 1111 | AT7: =COUNTIF(L29:L32,AS7) -> 2 | AU7: =AT7/(AV4-AT20) -> 0.5 | AV7: =IF(AU7=0,0,(AU7*((LOG(AU7))/LOG(2)))) -> -0.5
A8: 12 | B8: 361 | C8: 14 | D8: 371 | E8: 24 | F8: 392 | G8: 23 | H8: 398 | K8: 0 | L8: 1122 | N8: 1112 | O8: =COUNTIF($L$7:$L$500,N8) -> 3 | P8: =O8/$Q$4 -> 0.1153846154 | Q8: =IF(P8=0,0,(P8*((LOG(P8))/LOG(2)))) -> -0.3594781405 | T8: =N8 -> 1112 | U8: =COUNTIF(L7:L10,T8) -> 0 | V8: =U8/(W4-U20) -> 0 | W8: =IF(V8=0,0,(V8*((LOG(V8))/LOG(2)))) -> 0 | Y8: =N8 -> 1112 | Z8: =COUNTIF(L11:L15,Y8) -> 0 | AA8: =Z8/(AB4-Z20) -> 0 | AB8: =IF(AA8=0,0,(AA8*((LOG(AA8))/LOG(2)))) -> 0 | AD8: =N8 -> 1112 | AE8: =COUNTIF(L16:L19,AD8) -> 1 | AF8: =AE8/(AG4-AE20) -> 0.25 | AG8: =IF(AF8=0,0,(AF8*((LOG(AF8))/LOG(2)))) -> -0.5 | AI8: =N8 -> 1112 | AJ8: =COUNTIF(L20:L23,AI8) -> 0 | AK8: =AJ8/(AL4-AJ20) -> 0 | AL8: =IF(AK8=0,0,(AK8*((LOG(AK8))/LOG(2)))) -> 0 | AN8: =N8 -> 1112 | AO8: =COUNTIF(L24:L28,AN8) -> 1 | AP8: =AO8/(AQ4-AO20) -> 0.2 | AQ8: =IF(AP8=0,0,(AP8*((LOG(AP8))/LOG(2)))) -> -0.464385619 | AS8: =N8 -> 1112 | AT8: =COUNTIF(L29:L32,AS8) -> 1 | AU8: =AT8/(AV4-AT20) -> 0.25 | AV8: =IF(AU8=0,0,(AU8*((LOG(AU8))/LOG(2)))) -> -0.5
A9: 12 | B9: 514 | C9: 23 | D9: 534 | E9: 24 | F9: 540 | G9: 23 | H9: 545 | K9: 0 | L9: 1222 | N9: 1121 | O9: =COUNTIF($L$7:$L$500,N9) -> 0 | P9: =O9/$Q$4 -> 0 | Q9: =IF(P9=0,0,(P9*((LOG(P9))/LOG(2)))) -> 0 | T9: =N9 -> 1121 | U9: =COUNTIF(L7:L10,T9) -> 0 | V9: =U9/(W4-U20) -> 0 | W9: =IF(V9=0,0,(V9*((LOG(V9))/LOG(2)))) -> 0 | Y9: =N9 -> 1121 | Z9: =COUNTIF(L11:L15,Y9) -> 0 | AA9: =Z9/(AB4-Z20) -> 0 | AB9: =IF(AA9=0,0,(AA9*((LOG(AA9))/LOG(2)))) -> 0 | AD9: =N9 -> 1121 | AE9: =COUNTIF(L16:L19,AD9) -> 0 | AF9: =AE9/(AG4-AE20) -> 0 | AG9: =IF(AF9=0,0,(AF9*((LOG(AF9))/LOG(2)))) -> 0 | AI9: =N9 -> 1121 | AJ9: =COUNTIF(L20:L23,AI9) -> 0 | AK9: =AJ9/(AL4-AJ20) -> 0 | AL9: =IF(AK9=0,0,(AK9*((LOG(AK9))/LOG(2)))) -> 0 | AN9: =N9 -> 1121 | AO9: =COUNTIF(L24:L28,AN9) -> 0 | AP9: =AO9/(AQ4-AO20) -> 0 | AQ9: =IF(AP9=0,0,(AP9*((LOG(AP9))/LOG(2)))) -> 0 | AS9: =N9 -> 1121 | AT9: =COUNTIF(L29:L32,AS9) -> 0 | AU9: =AT9/(AV4-AT20) -> 0 | AV9: =IF(AU9=0,0,(AU9*((LOG(AU9))/LOG(2)))) -> 0
A10: 12 | B10: 686 | C10: 14 | D10: 696 | E10: 24 | F10: 711 | G10: 23 | H10: 717 | K10: 0 | L10: 1122 | N10: 1122 | O10: =COUNTIF($L$7:$L$500,N10) -> 8 | P10: =O10/$Q$4 -> 0.3076923077 | Q10: =IF(P10=0,0,(P10*((LOG(P10))/LOG(2)))) -> -0.523212221 | T10: =N10 -> 1122 | U10: =COUNTIF(L7:L10,T10) -> 2 | V10: =U10/(W4-U20) -> 0.5 | W10: =IF(V10=0,0,(V10*((LOG(V10))/LOG(2)))) -> -0.5 | Y10: =N10 -> 1122 | Z10: =COUNTIF(L11:L15,Y10) -> 3 | AA10: =Z10/(AB4-Z20) -> 0.6 | AB10: =IF(AA10=0,0,(AA10*((LOG(AA10))/LOG(2)))) -> -0.4421793565 | AD10: =N10 -> 1122 | AE10: =COUNTIF(L16:L19,AD10) -> 1 | AF10: =AE10/(AG4-AE20) -> 0.25 | AG10: =IF(AF10=0,0,(AF10*((LOG(AF10))/LOG(2)))) -> -0.5 | AI10: =N10 -> 1122 | AJ10: =COUNTIF(L20:L23,AI10) -> 1 | AK10: =AJ10/(AL4-AJ20) -> 0.25 | AL10: =IF(AK10=0,0,(AK10*((LOG(AK10))/LOG(2)))) -> -0.5 | AN10: =N10 -> 1122 | AO10: =COUNTIF(L24:L28,AN10) -> 0 | AP10: =AO10/(AQ4-AO20) -> 0 | AQ10: =IF(AP10=0,0,(AP10*((LOG(AP10))/LOG(2)))) -> 0 | AS10: =N10 -> 1122 | AT10: =COUNTIF(L29:L32,AS10) -> 1 | AU10: =AT10/(AV4-AT20) -> 0.25 | AV10: =IF(AU10=0,0,(AU10*((LOG(AU10))/LOG(2)))) -> -0.5
A11: 21 | B11: 8283 | C11: 21 | D11: 8295 | E11: 22 | F11: 8309 | G11: 23 | H11: 8321 | K11: 0 | L11: 2222 | N11: 1211 | O11: =COUNTIF($L$7:$L$500,N11) -> 0 | P11: =O11/$Q$4 -> 0 | Q11: =IF(P11=0,0,(P11*((LOG(P11))/LOG(2)))) -> 0 | T11: =N11 -> 1211 | U11: =COUNTIF(L7:L10,T11) -> 0 | V11: =U11/(W4-U20) -> 0 | W11: =IF(V11=0,0,(V11*((LOG(V11))/LOG(2)))) -> 0 | Y11: =N11 -> 1211 | Z11: =COUNTIF(L11:L15,Y11) -> 0 | AA11: =Z11/(AB4-Z20) -> 0 | AB11: =IF(AA11=0,0,(AA11*((LOG(AA11))/LOG(2)))) -> 0 | AD11: =N11 -> 1211 | AE11: =COUNTIF(L16:L19,AD11) -> 0 | AF11: =AE11/(AG4-AE20) -> 0 | AG11: =IF(AF11=0,0,(AF11*((LOG(AF11))/LOG(2)))) -> 0 | AI11: =N11 -> 1211 | AJ11: =COUNTIF(L20:L23,AI11) -> 0 | AK11: =AJ11/(AL4-AJ20) -> 0 | AL11: =IF(AK11=0,0,(AK11*((LOG(AK11))/LOG(2)))) -> 0 | AN11: =N11 -> 1211 | AO11: =COUNTIF(L24:L28,AN11) -> 0 | AP11: =AO11/(AQ4-AO20) -> 0 | AQ11: =IF(AP11=0,0,(AP11*((LOG(AP11))/LOG(2)))) -> 0 | AS11: =N11 -> 1211 | AT11: =COUNTIF(L29:L32,AS11) -> 0 | AU11: =AT11/(AV4-AT20) -> 0 | AV11: =IF(AU11=0,0,(AU11*((LOG(AU11))/LOG(2)))) -> 0
A12: 12 | B12: 10830 | C12: 14 | D12: 10860 | E12: 24 | F12: 10881 | G12: 23 | H12: 10888 | K12: 0 | L12: 1122 | N12: 1212 | O12: =COUNTIF($L$7:$L$500,N12) -> 0 | P12: =O12/$Q$4 -> 0 | Q12: =IF(P12=0,0,(P12*((LOG(P12))/LOG(2)))) -> 0 | T12: =N12 -> 1212 | U12: =COUNTIF(L7:L10,T12) -> 0 | V12: =U12/(W4-U20) -> 0 | W12: =IF(V12=0,0,(V12*((LOG(V12))/LOG(2)))) -> 0 | Y12: =N12 -> 1212 | Z12: =COUNTIF(L11:L15,Y12) -> 0 | AA12: =Z12/(AB4-Z20) -> 0 | AB12: =IF(AA12=0,0,(AA12*((LOG(AA12))/LOG(2)))) -> 0 | AD12: =N12 -> 1212 | AE12: =COUNTIF(L16:L19,AD12) -> 0 | AF12: =AE12/(AG4-AE20) -> 0 | AG12: =IF(AF12=0,0,(AF12*((LOG(AF12))/LOG(2)))) -> 0 | AI12: =N12 -> 1212 | AJ12: =COUNTIF(L20:L23,AI12) -> 0 | AK12: =AJ12/(AL4-AJ20) -> 0 | AL12: =IF(AK12=0,0,(AK12*((LOG(AK12))/LOG(2)))) -> 0 | AN12: =N12 -> 1212 | AO12: =COUNTIF(L24:L28,AN12) -> 0 | AP12: =AO12/(AQ4-AO20) -> 0 | AQ12: =IF(AP12=0,0,(AP12*((LOG(AP12))/LOG(2)))) -> 0 | AS12: =N12 -> 1212 | AT12: =COUNTIF(L29:L32,AS12) -> 0 | AU12: =AT12/(AV4-AT20) -> 0 | AV12: =IF(AU12=0,0,(AU12*((LOG(AU12))/LOG(2)))) -> 0
A13: 12 | B13: 12319 | C13: 14 | D13: 12332 | E13: 13 | F13: 12359 | G13: 14 | H13: 12371 | K13: 0 | L13: 1111 | N13: 1221 | O13: =COUNTIF($L$7:$L$500,N13) -> 0 | P13: =O13/$Q$4 -> 0 | Q13: =IF(P13=0,0,(P13*((LOG(P13))/LOG(2)))) -> 0 | T13: =N13 -> 1221 | U13: =COUNTIF(L7:L10,T13) -> 0 | V13: =U13/(W4-U20) -> 0 | W13: =IF(V13=0,0,(V13*((LOG(V13))/LOG(2)))) -> 0 | Y13: =N13 -> 1221 | Z13: =COUNTIF(L11:L15,Y13) -> 0 | AA13: =Z13/(AB4-Z20) -> 0 | AB13: =IF(AA13=0,0,(AA13*((LOG(AA13))/LOG(2)))) -> 0 | AD13: =N13 -> 1221 | AE13: =COUNTIF(L16:L19,AD13) -> 0 | AF13: =AE13/(AG4-AE20) -> 0 | AG13: =IF(AF13=0,0,(AF13*((LOG(AF13))/LOG(2)))) -> 0 | AI13: =N13 -> 1221 | AJ13: =COUNTIF(L20:L23,AI13) -> 0 | AK13: =AJ13/(AL4-AJ20) -> 0 | AL13: =IF(AK13=0,0,(AK13*((LOG(AK13))/LOG(2)))) -> 0 | AN13: =N13 -> 1221 | AO13: =COUNTIF(L24:L28,AN13) -> 0 | AP13: =AO13/(AQ4-AO20) -> 0 | AQ13: =IF(AP13=0,0,(AP13*((LOG(AP13))/LOG(2)))) -> 0 | AS13: =N13 -> 1221 | AT13: =COUNTIF(L29:L32,AS13) -> 0 | AU13: =AT13/(AV4-AT20) -> 0 | AV13: =IF(AU13=0,0,(AU13*((LOG(AU13))/LOG(2)))) -> 0
A14: 12 | B14: 12500 | C14: 14 | D14: 12506 | E14: 24 | F14: 12524 | G14: 23 | H14: 12530 | K14: 0 | L14: 1122 | N14: 1222 | O14: =COUNTIF($L$7:$L$500,N14) -> 2 | P14: =O14/$Q$4 -> 0.07692307692 | Q14: =IF(P14=0,0,(P14*((LOG(P14))/LOG(2)))) -> -0.2846492091 | T14: =N14 -> 1222 | U14: =COUNTIF(L7:L10,T14) -> 1 | V14: =U14/(W4-U20) -> 0.25 | W14: =IF(V14=0,0,(V14*((LOG(V14))/LOG(2)))) -> -0.5 | Y14: =N14 -> 1222 | Z14: =COUNTIF(L11:L15,Y14) -> 0 | AA14: =Z14/(AB4-Z20) -> 0 | AB14: =IF(AA14=0,0,(AA14*((LOG(AA14))/LOG(2)))) -> 0 | AD14: =N14 -> 1222 | AE14: =COUNTIF(L16:L19,AD14) -> 0 | AF14: =AE14/(AG4-AE20) -> 0 | AG14: =IF(AF14=0,0,(AF14*((LOG(AF14))/LOG(2)))) -> 0 | AI14: =N14 -> 1222 | AJ14: =COUNTIF(L20:L23,AI14) -> 1 | AK14: =AJ14/(AL4-AJ20) -> 0.25 | AL14: =IF(AK14=0,0,(AK14*((LOG(AK14))/LOG(2)))) -> -0.5 | AN14: =N14 -> 1222 | AO14: =COUNTIF(L24:L28,AN14) -> 0 | AP14: =AO14/(AQ4-AO20) -> 0 | AQ14: =IF(AP14=0,0,(AP14*((LOG(AP14))/LOG(2)))) -> 0 | AS14: =N14 -> 1222 | AT14: =COUNTIF(L29:L32,AS14) -> 0 | AU14: =AT14/(AV4-AT20) -> 0 | AV14: =IF(AU14=0,0,(AU14*((LOG(AU14))/LOG(2)))) -> 0
A15: 12 | B15: 12644 | C15: 14 | D15: 12653 | E15: 24 | F15: 12668 | G15: 23 | H15: 12673 | K15: 0 | L15: 1122 | N15: 2111 | O15: =COUNTIF($L$7:$L$500,N15) -> 0 | P15: =O15/$Q$4 -> 0 | Q15: =IF(P15=0,0,(P15*((LOG(P15))/LOG(2)))) -> 0 | T15: =N15 -> 2111 | U15: =COUNTIF(L7:L10,T15) -> 0 | V15: =U15/(W4-U20) -> 0 | W15: =IF(V15=0,0,(V15*((LOG(V15))/LOG(2)))) -> 0 | Y15: =N15 -> 2111 | Z15: =COUNTIF(L11:L15,Y15) -> 0 | AA15: =Z15/(AB4-Z20) -> 0 | AB15: =IF(AA15=0,0,(AA15*((LOG(AA15))/LOG(2)))) -> 0 | AD15: =N15 -> 2111 | AE15: =COUNTIF(L16:L19,AD15) -> 0 | AF15: =AE15/(AG4-AE20) -> 0 | AG15: =IF(AF15=0,0,(AF15*((LOG(AF15))/LOG(2)))) -> 0 | AI15: =N15 -> 2111 | AJ15: =COUNTIF(L20:L23,AI15) -> 0 | AK15: =AJ15/(AL4-AJ20) -> 0 | AL15: =IF(AK15=0,0,(AK15*((LOG(AK15))/LOG(2)))) -> 0 | AN15: =N15 -> 2111 | AO15: =COUNTIF(L24:L28,AN15) -> 0 | AP15: =AO15/(AQ4-AO20) -> 0 | AQ15: =IF(AP15=0,0,(AP15*((LOG(AP15))/LOG(2)))) -> 0 | AS15: =N15 -> 2111 | AT15: =COUNTIF(L29:L32,AS15) -> 0 | AU15: =AT15/(AV4-AT20) -> 0 | AV15: =IF(AU15=0,0,(AU15*((LOG(AU15))/LOG(2)))) -> 0
A16: 12 | B16: 12784 | C16: 14 | D16: 12797 | E16: 24 | F16: 12812 | G16: 23 | H16: 12817 | K16: 0 | L16: 1122 | N16: 2112 | O16: =COUNTIF($L$7:$L$500,N16) -> 0 | P16: =O16/$Q$4 -> 0 | Q16: =IF(P16=0,0,(P16*((LOG(P16))/LOG(2)))) -> 0 | T16: =N16 -> 2112 | U16: =COUNTIF(L7:L10,T16) -> 0 | V16: =U16/(W4-U20) -> 0 | W16: =IF(V16=0,0,(V16*((LOG(V16))/LOG(2)))) -> 0 | Y16: =N16 -> 2112 | Z16: =COUNTIF(L11:L15,Y16) -> 0 | AA16: =Z16/(AB4-Z20) -> 0 | AB16: =IF(AA16=0,0,(AA16*((LOG(AA16))/LOG(2)))) -> 0 | AD16: =N16 -> 2112 | AE16: =COUNTIF(L16:L19,AD16) -> 0 | AF16: =AE16/(AG4-AE20) -> 0 | AG16: =IF(AF16=0,0,(AF16*((LOG(AF16))/LOG(2)))) -> 0 | AI16: =N16 -> 2112 | AJ16: =COUNTIF(L20:L23,AI16) -> 0 | AK16: =AJ16/(AL4-AJ20) -> 0 | AL16: =IF(AK16=0,0,(AK16*((LOG(AK16))/LOG(2)))) -> 0 | AN16: =N16 -> 2112 | AO16: =COUNTIF(L24:L28,AN16) -> 0 | AP16: =AO16/(AQ4-AO20) -> 0 | AQ16: =IF(AP16=0,0,(AP16*((LOG(AP16))/LOG(2)))) -> 0 | AS16: =N16 -> 2112 | AT16: =COUNTIF(L29:L32,AS16) -> 0 | AU16: =AT16/(AV4-AT20) -> 0 | AV16: =IF(AU16=0,0,(AU16*((LOG(AU16))/LOG(2)))) -> 0
A17: 12 | B17: 12920 | C17: 14 | D17: 12928 | E17: 13 | F17: 12934 | G17: 14 | H17: 12939 | K17: 0 | L17: 1111 | N17: 2121 | O17: =COUNTIF($L$7:$L$500,N17) -> 0 | P17: =O17/$Q$4 -> 0 | Q17: =IF(P17=0,0,(P17*((LOG(P17))/LOG(2)))) -> 0 | T17: =N17 -> 2121 | U17: =COUNTIF(L7:L10,T17) -> 0 | V17: =U17/(W4-U20) -> 0 | W17: =IF(V17=0,0,(V17*((LOG(V17))/LOG(2)))) -> 0 | Y17: =N17 -> 2121 | Z17: =COUNTIF(L11:L15,Y17) -> 0 | AA17: =Z17/(AB4-Z20) -> 0 | AB17: =IF(AA17=0,0,(AA17*((LOG(AA17))/LOG(2)))) -> 0 | AD17: =N17 -> 2121 | AE17: =COUNTIF(L16:L19,AD17) -> 0 | AF17: =AE17/(AG4-AE20) -> 0 | AG17: =IF(AF17=0,0,(AF17*((LOG(AF17))/LOG(2)))) -> 0 | AI17: =N17 -> 2121 | AJ17: =COUNTIF(L20:L23,AI17) -> 0 | AK17: =AJ17/(AL4-AJ20) -> 0 | AL17: =IF(AK17=0,0,(AK17*((LOG(AK17))/LOG(2)))) -> 0 | AN17: =N17 -> 2121 | AO17: =COUNTIF(L24:L28,AN17) -> 0 | AP17: =AO17/(AQ4-AO20) -> 0 | AQ17: =IF(AP17=0,0,(AP17*((LOG(AP17))/LOG(2)))) -> 0 | AS17: =N17 -> 2121 | AT17: =COUNTIF(L29:L32,AS17) -> 0 | AU17: =AT17/(AV4-AT20) -> 0 | AV17: =IF(AU17=0,0,(AU17*((LOG(AU17))/LOG(2)))) -> 0
A18: 12 | B18: 13039 | C18: 14 | D18: 13044 | E18: 13 | F18: 13050 | G18: 14 | H18: 13062 | K18: 0 | L18: 1111 | N18: 2122 | O18: =COUNTIF($L$7:$L$500,N18) -> 0 | P18: =O18/$Q$4 -> 0 | Q18: =IF(P18=0,0,(P18*((LOG(P18))/LOG(2)))) -> 0 | T18: =N18 -> 2122 | U18: =COUNTIF(L7:L10,T18) -> 0 | V18: =U18/(W4-U20) -> 0 | W18: =IF(V18=0,0,(V18*((LOG(V18))/LOG(2)))) -> 0 | Y18: =N18 -> 2122 | Z18: =COUNTIF(L11:L15,Y18) -> 0 | AA18: =Z18/(AB4-Z20) -> 0 | AB18: =IF(AA18=0,0,(AA18*((LOG(AA18))/LOG(2)))) -> 0 | AD18: =N18 -> 2122 | AE18: =COUNTIF(L16:L19,AD18) -> 0 | AF18: =AE18/(AG4-AE20) -> 0 | AG18: =IF(AF18=0,0,(AF18*((LOG(AF18))/LOG(2)))) -> 0 | AI18: =N18 -> 2122 | AJ18: =COUNTIF(L20:L23,AI18) -> 0 | AK18: =AJ18/(AL4-AJ20) -> 0 | AL18: =IF(AK18=0,0,(AK18*((LOG(AK18))/LOG(2)))) -> 0 | AN18: =N18 -> 2122 | AO18: =COUNTIF(L24:L28,AN18) -> 0 | AP18: =AO18/(AQ4-AO20) -> 0 | AQ18: =IF(AP18=0,0,(AP18*((LOG(AP18))/LOG(2)))) -> 0 | AS18: =N18 -> 2122 | AT18: =COUNTIF(L29:L32,AS18) -> 0 | AU18: =AT18/(AV4-AT20) -> 0 | AV18: =IF(AU18=0,0,(AU18*((LOG(AU18))/LOG(2)))) -> 0
A19: 12 | B19: 13165 | C19: 14 | D19: 13172 | E19: 13 | F19: 13181 | G19: 23 | H19: 13206 | K19: 0 | L19: 1112 | N19: 2211 | O19: =COUNTIF($L$7:$L$500,N19) -> 0 | P19: =O19/$Q$4 -> 0 | Q19: =IF(P19=0,0,(P19*((LOG(P19))/LOG(2)))) -> 0 | T19: =N19 -> 2211 | U19: =COUNTIF(L7:L10,T19) -> 0 | V19: =U19/(W4-U20) -> 0 | W19: =IF(V19=0,0,(V19*((LOG(V19))/LOG(2)))) -> 0 | Y19: =N19 -> 2211 | Z19: =COUNTIF(L11:L15,Y19) -> 0 | AA19: =Z19/(AB4-Z20) -> 0 | AB19: =IF(AA19=0,0,(AA19*((LOG(AA19))/LOG(2)))) -> 0 | AD19: =N19 -> 2211 | AE19: =COUNTIF(L16:L19,AD19) -> 0 | AF19: =AE19/(AG4-AE20) -> 0 | AG19: =IF(AF19=0,0,(AF19*((LOG(AF19))/LOG(2)))) -> 0 | AI19: =N19 -> 2211 | AJ19: =COUNTIF(L20:L23,AI19) -> 0 | AK19: =AJ19/(AL4-AJ20) -> 0 | AL19: =IF(AK19=0,0,(AK19*((LOG(AK19))/LOG(2)))) -> 0 | AN19: =N19 -> 2211 | AO19: =COUNTIF(L24:L28,AN19) -> 0 | AP19: =AO19/(AQ4-AO20) -> 0 | AQ19: =IF(AP19=0,0,(AP19*((LOG(AP19))/LOG(2)))) -> 0 | AS19: =N19 -> 2211 | AT19: =COUNTIF(L29:L32,AS19) -> 0 | AU19: =AT19/(AV4-AT20) -> 0 | AV19: =IF(AU19=0,0,(AU19*((LOG(AU19))/LOG(2)))) -> 0
A20: 12 | B20: 13316 | C20: 23 | D20: 13334 | E20: 24 | F20: 13339 | G20: 23 | H20: 13347 | K20: 0 | L20: 1222 | N20: 2212 | O20: =COUNTIF($L$7:$L$500,N20) -> 0 | P20: =O20/$Q$4 -> 0 | Q20: =IF(P20=0,0,(P20*((LOG(P20))/LOG(2)))) -> 0 | T20: =N20 -> 2212 | U20: =COUNTIF(L7:L10,T20) -> 0 | Y20: =N20 -> 2212 | Z20: =COUNTIF(L11:L15,Y20) -> 0 | AD20: =N20 -> 2212 | AE20: =COUNTIF(L16:L19,AD20) -> 0 | AI20: =N20 -> 2212 | AJ20: =COUNTIF(L20:L23,AI20) -> 0 | AN20: =N20 -> 2212 | AO20: =COUNTIF(L24:L28,AN20) -> 0 | AS20: =N20 -> 2212 | AT20: =COUNTIF(L29:L32,AS20) -> 0
A21: 12 | B21: 13449 | C21: 14 | D21: 13462 | E21: 13 | F21: 13473 | G21: 14 | H21: 13483 | K21: 0 | L21: 1111 | N21: 2221 | O21: =COUNTIF($L$7:$L$500,N21) -> 0 | P21: =O21/$Q$4 -> 0 | Q21: =IF(P21=0,0,(P21*((LOG(P21))/LOG(2)))) -> 0 | T21: =N21 -> 2221 | U21: =COUNTIF(L7:L10,T21) -> 0 | V21: =U21/(W4-U20) -> 0 | W21: =IF(V21=0,0,(V21*((LOG(V21))/LOG(2)))) -> 0 | Y21: =N21 -> 2221 | Z21: =COUNTIF(L11:L15,Y21) -> 0 | AA21: =Z21/(AB4-Z20) -> 0 | AB21: =IF(AA21=0,0,(AA21*((LOG(AA21))/LOG(2)))) -> 0 | AD21: =N21 -> 2221 | AE21: =COUNTIF(L16:L19,AD21) -> 0 | AF21: =AE21/(AG4-AE20) -> 0 | AG21: =IF(AF21=0,0,(AF21*((LOG(AF21))/LOG(2)))) -> 0 | AI21: =N21 -> 2221 | AJ21: =COUNTIF(L20:L23,AI21) -> 0 | AK21: =AJ21/(AL4-AJ20) -> 0 | AL21: =IF(AK21=0,0,(AK21*((LOG(AK21))/LOG(2)))) -> 0 | AN21: =N21 -> 2221 | AO21: =COUNTIF(L24:L28,AN21) -> 0 | AP21: =AO21/(AQ4-AO20) -> 0 | AQ21: =IF(AP21=0,0,(AP21*((LOG(AP21))/LOG(2)))) -> 0 | AS21: =N21 -> 2221 | AT21: =COUNTIF(L29:L32,AS21) -> 0 | AU21: =AT21/(AV4-AT20) -> 0 | AV21: =IF(AU21=0,0,(AU21*((LOG(AU21))/LOG(2)))) -> 0
A22: 12 | B22: 13590 | C22: 14 | D22: 13596 | E22: 24 | F22: 13618 | G22: 23 | H22: 13625 | K22: 0 | L22: 1122 | N22: 2222 | O22: =COUNTIF($L$7:$L$500,N22) -> 3 | P22: =O22/$Q$4 -> 0.1153846154 | Q22: =IF(P22=0,0,(P22*((LOG(P22))/LOG(2)))) -> -0.3594781405 | T22: =N22 -> 2222 | U22: =COUNTIF(L7:L10,T22) -> 1 | V22: =U22/(W4-U20) -> 0.25 | W22: =IF(V22=0,0,(V22*((LOG(V22))/LOG(2)))) -> -0.5 | Y22: =N22 -> 2222 | Z22: =COUNTIF(L11:L15,Y22) -> 1 | AA22: =Z22/(AB4-Z20) -> 0.2 | AB22: =IF(AA22=0,0,(AA22*((LOG(AA22))/LOG(2)))) -> -0.464385619 | AD22: =N22 -> 2222 | AE22: =COUNTIF(L16:L19,AD22) -> 0 | AF22: =AE22/(AG4-AE20) -> 0 | AG22: =IF(AF22=0,0,(AF22*((LOG(AF22))/LOG(2)))) -> 0 | AI22: =N22 -> 2222 | AJ22: =COUNTIF(L20:L23,AI22) -> 0 | AK22: =AJ22/(AL4-AJ20) -> 0 | AL22: =IF(AK22=0,0,(AK22*((LOG(AK22))/LOG(2)))) -> 0 | AN22: =N22 -> 2222 | AO22: =COUNTIF(L24:L28,AN22) -> 1 | AP22: =AO22/(AQ4-AO20) -> 0.2 | AQ22: =IF(AP22=0,0,(AP22*((LOG(AP22))/LOG(2)))) -> -0.464385619 | AS22: =N22 -> 2222 | AT22: =COUNTIF(L29:L32,AS22) -> 0 | AU22: =AT22/(AV4-AT20) -> 0 | AV22: =IF(AU22=0,0,(AU22*((LOG(AU22))/LOG(2)))) -> 0
A23: 12 | B23: 13727 | C23: 14 | D23: 13735 | E23: 13 | F23: 13743 | G23: 14 | H23: 13754 | K23: 0 | L23: 1111 | P23: =SUM(P7:P22) -> 1 | Q23: =-SUM(Q7:Q22) -> 2.057014489 | V23: =SUM(V7:V22) -> 1 | W23: =-SUM(W7:W22) -> 1.5 | AA23: =SUM(AA7:AA22) -> 1 | AB23: =-SUM(AB7:AB22) -> 1.370950594 | AF23: =SUM(AF7:AF22) -> 1 | AG23: =-SUM(AG7:AG22) -> 1.5 | AK23: =SUM(AK7:AK22) -> 1 | AL23: =-SUM(AL7:AL22) -> 1.5 | AP23: =SUM(AP7:AP22) -> 1 | AQ23: =-SUM(AQ7:AQ22) -> 1.370950594 | AU23: =SUM(AU7:AU22) -> 1 | AV23: =-SUM(AV7:AV22) -> 1.5
A24: 12 | B24: 13852 | C24: 14 | D24: 13857 | E24: 13 | F24: 13864 | G24: 23 | H24: 13889 | K24: 0 | L24: 1112 | P24: U= | Q24: =Q23/(LOG(Q4)/LOG(2)) -> 0.4376217147 | V24: U1= | W24: =W23/(LOG(W4)/LOG(2)) -> 0.75 | AA24: U2= | AB24: =AB23/(LOG(AB4)/LOG(2)) -> 0.5904362833 | AF24: U3= | AG24: =AG23/(LOG(AG4)/LOG(2)) -> 0.75 | AK24: U4= | AL24: =AL23/(LOG(AL4)/LOG(2)) -> 0.75 | AP24: U5= | AQ24: =AQ23/(LOG(AQ4)/LOG(2)) -> 0.5904362833 | AU24: U6= | AV24: =AV23/(LOG(AV4)/LOG(2)) -> 0.75
A25: 21 | B25: 14041 | C25: 21 | D25: 14051 | E25: 22 | F25: 14064 | G25: 23 | H25: 14087 | K25: 0 | L25: 2222
A26: 12 | B26: 14197 | C26: 14 | D26: 14251 | E26: 13 | F26: 14263 | G26: 14 | H26: 14278 | K26: 0 | L26: 1111
A27: 12 | B27: 15387 | C27: 14 | D27: 15410 | E27: 13 | F27: 15421 | G27: 14 | H27: 15430 | K27: 0 | L27: 1111 | N27: Total Target Seq
A28: 12 | B28: 19378 | C28: 14 | D28: 19399 | E28: 13 | F28: 19408 | G28: 14 | H28: 19415 | K28: 0 | L28: 1111 | N28: =COUNTIF(L7:L32,G3) -> 0 | P28: 4 | Q28: 5 | R28: 4 | S28: 4 | T28: 5 | U28: 4
A29: 12 | B29: 19575 | C29: 14 | D29: 19587 | E29: 13 | F29: 19597 | G29: 14 | H29: 19609 | K29: 0 | L29: 1111 | P29: % of reinforcement given in 6 equal intervals based on number of trials
A30: 12 | B30: 19742 | C30: 14 | D30: 19757 | E30: 24 | F30: 19785 | G30: 23 | H30: 19791 | K30: 0 | L30: 1122 | P30: %_1 | Q30: %_2 | R30: %_3 | S30: %_4 | T30: %_5 | U30: %_6
A31: 12 | B31: 19934 | C31: 14 | D31: 19944 | E31: 13 | F31: 19951 | G31: 14 | H31: 19960 | K31: 0 | L31: 1111 | O31: target sequence | P31: =$G$3 -> 2212 | Q31: =$G$3 -> 2212 | R31: =$G$3 -> 2212 | S31: =$G$3 -> 2212 | T31: =$G$3 -> 2212 | U31: =$G$3 -> 2212
A32: 12 | B32: 20143 | C32: 14 | D32: 20151 | E32: 13 | F32: 20161 | G32: 23 | H32: 20198 | K32: 0 | L32: 1112 | O32: total reinforcement | P32: =U20 -> 0 | Q32: =Z20 -> 0 | R32: =AE20 -> 0 | S32: =AJ20 -> 0 | T32: =AO20 -> 0 | U32: =AT20 -> 0
O33: % target
O34: CCRF
O35: % CCRf
O36: average response rate | P36: =H10/P28 -> 179.25 | Q36: =(H15-H10)/Q28 -> 2391.2 | R36: =(H19-H15)/R28 -> 133.25 | S36: =(H23-H19)/S28 -> 137 | T36: =(H28-H23)/T28 -> 1132.2 | U36: =(H32-H28)/U28 -> 195.75

Sheet !M903900.102
A1: Report for:!M903900.102
A2: Date: | B2: <date>
A3: Hen: | B3: <hen> | F3: Correct Sequence | G3: =Start!J2 -> 2212 | P3: Total Sequences in Data | Q3: =4994-COUNTBLANK(L7:L5000) -> 45 | V3: Total Sequences in Block Data | W3: =COUNTA(L7:L14) -> 8 | AA3: Total Sequences in Block Data | AB3: =COUNTA(L15:L21) -> 7 | AF3: Total Sequences in Block Data | AG3: =COUNTA(L22:L29) -> 8 | AK3: Total Sequences in Block Data | AL3: =COUNTA(L30:L36) -> 7 | AP3: Total Sequences in Block Data | AQ3: =COUNTA(L37:L44) -> 8 | AU3: Total Sequences in Block Data | AV3: =COUNTA(L45:L51) -> 7
P4: Total Sequences in Summary | Q4: =SUM(O7:O22) -> 45 | V4: Total Sequences in Block Summary | W4: =SUM(U7:U22) -> 8 | AA4: Total Sequences in Block Summary | AB4: =SUM(Z7:Z22) -> 7 | AF4: Total Sequences in Block Summary | AG4: =SUM(AE7:AE22) -> 8 | AK4: Total Sequences in Block Summary | AL4: =SUM(AJ7:AJ22) -> 7 | AP4: Total Sequences in Block Summary | AQ4: =SUM(AO7:AO22) -> 8 | AU4: Total Sequences in Block Summary | AV4: =SUM(AT7:AT22) -> 7
T5: Block 1 | Y5: Block 2 | AD5: Block 3 | AI5: Block 4 | AN5: Block 5 | AS5: Block 6
A6: Sequence Component 1 | B6: Time 1 | C6: Sequence Component 2 | D6: Time 2 | E6: Sequence Component 3 | F6: Time 3 | G6: Sequence Component 4 | H6: Time 4 | I6: Sequence Component 5 | J6: Time 5 | K6: Correct? 0=No 1=Yes | L6: Sequence | N6: Frequency | P6: Relative Frequency | Q6: Variability | T6: Frequency | V6: Relative Frequency | W6: Variability | Y6: Frequency | AA6: Relative Frequency | AB6: Variability | AD6: Frequency | AF6: Relative Frequency | AG6: Variability | AI6: Frequency | AK6: Relative Frequency | AL6: Variability | AN6: Frequency | AP6: Relative Frequency | AQ6: Variability | AS6: Frequency | AU6: Relative Frequency | AV6: Variability
A7: 12 | B7: 29 | C7: 14 | D7: 43 | E7: 13 | F7: 50 | G7: 23 | H7: 69 | K7: 0 | L7: 1112 | N7: 1111 | O7: =COUNTIF($L$7:$L$500,N7) -> 32 | P7: =O7/$Q$4 -> 0.7111111111 | Q7: =IF(P7=0,0,(P7*((LOG(P7))/LOG(2)))) -> -0.3497622018 | T7: =N7 -> 1111 | U7: =COUNTIF(L7:L14,T7) -> 3 | V7: =U7/(W4-U20) -> 0.375 | W7: =IF(V7=0,0,(V7*((LOG(V7))/LOG(2)))) -> -0.5306390622 | Y7: =N7 -> 1111 | Z7: =COUNTIF(L15:L21,Y7) -> 3 | AA7: =Z7/(AB4-Z20) -> 0.4285714286 | AB7: =IF(AA7=0,0,(AA7*((LOG(AA7))/LOG(2)))) -> -0.5238824663 | AD7: =N7 -> 1111 | AE7: =COUNTIF(L22:L29,AD7) -> 7 | AF7: =AE7/(AG4-AE20) -> 0.875 | AG7: =IF(AF7=0,0,(AF7*((LOG(AF7))/LOG(2)))) -> -0.1685644432 | AI7: =N7 -> 1111 | AJ7: =COUNTIF(L30:L36,AI7) -> 6 | AK7: =AJ7/(AL4-AJ20) -> 0.8571428571 | AL7: =IF(AK7=0,0,(AK7*((LOG(AK7))/LOG(2)))) -> -0.1906220754 | AN7: =N7 -> 1111 | AO7: =COUNTIF(L37:L44,AN7) -> 7 | AP7: =AO7/(AQ4-AO20) -> 0.875 | AQ7: =IF(AP7=0,0,(AP7*((LOG(AP7))/LOG(2)))) -> -0.1685644432 | AS7: =N7 -> 1111 | AT7: =COUNTIF(L45:L51,AS7) -> 6 | AU7: =AT7/(AV4-AT20) -> 0.8571428571 | AV7: =IF(AU7=0,0,(AU7*((LOG(AU7))/LOG(2)))) -> -0.1906220754
A8: 12 | B8: 173 | C8: 14 | D8: 185 | E8: 13 | F8: 192 | G8: 14 | H8: 197 | K8: 0 | L8: 1111 | N8: 1112 | O8: =COUNTIF($L$7:$L$500,N8) -> 9 | P8: =O8/$Q$4 -> 0.2 | Q8: =IF(P8=0,0,(P8*((LOG(P8))/LOG(2)))) -> -0.464385619 | T8: =N8 -> 1112 | U8: =COUNTIF(L7:L14,T8) -> 4 | V8: =U8/(W4-U20) -> 0.5 | W8: =IF(V8=0,0,(V8*((LOG(V8))/LOG(2)))) -> -0.5 | Y8: =N8 -> 1112 | Z8: =COUNTIF(L15:L21,Y8) -> 2 | AA8: =Z8/(AB4-Z20) -> 0.2857142857 | AB8: =IF(AA8=0,0,(AA8*((LOG(AA8))/LOG(2)))) -> -0.5163871206 | AD8: =N8 -> 1112 | AE8: =COUNTIF(L22:L29,AD8) -> 1 | AF8: =AE8/(AG4-AE20) -> 0.125 | AG8: =IF(AF8=0,0,(AF8*((LOG(AF8))/LOG(2)))) -> -0.375 | AI8: =N8 -> 1112 | AJ8: =COUNTIF(L30:L36,AI8) -> 1 | AK8: =AJ8/(AL4-AJ20) -> 0.1428571429 | AL8: =IF(AK8=0,0,(AK8*((LOG(AK8))/LOG(2)))) -> -0.4010507032 | AN8: =N8 -> 1112 | AO8: =COUNTIF(L37:L44,AN8) -> 0 | AP8: =AO8/(AQ4-AO20) -> 0 | AQ8: =IF(AP8=0,0,(AP8*((LOG(AP8))/LOG(2)))) -> 0 | AS8: =N8 -> 1112 | AT8: =COUNTIF(L45:L51,AS8) -> 1 | AU8: =AT8/(AV4-AT20) -> 0.1428571429 | AV8: =IF(AU8=0,0,(AU8*((LOG(AU8))/LOG(2)))) -> -0.4010507032
A9: 12 | B9: 297 | C9: 14 | D9: 302 | E9: 13 | F9: 307 | G9: 23 | H9: 326 | K9: 0 | L9: 1112 | N9: 1121 | O9: =COUNTIF($L$7:$L$500,N9) -> 0 | P9: =O9/$Q$4 -> 0 | Q9: =IF(P9=0,0,(P9*((LOG(P9))/LOG(2)))) -> 0 | T9: =N9 -> 1121 | U9: =COUNTIF(L7:L14,T9) -> 0 | V9: =U9/(W4-U20) -> 0 | W9: =IF(V9=0,0,(V9*((LOG(V9))/LOG(2)))) -> 0 | Y9: =N9 -> 1121 | Z9: =COUNTIF(L15:L21,Y9) -> 0 | AA9: =Z9/(AB4-Z20) -> 0 | AB9: =IF(AA9=0,0,(AA9*((LOG(AA9))/LOG(2)))) -> 0 | AD9: =N9 -> 1121 | AE9: =COUNTIF(L22:L29,AD9) -> 0 | AF9: =AE9/(AG4-AE20) -> 0 | AG9: =IF(AF9=0,0,(AF9*((LOG(AF9))/LOG(2)))) -> 0 | AI9: =N9 -> 1121 | AJ9: =COUNTIF(L30:L36,AI9) -> 0 | AK9: =AJ9/(AL4-AJ20) -> 0 | AL9: =IF(AK9=0,0,(AK9*((LOG(AK9))/LOG(2)))) -> 0 | AN9: =N9 -> 1121 | AO9: =COUNTIF(L37:L44,AN9) -> 0 | AP9: =AO9/(AQ4-AO20) -> 0 | AQ9: =IF(AP9=0,0,(AP9*((LOG(AP9))/LOG(2)))) -> 0 | AS9: =N9 -> 1121 | AT9: =COUNTIF(L45:L51,AS9) -> 0 | AU9: =AT9/(AV4-AT20) -> 0 | AV9: =IF(AU9=0,0,(AU9*((LOG(AU9))/LOG(2)))) -> 0
A10: 21 | B10: 484 | C10: 12 | D10: 519 | E10: 13 | F10: 526 | G10: 14 | H10: 569 | K10: 0 | L10: 2111 | N10: 1122 | O10: =COUNTIF($L$7:$L$500,N10) -> 1 | P10: =O10/$Q$4 -> 0.02222222222 | Q10: =IF(P10=0,0,(P10*((LOG(P10))/LOG(2)))) -> -0.1220411799 | T10: =N10 -> 1122 | U10: =COUNTIF(L7:L14,T10) -> 0 | V10: =U10/(W4-U20) -> 0 | W10: =IF(V10=0,0,(V10*((LOG(V10))/LOG(2)))) -> 0 | Y10: =N10 -> 1122 | Z10: =COUNTIF(L15:L21,Y10) -> 1 | AA10: =Z10/(AB4-Z20) -> 0.1428571429 | AB10: =IF(AA10=0,0,(AA10*((LOG(AA10))/LOG(2)))) -> -0.4010507032 | AD10: =N10 -> 1122 | AE10: =COUNTIF(L22:L29,AD10) -> 0 | AF10: =AE10/(AG4-AE20) -> 0 | AG10: =IF(AF10=0,0,(AF10*((LOG(AF10))/LOG(2)))) -> 0 | AI10: =N10 -> 1122 | AJ10: =COUNTIF(L30:L36,AI10) -> 0 | AK10: =AJ10/(AL4-AJ20) -> 0 | AL10: =IF(AK10=0,0,(AK10*((LOG(AK10))/LOG(2)))) -> 0 | AN10: =N10 -> 1122 | AO10: =COUNTIF(L37:L44,AN10) -> 0 | AP10: =AO10/(AQ4-AO20) -> 0 | AQ10: =IF(AP10=0,0,(AP10*((LOG(AP10))/LOG(2)))) -> 0 | AS10: =N10 -> 1122 | AT10: =COUNTIF(L45:L51,AS10) -> 0 | AU10: =AT10/(AV4-AT20) -> 0 | AV10: =IF(AU10=0,0,(AU10*((LOG(AU10))/LOG(2)))) -> 0
A11: 12 | B11: 664 | C11: 14 | D11: 670 | E11: 13 | F11: 691 | G11: 14 | H11: 697 | K11: 0 | L11: 1111 | N11: 1211 | O11: =COUNTIF($L$7:$L$500,N11) -> 0 | P11: =O11/$Q$4 -> 0 | Q11: =IF(P11=0,0,(P11*((LOG(P11))/LOG(2)))) -> 0 | T11: =N11 -> 1211 | U11: =COUNTIF(L7:L14,T11) -> 0 | V11: =U11/(W4-U20) -> 0 | W11: =IF(V11=0,0,(V11*((LOG(V11))/LOG(2)))) -> 0 | Y11: =N11 -> 1211 | Z11: =COUNTIF(L15:L21,Y11) -> 0 | AA11: =Z11/(AB4-Z20) -> 0 | AB11: =IF(AA11=0,0,(AA11*((LOG(AA11))/LOG(2)))) -> 0 | AD11: =N11 -> 1211 | AE11: =COUNTIF(L22:L29,AD11) -> 0 | AF11: =AE11/(AG4-AE20) -> 0 | AG11: =IF(AF11=0,0,(AF11*((LOG(AF11))/LOG(2)))) -> 0 | AI11: =N11 -> 1211 | AJ11: =COUNTIF(L30:L36,AI11) -> 0 | AK11: =AJ11/(AL4-AJ20) -> 0 | AL11: =IF(AK11=0,0,(AK11*((LOG(AK11))/LOG(2)))) -> 0 | AN11: =N11 -> 1211 | AO11: =COUNTIF(L37:L44,AN11) -> 0 | AP11: =AO11/(AQ4-AO20) -> 0 | AQ11: =IF(AP11=0,0,(AP11*((LOG(AP11))/LOG(2)))) -> 0 | AS11: =N11 -> 1211 | AT11: =COUNTIF(L45:L51,AS11) -> 0 | AU11: =AT11/(AV4-AT20) -> 0 | AV11: =IF(AU11=0,0,(AU11*((LOG(AU11))/LOG(2)))) -> 0
A12: 12 | B12: 791 | C12: 14 | D12: 797 | E12: 13 | F12: 802 | G12: 23 | H12: 831 | K12: 0 | L12: 1112 | N12: 1212 | O12: =COUNTIF($L$7:$L$500,N12) -> 0 | P12: =O12/$Q$4 -> 0 | Q12: =IF(P12=0,0,(P12*((LOG(P12))/LOG(2)))) -> 0 | T12: =N12 -> 1212 | U12: =COUNTIF(L7:L14,T12) -> 0 | V12: =U12/(W4-U20) -> 0 | W12: =IF(V12=0,0,(V12*((LOG(V12))/LOG(2)))) -> 0 | Y12: =N12 -> 1212 | Z12: =COUNTIF(L15:L21,Y12) -> 0 | AA12: =Z12/(AB4-Z20) -> 0 | AB12: =IF(AA12=0,0,(AA12*((LOG(AA12))/LOG(2)))) -> 0 | AD12: =N12 -> 1212 | AE12: =COUNTIF(L22:L29,AD12) -> 0 | AF12: =AE12/(AG4-AE20) -> 0 | AG12: =IF(AF12=0,0,(AF12*((LOG(AF12))/LOG(2)))) -> 0 | AI12: =N12 -> 1212 | AJ12: =COUNTIF(L30:L36,AI12) -> 0 | AK12: =AJ12/(AL4-AJ20) -> 0 | AL12: =IF(AK12=0,0,(AK12*((LOG(AK12))/LOG(2)))) -> 0 | AN12: =N12 -> 1212 | AO12: =COUNTIF(L37:L44,AN12) -> 0 | AP12: =AO12/(AQ4-AO20) -> 0 | AQ12: =IF(AP12=0,0,(AP12*((LOG(AP12))/LOG(2)))) -> 0 | AS12: =N12 -> 1212 | AT12: =COUNTIF(L45:L51,AS12) -> 0 | AU12: =AT12/(AV4-AT20) -> 0 | AV12: =IF(AU12=0,0,(AU12*((LOG(AU12))/LOG(2)))) -> 0
A13: 12 | B13: 933 | C13: 14 | D13: 940 | E13: 13 | F13: 946 | G13: 23 | H13: 961 | K13: 0 | L13: 1112 | N13: 1221 | O13: =COUNTIF($L$7:$L$500,N13) -> 0 | P13: =O13/$Q$4 -> 0 | Q13: =IF(P13=0,0,(P13*((LOG(P13))/LOG(2)))) -> 0 | T13: =N13 -> 1221 | U13: =COUNTIF(L7:L14,T13) -> 0 | V13: =U13/(W4-U20) -> 0 | W13: =IF(V13=0,0,(V13*((LOG(V13))/LOG(2)))) -> 0 | Y13: =N13 -> 1221 | Z13: =COUNTIF(L15:L21,Y13) -> 0 | AA13: =Z13/(AB4-Z20) -> 0 | AB13: =IF(AA13=0,0,(AA13*((LOG(AA13))/LOG(2)))) -> 0 | AD13: =N13 -> 1221 | AE13: =COUNTIF(L22:L29,AD13) -> 0 | AF13: =AE13/(AG4-AE20) -> 0 | AG13: =IF(AF13=0,0,(AF13*((LOG(AF13))/LOG(2)))) -> 0 | AI13: =N13 -> 1221 | AJ13: =COUNTIF(L30:L36,AI13) -> 0 | AK13: =AJ13/(AL4-AJ20) -> 0 | AL13: =IF(AK13=0,0,(AK13*((LOG(AK13))/LOG(2)))) -> 0 | AN13: =N13 -> 1221 | AO13: =COUNTIF(L37:L44,AN13) -> 0 | AP13: =AO13/(AQ4-AO20) -> 0 | AQ13: =IF(AP13=0,0,(AP13*((LOG(AP13))/LOG(2)))) -> 0 | AS13: =N13 -> 1221 | AT13: =COUNTIF(L45:L51,AS13) -> 0 | AU13: =AT13/(AV4-AT20) -> 0 | AV13: =IF(AU13=0,0,(AU13*((LOG(AU13))/LOG(2)))) -> 0
A14: 12 | B14: 1077 | C14: 14 | D14: 1086 | E14: 13 | F14: 1093 | G14: 14 | H14: 1099 | K14: 0 | L14: 1111 | N14: 1222 | O14: =COUNTIF($L$7:$L$500,N14) -> 1 | P14: =O14/$Q$4 -> 0.02222222222 | Q14: =IF(P14=0,0,(P14*((LOG(P14))/LOG(2)))) -> -0.1220411799 | T14: =N14 -> 1222 | U14: =COUNTIF(L7:L14,T14) -> 0 | V14: =U14/(W4-U20) -> 0 | W14: =IF(V14=0,0,(V14*((LOG(V14))/LOG(2)))) -> 0 | Y14: =N14 -> 1222 | Z14: =COUNTIF(L15:L21,Y14) -> 0 | AA14: =Z14/(AB4-Z20) -> 0 | AB14: =IF(AA14=0,0,(AA14*((LOG(AA14))/LOG(2)))) -> 0 | AD14: =N14 -> 1222 | AE14: =COUNTIF(L22:L29,AD14) -> 0 | AF14: =AE14/(AG4-AE20) -> 0 | AG14: =IF(AF14=0,0,(AF14*((LOG(AF14))/LOG(2)))) -> 0 | AI14: =N14 -> 1222 | AJ14: =COUNTIF(L30:L36,AI14) -> 0 | AK14: =AJ14/(AL4-AJ20) -> 0 | AL14: =IF(AK14=0,0,(AK14*((LOG(AK14))/LOG(2)))) -> 0 | AN14: =N14 -> 1222 | AO14: =COUNTIF(L37:L44,AN14) -> 1 | AP14: =AO14/(AQ4-AO20) -> 0.125 | AQ14: =IF(AP14=0,0,(AP14*((LOG(AP14))/LOG(2)))) -> -0.375 | AS14: =N14 -> 1222 | AT14: =COUNTIF(L45:L51,AS14) -> 0 | AU14: =AT14/(AV4-AT20) -> 0 | AV14: =IF(AU14=0,0,(AU14*((LOG(AU14))/LOG(2)))) -> 0
A15: 12 | B15: 1197 | C15: 14 | D15: 1203 | E15: 13 | F15: 1209 | G15: 23 | H15: 1229 | K15: 0 | L15: 1112 | N15: 2111 | O15: =COUNTIF($L$7:$L$500,N15) -> 1 | P15: =O15/$Q$4 -> 0.02222222222 | Q15: =IF(P15=0,0,(P15*((LOG(P15))/LOG(2)))) -> -0.1220411799 | T15: =N15 -> 2111 | U15: =COUNTIF(L7:L14,T15) -> 1 | V15: =U15/(W4-U20) -> 0.125 | W15: =IF(V15=0,0,(V15*((LOG(V15))/LOG(2)))) -> -0.375 | Y15: =N15 -> 2111 | Z15: =COUNTIF(L15:L21,Y15) -> 0 | AA15: =Z15/(AB4-Z20) -> 0 | AB15: =IF(AA15=0,0,(AA15*((LOG(AA15))/LOG(2)))) -> 0 | AD15: =N15 -> 2111 | AE15: =COUNTIF(L22:L29,AD15) -> 0 | AF15: =AE15/(AG4-AE20) -> 0 | AG15: =IF(AF15=0,0,(AF15*((LOG(AF15))/LOG(2)))) -> 0 | AI15: =N15 -> 2111 | AJ15: =COUNTIF(L30:L36,AI15) -> 0 | AK15: =AJ15/(AL4-AJ20) -> 0 | AL15: =IF(AK15=0,0,(AK15*((LOG(AK15))/LOG(2)))) -> 0 | AN15: =N15 -> 2111 | AO15: =COUNTIF(L37:L44,AN15) -> 0 | AP15: =AO15/(AQ4-AO20) -> 0 | AQ15: =IF(AP15=0,0,(AP15*((LOG(AP15))/LOG(2)))) -> 0 | AS15: =N15 -> 2111 | AT15: =COUNTIF(L45:L51,AS15) -> 0 | AU15: =AT15/(AV4-AT20) -> 0 | AV15: =IF(AU15=0,0,(AU15*((LOG(AU15))/LOG(2)))) -> 0
A16: 12 | B16: 1329 | C16: 14 | D16: 1335 | E16: 13 | F16: 1343 | G16: 14 | H16: 1353 | K16: 0 | L16: 1111 | N16: 2112 | O16: =COUNTIF($L$7:$L$500,N16) -> 0 | P16: =O16/$Q$4 -> 0 | Q16: =IF(P16=0,0,(P16*((LOG(P16))/LOG(2)))) -> 0 | T16: =N16 -> 2112 | U16: =COUNTIF(L7:L14,T16) -> 0 | V16: =U16/(W4-U20) -> 0 | W16: =IF(V16=0,0,(V16*((LOG(V16))/LOG(2)))) -> 0 | Y16: =N16 -> 2112 | Z16: =COUNTIF(L15:L21,Y16) -> 0 | AA16: =Z16/(AB4-Z20) -> 0 | AB16: =IF(AA16=0,0,(AA16*((LOG(AA16))/LOG(2)))) -> 0 | AD16: =N16 -> 2112 | AE16: =COUNTIF(L22:L29,AD16) -> 0 | AF16: =AE16/(AG4-AE20) -> 0 | AG16: =IF(AF16=0,0,(AF16*((LOG(AF16))/LOG(2)))) -> 0 | AI16: =N16 -> 2112 | AJ16: =COUNTIF(L30:L36,AI16) -> 0 | AK16: =AJ16/(AL4-AJ20) -> 0 | AL16: =IF(AK16=0,0,(AK16*((LOG(AK16))/LOG(2)))) -> 0 | AN16: =N16 -> 2112 | AO16: =COUNTIF(L37:L44,AN16) -> 0 | AP16: =AO16/(AQ4-AO20) -> 0 | AQ16: =IF(AP16=0,0,(AP16*((LOG(AP16))/LOG(2)))) -> 0 | AS16: =N16 -> 2112 | AT16: =COUNTIF(L45:L51,AS16) -> 0 | AU16: =AT16/(AV4-AT20) -> 0 | AV16: =IF(AU16=0,0,(AU16*((LOG(AU16))/LOG(2)))) -> 0
A17: 21 | B17: 1471 | C17: 21 | D17: 1480 | E17: 22 | F17: 1497 | G17: 23 | H17: 1503 | K17: 0 | L17: 2222 | N17: 2121 | O17: =COUNTIF($L$7:$L$500,N17) -> 0 | P17: =O17/$Q$4 -> 0 | Q17: =IF(P17=0,0,(P17*((LOG(P17))/LOG(2)))) -> 0 | T17: =N17 -> 2121 | U17: =COUNTIF(L7:L14,T17) -> 0 | V17: =U17/(W4-U20) -> 0 | W17: =IF(V17=0,0,(V17*((LOG(V17))/LOG(2)))) -> 0 | Y17: =N17 -> 2121 | Z17: =COUNTIF(L15:L21,Y17) -> 0 | AA17: =Z17/(AB4-Z20) -> 0 | AB17: =IF(AA17=0,0,(AA17*((LOG(AA17))/LOG(2)))) -> 0 | AD17: =N17 -> 2121 | AE17: =COUNTIF(L22:L29,AD17) -> 0 | AF17: =AE17/(AG4-AE20) -> 0 | AG17: =IF(AF17=0,0,(AF17*((LOG(AF17))/LOG(2)))) -> 0 | AI17: =N17 -> 2121 | AJ17: =COUNTIF(L30:L36,AI17) -> 0 | AK17: =AJ17/(AL4-AJ20) -> 0 | AL17: =IF(AK17=0,0,(AK17*((LOG(AK17))/LOG(2)))) -> 0 | AN17: =N17 -> 2121 | AO17: =COUNTIF(L37:L44,AN17) -> 0 | AP17: =AO17/(AQ4-AO20) -> 0 | AQ17: =IF(AP17=0,0,(AP17*((LOG(AP17))/LOG(2)))) -> 0 | AS17: =N17 -> 2121 | AT17: =COUNTIF(L45:L51,AS17) -> 0 | AU17: =AT17/(AV4-AT20) -> 0 | AV17: =IF(AU17=0,0,(AU17*((LOG(AU17))/LOG(2)))) -> 0
A18: 12 | B18: 1617 | C18: 14 | D18: 1632 | E18: 24 | F18: 1660 | G18: 23 | H18: 1669 | K18: 0 | L18: 1122 | N18: 2122 | O18: =COUNTIF($L$7:$L$500,N18) -> 0 | P18: =O18/$Q$4 -> 0 | Q18: =IF(P18=0,0,(P18*((LOG(P18))/LOG(2)))) -> 0 | T18: =N18 -> 2122 | U18: =COUNTIF(L7:L14,T18) -> 0 | V18: =U18/(W4-U20) -> 0 | W18: =IF(V18=0,0,(V18*((LOG(V18))/LOG(2)))) -> 0 | Y18: =N18 -> 2122 | Z18: =COUNTIF(L15:L21,Y18) -> 0 | AA18: =Z18/(AB4-Z20) -> 0 | AB18: =IF(AA18=0,0,(AA18*((LOG(AA18))/LOG(2)))) -> 0 | AD18: =N18 -> 2122 | AE18: =COUNTIF(L22:L29,AD18) -> 0 | AF18: =AE18/(AG4-AE20) -> 0 | AG18: =IF(AF18=0,0,(AF18*((LOG(AF18))/LOG(2)))) -> 0 | AI18: =N18 -> 2122 | AJ18: =COUNTIF(L30:L36,AI18) -> 0 | AK18: =AJ18/(AL4-AJ20) -> 0 | AL18: =IF(AK18=0,0,(AK18*((LOG(AK18))/LOG(2)))) -> 0 | AN18: =N18 -> 2122 | AO18: =COUNTIF(L37:L44,AN18) -> 0 | AP18: =AO18/(AQ4-AO20) -> 0 | AQ18: =IF(AP18=0,0,(AP18*((LOG(AP18))/LOG(2)))) -> 0 | AS18: =N18 -> 2122 | AT18: =COUNTIF(L45:L51,AS18) -> 0 | AU18: =AT18/(AV4-AT20) -> 0 | AV18: =IF(AU18=0,0,(AU18*((LOG(AU18))/LOG(2)))) -> 0
A19: 12 | B19: 1782 | C19: 14 | D19: 1790 | E19: 13 | F19: 1795 | G19: 23 | H19: 1810 | K19: 0 | L19: 1112 | N19: 2211 | O19: =COUNTIF($L$7:$L$500,N19) -> 0 | P19: =O19/$Q$4 -> 0 | Q19: =IF(P19=0,0,(P19*((LOG(P19))/LOG(2)))) -> 0 | T19: =N19 -> 2211 | U19: =COUNTIF(L7:L14,T19) -> 0 | V19: =U19/(W4-U20) -> 0 | W19: =IF(V19=0,0,(V19*((LOG(V19))/LOG(2)))) -> 0 | Y19: =N19 -> 2211 | Z19: =COUNTIF(L15:L21,Y19) -> 0 | AA19: =Z19/(AB4-Z20) -> 0 | AB19: =IF(AA19=0,0,(AA19*((LOG(AA19))/LOG(2)))) -> 0 | AD19: =N19 -> 2211 | AE19: =COUNTIF(L22:L29,AD19) -> 0 | AF19: =AE19/(AG4-AE20) -> 0 | AG19: =IF(AF19=0,0,(AF19*((LOG(AF19))/LOG(2)))) -> 0 | AI19: =N19 -> 2211 | AJ19: =COUNTIF(L30:L36,AI19) -> 0 | AK19: =AJ19/(AL4-AJ20) -> 0 | AL19: =IF(AK19=0,0,(AK19*((LOG(AK19))/LOG(2)))) -> 0 | AN19: =N19 -> 2211 | AO19: =COUNTIF(L37:L44,AN19) -> 0 | AP19: =AO19/(AQ4-AO20) -> 0 | AQ19: =IF(AP19=0,0,(AP19*((LOG(AP19))/LOG(2)))) -> 0 | AS19: =N19 -> 2211 | AT19: =COUNTIF(L45:L51,AS19) -> 0 | AU19: =AT19/(AV4-AT20) -> 0 | AV19: =IF(AU19=0,0,(AU19*((LOG(AU19))/LOG(2)))) -> 0
A20: 12 | B20: 1920 | C20: 14 | D20: 1932 | E20: 13 | F20: 1943 | G20: 14 | H20: 1948 | K20: 0 | L20: 1111 | N20: 2212 | O20: =COUNTIF($L$7:$L$500,N20) -> 0 | P20: =O20/$Q$4 -> 0 | Q20: =IF(P20=0,0,(P20*((LOG(P20))/LOG(2)))) -> 0 | T20: =N20 -> 2212 | U20: =COUNTIF(L7:L14,T20) -> 0 | Y20: =N20 -> 2212 | Z20: =COUNTIF(L15:L21,Y20) -> 0 | AD20: =N20 -> 2212 | AE20: =COUNTIF(L22:L29,AD20) -> 0 | AI20: =N20 -> 2212 | AJ20: =COUNTIF(L30:L36,AI20) -> 0 | AN20: =N20 -> 2212 | AO20: =COUNTIF(L37:L44,AN20) -> 0 | AS20: =N20 -> 2212 | AT20: =COUNTIF(L45:L51,AS20) -> 0
A21: 12 | B21: 2051 | C21: 14 | D21: 2057 | E21: 13 | F21: 2062 | G21: 14 | H21: 2073 | K21: 0 | L21: 1111 | N21: 2221 | O21: =COUNTIF($L$7:$L$500,N21) -> 0 | P21: =O21/$Q$4 -> 0 | Q21: =IF(P21=0,0,(P21*((LOG(P21))/LOG(2)))) -> 0 | T21: =N21 -> 2221 | U21: =COUNTIF(L7:L14,T21) -> 0 | V21: =U21/(W4-U20) -> 0 | W21: =IF(V21=0,0,(V21*((LOG(V21))/LOG(2)))) -> 0 | Y21: =N21 -> 2221 | Z21: =COUNTIF(L15:L21,Y21) -> 0 | AA21: =Z21/(AB4-Z20) -> 0 | AB21: =IF(AA21=0,0,(AA21*((LOG(AA21))/LOG(2)))) -> 0 | AD21: =N21 -> 2221 | AE21: =COUNTIF(L22:L29,AD21) -> 0 | AF21: =AE21/(AG4-AE20) -> 0 | AG21: =IF(AF21=0,0,(AF21*((LOG(AF21))/LOG(2)))) -> 0 | AI21: =N21 -> 2221 | AJ21: =COUNTIF(L30:L36,AI21) -> 0 | AK21: =AJ21/(AL4-AJ20) -> 0 | AL21: =IF(AK21=0,0,(AK21*((LOG(AK21))/LOG(2)))) -> 0 | AN21: =N21 -> 2221 | AO21: =COUNTIF(L37:L44,AN21) -> 0 | AP21: =AO21/(AQ4-AO20) -> 0 | AQ21: =IF(AP21=0,0,(AP21*((LOG(AP21))/LOG(2)))) -> 0 | AS21: =N21 -> 2221 | AT21: =COUNTIF(L45:L51,AS21) -> 0 | AU21: =AT21/(AV4-AT20) -> 0 | AV21: =IF(AU21=0,0,(AU21*((LOG(AU21))/LOG(2)))) -> 0
A22: 12 | B22: 2203 | C22: 14 | D22: 2209 | E22: 13 | F22: 2215 | G22: 14 | H22: 2225 | K22: 0 | L22: 1111 | N22: 2222 | O22: =COUNTIF($L$7:$L$500,N22) -> 1 | P22: =O22/$Q$4 -> 0.02222222222 | Q22: =IF(P22=0,0,(P22*((LOG(P22))/LOG(2)))) -> -0.1220411799 | T22: =N22 -> 2222 | U22: =COUNTIF(L7:L14,T22) -> 0 | V22: =U22/(W4-U20) -> 0 | W22: =IF(V22=0,0,(V22*((LOG(V22))/LOG(2)))) -> 0 | Y22: =N22 -> 2222 | Z22: =COUNTIF(L15:L21,Y22) -> 1 | AA22: =Z22/(AB4-Z20) -> 0.1428571429 | AB22: =IF(AA22=0,0,(AA22*((LOG(AA22))/LOG(2)))) -> -0.4010507032 | AD22: =N22 -> 2222 | AE22: =COUNTIF(L22:L29,AD22) -> 0 | AF22: =AE22/(AG4-AE20) -> 0 | AG22: =IF(AF22=0,0,(AF22*((LOG(AF22))/LOG(2)))) -> 0 | AI22: =N22 -> 2222 | AJ22: =COUNTIF(L30:L36,AI22) -> 0 | AK22: =AJ22/(AL4-AJ20) -> 0 | AL22: =IF(AK22=0,0,(AK22*((LOG(AK22))/LOG(2)))) -> 0 | AN22: =N22 -> 2222 | AO22: =COUNTIF(L37:L44,AN22) -> 0 | AP22: =AO22/(AQ4-AO20) -> 0 | AQ22: =IF(AP22=0,0,(AP22*((LOG(AP22))/LOG(2)))) -> 0 | AS22: =N22 -> 2222 | AT22: =COUNTIF(L45:L51,AS22) -> 0 | AU22: =AT22/(AV4-AT20) -> 0 | AV22: =IF(AU22=0,0,(AU22*((LOG(AU22))/LOG(2)))) -> 0
A23: 12 | B23: 2330 | C23: 14 | D23: 2337 | E23: 13 | F23: 2342 | G23: 14 | H23: 2351 | K23: 0 | L23: 1111 | P23: =SUM(P7:P22) -> 1 | Q23: =-SUM(Q7:Q22) -> 1.30231254 | V23: =SUM(V7:V22) -> 1 | W23: =-SUM(W7:W22) -> 1.405639062 | AA23: =SUM(AA7:AA22) -> 1 | AB23: =-SUM(AB7:AB22) -> 1.842370993 | AF23: =SUM(AF7:AF22) -> 1 | AG23: =-SUM(AG7:AG22) -> 0.5435644432 | AK23: =SUM(AK7:AK22) -> 1 | AL23: =-SUM(AL7:AL22) -> 0.5916727786 | AP23: =SUM(AP7:AP22) -> 1 | AQ23: =-SUM(AQ7:AQ22) -> 0.5435644432 | AU23: =SUM(AU7:AU22) -> 1 | AV23: =-SUM(AV7:AV22) -> 0.5916727786
A24: 12 | B24: 2483 | C24: 14 | D24: 2495 | E24: 13 | F24: 2506 | G24: 23 | H24: 2538 | K24: 0 | L24: 1112 | P24: U= | Q24: =Q23/(LOG(Q4)/LOG(2)) -> 0.2371353563 | V24: U1= | W24: =W23/(LOG(W4)/LOG(2)) -> 0.4685463541 | AA24: U2= | AB24: =AB23/(LOG(AB4)/LOG(2)) -> 0.6562657891 | AF24: U3= | AG24: =AG23/(LOG(AG4)/LOG(2)) -> 0.1811881477 | AK24: U4= | AL24: =AL23/(LOG(AL4)/LOG(2)) -> 0.2107580961 | AP24: U5= | AQ24: =AQ23/(LOG(AQ4)/LOG(2)) -> 0.1811881477 | AU24: U6= | AV24: =AV23/(LOG(AV4)/LOG(2)) -> 0.2107580961
A25: 12 | B25: 2663 | C25: 14 | D25: 2669 | E25: 13 | F25: 2677 | G25: 14 | H25: 2683 | K25: 0 | L25: 1111
A26: 12 | B26: 3356 | C26: 14 | D26: 3366 | E26: 13 | F26: 3377 | G26: 14 | H26: 3615 | K26: 0 | L26: 1111
A27: 12 | B27: 7616 | C27: 14 | D27: 7626 | E27: 13 | F27: 7631 | G27: 14 | H27: 7639 | K27: 0 | L27: 1111 | N27: Total Target Seq
A28: 12 | B28: 7784 | C28: 14 | D28: 7798 | E28: 13 | F28: 7813 | G28: 14 | H28: 7822 | K28: 0 | L28: 1111 | N28: =COUNTIF(L7:L51,G3) -> 0 | P28: 8 | Q28: 7 | R28: 8 | S28: 7 | T28: 8 | U28: 7
A29: 12 | B29: 8064 | C29: 14 | D29: 8071 | E29: 13 | F29: 8079 | G29: 14 | H29: 8084 | K29: 0 | L29: 1111 | P29: % of reinforcement given in 6 equal intervals based on number of trials
A30: 12 | B30: 8191 | C30: 14 | D30: 8200 | E30: 13 | F30: 8211 | G30: 14 | H30: 8232 | K30: 0 | L30: 1111 | P30: %_1 | Q30: %_2 | R30: %_3 | S30: %_4 | T30: %_5 | U30: %_6
A31: 12 | B31: 8354 | C31: 14 | D31: 8364 | E31: 13 | F31: 8373 | G31: 23 | H31: 8398 | K31: 0 | L31: 1112 | O31: target sequence | P31: =$G$3 -> 2212 | Q31: =$G$3 -> 2212 | R31: =$G$3 -> 2212 | S31: =$G$3 -> 2212 | T31: =$G$3 -> 2212 | U31: =$G$3 -> 2212
A32: 12 | B32: 8521 | C32: 14 | D32: 8528 | E32: 13 | F32: 8534 | G32: 14 | H32: 8542 | K32: 0 | L32: 1111 | O32: total reinforcement | P32: =U20 -> 0 | Q32: =Z20 -> 0 | R32: =AE20 -> 0 | S32: =AJ20 -> 0 | T32: =AO20 -> 0 | U32: =AT20 -> 0
A33: 12 | B33: 8795 | C33: 14 | D33: 8811 | E33: 13 | F33: 8821 | G33: 14 | H33: 8829 | K33: 0 | L33: 1111 | O33: % target
A34: 12 | B34: 8968 | C34: 14 | D34: 8982 | E34: 13 | F34: 8987 | G34: 14 | H34: 8994 | K34: 0 | L34: 1111 | O34: CCRF
A35: 12 | B35: 12681 | C35: 14 | D35: 12691 | E35: 13 | F35: 12698 | G35: 14 | H35: 12703 | K35: 0 | L35: 1111 | O35: % CCRf
A36: 12 | B36: 12834 | C36: 14 | D36: 12842 | E36: 13 | F36: 12852 | G36: 14 | H36: 12857 | K36: 0 | L36: 1111 | O36: average response rate | P36: =H14/P28 -> 137.375 | Q36: =(H21-H14)/Q28 -> 139.1428571 | R36: =(H29-H21)/R28 -> 751.375 | S36: =(H36-H29)/S28 -> 681.8571429 | T36: =(H44-H36)/T28 -> 144 | U36: =(H51-H44)/U28 -> 163.5714286
A37: 12 | B37: 13045 | C37: 23 | D37: 13066 | E37: 24 | F37: 13073 | G37: 23 | H37: 13078 | K37: 0 | L37: 1222
A38: 12 | B38: 13204 | C38: 14 | D38: 13214 | E38: 13 | F38: 13220 | G38: 14 | H38: 13227 | K38: 0 | L38: 1111
A39: 12 | B39: 13327 | C39: 14 | D39: 13333 | E39: 13 | F39: 13339 | G39: 14 | H39: 13345 | K39: 0 | L39: 1111
A40: 12 | B40: 13445 | C40: 14 | D40: 13451 | E40: 13 | F40: 13457 | G40: 14 | H40: 13462 | K40: 0 | L40: 1111
A41: 12 | B41: 13566 | C41: 14 | D41: 13571 | E41: 13 | F41: 13578 | G41: 14 | H41: 13584 | K41: 0 | L41: 1111
A42: 12 | B42: 13685 | C42: 14 | D42: 13693 | E42: 13 | F42: 13700 | G42: 14 | H42: 13711 | K42: 0 | L42: 1111
A43: 12 | B43: 13829 | C43: 14 | D43: 13840 | E43: 13 | F43: 13847 | G43: 14 | H43: 13853 | K43: 0 | L43: 1111
A44: 12 | B44: 13979 | C44: 14 | D44: 13990 | E44: 13 | F44: 14000 | G44: 14 | H44: 14009 | K44: 0 | L44: 1111
A45: 12 | B45: 14115 | C45: 14 | D45: 14124 | E45: 13 | F45: 14130 | G45: 14 | H45: 14135 | K45: 0 | L45: 1111
A46: 12 | B46: 14264 | C46: 14 | D46: 14269 | E46: 13 | F46: 14274 | G46: 14 | H46: 14279 | K46: 0 | L46: 1111
A47: 12 | B47: 14375 | C47: 14 | D47: 14381 | E47: 13 | F47: 14387 | G47: 14 | H47: 14397 | K47: 0 | L47: 1111
A48: 12 | B48: 14512 | C48: 14 | D48: 14525 | E48: 13 | F48: 14534 | G48: 23 | H48: 14562 | K48: 0 | L48: 1112
A49: 12 | B49: 14807 | C49: 14 | D49: 14813 | E49: 13 | F49: 14823 | G49: 14 | H49: 14829 | K49: 0 | L49: 1111
A50: 12 | B50: 14972 | C50: 14 | D50: 14986 | E50: 13 | F50: 15001 | G50: 14 | H50: 15010 | K50: 0 | L50: 1111
A51: 12 | B51: 15133 | C51: 14 | D51: 15141 | E51: 13 | F51: 15148 | G51: 14 | H51: 15154 | K51: 0 | L51: 1111

Sheet !M904A00.102
A1: Report for:!M904A00.102
A2: Date: | B2: <date>
A3: Hen: | B3: <hen> | F3: Correct Sequence | G3: =Start!J2 -> 2212 | P3: Total Sequences in Data | Q3: =4994-COUNTBLANK(L7:L5000) -> 42 | V3: Total Sequences in Block Data | W3: =COUNTA(L7:L13) -> 7 | AA3: Total Sequences in Block Data | AB3: =COUNTA(L14:L20) -> 7 | AF3: Total Sequences in Block Data | AG3: =COUNTA(L21:L27) -> 7 | AK3: Total Sequences in Block Data | AL3: =COUNTA(L28:L34) -> 7 | AP3: Total Sequences in Block Data | AQ3: =COUNTA(L35:L41) -> 7 | AU3: Total Sequences in Block Data | AV3: =COUNTA(L42:L48) -> 7
P4: Total Sequences in Summary | Q4: =SUM(O7:O22) -> 41 | V4: Total Sequences in Block Summary | W4: =SUM(U7:U22) -> 7 | AA4: Total Sequences in Block Summary | AB4: =SUM(Z7:Z22) -> 7 | AF4: Total Sequences in Block Summary | AG4: =SUM(AE7:AE22) -> 7 | AK4: Total Sequences in Block Summary | AL4: =SUM(AJ7:AJ22) -> 7 | AP4: Total Sequences in Block Summary | AQ4: =SUM(AO7:AO22) -> 7 | AU4: Total Sequences in Block Summary | AV4: =SUM(AT7:AT22) -> 6
T5: Block 1 | Y5: Block 2 | AD5: Block 3 | AI5: Block 4 | AN5: Block 5 | AS5: Block 6
A6: Sequence Component 1 | B6: Time 1 | C6: Sequence Component 2 | D6: Time 2 | E6: Sequence Component 3 | F6: Time 3 | G6: Sequence Component 4 | H6: Time 4 | I6: Sequence Component 5 | J6: Time 5 | K6: Correct? 0=No 1=Yes | L6: Sequence | N6: Frequency | P6: Relative Frequency | Q6: Variability | T6: Frequency | V6: Relative Frequency | W6: Variability | Y6: Frequency | AA6: Relative Frequency | AB6: Variability | AD6: Frequency | AF6: Relative Frequency | AG6: Variability | AI6: Frequency | AK6: Relative Frequency | AL6: Variability | AN6: Frequency | AP6: Relative Frequency | AQ6: Variability | AS6: Frequency | AU6: Relative Frequency | AV6: Variability
A7: 12 | B7: 40 | C7: 14 | D7: 47 | E7: 24 | F7: 64 | G7: 23 | H7: 69 | K7: 0 | L7: 1122 | N7: 1111 | O7: =COUNTIF($L$7:$L$500,N7) -> 24 | P7: =O7/$Q$4 -> 0.5853658537 | Q7: =IF(P7=0,0,(P7*((LOG(P7))/LOG(2)))) -> -0.4522475145 | T7: =N7 -> 1111 | U7: =COUNTIF(L7:L13,T7) -> 0 | V7: =U7/(W4-U20) -> 0 | W7: =IF(V7=0,0,(V7*((LOG(V7))/LOG(2)))) -> 0 | Y7: =N7 -> 1111 | Z7: =COUNTIF(L14:L20,Y7) -> 4 | AA7: =Z7/(AB4-Z20) -> 0.5714285714 | AB7: =IF(AA7=0,0,(AA7*((LOG(AA7))/LOG(2)))) -> -0.4613456697 | AD7: =N7 -> 1111 | AE7: =COUNTIF(L21:L27,AD7) -> 4 | AF7: =AE7/(AG4-AE20) -> 0.5714285714 | AG7: =IF(AF7=0,0,(AF7*((LOG(AF7))/LOG(2)))) -> -0.4613456697 | AI7: =N7 -> 1111 | AJ7: =COUNTIF(L28:L34,AI7) -> 5 | AK7: =AJ7/(AL4-AJ20) -> 0.7142857143 | AL7: =IF(AK7=0,0,(AK7*((LOG(AK7))/LOG(2)))) -> -0.346733448 | AN7: =N7 -> 1111 | AO7: =COUNTIF(L35:L41,AN7) -> 7 | AP7: =AO7/(AQ4-AO20) -> 1 | AQ7: =IF(AP7=0,0,(AP7*((LOG(AP7))/LOG(2)))) -> 0 | AS7: =N7 -> 1111 | AT7: =COUNTIF(L42:L48,AS7) -> 4 | AU7: =AT7/(AV4-AT20) -> 0.6666666667 | AV7: =IF(AU7=0,0,(AU7*((LOG(AU7))/LOG(2)))) -> -0.3899750005
A8: 12 | B8: 230 | C8: 14 | D8: 237 | E8: 24 | F8: 256 | G8: 23 | H8: 265 | K8: 0 | L8: 1122 | N8: 1112 | O8: =COUNTIF($L$7:$L$500,N8) -> 6 | P8: =O8/$Q$4 -> 0.1463414634 | Q8: =IF(P8=0,0,(P8*((LOG(P8))/LOG(2)))) -> -0.4057448054 | T8: =N8 -> 1112 | U8: =COUNTIF(L7:L13,T8) -> 3 | V8: =U8/(W4-U20) -> 0.4285714286 | W8: =IF(V8=0,0,(V8*((LOG(V8))/LOG(2)))) -> -0.5238824663 | Y8: =N8 -> 1112 | Z8: =COUNTIF(L14:L20,Y8) -> 1 | AA8: =Z8/(AB4-Z20) -> 0.1428571429 | AB8: =IF(AA8=0,0,(AA8*((LOG(AA8))/LOG(2)))) -> -0.4010507032 | AD8: =N8 -> 1112 | AE8: =COUNTIF(L21:L27,AD8) -> 1 | AF8: =AE8/(AG4-AE20) -> 0.1428571429 | AG8: =IF(AF8=0,0,(AF8*((LOG(AF8))/LOG(2)))) -> -0.4010507032 | AI8: =N8 -> 1112 | AJ8: =COUNTIF(L28:L34,AI8) -> 1 | AK8: =AJ8/(AL4-AJ20) -> 0.1428571429 | AL8: =IF(AK8=0,0,(AK8*((LOG(AK8))/LOG(2)))) -> -0.4010507032 | AN8: =N8 -> 1112 | AO8: =COUNTIF(L35:L41,AN8) -> 0 | AP8: =AO8/(AQ4-AO20) -> 0 | AQ8: =IF(AP8=0,0,(AP8*((LOG(AP8))/LOG(2)))) -> 0 | AS8: =N8 -> 1112 | AT8: =COUNTIF(L42:L48,AS8) -> 0 | AU8: =AT8/(AV4-AT20) -> 0 | AV8: =IF(AU8=0,0,(AU8*((LOG(AU8))/LOG(2)))) -> 0
A9: 12 | B9: 373 | C9: 14 | D9: 378 | E9: 13 | F9: 384 | G9: 23 | H9: 395 | K9: 0 | L9: 1112 | N9: 1121 | O9: =COUNTIF($L$7:$L$500,N9) -> 0 | P9: =O9/$Q$4 -> 0 | Q9: =IF(P9=0,0,(P9*((LOG(P9))/LOG(2)))) -> 0 | T9: =N9 -> 1121 | U9: =COUNTIF(L7:L13,T9) -> 0 | V9: =U9/(W4-U20) -> 0 | W9: =IF(V9=0,0,(V9*((LOG(V9))/LOG(2)))) -> 0 | Y9: =N9 -> 1121 | Z9: =COUNTIF(L14:L20,Y9) -> 0 | AA9: =Z9/(AB4-Z20) -> 0 | AB9: =IF(AA9=0,0,(AA9*((LOG(AA9))/LOG(2)))) -> 0 | AD9: =N9 -> 1121 | AE9: =COUNTIF(L21:L27,AD9) -> 0 | AF9: =AE9/(AG4-AE20) -> 0 | AG9: =IF(AF9=0,0,(AF9*((LOG(AF9))/LOG(2)))) -> 0 | AI9: =N9 -> 1121 | AJ9: =COUNTIF(L28:L34,AI9) -> 0 | AK9: =AJ9/(AL4-AJ20) -> 0 | AL9: =IF(AK9=0,0,(AK9*((LOG(AK9))/LOG(2)))) -> 0 | AN9: =N9 -> 1121 | AO9: =COUNTIF(L35:L41,AN9) -> 0 | AP9: =AO9/(AQ4-AO20) -> 0 | AQ9: =IF(AP9=0,0,(AP9*((LOG(AP9))/LOG(2)))) -> 0 | AS9: =N9 -> 1121 | AT9: =COUNTIF(L42:L48,AS9) -> 0 | AU9: =AT9/(AV4-AT20) -> 0 | AV9: =IF(AU9=0,0,(AU9*((LOG(AU9))/LOG(2)))) -> 0
A10: 12 | B10: 500 | C10: 23 | D10: 512 | E10: 24 | F10: 517 | G10: 23 | H10: 521 | K10: 0 | L10: 1222 | N10: 1122 | O10: =COUNTIF($L$7:$L$500,N10) -> 7 | P10: =O10/$Q$4 -> 0.1707317073 | Q10: =IF(P10=0,0,(P10*((LOG(P10))/LOG(2)))) -> -0.4353995019 | T10: =N10 -> 1122 | U10: =COUNTIF(L7:L13,T10) -> 3 | V10: =U10/(W4-U20) -> 0.4285714286 | W10: =IF(V10=0,0,(V10*((LOG(V10))/LOG(2)))) -> -0.5238824663 | Y10: =N10 -> 1122 | Z10: =COUNTIF(L14:L20,Y10) -> 2 | AA10: =Z10/(AB4-Z20) -> 0.2857142857 | AB10: =IF(AA10=0,0,(AA10*((LOG(AA10))/LOG(2)))) -> -0.5163871206 | AD10: =N10 -> 1122 | AE10: =COUNTIF(L21:L27,AD10) -> 1 | AF10: =AE10/(AG4-AE20) -> 0.1428571429 | AG10: =IF(AF10=0,0,(AF10*((LOG(AF10))/LOG(2)))) -> -0.4010507032 | AI10: =N10 -> 1122 | AJ10: =COUNTIF(L28:L34,AI10) -> 1 | AK10: =AJ10/(AL4-AJ20) -> 0.1428571429 | AL10: =IF(AK10=0,0,(AK10*((LOG(AK10))/LOG(2)))) -> -0.4010507032 | AN10: =N10 -> 1122 | AO10: =COUNTIF(L35:L41,AN10) -> 0 | AP10: =AO10/(AQ4-AO20) -> 0 | AQ10: =IF(AP10=0,0,(AP10*((LOG(AP10))/LOG(2)))) -> 0 | AS10: =N10 -> 1122 | AT10: =COUNTIF(L42:L48,AS10) -> 0 | AU10: =AT10/(AV4-AT20) -> 0 | AV10: =IF(AU10=0,0,(AU10*((LOG(AU10))/LOG(2)))) -> 0
A11: 12 | B11: 627 | C11: 14 | D11: 634 | E11: 13 | F11: 640 | G11: 23 | H11: 655 | K11: 0 | L11: 1112 | N11: 1211 | O11: =COUNTIF($L$7:$L$500,N11) -> 0 | P11: =O11/$Q$4 -> 0 | Q11: =IF(P11=0,0,(P11*((LOG(P11))/LOG(2)))) -> 0 | T11: =N11 -> 1211 | U11: =COUNTIF(L7:L13,T11) -> 0 | V11: =U11/(W4-U20) -> 0 | W11: =IF(V11=0,0,(V11*((LOG(V11))/LOG(2)))) -> 0 | Y11: =N11 -> 1211 | Z11: =COUNTIF(L14:L20,Y11) -> 0 | AA11: =Z11/(AB4-Z20) -> 0 | AB11: =IF(AA11=0,0,(AA11*((LOG(AA11))/LOG(2)))) -> 0 | AD11: =N11 -> 1211 | AE11: =COUNTIF(L21:L27,AD11) -> 0 | AF11: =AE11/(AG4-AE20) -> 0 | AG11: =IF(AF11=0,0,(AF11*((LOG(AF11))/LOG(2)))) -> 0 | AI11: =N11 -> 1211 | AJ11: =COUNTIF(L28:L34,AI11) -> 0 | AK11: =AJ11/(AL4-AJ20) -> 0 | AL11: =IF(AK11=0,0,(AK11*((LOG(AK11))/LOG(2)))) -> 0 | AN11: =N11 -> 1211 | AO11: =COUNTIF(L35:L41,AN11) -> 0 | AP11: =AO11/(AQ4-AO20) -> 0 | AQ11: =IF(AP11=0,0,(AP11*((LOG(AP11))/LOG(2)))) -> 0 | AS11: =N11 -> 1211 | AT11: =COUNTIF(L42:L48,AS11) -> 0 | AU11: =AT11/(AV4-AT20) -> 0 | AV11: =IF(AU11=0,0,(AU11*((LOG(AU11))/LOG(2)))) -> 0
A12: 12 | B12: 775 | C12: 14 | D12: 782 | E12: 13 | F12: 792 | G12: 23 | H12: 827 | K12: 0 | L12: 1112 | N12: 1212 | O12: =COUNTIF($L$7:$L$500,N12) -> 0 | P12: =O12/$Q$4 -> 0 | Q12: =IF(P12=0,0,(P12*((LOG(P12))/LOG(2)))) -> 0 | T12: =N12 -> 1212 | U12: =COUNTIF(L7:L13,T12) -> 0 | V12: =U12/(W4-U20) -> 0 | W12: =IF(V12=0,0,(V12*((LOG(V12))/LOG(2)))) -> 0 | Y12: =N12 -> 1212 | Z12: =COUNTIF(L14:L20,Y12) -> 0 | AA12: =Z12/(AB4-Z20) -> 0 | AB12: =IF(AA12=0,0,(AA12*((LOG(AA12))/LOG(2)))) -> 0 | AD12: =N12 -> 1212 | AE12: =COUNTIF(L21:L27,AD12) -> 0 | AF12: =AE12/(AG4-AE20) -> 0 | AG12: =IF(AF12=0,0,(AF12*((LOG(AF12))/LOG(2)))) -> 0 | AI12: =N12 -> 1212 | AJ12: =COUNTIF(L28:L34,AI12) -> 0 | AK12: =AJ12/(AL4-AJ20) -> 0 | AL12: =IF(AK12=0,0,(AK12*((LOG(AK12))/LOG(2)))) -> 0 | AN12: =N12 -> 1212 | AO12: =COUNTIF(L35:L41,AN12) -> 0 | AP12: =AO12/(AQ4-AO20) -> 0 | AQ12: =IF(AP12=0,0,(AP12*((LOG(AP12))/LOG(2)))) -> 0 | AS12: =N12 -> 1212 | AT12: =COUNTIF(L42:L48,AS12) -> 0 | AU12: =AT12/(AV4-AT20) -> 0 | AV12: =IF(AU12=0,0,(AU12*((LOG(AU12))/LOG(2)))) -> 0
A13: 12 | B13: 927 | C13: 14 | D13: 933 | E13: 24 | F13: 948 | G13: 23 | H13: 954 | K13: 0 | L13: 1122 | N13: 1221 | O13: =COUNTIF($L$7:$L$500,N13) -> 0 | P13: =O13/$Q$4 -> 0 | Q13: =IF(P13=0,0,(P13*((LOG(P13))/LOG(2)))) -> 0 | T13: =N13 -> 1221 | U13: =COUNTIF(L7:L13,T13) -> 0 | V13: =U13/(W4-U20) -> 0 | W13: =IF(V13=0,0,(V13*((LOG(V13))/LOG(2)))) -> 0 | Y13: =N13 -> 1221 | Z13: =COUNTIF(L14:L20,Y13) -> 0 | AA13: =Z13/(AB4-Z20) -> 0 | AB13: =IF(AA13=0,0,(AA13*((LOG(AA13))/LOG(2)))) -> 0 | AD13: =N13 -> 1221 | AE13: =COUNTIF(L21:L27,AD13) -> 0 | AF13: =AE13/(AG4-AE20) -> 0 | AG13: =IF(AF13=0,0,(AF13*((LOG(AF13))/LOG(2)))) -> 0 | AI13: =N13 -> 1221 | AJ13: =COUNTIF(L28:L34,AI13) -> 0 | AK13: =AJ13/(AL4-AJ20) -> 0 | AL13: =IF(AK13=0,0,(AK13*((LOG(AK13))/LOG(2)))) -> 0 | AN13: =N13 -> 1221 | AO13: =COUNTIF(L35:L41,AN13) -> 0 | AP13: =AO13/(AQ4-AO20) -> 0 | AQ13: =IF(AP13=0,0,(AP13*((LOG(AP13))/LOG(2)))) -> 0 | AS13: =N13 -> 1221 | AT13: =COUNTIF(L42:L48,AS13) -> 0 | AU13: =AT13/(AV4-AT20) -> 0 | AV13: =IF(AU13=0,0,(AU13*((LOG(AU13))/LOG(2)))) -> 0
A14: 12 | B14: 1052 | C14: 14 | D14: 1061 | E14: 13 | F14: 1066 | G14: 14 | H14: 1071 | K14: 0 | L14: 1111 | N14: 1222 | O14: =COUNTIF($L$7:$L$500,N14) -> 2 | P14: =O14/$Q$4 -> 0.0487804878 | Q14: =IF(P14=0,0,(P14*((LOG(P14))/LOG(2)))) -> -0.2125635124 | T14: =N14 -> 1222 | U14: =COUNTIF(L7:L13,T14) -> 1 | V14: =U14/(W4-U20) -> 0.1428571429 | W14: =IF(V14=0,0,(V14*((LOG(V14))/LOG(2)))) -> -0.4010507032 | Y14: =N14 -> 1222 | Z14: =COUNTIF(L14:L20,Y14) -> 0 | AA14: =Z14/(AB4-Z20) -> 0 | AB14: =IF(AA14=0,0,(AA14*((LOG(AA14))/LOG(2)))) -> 0 | AD14: =N14 -> 1222 | AE14: =COUNTIF(L21:L27,AD14) -> 1 | AF14: =AE14/(AG4-AE20) -> 0.1428571429 | AG14: =IF(AF14=0,0,(AF14*((LOG(AF14))/LOG(2)))) -> -0.4010507032 | AI14: =N14 -> 1222 | AJ14: =COUNTIF(L28:L34,AI14) -> 0 | AK14: =AJ14/(AL4-AJ20) -> 0 | AL14: =IF(AK14=0,0,(AK14*((LOG(AK14))/LOG(2)))) -> 0 | AN14: =N14 -> 1222 | AO14: =COUNTIF(L35:L41,AN14) -> 0 | AP14: =AO14/(AQ4-AO20) -> 0 | AQ14: =IF(AP14=0,0,(AP14*((LOG(AP14))/LOG(2)))) -> 0 | AS14: =N14 -> 1222 | AT14: =COUNTIF(L42:L48,AS14) -> 0 | AU14: =AT14/(AV4-AT20) -> 0 | AV14: =IF(AU14=0,0,(AU14*((LOG(AU14))/LOG(2)))) -> 0
A15: 12 | B15: 1171 | C15: 14 | D15: 1176 | E15: 24 | F15: 1193 | G15: 23 | H15: 1202 | K15: 0 | L15: 1122 | N15: 2111 | O15: =COUNTIF($L$7:$L$500,N15) -> 0 | P15: =O15/$Q$4 -> 0 | Q15: =IF(P15=0,0,(P15*((LOG(P15))/LOG(2)))) -> 0 | T15: =N15 -> 2111 | U15: =COUNTIF(L7:L13,T15) -> 0 | V15: =U15/(W4-U20) -> 0 | W15: =IF(V15=0,0,(V15*((LOG(V15))/LOG(2)))) -> 0 | Y15: =N15 -> 2111 | Z15: =COUNTIF(L14:L20,Y15) -> 0 | AA15: =Z15/(AB4-Z20) -> 0 | AB15: =IF(AA15=0,0,(AA15*((LOG(AA15))/LOG(2)))) -> 0 | AD15: =N15 -> 2111 | AE15: =COUNTIF(L21:L27,AD15) -> 0 | AF15: =AE15/(AG4-AE20) -> 0 | AG15: =IF(AF15=0,0,(AF15*((LOG(AF15))/LOG(2)))) -> 0 | AI15: =N15 -> 2111 | AJ15: =COUNTIF(L28:L34,AI15) -> 0 | AK15: =AJ15/(AL4-AJ20) -> 0 | AL15: =IF(AK15=0,0,(AK15*((LOG(AK15))/LOG(2)))) -> 0 | AN15: =N15 -> 2111 | AO15: =COUNTIF(L35:L41,AN15) -> 0 | AP15: =AO15/(AQ4-AO20) -> 0 | AQ15: =IF(AP15=0,0,(AP15*((LOG(AP15))/LOG(2)))) -> 0 | AS15: =N15 -> 2111 | AT15: =COUNTIF(L42:L48,AS15) -> 0 | AU15: =AT15/(AV4-AT20) -> 0 | AV15: =IF(AU15=0,0,(AU15*((LOG(AU15))/LOG(2)))) -> 0
A16: 12 | B16: 1302 | C16: 14 | D16: 1308 | E16: 13 | F16: 1318 | G16: 23 | H16: 1336 | K16: 0 | L16: 1112 | N16: 2112 | O16: =COUNTIF($L$7:$L$500,N16) -> 0 | P16: =O16/$Q$4 -> 0 | Q16: =IF(P16=0,0,(P16*((LOG(P16))/LOG(2)))) -> 0 | T16: =N16 -> 2112 | U16: =COUNTIF(L7:L13,T16) -> 0 | V16: =U16/(W4-U20) -> 0 | W16: =IF(V16=0,0,(V16*((LOG(V16))/LOG(2)))) -> 0 | Y16: =N16 -> 2112 | Z16: =COUNTIF(L14:L20,Y16) -> 0 | AA16: =Z16/(AB4-Z20) -> 0 | AB16: =IF(AA16=0,0,(AA16*((LOG(AA16))/LOG(2)))) -> 0 | AD16: =N16 -> 2112 | AE16: =COUNTIF(L21:L27,AD16) -> 0 | AF16: =AE16/(AG4-AE20) -> 0 | AG16: =IF(AF16=0,0,(AF16*((LOG(AF16))/LOG(2)))) -> 0 | AI16: =N16 -> 2112 | AJ16: =COUNTIF(L28:L34,AI16) -> 0 | AK16: =AJ16/(AL4-AJ20) -> 0 | AL16: =IF(AK16=0,0,(AK16*((LOG(AK16))/LOG(2)))) -> 0 | AN16: =N16 -> 2112 | AO16: =COUNTIF(L35:L41,AN16) -> 0 | AP16: =AO16/(AQ4-AO20) -> 0 | AQ16: =IF(AP16=0,0,(AP16*((LOG(AP16))/LOG(2)))) -> 0 | AS16: =N16 -> 2112 | AT16: =COUNTIF(L42:L48,AS16) -> 0 | AU16: =AT16/(AV4-AT20) -> 0 | AV16: =IF(AU16=0,0,(AU16*((LOG(AU16))/LOG(2)))) -> 0
A17: 12 | B17: 1438 | C17: 14 | D17: 1443 | E17: 24 | F17: 1463 | G17: 23 | H17: 1473 | K17: 0 | L17: 1122 | N17: 2121 | O17: =COUNTIF($L$7:$L$500,N17) -> 0 | P17: =O17/$Q$4 -> 0 | Q17: =IF(P17=0,0,(P17*((LOG(P17))/LOG(2)))) -> 0 | T17: =N17 -> 2121 | U17: =COUNTIF(L7:L13,T17) -> 0 | V17: =U17/(W4-U20) -> 0 | W17: =IF(V17=0,0,(V17*((LOG(V17))/LOG(2)))) -> 0 | Y17: =N17 -> 2121 | Z17: =COUNTIF(L14:L20,Y17) -> 0 | AA17: =Z17/(AB4-Z20) -> 0 | AB17: =IF(AA17=0,0,(AA17*((LOG(AA17))/LOG(2)))) -> 0 | AD17: =N17 -> 2121 | AE17: =COUNTIF(L21:L27,AD17) -> 0 | AF17: =AE17/(AG4-AE20) -> 0 | AG17: =IF(AF17=0,0,(AF17*((LOG(AF17))/LOG(2)))) -> 0 | AI17: =N17 -> 2121 | AJ17: =COUNTIF(L28:L34,AI17) -> 0 | AK17: =AJ17/(AL4-AJ20) -> 0 | AL17: =IF(AK17=0,0,(AK17*((LOG(AK17))/LOG(2)))) -> 0 | AN17: =N17 -> 2121 | AO17: =COUNTIF(L35:L41,AN17) -> 0 | AP17: =AO17/(AQ4-AO20) -> 0 | AQ17: =IF(AP17=0,0,(AP17*((LOG(AP17))/LOG(2)))) -> 0 | AS17: =N17 -> 2121 | AT17: =COUNTIF(L42:L48,AS17) -> 0 | AU17: =AT17/(AV4-AT20) -> 0 | AV17: =IF(AU17=0,0,(AU17*((LOG(AU17))/LOG(2)))) -> 0
A18: 12 | B18: 1589 | C18: 14 | D18: 1594 | E18: 13 | F18: 1603 | G18: 14 | H18: 1610 | K18: 0 | L18: 1111 | N18: 2122 | O18: =COUNTIF($L$7:$L$500,N18) -> 0 | P18: =O18/$Q$4 -> 0 | Q18: =IF(P18=0,0,(P18*((LOG(P18))/LOG(2)))) -> 0 | T18: =N18 -> 2122 | U18: =COUNTIF(L7:L13,T18) -> 0 | V18: =U18/(W4-U20) -> 0 | W18: =IF(V18=0,0,(V18*((LOG(V18))/LOG(2)))) -> 0 | Y18: =N18 -> 2122 | Z18: =COUNTIF(L14:L20,Y18) -> 0 | AA18: =Z18/(AB4-Z20) -> 0 | AB18: =IF(AA18=0,0,(AA18*((LOG(AA18))/LOG(2)))) -> 0 | AD18: =N18 -> 2122 | AE18: =COUNTIF(L21:L27,AD18) -> 0 | AF18: =AE18/(AG4-AE20) -> 0 | AG18: =IF(AF18=0,0,(AF18*((LOG(AF18))/LOG(2)))) -> 0 | AI18: =N18 -> 2122 | AJ18: =COUNTIF(L28:L34,AI18) -> 0 | AK18: =AJ18/(AL4-AJ20) -> 0 | AL18: =IF(AK18=0,0,(AK18*((LOG(AK18))/LOG(2)))) -> 0 | AN18: =N18 -> 2122 | AO18: =COUNTIF(L35:L41,AN18) -> 0 | AP18: =AO18/(AQ4-AO20) -> 0 | AQ18: =IF(AP18=0,0,(AP18*((LOG(AP18))/LOG(2)))) -> 0 | AS18: =N18 -> 2122 | AT18: =COUNTIF(L42:L48,AS18) -> 0 | AU18: =AT18/(AV4-AT20) -> 0 | AV18: =IF(AU18=0,0,(AU18*((LOG(AU18))/LOG(2)))) -> 0
A19: 12 | B19: 1715 | C19: 14 | D19: 1721 | E19: 13 | F19: 1727 | G19: 14 | H19: 1733 | K19: 0 | L19: 1111 | N19: 2211 | O19: =COUNTIF($L$7:$L$500,N19) -> 0 | P19: =O19/$Q$4 -> 0 | Q19: =IF(P19=0,0,(P19*((LOG(P19))/LOG(2)))) -> 0 | T19: =N19 -> 2211 | U19: =COUNTIF(L7:L13,T19) -> 0 | V19: =U19/(W4-U20) -> 0 | W19: =IF(V19=0,0,(V19*((LOG(V19))/LOG(2)))) -> 0 | Y19: =N19 -> 2211 | Z19: =COUNTIF(L14:L20,Y19) -> 0 | AA19: =Z19/(AB4-Z20) -> 0 | AB19: =IF(AA19=0,0,(AA19*((LOG(AA19))/LOG(2)))) -> 0 | AD19: =N19 -> 2211 | AE19: =COUNTIF(L21:L27,AD19) -> 0 | AF19: =AE19/(AG4-AE20) -> 0 | AG19: =IF(AF19=0,0,(AF19*((LOG(AF19))/LOG(2)))) -> 0 | AI19: =N19 -> 2211 | AJ19: =COUNTIF(L28:L34,AI19) -> 0 | AK19: =AJ19/(AL4-AJ20) -> 0 | AL19: =IF(AK19=0,0,(AK19*((LOG(AK19))/LOG(2)))) -> 0 | AN19: =N19 -> 2211 | AO19: =COUNTIF(L35:L41,AN19) -> 0 | AP19: =AO19/(AQ4-AO20) -> 0 | AQ19: =IF(AP19=0,0,(AP19*((LOG(AP19))/LOG(2)))) -> 0 | AS19: =N19 -> 2211 | AT19: =COUNTIF(L42:L48,AS19) -> 0 | AU19: =AT19/(AV4-AT20) -> 0 | AV19: =IF(AU19=0,0,(AU19*((LOG(AU19))/LOG(2)))) -> 0
A20: 12 | B20: 1836 | C20: 14 | D20: 1843 | E20: 13 | F20: 1848 | G20: 14 | H20: 1854 | K20: 0 | L20: 1111 | N20: 2212 | O20: =COUNTIF($L$7:$L$500,N20) -> 0 | P20: =O20/$Q$4 -> 0 | Q20: =IF(P20=0,0,(P20*((LOG(P20))/LOG(2)))) -> 0 | T20: =N20 -> 2212 | U20: =COUNTIF(L7:L13,T20) -> 0 | Y20: =N20 -> 2212 | Z20: =COUNTIF(L14:L20,Y20) -> 0 | AD20: =N20 -> 2212 | AE20: =COUNTIF(L21:L27,AD20) -> 0 | AI20: =N20 -> 2212 | AJ20: =COUNTIF(L28:L34,AI20) -> 0 | AN20: =N20 -> 2212 | AO20: =COUNTIF(L35:L41,AN20) -> 0 | AS20: =N20 -> 2212 | AT20: =COUNTIF(L42:L48,AS20) -> 0
A21: 12 | B21: 1964 | C21: 14 | D21: 1970 | E21: 13 | F21: 1982 | G21: 14 | H21: 1993 | K21: 0 | L21: 1111 | N21: 2221 | O21: =COUNTIF($L$7:$L$500,N21) -> 0 | P21: =O21/$Q$4 -> 0 | Q21: =IF(P21=0,0,(P21*((LOG(P21))/LOG(2)))) -> 0 | T21: =N21 -> 2221 | U21: =COUNTIF(L7:L13,T21) -> 0 | V21: =U21/(W4-U20) -> 0 | W21: =IF(V21=0,0,(V21*((LOG(V21))/LOG(2)))) -> 0 | Y21: =N21 -> 2221 | Z21: =COUNTIF(L14:L20,Y21) -> 0 | AA21: =Z21/(AB4-Z20) -> 0 | AB21: =IF(AA21=0,0,(AA21*((LOG(AA21))/LOG(2)))) -> 0 | AD21: =N21 -> 2221 | AE21: =COUNTIF(L21:L27,AD21) -> 0 | AF21: =AE21/(AG4-AE20) -> 0 | AG21: =IF(AF21=0,0,(AF21*((LOG(AF21))/LOG(2)))) -> 0 | AI21: =N21 -> 2221 | AJ21: =COUNTIF(L28:L34,AI21) -> 0 | AK21: =AJ21/(AL4-AJ20) -> 0 | AL21: =IF(AK21=0,0,(AK21*((LOG(AK21))/LOG(2)))) -> 0 | AN21: =N21 -> 2221 | AO21: =COUNTIF(L35:L41,AN21) -> 0 | AP21: =AO21/(AQ4-AO20) -> 0 | AQ21: =IF(AP21=0,0,(AP21*((LOG(AP21))/LOG(2)))) -> 0 | AS21: =N21 -> 2221 | AT21: =COUNTIF(L42:L48,AS21) -> 0 | AU21: =AT21/(AV4-AT20) -> 0 | AV21: =IF(AU21=0,0,(AU21*((LOG(AU21))/LOG(2)))) -> 0
A22: 12 | B22: 2099 | C22: 14 | D22: 2104 | E22: 13 | F22: 2110 | G22: 14 | H22: 2116 | K22: 0 | L22: 1111 | N22: 2222 | O22: =COUNTIF($L$7:$L$500,N22) -> 2 | P22: =O22/$Q$4 -> 0.0487804878 | Q22: =IF(P22=0,0,(P22*((LOG(P22))/LOG(2)))) -> -0.2125635124 | T22: =N22 -> 2222 | U22: =COUNTIF(L7:L13,T22) -> 0 | V22: =U22/(W4-U20) -> 0 | W22: =IF(V22=0,0,(V22*((LOG(V22))/LOG(2)))) -> 0 | Y22: =N22 -> 2222 | Z22: =COUNTIF(L14:L20,Y22) -> 0 | AA22: =Z22/(AB4-Z20) -> 0 | AB22: =IF(AA22=0,0,(AA22*((LOG(AA22))/LOG(2)))) -> 0 | AD22: =N22 -> 2222 | AE22: =COUNTIF(L21:L27,AD22) -> 0 | AF22: =AE22/(AG4-AE20) -> 0 | AG22: =IF(AF22=0,0,(AF22*((LOG(AF22))/LOG(2)))) -> 0 | AI22: =N22 -> 2222 | AJ22: =COUNTIF(L28:L34,AI22) -> 0 | AK22: =AJ22/(AL4-AJ20) -> 0 | AL22: =IF(AK22=0,0,(AK22*((LOG(AK22))/LOG(2)))) -> 0 | AN22: =N22 -> 2222 | AO22: =COUNTIF(L35:L41,AN22) -> 0 | AP22: =AO22/(AQ4-AO20) -> 0 | AQ22: =IF(AP22=0,0,(AP22*((LOG(AP22))/LOG(2)))) -> 0 | AS22: =N22 -> 2222 | AT22: =COUNTIF(L42:L48,AS22) -> 2 | AU22: =AT22/(AV4-AT20) -> 0.3333333333 | AV22: =IF(AU22=0,0,(AU22*((LOG(AU22))/LOG(2)))) -> -0.5283208336
A23: 12 | B23: 2217 | C23: 14 | D23: 2223 | E23: 13 | F23: 2229 | G23: 23 | H23: 2266 | K23: 0 | L23: 1112 | P23: =SUM(P7:P22) -> 1 | Q23: =-SUM(Q7:Q22) -> 1.718518847 | V23: =SUM(V7:V22) -> 1 | W23: =-SUM(W7:W22) -> 1.448815636 | AA23: =SUM(AA7:AA22) -> 1 | AB23: =-SUM(AB7:AB22) -> 1.378783493 | AF23: =SUM(AF7:AF22) -> 1 | AG23: =-SUM(AG7:AG22) -> 1.664497779 | AK23: =SUM(AK7:AK22) -> 1 | AL23: =-SUM(AL7:AL22) -> 1.148834854 | AP23: =SUM(AP7:AP22) -> 1 | AQ23: =-SUM(AQ7:AQ22) -> 0 | AU23: =SUM(AU7:AU22) -> 1 | AV23: =-SUM(AV7:AV22) -> 0.9182958341
A24: 12 | B24: 2369 | C24: 14 | D24: 2375 | E24: 13 | F24: 2381 | G24: 14 | H24: 2386 | K24: 0 | L24: 1111 | P24: U= | Q24: =Q23/(LOG(Q4)/LOG(2)) -> 0.3207656865 | V24: U1= | W24: =W23/(LOG(W4)/LOG(2)) -> 0.5160785422 | AA24: U2= | AB24: =AB23/(LOG(AB4)/LOG(2)) -> 0.4911325898 | AF24: U3= | AG24: =AG23/(LOG(AG4)/LOG(2)) -> 0.5929060719 | AK24: U4= | AL24: =AL23/(LOG(AL4)/LOG(2)) -> 0.4092232319 | AP24: U5= | AQ24: =AQ23/(LOG(AQ4)/LOG(2)) -> 0 | AU24: U6= | AV24: =AV23/(LOG(AV4)/LOG(2)) -> 0.3552453213
A25: 12 | B25: 2497 | C25: 14 | D25: 2502 | E25: 13 | F25: 2507 | G25: 14 | H25: 2513 | K25: 0 | L25: 1111
A26: 12 | B26: 2640 | C26: 23 | D26: 2661 | E26: 24 | F26: 2666 | G26: 23 | H26: 2673 | K26: 0 | L26: 1222
A27: 12 | B27: 2819 | C27: 14 | D27: 2824 | E27: 24 | F27: 2843 | G27: 23 | H27: 2853 | K27: 0 | L27: 1122 | N27: Total Target Seq
A28: 12 | B28: 2966 | C28: 14 | D28: 2971 | E28: 13 | F28: 2976 | G28: 23 | H28: 2992 | K28: 0 | L28: 1112 | N28: =COUNTIF(L7:L48,G3) -> 0 | P28: 7 | Q28: 7 | R28: 7 | S28: 7 | T28: 7 | U28: 7
A29: 12 | B29: 3091 | C29: 14 | D29: 3097 | E29: 13 | F29: 3103 | G29: 14 | H29: 3113 | K29: 0 | L29: 1111 | P29: % of reinforcement given in 6 equal intervals based on number of trials
A30: 12 | B30: 3234 | C30: 14 | D30: 3241 | E30: 13 | F30: 3248 | G30: 14 | H30: 3254 | K30: 0 | L30: 1111 | P30: %_1 | Q30: %_2 | R30: %_3 | S30: %_4 | T30: %_5 | U30: %_6
A31: 12 | B31: 3381 | C31: 14 | D31: 3389 | E31: 13 | F31: 3400 | G31: 14 | H31: 3406 | K31: 0 | L31: 1111 | O31: target sequence | P31: =$G$3 -> 2212 | Q31: =$G$3 -> 2212 | R31: =$G$3 -> 2212 | S31: =$G$3 -> 2212 | T31: =$G$3 -> 2212 | U31: =$G$3 -> 2212
A32: 12 | B32: 5203 | C32: 14 | D32: 5214 | E32: 24 | F32: 5242 | G32: 23 | H32: 5247 | K32: 0 | L32: 1122 | O32: total reinforcement | P32: =U20 -> 0 | Q32: =Z20 -> 0 | R32: =AE20 -> 0 | S32: =AJ20 -> 0 | T32: =AO20 -> 0 | U32: =AT20 -> 0
A33: 12 | B33: 5401 | C33: 14 | D33: 5407 | E33: 13 | F33: 5414 | G33: 14 | H33: 5431 | K33: 0 | L33: 1111 | O33: % target
A34: 12 | B34: 5538 | C34: 14 | D34: 5547 | E34: 13 | F34: 5555 | G34: 14 | H34: 5563 | K34: 0 | L34: 1111 | O34: CCRF
A35: 12 | B35: 5761 | C35: 14 | D35: 5769 | E35: 13 | F35: 5787 | G35: 14 | H35: 5798 | K35: 0 | L35: 1111 | O35: % CCRf
A36: 12 | B36: 5915 | C36: 14 | D36: 5927 | E36: 13 | F36: 5936 | G36: 14 | H36: 5947 | K36: 0 | L36: 1111 | O36: average response rate | P36: =H13/P28 -> 136.2857143 | Q36: =(H20-H13)/Q28 -> 128.5714286 | R36: =(H27-H20)/R28 -> 142.7142857 | S36: =(H34-H27)/S28 -> 387.1428571 | T36: =(H41-H34)/T28 -> 738.8571429 | U36: =(H48-H41)/U28 -> -1533.571429
A37: 12 | B37: 6063 | C37: 14 | D37: 6077 | E37: 13 | F37: 6086 | G37: 14 | H37: 6092 | K37: 0 | L37: 1111
A38: 12 | B38: 6341 | C38: 14 | D38: 6351 | E38: 13 | F38: 6375 | G38: 14 | H38: 6392 | K38: 0 | L38: 1111
A39: 12 | B39: 6538 | C39: 14 | D39: 6546 | E39: 13 | F39: 6555 | G39: 14 | H39: 6561 | K39: 0 | L39: 1111
A40: 12 | B40: 10543 | C40: 14 | D40: 10564 | E40: 13 | F40: 10571 | G40: 14 | H40: 10577 | K40: 0 | L40: 1111
A41: 12 | B41: 10687 | C41: 14 | D41: 10717 | E41: 13 | F41: 10725 | G41: 14 | H41: 10735 | K41: 0 | L41: 1111
A42: 12 | B42: 10831 | C42: 14 | D42: 10841 | E42: 13 | F42: 10848 | G42: 14 | H42: 10859 | K42: 0 | L42: 1111
A43: 12 | B43: 10993 | C43: 14 | D43: 10999 | E43: 13 | F43: 11005 | G43: 14 | H43: 11012 | K43: 0 | L43: 1111
A44: 21 | B44: 11139 | C44: 21 | D44: 11145 | E44: 22 | F44: 11151 | G44: 23 | H44: 11157 | K44: 0 | L44: 2222
A45: 12 | B45: 11389 | C45: 14 | D45: 11396 | E45: 13 | F45: 11411 | G45: 14 | H45: 11422 | K45: 0 | L45: 1111
A46: 21 | B46: 21623 | C46: 21 | D46: 21639 | E46: 22 | F46: 21646 | G46: 23 | H46: 21652 | K46: 0 | L46: 2222
A47: 12 | B47: 22025 | C47: 14 | D47: 22069 | E47: 13 | F47: 22079 | G47: 14 | H47: 22084 | K47: 0 | L47: 1111
A48: 12 | B48: 22255 | C48: 14 | D48: 22262 | E48: 13 | F48: 22272 | L48: 111

Sheet !M905910.102
A1: Report for:!M905910.102
A2: Date: | B2: <date>
A3: Hen: | B3: <hen> | F3: Correct Sequence | G3: =Start!J2 -> 2212 | P3: Total Sequences in Data | Q3: =4994-COUNTBLANK(L7:L5000) -> 38 | V3: Total Sequences in Block Data | W3: =COUNTA(L7:L12) -> 6 | AA3: Total Sequences in Block Data | AB3: =COUNTA(L13:L19) -> 7 | AF3: Total Sequences in Block Data | AG3: =COUNTA(L20:L25) -> 6 | AK3: Total Sequences in Block Data | AL3: =COUNTA(L26:L31) -> 6 | AP3: Total Sequences in Block Data | AQ3: =COUNTA(L32:L38) -> 7 | AU3: Total Sequences in Block Data | AV3: =COUNTA(L39:L44) -> 6
P4: Total Sequences in Summary | Q4: =SUM(O7:O22) -> 38 | V4: Total Sequences in Block Summary | W4: =SUM(U7:U22) -> 6 | AA4: Total Sequences in Block Summary | AB4: =SUM(Z7:Z22) -> 7 | AF4: Total Sequences in Block Summary | AG4: =SUM(AE7:AE22) -> 6 | AK4: Total Sequences in Block Summary | AL4: =SUM(AJ7:AJ22) -> 6 | AP4: Total Sequences in Block Summary | AQ4: =SUM(AO7:AO22) -> 7 | AU4: Total Sequences in Block Summary | AV4: =SUM(AT7:AT22) -> 6
T5: Block 1 | Y5: Block 2 | AD5: Block 3 | AI5: Block 4 | AN5: Block 5 | AS5: Block 6
A6: Sequence Component 1 | B6: Time 1 | C6: Sequence Component 2 | D6: Time 2 | E6: Sequence Component 3 | F6: Time 3 | G6: Sequence Component 4 | H6: Time 4 | I6: Sequence Component 5 | J6: Time 5 | K6: Correct? 0=No 1=Yes | L6: Sequence | N6: Frequency | P6: Relative Frequency | Q6: Variability | T6: Frequency | V6: Relative Frequency | W6: Variability | Y6: Frequency | AA6: Relative Frequency | AB6: Variability | AD6: Frequency | AF6: Relative Frequency | AG6: Variability | AI6: Frequency | AK6: Relative Frequency | AL6: Variability | AN6: Frequency | AP6: Relative Frequency | AQ6: Variability | AS6: Frequency | AU6: Relative Frequency | AV6: Variability
A7: 12 | B7: 77 | C7: 14 | D7: 88 | E7: 24 | F7: 142 | G7: 23 | H7: 148 | K7: 0 | L7: 1122 | N7: 1111 | O7: =COUNTIF($L$7:$L$500,N7) -> 21 | P7: =O7/$Q$4 -> 0.5526315789 | Q7: =IF(P7=0,0,(P7*((LOG(P7))/LOG(2)))) -> -0.4728371554 | T7: =N7 -> 1111 | U7: =COUNTIF(L7:L12,T7) -> 1 | V7: =U7/(W4-U20) -> 0.1666666667 | W7: =IF(V7=0,0,(V7*((LOG(V7))/LOG(2)))) -> -0.4308270835 | Y7: =N7 -> 1111 | Z7: =COUNTIF(L13:L19,Y7) -> 4 | AA7: =Z7/(AB4-Z20) -> 0.5714285714 | AB7: =IF(AA7=0,0,(AA7*((LOG(AA7))/LOG(2)))) -> -0.4613456697 | AD7: =N7 -> 1111 | AE7: =COUNTIF(L20:L25,AD7) -> 4 | AF7: =AE7/(AG4-AE20) -> 0.6666666667 | AG7: =IF(AF7=0,0,(AF7*((LOG(AF7))/LOG(2)))) -> -0.3899750005 | AI7: =N7 -> 1111 | AJ7: =COUNTIF(L26:L31,AI7) -> 6 | AK7: =AJ7/(AL4-AJ20) -> 1 | AL7: =IF(AK7=0,0,(AK7*((LOG(AK7))/LOG(2)))) -> 0 | AN7: =N7 -> 1111 | AO7: =COUNTIF(L32:L38,AN7) -> 2 | AP7: =AO7/(AQ4-AO20) -> 0.2857142857 | AQ7: =IF(AP7=0,0,(AP7*((LOG(AP7))/LOG(2)))) -> -0.5163871206 | AS7: =N7 -> 1111 | AT7: =COUNTIF(L39:L44,AS7) -> 4 | AU7: =AT7/(AV4-AT20) -> 0.6666666667 | AV7: =IF(AU7=0,0,(AU7*((LOG(AU7))/LOG(2)))) -> -0.3899750005
A8: 12 | B8: 255 | C8: 23 | D8: 272 | E8: 24 | F8: 276 | G8: 23 | H8: 281 | K8: 0 | L8: 1222 | N8: 1112 | O8: =COUNTIF($L$7:$L$500,N8) -> 6 | P8: =O8/$Q$4 -> 0.1578947368 | Q8: =IF(P8=0,0,(P8*((LOG(P8))/LOG(2)))) -> -0.4204681599 | T8: =N8 -> 1112 | U8: =COUNTIF(L7:L12,T8) -> 1 | V8: =U8/(W4-U20) -> 0.1666666667 | W8: =IF(V8=0,0,(V8*((LOG(V8))/LOG(2)))) -> -0.4308270835 | Y8: =N8 -> 1112 | Z8: =COUNTIF(L13:L19,Y8) -> 2 | AA8: =Z8/(AB4-Z20) -> 0.2857142857 | AB8: =IF(AA8=0,0,(AA8*((LOG(AA8))/LOG(2)))) -> -0.5163871206 | AD8: =N8 -> 1112 | AE8: =COUNTIF(L20:L25,AD8) -> 1 | AF8: =AE8/(AG4-AE20) -> 0.1666666667 | AG8: =IF(AF8=0,0,(AF8*((LOG(AF8))/LOG(2)))) -> -0.4308270835 | AI8: =N8 -> 1112 | AJ8: =COUNTIF(L26:L31,AI8) -> 0 | AK8: =AJ8/(AL4-AJ20) -> 0 | AL8: =IF(AK8=0,0,(AK8*((LOG(AK8))/LOG(2)))) -> 0 | AN8: =N8 -> 1112 | AO8: =COUNTIF(L32:L38,AN8) -> 1 | AP8: =AO8/(AQ4-AO20) -> 0.1428571429 | AQ8: =IF(AP8=0,0,(AP8*((LOG(AP8))/LOG(2)))) -> -0.4010507032 | AS8: =N8 -> 1112 | AT8: =COUNTIF(L39:L44,AS8) -> 1 | AU8: =AT8/(AV4-AT20) -> 0.1666666667 | AV8: =IF(AU8=0,0,(AU8*((LOG(AU8))/LOG(2)))) -> -0.4308270835
A9: 21 | B9: 385 | C9: 21 | D9: 391 | E9: 22 | F9: 396 | G9: 23 | H9: 402 | K9: 0 | L9: 2222 | N9: 1121 | O9: =COUNTIF($L$7:$L$500,N9) -> 0 | P9: =O9/$Q$4 -> 0 | Q9: =IF(P9=0,0,(P9*((LOG(P9))/LOG(2)))) -> 0 | T9: =N9 -> 1121 | U9: =COUNTIF(L7:L12,T9) -> 0 | V9: =U9/(W4-U20) -> 0 | W9: =IF(V9=0,0,(V9*((LOG(V9))/LOG(2)))) -> 0 | Y9: =N9 -> 1121 | Z9: =COUNTIF(L13:L19,Y9) -> 0 | AA9: =Z9/(AB4-Z20) -> 0 | AB9: =IF(AA9=0,0,(AA9*((LOG(AA9))/LOG(2)))) -> 0 | AD9: =N9 -> 1121 | AE9: =COUNTIF(L20:L25,AD9) -> 0 | AF9: =AE9/(AG4-AE20) -> 0 | AG9: =IF(AF9=0,0,(AF9*((LOG(AF9))/LOG(2)))) -> 0 | AI9: =N9 -> 1121 | AJ9: =COUNTIF(L26:L31,AI9) -> 0 | AK9: =AJ9/(AL4-AJ20) -> 0 | AL9: =IF(AK9=0,0,(AK9*((LOG(AK9))/LOG(2)))) -> 0 | AN9: =N9 -> 1121 | AO9: =COUNTIF(L32:L38,AN9) -> 0 | AP9: =AO9/(AQ4-AO20) -> 0 | AQ9: =IF(AP9=0,0,(AP9*((LOG(AP9))/LOG(2)))) -> 0 | AS9: =N9 -> 1121 | AT9: =COUNTIF(L39:L44,AS9) -> 0 | AU9: =AT9/(AV4-AT20) -> 0 | AV9: =IF(AU9=0,0,(AU9*((LOG(AU9))/LOG(2)))) -> 0
A10: 12 | B10: 503 | C10: 14 | D10: 511 | E10: 13 | F10: 517 | G10: 14 | H10: 523 | K10: 0 | L10: 1111 | N10: 1122 | O10: =COUNTIF($L$7:$L$500,N10) -> 7 | P10: =O10/$Q$4 -> 0.1842105263 | Q10: =IF(P10=0,0,(P10*((LOG(P10))/LOG(2)))) -> -0.4495791616 | T10: =N10 -> 1122 | U10: =COUNTIF(L7:L12,T10) -> 2 | V10: =U10/(W4-U20) -> 0.3333333333 | W10: =IF(V10=0,0,(V10*((LOG(V10))/LOG(2)))) -> -0.5283208336 | Y10: =N10 -> 1122 | Z10: =COUNTIF(L13:L19,Y10) -> 1 | AA10: =Z10/(AB4-Z20) -> 0.1428571429 | AB10: =IF(AA10=0,0,(AA10*((LOG(AA10))/LOG(2)))) -> -0.4010507032 | AD10: =N10 -> 1122 | AE10: =COUNTIF(L20:L25,AD10) -> 1 | AF10: =AE10/(AG4-AE20) -> 0.1666666667 | AG10: =IF(AF10=0,0,(AF10*((LOG(AF10))/LOG(2)))) -> -0.4308270835 | AI10: =N10 -> 1122 | AJ10: =COUNTIF(L26:L31,AI10) -> 0 | AK10: =AJ10/(AL4-AJ20) -> 0 | AL10: =IF(AK10=0,0,(AK10*((LOG(AK10))/LOG(2)))) -> 0 | AN10: =N10 -> 1122 | AO10: =COUNTIF(L32:L38,AN10) -> 2 | AP10: =AO10/(AQ4-AO20) -> 0.2857142857 | AQ10: =IF(AP10=0,0,(AP10*((LOG(AP10))/LOG(2)))) -> -0.5163871206 | AS10: =N10 -> 1122 | AT10: =COUNTIF(L39:L44,AS10) -> 1 | AU10: =AT10/(AV4-AT20) -> 0.1666666667 | AV10: =IF(AU10=0,0,(AU10*((LOG(AU10))/LOG(2)))) -> -0.4308270835
A11: 12 | B11: 616 | C11: 14 | D11: 622 | E11: 13 | F11: 629 | G11: 23 | H11: 654 | K11: 0 | L11: 1112 | N11: 1211 | O11: =COUNTIF($L$7:$L$500,N11) -> 0 | P11: =O11/$Q$4 -> 0 | Q11: =IF(P11=0,0,(P11*((LOG(P11))/LOG(2)))) -> 0 | T11: =N11 -> 1211 | U11: =COUNTIF(L7:L12,T11) -> 0 | V11: =U11/(W4-U20) -> 0 | W11: =IF(V11=0,0,(V11*((LOG(V11))/LOG(2)))) -> 0 | Y11: =N11 -> 1211 | Z11: =COUNTIF(L13:L19,Y11) -> 0 | AA11: =Z11/(AB4-Z20) -> 0 | AB11: =IF(AA11=0,0,(AA11*((LOG(AA11))/LOG(2)))) -> 0 | AD11: =N11 -> 1211 | AE11: =COUNTIF(L20:L25,AD11) -> 0 | AF11: =AE11/(AG4-AE20) -> 0 | AG11: =IF(AF11=0,0,(AF11*((LOG(AF11))/LOG(2)))) -> 0 | AI11: =N11 -> 1211 | AJ11: =COUNTIF(L26:L31,AI11) -> 0 | AK11: =AJ11/(AL4-AJ20) -> 0 | AL11: =IF(AK11=0,0,(AK11*((LOG(AK11))/LOG(2)))) -> 0 | AN11: =N11 -> 1211 | AO11: =COUNTIF(L32:L38,AN11) -> 0 | AP11: =AO11/(AQ4-AO20) -> 0 | AQ11: =IF(AP11=0,0,(AP11*((LOG(AP11))/LOG(2)))) -> 0 | AS11: =N11 -> 1211 | AT11: =COUNTIF(L39:L44,AS11) -> 0 | AU11: =AT11/(AV4-AT20) -> 0 | AV11: =IF(AU11=0,0,(AU11*((LOG(AU11))/LOG(2)))) -> 0
A12: 12 | B12: 762 | C12: 14 | D12: 769 | E12: 24 | F12: 791 | G12: 23 | H12: 801 | K12: 0 | L12: 1122 | N12: 1212 | O12: =COUNTIF($L$7:$L$500,N12) -> 0 | P12: =O12/$Q$4 -> 0 | Q12: =IF(P12=0,0,(P12*((LOG(P12))/LOG(2)))) -> 0 | T12: =N12 -> 1212 | U12: =COUNTIF(L7:L12,T12) -> 0 | V12: =U12/(W4-U20) -> 0 | W12: =IF(V12=0,0,(V12*((LOG(V12))/LOG(2)))) -> 0 | Y12: =N12 -> 1212 | Z12: =COUNTIF(L13:L19,Y12) -> 0 | AA12: =Z12/(AB4-Z20) -> 0 | AB12: =IF(AA12=0,0,(AA12*((LOG(AA12))/LOG(2)))) -> 0 | AD12: =N12 -> 1212 | AE12: =COUNTIF(L20:L25,AD12) -> 0 | AF12: =AE12/(AG4-AE20) -> 0 | AG12: =IF(AF12=0,0,(AF12*((LOG(AF12))/LOG(2)))) -> 0 | AI12: =N12 -> 1212 | AJ12: =COUNTIF(L26:L31,AI12) -> 0 | AK12: =AJ12/(AL4-AJ20) -> 0 | AL12: =IF(AK12=0,0,(AK12*((LOG(AK12))/LOG(2)))) -> 0 | AN12: =N12 -> 1212 | AO12: =COUNTIF(L32:L38,AN12) -> 0 | AP12: =AO12/(AQ4-AO20) -> 0 | AQ12: =IF(AP12=0,0,(AP12*((LOG(AP12))/LOG(2)))) -> 0 | AS12: =N12 -> 1212 | AT12: =COUNTIF(L39:L44,AS12) -> 0 | AU12: =AT12/(AV4-AT20) -> 0 | AV12: =IF(AU12=0,0,(AU12*((LOG(AU12))/LOG(2)))) -> 0
A13: 12 | B13: 903 | C13: 14 | D13: 909 | E13: 13 | F13: 917 | G13: 23 | H13: 934 | K13: 0 | L13: 1112 | N13: 1221 | O13: =COUNTIF($L$7:$L$500,N13) -> 0 | P13: =O13/$Q$4 -> 0 | Q13: =IF(P13=0,0,(P13*((LOG(P13))/LOG(2)))) -> 0 | T13: =N13 -> 1221 | U13: =COUNTIF(L7:L12,T13) -> 0 | V13: =U13/(W4-U20) -> 0 | W13: =IF(V13=0,0,(V13*((LOG(V13))/LOG(2)))) -> 0 | Y13: =N13 -> 1221 | Z13: =COUNTIF(L13:L19,Y13) -> 0 | AA13: =Z13/(AB4-Z20) -> 0 | AB13: =IF(AA13=0,0,(AA13*((LOG(AA13))/LOG(2)))) -> 0 | AD13: =N13 -> 1221 | AE13: =COUNTIF(L20:L25,AD13) -> 0 | AF13: =AE13/(AG4-AE20) -> 0 | AG13: =IF(AF13=0,0,(AF13*((LOG(AF13))/LOG(2)))) -> 0 | AI13: =N13 -> 1221 | AJ13: =COUNTIF(L26:L31,AI13) -> 0 | AK13: =AJ13/(AL4-AJ20) -> 0 | AL13: =IF(AK13=0,0,(AK13*((LOG(AK13))/LOG(2)))) -> 0 | AN13: =N13 -> 1221 | AO13: =COUNTIF(L32:L38,AN13) -> 0 | AP13: =AO13/(AQ4-AO20) -> 0 | AQ13: =IF(AP13=0,0,(AP13*((LOG(AP13))/LOG(2)))) -> 0 | AS13: =N13 -> 1221 | AT13: =COUNTIF(L39:L44,AS13) -> 0 | AU13: =AT13/(AV4-AT20) -> 0 | AV13: =IF(AU13=0,0,(AU13*((LOG(AU13))/LOG(2)))) -> 0
A14: 12 | B14: 1034 | C14: 14 | D14: 1040 | E14: 24 | F14: 1065 | G14: 23 | H14: 1079 | K14: 0 | L14: 1122 | N14: 1222 | O14: =COUNTIF($L$7:$L$500,N14) -> 2 | P14: =O14/$Q$4 -> 0.05263157895 | Q14: =IF(P14=0,0,(P14*((LOG(P14))/LOG(2)))) -> -0.2235751323 | T14: =N14 -> 1222 | U14: =COUNTIF(L7:L12,T14) -> 1 | V14: =U14/(W4-U20) -> 0.1666666667 | W14: =IF(V14=0,0,(V14*((LOG(V14))/LOG(2)))) -> -0.4308270835 | Y14: =N14 -> 1222 | Z14: =COUNTIF(L13:L19,Y14) -> 0 | AA14: =Z14/(AB4-Z20) -> 0 | AB14: =IF(AA14=0,0,(AA14*((LOG(AA14))/LOG(2)))) -> 0 | AD14: =N14 -> 1222 | AE14: =COUNTIF(L20:L25,AD14) -> 0 | AF14: =AE14/(AG4-AE20) -> 0 | AG14: =IF(AF14=0,0,(AF14*((LOG(AF14))/LOG(2)))) -> 0 | AI14: =N14 -> 1222 | AJ14: =COUNTIF(L26:L31,AI14) -> 0 | AK14: =AJ14/(AL4-AJ20) -> 0 | AL14: =IF(AK14=0,0,(AK14*((LOG(AK14))/LOG(2)))) -> 0 | AN14: =N14 -> 1222 | AO14: =COUNTIF(L32:L38,AN14) -> 1 | AP14: =AO14/(AQ4-AO20) -> 0.1428571429 | AQ14: =IF(AP14=0,0,(AP14*((LOG(AP14))/LOG(2)))) -> -0.4010507032 | AS14: =N14 -> 1222 | AT14: =COUNTIF(L39:L44,AS14) -> 0 | AU14: =AT14/(AV4-AT20) -> 0 | AV14: =IF(AU14=0,0,(AU14*((LOG(AU14))/LOG(2)))) -> 0
A15: 12 | B15: 1180 | C15: 14 | D15: 1185 | E15: 13 | F15: 1194 | G15: 23 | H15: 1208 | K15: 0 | L15: 1112 | N15: 2111 | O15: =COUNTIF($L$7:$L$500,N15) -> 0 | P15: =O15/$Q$4 -> 0 | Q15: =IF(P15=0,0,(P15*((LOG(P15))/LOG(2)))) -> 0 | T15: =N15 -> 2111 | U15: =COUNTIF(L7:L12,T15) -> 0 | V15: =U15/(W4-U20) -> 0 | W15: =IF(V15=0,0,(V15*((LOG(V15))/LOG(2)))) -> 0 | Y15: =N15 -> 2111 | Z15: =COUNTIF(L13:L19,Y15) -> 0 | AA15: =Z15/(AB4-Z20) -> 0 | AB15: =IF(AA15=0,0,(AA15*((LOG(AA15))/LOG(2)))) -> 0 | AD15: =N15 -> 2111 | AE15: =COUNTIF(L20:L25,AD15) -> 0 | AF15: =AE15/(AG4-AE20) -> 0 | AG15: =IF(AF15=0,0,(AF15*((LOG(AF15))/LOG(2)))) -> 0 | AI15: =N15 -> 2111 | AJ15: =COUNTIF(L26:L31,AI15) -> 0 | AK15: =AJ15/(AL4-AJ20) -> 0 | AL15: =IF(AK15=0,0,(AK15*((LOG(AK15))/LOG(2)))) -> 0 | AN15: =N15 -> 2111 | AO15: =COUNTIF(L32:L38,AN15) -> 0 | AP15: =AO15/(AQ4-AO20) -> 0 | AQ15: =IF(AP15=0,0,(AP15*((LOG(AP15))/LOG(2)))) -> 0 | AS15: =N15 -> 2111 | AT15: =COUNTIF(L39:L44,AS15) -> 0 | AU15: =AT15/(AV4-AT20) -> 0 | AV15: =IF(AU15=0,0,(AU15*((LOG(AU15))/LOG(2)))) -> 0
A16: 12 | B16: 1314 | C16: 14 | D16: 1326 | E16: 13 | F16: 1331 | G16: 14 | H16: 1346 | K16: 0 | L16: 1111 | N16: 2112 | O16: =COUNTIF($L$7:$L$500,N16) -> 0 | P16: =O16/$Q$4 -> 0 | Q16: =IF(P16=0,0,(P16*((LOG(P16))/LOG(2)))) -> 0 | T16: =N16 -> 2112 | U16: =COUNTIF(L7:L12,T16) -> 0 | V16: =U16/(W4-U20) -> 0 | W16: =IF(V16=0,0,(V16*((LOG(V16))/LOG(2)))) -> 0 | Y16: =N16 -> 2112 | Z16: =COUNTIF(L13:L19,Y16) -> 0 | AA16: =Z16/(AB4-Z20) -> 0 | AB16: =IF(AA16=0,0,(AA16*((LOG(AA16))/LOG(2)))) -> 0 | AD16: =N16 -> 2112 | AE16: =COUNTIF(L20:L25,AD16) -> 0 | AF16: =AE16/(AG4-AE20) -> 0 | AG16: =IF(AF16=0,0,(AF16*((LOG(AF16))/LOG(2)))) -> 0 | AI16: =N16 -> 2112 | AJ16: =COUNTIF(L26:L31,AI16) -> 0 | AK16: =AJ16/(AL4-AJ20) -> 0 | AL16: =IF(AK16=0,0,(AK16*((LOG(AK16))/LOG(2)))) -> 0 | AN16: =N16 -> 2112 | AO16: =COUNTIF(L32:L38,AN16) -> 0 | AP16: =AO16/(AQ4-AO20) -> 0 | AQ16: =IF(AP16=0,0,(AP16*((LOG(AP16))/LOG(2)))) -> 0 | AS16: =N16 -> 2112 | AT16: =COUNTIF(L39:L44,AS16) -> 0 | AU16: =AT16/(AV4-AT20) -> 0 | AV16: =IF(AU16=0,0,(AU16*((LOG(AU16))/LOG(2)))) -> 0
A17: 12 | B17: 1448 | C17: 14 | D17: 1455 | E17: 13 | F17: 1460 | G17: 14 | H17: 1470 | K17: 0 | L17: 1111 | N17: 2121 | O17: =COUNTIF($L$7:$L$500,N17) -> 0 | P17: =O17/$Q$4 -> 0 | Q17: =IF(P17=0,0,(P17*((LOG(P17))/LOG(2)))) -> 0 | T17: =N17 -> 2121 | U17: =COUNTIF(L7:L12,T17) -> 0 | V17: =U17/(W4-U20) -> 0 | W17: =IF(V17=0,0,(V17*((LOG(V17))/LOG(2)))) -> 0 | Y17: =N17 -> 2121 | Z17: =COUNTIF(L13:L19,Y17) -> 0 | AA17: =Z17/(AB4-Z20) -> 0 | AB17: =IF(AA17=0,0,(AA17*((LOG(AA17))/LOG(2)))) -> 0 | AD17: =N17 -> 2121 | AE17: =COUNTIF(L20:L25,AD17) -> 0 | AF17: =AE17/(AG4-AE20) -> 0 | AG17: =IF(AF17=0,0,(AF17*((LOG(AF17))/LOG(2)))) -> 0 | AI17: =N17 -> 2121 | AJ17: =COUNTIF(L26:L31,AI17) -> 0 | AK17: =AJ17/(AL4-AJ20) -> 0 | AL17: =IF(AK17=0,0,(AK17*((LOG(AK17))/LOG(2)))) -> 0 | AN17: =N17 -> 2121 | AO17: =COUNTIF(L32:L38,AN17) -> 0 | AP17: =AO17/(AQ4-AO20) -> 0 | AQ17: =IF(AP17=0,0,(AP17*((LOG(AP17))/LOG(2)))) -> 0 | AS17: =N17 -> 2121 | AT17: =COUNTIF(L39:L44,AS17) -> 0 | AU17: =AT17/(AV4-AT20) -> 0 | AV17: =IF(AU17=0,0,(AU17*((LOG(AU17))/LOG(2)))) -> 0
A18: 12 | B18: 1573 | C18: 14 | D18: 1579 | E18: 13 | F18: 1585 | G18: 14 | H18: 1589 | K18: 0 | L18: 1111 | N18: 2122 | O18: =COUNTIF($L$7:$L$500,N18) -> 0 | P18: =O18/$Q$4 -> 0 | Q18: =IF(P18=0,0,(P18*((LOG(P18))/LOG(2)))) -> 0 | T18: =N18 -> 2122 | U18: =COUNTIF(L7:L12,T18) -> 0 | V18: =U18/(W4-U20) -> 0 | W18: =IF(V18=0,0,(V18*((LOG(V18))/LOG(2)))) -> 0 | Y18: =N18 -> 2122 | Z18: =COUNTIF(L13:L19,Y18) -> 0 | AA18: =Z18/(AB4-Z20) -> 0 | AB18: =IF(AA18=0,0,(AA18*((LOG(AA18))/LOG(2)))) -> 0 | AD18: =N18 -> 2122 | AE18: =COUNTIF(L20:L25,AD18) -> 0 | AF18: =AE18/(AG4-AE20) -> 0 | AG18: =IF(AF18=0,0,(AF18*((LOG(AF18))/LOG(2)))) -> 0 | AI18: =N18 -> 2122 | AJ18: =COUNTIF(L26:L31,AI18) -> 0 | AK18: =AJ18/(AL4-AJ20) -> 0 | AL18: =IF(AK18=0,0,(AK18*((LOG(AK18))/LOG(2)))) -> 0 | AN18: =N18 -> 2122 | AO18: =COUNTIF(L32:L38,AN18) -> 0 | AP18: =AO18/(AQ4-AO20) -> 0 | AQ18: =IF(AP18=0,0,(AP18*((LOG(AP18))/LOG(2)))) -> 0 | AS18: =N18 -> 2122 | AT18: =COUNTIF(L39:L44,AS18) -> 0 | AU18: =AT18/(AV4-AT20) -> 0 | AV18: =IF(AU18=0,0,(AU18*((LOG(AU18))/LOG(2)))) -> 0
A19: 12 | B19: 1695 | C19: 14 | D19: 1702 | E19: 13 | F19: 1707 | G19: 14 | H19: 1719 | K19: 0 | L19: 1111 | N19: 2211 | O19: =COUNTIF($L$7:$L$500,N19) -> 0 | P19: =O19/$Q$4 -> 0 | Q19: =IF(P19=0,0,(P19*((LOG(P19))/LOG(2)))) -> 0 | T19: =N19 -> 2211 | U19: =COUNTIF(L7:L12,T19) -> 0 | V19: =U19/(W4-U20) -> 0 | W19: =IF(V19=0,0,(V19*((LOG(V19))/LOG(2)))) -> 0 | Y19: =N19 -> 2211 | Z19: =COUNTIF(L13:L19,Y19) -> 0 | AA19: =Z19/(AB4-Z20) -> 0 | AB19: =IF(AA19=0,0,(AA19*((LOG(AA19))/LOG(2)))) -> 0 | AD19: =N19 -> 2211 | AE19: =COUNTIF(L20:L25,AD19) -> 0 | AF19: =AE19/(AG4-AE20) -> 0 | AG19: =IF(AF19=0,0,(AF19*((LOG(AF19))/LOG(2)))) -> 0 | AI19: =N19 -> 2211 | AJ19: =COUNTIF(L26:L31,AI19) -> 0 | AK19: =AJ19/(AL4-AJ20) -> 0 | AL19: =IF(AK19=0,0,(AK19*((LOG(AK19))/LOG(2)))) -> 0 | AN19: =N19 -> 2211 | AO19: =COUNTIF(L32:L38,AN19) -> 0 | AP19: =AO19/(AQ4-AO20) -> 0 | AQ19: =IF(AP19=0,0,(AP19*((LOG(AP19))/LOG(2)))) -> 0 | AS19: =N19 -> 2211 | AT19: =COUNTIF(L39:L44,AS19) -> 0 | AU19: =AT19/(AV4-AT20) -> 0 | AV19: =IF(AU19=0,0,(AU19*((LOG(AU19))/LOG(2)))) -> 0
A20: 12 | B20: 1828 | C20: 14 | D20: 1837 | E20: 24 | F20: 1852 | G20: 23 | H20: 1858 | K20: 0 | L20: 1122 | N20: 2212 | O20: =COUNTIF($L$7:$L$500,N20) -> 0 | P20: =O20/$Q$4 -> 0 | Q20: =IF(P20=0,0,(P20*((LOG(P20))/LOG(2)))) -> 0 | T20: =N20 -> 2212 | U20: =COUNTIF(L7:L12,T20) -> 0 | Y20: =N20 -> 2212 | Z20: =COUNTIF(L13:L19,Y20) -> 0 | AD20: =N20 -> 2212 | AE20: =COUNTIF(L20:L25,AD20) -> 0 | AI20: =N20 -> 2212 | AJ20: =COUNTIF(L26:L31,AI20) -> 0 | AN20: =N20 -> 2212 | AO20: =COUNTIF(L32:L38,AN20) -> 0 | AS20: =N20 -> 2212 | AT20: =COUNTIF(L39:L44,AS20) -> 0
A21: 12 | B21: 1959 | C21: 14 | D21: 1964 | E21: 13 | F21: 1970 | G21: 23 | H21: 1990 | K21: 0 | L21: 1112 | N21: 2221 | O21: =COUNTIF($L$7:$L$500,N21) -> 0 | P21: =O21/$Q$4 -> 0 | Q21: =IF(P21=0,0,(P21*((LOG(P21))/LOG(2)))) -> 0 | T21: =N21 -> 2221 | U21: =COUNTIF(L7:L12,T21) -> 0 | V21: =U21/(W4-U20) -> 0 | W21: =IF(V21=0,0,(V21*((LOG(V21))/LOG(2)))) -> 0 | Y21: =N21 -> 2221 | Z21: =COUNTIF(L13:L19,Y21) -> 0 | AA21: =Z21/(AB4-Z20) -> 0 | AB21: =IF(AA21=0,0,(AA21*((LOG(AA21))/LOG(2)))) -> 0 | AD21: =N21 -> 2221 | AE21: =COUNTIF(L20:L25,AD21) -> 0 | AF21: =AE21/(AG4-AE20) -> 0 | AG21: =IF(AF21=0,0,(AF21*((LOG(AF21))/LOG(2)))) -> 0 | AI21: =N21 -> 2221 | AJ21: =COUNTIF(L26:L31,AI21) -> 0 | AK21: =AJ21/(AL4-AJ20) -> 0 | AL21: =IF(AK21=0,0,(AK21*((LOG(AK21))/LOG(2)))) -> 0 | AN21: =N21 -> 2221 | AO21: =COUNTIF(L32:L38,AN21) -> 0 | AP21: =AO21/(AQ4-AO20) -> 0 | AQ21: =IF(AP21=0,0,(AP21*((LOG(AP21))/LOG(2)))) -> 0 | AS21: =N21 -> 2221 | AT21: =COUNTIF(L39:L44,AS21) -> 0 | AU21: =AT21/(AV4-AT20) -> 0 | AV21: =IF(AU21=0,0,(AU21*((LOG(AU21))/LOG(2)))) -> 0
A22: 12 | B22: 2098 | C22: 14 | D22: 2109 | E22: 13 | F22: 2118 | G22: 14 | H22: 2128 | K22: 0 | L22: 1111 | N22: 2222 | O22: =COUNTIF($L$7:$L$500,N22) -> 2 | P22: =O22/$Q$4 -> 0.05263157895 | Q22: =IF(P22=0,0,(P22*((LOG(P22))/LOG(2)))) -> -0.2235751323 | T22: =N22 -> 2222 | U22: =COUNTIF(L7:L12,T22) -> 1 | V22: =U22/(W4-U20) -> 0.1666666667 | W22: =IF(V22=0,0,(V22*((LOG(V22))/LOG(2)))) -> -0.4308270835 | Y22: =N22 -> 2222 | Z22: =COUNTIF(L13:L19,Y22) -> 0 | AA22: =Z22/(AB4-Z20) -> 0 | AB22: =IF(AA22=0,0,(AA22*((LOG(AA22))/LOG(2)))) -> 0 | AD22: =N22 -> 2222 | AE22: =COUNTIF(L20:L25,AD22) -> 0 | AF22: =AE22/(AG4-AE20) -> 0 | AG22: =IF(AF22=0,0,(AF22*((LOG(AF22))/LOG(2)))) -> 0 | AI22: =N22 -> 2222 | AJ22: =COUNTIF(L26:L31,AI22) -> 0 | AK22: =AJ22/(AL4-AJ20) -> 0 | AL22: =IF(AK22=0,0,(AK22*((LOG(AK22))/LOG(2)))) -> 0 | AN22: =N22 -> 2222 | AO22: =COUNTIF(L32:L38,AN22) -> 1 | AP22: =AO22/(AQ4-AO20) -> 0.1428571429 | AQ22: =IF(AP22=0,0,(AP22*((LOG(AP22))/LOG(2)))) -> -0.4010507032 | AS22: =N22 -> 2222 | AT22: =COUNTIF(L39:L44,AS22) -> 0 | AU22: =AT22/(AV4-AT20) -> 0 | AV22: =IF(AU22=0,0,(AU22*((LOG(AU22))/LOG(2)))) -> 0
A23: 12 | B23: 2227 | C23: 14 | D23: 2233 | E23: 13 | F23: 2241 | G23: 14 | H23: 2250 | K23: 0 | L23: 1111 | P23: =SUM(P7:P22) -> 1 | Q23: =-SUM(Q7:Q22) -> 1.790034741 | V23: =SUM(V7:V22) -> 1 | W23: =-SUM(W7:W22) -> 2.251629167 | AA23: =SUM(AA7:AA22) -> 1 | AB23: =-SUM(AB7:AB22) -> 1.378783493 | AF23: =SUM(AF7:AF22) -> 1 | AG23: =-SUM(AG7:AG22) -> 1.251629167 | AK23: =SUM(AK7:AK22) -> 1 | AL23: =-SUM(AL7:AL22) -> 0 | AP23: =SUM(AP7:AP22) -> 1 | AQ23: =-SUM(AQ7:AQ22) -> 2.235926351 | AU23: =SUM(AU7:AU22) -> 1 | AV23: =-SUM(AV7:AV22) -> 1.251629167
A24: 12 | B24: 2361 | C24: 14 | D24: 2367 | E24: 13 | F24: 2373 | G24: 14 | H24: 2384 | K24: 0 | L24: 1111 | P24: U= | Q24: =Q23/(LOG(Q4)/LOG(2)) -> 0.3410936483 | V24: U1= | W24: =W23/(LOG(W4)/LOG(2)) -> 0.8710490643 | AA24: U2= | AB24: =AB23/(LOG(AB4)/LOG(2)) -> 0.4911325898 | AF24: U3= | AG24: =AG23/(LOG(AG4)/LOG(2)) -> 0.484196257 | AK24: U4= | AL24: =AL23/(LOG(AL4)/LOG(2)) -> 0 | AP24: U5= | AQ24: =AQ23/(LOG(AQ4)/LOG(2)) -> 0.7964530359 | AU24: U6= | AV24: =AV23/(LOG(AV4)/LOG(2)) -> 0.484196257
A25: 12 | B25: 2488 | C25: 14 | D25: 2493 | E25: 13 | F25: 2497 | G25: 14 | H25: 2503 | K25: 0 | L25: 1111
A26: 12 | B26: 2601 | C26: 14 | D26: 2607 | E26: 13 | F26: 2613 | G26: 14 | H26: 2618 | K26: 0 | L26: 1111
A27: 12 | B27: 2720 | C27: 14 | D27: 2725 | E27: 13 | F27: 2729 | G27: 14 | H27: 2734 | K27: 0 | L27: 1111 | N27: Total Target Seq
A28: 12 | B28: 2833 | C28: 14 | D28: 2847 | E28: 13 | F28: 2856 | G28: 14 | H28: 2862 | K28: 0 | L28: 1111 | N28: =COUNTIF(L7:L44,G3) -> 0 | P28: 6 | Q28: 7 | R28: 6 | S28: 6 | T28: 7 | U28: 6
A29: 12 | B29: 2959 | C29: 14 | D29: 2964 | E29: 13 | F29: 2970 | G29: 14 | H29: 2978 | K29: 0 | L29: 1111 | P29: % of reinforcement given in 6 equal intervals based on number of trials
A30: 12 | B30: 3075 | C30: 14 | D30: 3079 | E30: 13 | F30: 3087 | G30: 14 | H30: 3092 | K30: 0 | L30: 1111 | P30: %_1 | Q30: %_2 | R30: %_3 | S30: %_4 | T30: %_5 | U30: %_6
A31: 12 | B31: 3199 | C31: 14 | D31: 3205 | E31: 13 | F31: 3215 | G31: 14 | H31: 3222 | K31: 0 | L31: 1111 | O31: target sequence | P31: =$G$3 -> 2212 | Q31: =$G$3 -> 2212 | R31: =$G$3 -> 2212 | S31: =$G$3 -> 2212 | T31: =$G$3 -> 2212 | U31: =$G$3 -> 2212
A32: 12 | B32: 3325 | C32: 14 | D32: 3330 | E32: 13 | F32: 3336 | G32: 14 | H32: 3343 | K32: 0 | L32: 1111 | O32: total reinforcement | P32: =U20 -> 0 | Q32: =Z20 -> 0 | R32: =AE20 -> 0 | S32: =AJ20 -> 0 | T32: =AO20 -> 0 | U32: =AT20 -> 0
A33: 12 | B33: 3449 | C33: 14 | D33: 3455 | E33: 13 | F33: 3462 | G33: 23 | H33: 3477 | K33: 0 | L33: 1112 | O33: % target
A34: 12 | B34: 3630 | C34: 14 | D34: 3636 | E34: 13 | F34: 3651 | G34: 14 | H34: 3657 | K34: 0 | L34: 1111 | O34: CCRF
A35: 21 | B35: 4008 | C35: 21 | D35: 4014 | E35: 22 | F35: 4021 | G35: 23 | H35: 4032 | K35: 0 | L35: 2222 | O35: % CCRf
A36: 12 | B36: 10927 | C36: 14 | D36: 10938 | E36: 24 | F36: 10954 | G36: 23 | H36: 10961 | K36: 0 | L36: 1122 | O36: average response rate | P36: =H12/P28 -> 133.5 | Q36: =(H19-H12)/Q28 -> 131.1428571 | R36: =(H25-H19)/R28 -> 130.6666667 | S36: =(H31-H25)/S28 -> 119.8333333 | T36: =(H38-H31)/T28 -> 1153.571429 | U36: =(H44-H38)/U28 -> 984.8333333
A37: 12 | B37: 11070 | C37: 14 | D37: 11080 | E37: 24 | F37: 11123 | G37: 23 | H37: 11134 | K37: 0 | L37: 1122
A38: 12 | B38: 11249 | C38: 23 | D38: 11286 | E38: 24 | F38: 11292 | G38: 23 | H38: 11297 | K38: 0 | L38: 1222
A39: 12 | B39: 11410 | C39: 14 | D39: 11419 | E39: 24 | F39: 11445 | G39: 23 | H39: 11450 | K39: 0 | L39: 1122
A40: 12 | B40: 11547 | C40: 14 | D40: 11552 | E40: 13 | F40: 11558 | G40: 14 | H40: 11565 | K40: 0 | L40: 1111
A41: 12 | B41: 11660 | C41: 14 | D41: 11669 | E41: 13 | F41: 11677 | G41: 14 | H41: 11693 | K41: 0 | L41: 1111
A42: 12 | B42: 11827 | C42: 14 | D42: 11837 | E42: 13 | F42: 11844 | G42: 23 | H42: 11867 | K42: 0 | L42: 1112
A43: 12 | B43: 11982 | C43: 14 | D43: 11993 | E43: 13 | F43: 12005 | G43: 14 | H43: 12021 | K43: 0 | L43: 1111
A44: 12 | B44: 17139 | C44: 14 | D44: 17162 | E44: 13 | F44: 17187 | G44: 14 | H44: 17206 | K44: 0 | L44: 1111

Sheet !M906910.102
A1: Report for:!M906910.102
A2: Date: | B2: <date>
A3: Hen: | B3: <hen> | F3: Correct Sequence | G3: =Start!J2 -> 2212 | P3: Total Sequences in Data | Q3: =4994-COUNTBLANK(L7:L5000) -> 25 | V3: Total Sequences in Block Data | W3: =COUNTA(L7:L10) -> 4 | AA3: Total Sequences in Block Data | AB3: =COUNTA(L11:L14) -> 4 | AF3: Total Sequences in Block Data | AG3: =COUNTA(L15:L19) -> 5 | AK3: Total Sequences in Block Data | AL3: =COUNTA(L20:L23) -> 4 | AP3: Total Sequences in Block Data | AQ3: =COUNTA(L24:L27) -> 4 | AU3: Total Sequences in Block Data | AV3: =COUNTA(L28:L31) -> 4
P4: Total Sequences in Summary | Q4: =SUM(O7:O22) -> 25 | V4: Total Sequences in Block Summary | W4: =SUM(U7:U22) -> 4 | AA4: Total Sequences in Block Summary | AB4: =SUM(Z7:Z22) -> 4 | AF4: Total Sequences in Block Summary | AG4: =SUM(AE7:AE22) -> 5 | AK4: Total Sequences in Block Summary | AL4: =SUM(AJ7:AJ22) -> 4 | AP4: Total Sequences in Block Summary | AQ4: =SUM(AO7:AO22) -> 4 | AU4: Total Sequences in Block Summary | AV4: =SUM(AT7:AT22) -> 4
T5: Block 1 | Y5: Block 2 | AD5: Block 3 | AI5: Block 4 | AN5: Block 5 | AS5: Block 6
A6: Sequence Component 1 | B6: Time 1 | C6: Sequence Component 2 | D6: Time 2 | E6: Sequence Component 3 | F6: Time 3 | G6: Sequence Component 4 | H6: Time 4 | I6: Sequence Component 5 | J6: Time 5 | K6: Correct? 0=No 1=Yes | L6: Sequence | N6: Frequency | P6: Relative Frequency | Q6: Variability | T6: Frequency | V6: Relative Frequency | W6: Variability | Y6: Frequency | AA6: Relative Frequency | AB6: Variability | AD6: Frequency | AF6: Relative Frequency | AG6: Variability | AI6: Frequency | AK6: Relative Frequency | AL6: Variability | AN6: Frequency | AP6: Relative Frequency | AQ6: Variability | AS6: Frequency | AU6: Relative Frequency | AV6: Variability
A7: 12 | B7: 32 | C7: 14 | D7: 59 | E7: 13 | F7: 71 | G7: 14 | H7: 78 | K7: 0 | L7: 1111 | N7: 1111 | O7: =COUNTIF($L$7:$L$500,N7) -> 11 | P7: =O7/$Q$4 -> 0.44 | Q7: =IF(P7=0,0,(P7*((LOG(P7))/LOG(2)))) -> -0.5211468113 | T7: =N7 -> 1111 | U7: =COUNTIF(L7:L10,T7) -> 1 | V7: =U7/(W4-U20) -> 0.25 | W7: =IF(V7=0,0,(V7*((LOG(V7))/LOG(2)))) -> -0.5 | Y7: =N7 -> 1111 | Z7: =COUNTIF(L11:L14,Y7) -> 4 | AA7: =Z7/(AB4-Z20) -> 1 | AB7: =IF(AA7=0,0,(AA7*((LOG(AA7))/LOG(2)))) -> 0 | AD7: =N7 -> 1111 | AE7: =COUNTIF(L15:L19,AD7) -> 3 | AF7: =AE7/(AG4-AE20) -> 0.6 | AG7: =IF(AF7=0,0,(AF7*((LOG(AF7))/LOG(2)))) -> -0.4421793565 | AI7: =N7 -> 1111 | AJ7: =COUNTIF(L20:L23,AI7) -> 2 | AK7: =AJ7/(AL4-AJ20) -> 0.5 | AL7: =IF(AK7=0,0,(AK7*((LOG(AK7))/LOG(2)))) -> -0.5 | AN7: =N7 -> 1111 | AO7: =COUNTIF(L24:L27,AN7) -> 0 | AP7: =AO7/(AQ4-AO20) -> 0 | AQ7: =IF(AP7=0,0,(AP7*((LOG(AP7))/LOG(2)))) -> 0 | AS7: =N7 -> 1111 | AT7: =COUNTIF(L28:L31,AS7) -> 1 | AU7: =AT7/(AV4-AT20) -> 0.25 | AV7: =IF(AU7=0,0,(AU7*((LOG(AU7))/LOG(2)))) -> -0.5
A8: 12 | B8: 185 | C8: 14 | D8: 191 | E8: 13 | F8: 201 | G8: 23 | H8: 216 | K8: 0 | L8: 1112 | N8: 1112 | O8: =COUNTIF($L$7:$L$500,N8) -> 4 | P8: =O8/$Q$4 -> 0.16 | Q8: =IF(P8=0,0,(P8*((LOG(P8))/LOG(2)))) -> -0.4230169904 | T8: =N8 -> 1112 | U8: =COUNTIF(L7:L10,T8) -> 2 | V8: =U8/(W4-U20) -> 0.5 | W8: =IF(V8=0,0,(V8*((LOG(V8))/LOG(2)))) -> -0.5 | Y8: =N8 -> 1112 | Z8: =COUNTIF(L11:L14,Y8) -> 0 | AA8: =Z8/(AB4-Z20) -> 0 | AB8: =IF(AA8=0,0,(AA8*((LOG(AA8))/LOG(2)))) -> 0 | AD8: =N8 -> 1112 | AE8: =COUNTIF(L15:L19,AD8) -> 1 | AF8: =AE8/(AG4-AE20) -> 0.2 | AG8: =IF(AF8=0,0,(AF8*((LOG(AF8))/LOG(2)))) -> -0.464385619 | AI8: =N8 -> 1112 | AJ8: =COUNTIF(L20:L23,AI8) -> 0 | AK8: =AJ8/(AL4-AJ20) -> 0 | AL8: =IF(AK8=0,0,(AK8*((LOG(AK8))/LOG(2)))) -> 0 | AN8: =N8 -> 1112 | AO8: =COUNTIF(L24:L27,AN8) -> 1 | AP8: =AO8/(AQ4-AO20) -> 0.25 | AQ8: =IF(AP8=0,0,(AP8*((LOG(AP8))/LOG(2)))) -> -0.5 | AS8: =N8 -> 1112 | AT8: =COUNTIF(L28:L31,AS8) -> 0 | AU8: =AT8/(AV4-AT20) -> 0 | AV8: =IF(AU8=0,0,(AU8*((LOG(AU8))/LOG(2)))) -> 0
A9: 12 | B9: 321 | C9: 23 | D9: 340 | E9: 24 | F9: 346 | G9: 23 | H9: 351 | K9: 0 | L9: 1222 | N9: 1121 | O9: =COUNTIF($L$7:$L$500,N9) -> 0 | P9: =O9/$Q$4 -> 0 | Q9: =IF(P9=0,0,(P9*((LOG(P9))/LOG(2)))) -> 0 | T9: =N9 -> 1121 | U9: =COUNTIF(L7:L10,T9) -> 0 | V9: =U9/(W4-U20) -> 0 | W9: =IF(V9=0,0,(V9*((LOG(V9))/LOG(2)))) -> 0 | Y9: =N9 -> 1121 | Z9: =COUNTIF(L11:L14,Y9) -> 0 | AA9: =Z9/(AB4-Z20) -> 0 | AB9: =IF(AA9=0,0,(AA9*((LOG(AA9))/LOG(2)))) -> 0 | AD9: =N9 -> 1121 | AE9: =COUNTIF(L15:L19,AD9) -> 0 | AF9: =AE9/(AG4-AE20) -> 0 | AG9: =IF(AF9=0,0,(AF9*((LOG(AF9))/LOG(2)))) -> 0 | AI9: =N9 -> 1121 | AJ9: =COUNTIF(L20:L23,AI9) -> 0 | AK9: =AJ9/(AL4-AJ20) -> 0 | AL9: =IF(AK9=0,0,(AK9*((LOG(AK9))/LOG(2)))) -> 0 | AN9: =N9 -> 1121 | AO9: =COUNTIF(L24:L27,AN9) -> 0 | AP9: =AO9/(AQ4-AO20) -> 0 | AQ9: =IF(AP9=0,0,(AP9*((LOG(AP9))/LOG(2)))) -> 0 | AS9: =N9 -> 1121 | AT9: =COUNTIF(L28:L31,AS9) -> 0 | AU9: =AT9/(AV4-AT20) -> 0 | AV9: =IF(AU9=0,0,(AU9*((LOG(AU9))/LOG(2)))) -> 0
A10: 12 | B10: 456 | C10: 14 | D10: 463 | E10: 13 | F10: 474 | G10: 23 | H10: 493 | K10: 0 | L10: 1112 | N10: 1122 | O10: =COUNTIF($L$7:$L$500,N10) -> 3 | P10: =O10/$Q$4 -> 0.12 | Q10: =IF(P10=0,0,(P10*((LOG(P10))/LOG(2)))) -> -0.3670672427 | T10: =N10 -> 1122 | U10: =COUNTIF(L7:L10,T10) -> 0 | V10: =U10/(W4-U20) -> 0 | W10: =IF(V10=0,0,(V10*((LOG(V10))/LOG(2)))) -> 0 | Y10: =N10 -> 1122 | Z10: =COUNTIF(L11:L14,Y10) -> 0 | AA10: =Z10/(AB4-Z20) -> 0 | AB10: =IF(AA10=0,0,(AA10*((LOG(AA10))/LOG(2)))) -> 0 | AD10: =N10 -> 1122 | AE10: =COUNTIF(L15:L19,AD10) -> 0 | AF10: =AE10/(AG4-AE20) -> 0 | AG10: =IF(AF10=0,0,(AF10*((LOG(AF10))/LOG(2)))) -> 0 | AI10: =N10 -> 1122 | AJ10: =COUNTIF(L20:L23,AI10) -> 1 | AK10: =AJ10/(AL4-AJ20) -> 0.25 | AL10: =IF(AK10=0,0,(AK10*((LOG(AK10))/LOG(2)))) -> -0.5 | AN10: =N10 -> 1122 | AO10: =COUNTIF(L24:L27,AN10) -> 2 | AP10: =AO10/(AQ4-AO20) -> 0.5 | AQ10: =IF(AP10=0,0,(AP10*((LOG(AP10))/LOG(2)))) -> -0.5 | AS10: =N10 -> 1122 | AT10: =COUNTIF(L28:L31,AS10) -> 0 | AU10: =AT10/(AV4-AT20) -> 0 | AV10: =IF(AU10=0,0,(AU10*((LOG(AU10))/LOG(2)))) -> 0
A11: 12 | B11: 598 | C11: 14 | D11: 604 | E11: 13 | F11: 615 | G11: 14 | H11: 625 | K11: 0 | L11: 1111 | N11: 1211 | O11: =COUNTIF($L$7:$L$500,N11) -> 0 | P11: =O11/$Q$4 -> 0 | Q11: =IF(P11=0,0,(P11*((LOG(P11))/LOG(2)))) -> 0 | T11: =N11 -> 1211 | U11: =COUNTIF(L7:L10,T11) -> 0 | V11: =U11/(W4-U20) -> 0 | W11: =IF(V11=0,0,(V11*((LOG(V11))/LOG(2)))) -> 0 | Y11: =N11 -> 1211 | Z11: =COUNTIF(L11:L14,Y11) -> 0 | AA11: =Z11/(AB4-Z20) -> 0 | AB11: =IF(AA11=0,0,(AA11*((LOG(AA11))/LOG(2)))) -> 0 | AD11: =N11 -> 1211 | AE11: =COUNTIF(L15:L19,AD11) -> 0 | AF11: =AE11/(AG4-AE20) -> 0 | AG11: =IF(AF11=0,0,(AF11*((LOG(AF11))/LOG(2)))) -> 0 | AI11: =N11 -> 1211 | AJ11: =COUNTIF(L20:L23,AI11) -> 0 | AK11: =AJ11/(AL4-AJ20) -> 0 | AL11: =IF(AK11=0,0,(AK11*((LOG(AK11))/LOG(2)))) -> 0 | AN11: =N11 -> 1211 | AO11: =COUNTIF(L24:L27,AN11) -> 0 | AP11: =AO11/(AQ4-AO20) -> 0 | AQ11: =IF(AP11=0,0,(AP11*((LOG(AP11))/LOG(2)))) -> 0 | AS11: =N11 -> 1211 | AT11: =COUNTIF(L28:L31,AS11) -> 0 | AU11: =AT11/(AV4-AT20) -> 0 | AV11: =IF(AU11=0,0,(AU11*((LOG(AU11))/LOG(2)))) -> 0
A12: 12 | B12: 730 | C12: 14 | D12: 736 | E12: 13 | F12: 741 | G12: 14 | H12: 751 | K12: 0 | L12: 1111 | N12: 1212 | O12: =COUNTIF($L$7:$L$500,N12) -> 0 | P12: =O12/$Q$4 -> 0 | Q12: =IF(P12=0,0,(P12*((LOG(P12))/LOG(2)))) -> 0 | T12: =N12 -> 1212 | U12: =COUNTIF(L7:L10,T12) -> 0 | V12: =U12/(W4-U20) -> 0 | W12: =IF(V12=0,0,(V12*((LOG(V12))/LOG(2)))) -> 0 | Y12: =N12 -> 1212 | Z12: =COUNTIF(L11:L14,Y12) -> 0 | AA12: =Z12/(AB4-Z20) -> 0 | AB12: =IF(AA12=0,0,(AA12*((LOG(AA12))/LOG(2)))) -> 0 | AD12: =N12 -> 1212 | AE12: =COUNTIF(L15:L19,AD12) -> 0 | AF12: =AE12/(AG4-AE20) -> 0 | AG12: =IF(AF12=0,0,(AF12*((LOG(AF12))/LOG(2)))) -> 0 | AI12: =N12 -> 1212 | AJ12: =COUNTIF(L20:L23,AI12) -> 0 | AK12: =AJ12/(AL4-AJ20) -> 0 | AL12: =IF(AK12=0,0,(AK12*((LOG(AK12))/LOG(2)))) -> 0 | AN12: =N12 -> 1212 | AO12: =COUNTIF(L24:L27,AN12) -> 0 | AP12: =AO12/(AQ4-AO20) -> 0 | AQ12: =IF(AP12=0,0,(AP12*((LOG(AP12))/LOG(2)))) -> 0 | AS12: =N12 -> 1212 | AT12: =COUNTIF(L28:L31,AS12) -> 0 | AU12: =AT12/(AV4-AT20) -> 0 | AV12: =IF(AU12=0,0,(AU12*((LOG(AU12))/LOG(2)))) -> 0
A13: 12 | B13: 852 | C13: 14 | D13: 860 | E13: 13 | F13: 877 | G13: 14 | H13: 883 | K13: 0 | L13: 1111 | N13: 1221 | O13: =COUNTIF($L$7:$L$500,N13) -> 0 | P13: =O13/$Q$4 -> 0 | Q13: =IF(P13=0,0,(P13*((LOG(P13))/LOG(2)))) -> 0 | T13: =N13 -> 1221 | U13: =COUNTIF(L7:L10,T13) -> 0 | V13: =U13/(W4-U20) -> 0 | W13: =IF(V13=0,0,(V13*((LOG(V13))/LOG(2)))) -> 0 | Y13: =N13 -> 1221 | Z13: =COUNTIF(L11:L14,Y13) -> 0 | AA13: =Z13/(AB4-Z20) -> 0 | AB13: =IF(AA13=0,0,(AA13*((LOG(AA13))/LOG(2)))) -> 0 | AD13: =N13 -> 1221 | AE13: =COUNTIF(L15:L19,AD13) -> 0 | AF13: =AE13/(AG4-AE20) -> 0 | AG13: =IF(AF13=0,0,(AF13*((LOG(AF13))/LOG(2)))) -> 0 | AI13: =N13 -> 1221 | AJ13: =COUNTIF(L20:L23,AI13) -> 0 | AK13: =AJ13/(AL4-AJ20) -> 0 | AL13: =IF(AK13=0,0,(AK13*((LOG(AK13))/LOG(2)))) -> 0 | AN13: =N13 -> 1221 | AO13: =COUNTIF(L24:L27,AN13) -> 0 | AP13: =AO13/(AQ4-AO20) -> 0 | AQ13: =IF(AP13=0,0,(AP13*((LOG(AP13))/LOG(2)))) -> 0 | AS13: =N13 -> 1221 | AT13: =COUNTIF(L28:L31,AS13) -> 0 | AU13: =AT13/(AV4-AT20) -> 0 | AV13: =IF(AU13=0,0,(AU13*((LOG(AU13))/LOG(2)))) -> 0
A14: 12 | B14: 984 | C14: 14 | D14: 990 | E14: 13 | F14: 1011 | G14: 14 | H14: 1024 | K14: 0 | L14: 1111 | N14: 1222 | O14: =COUNTIF($L$7:$L$500,N14) -> 2 | P14: =O14/$Q$4 -> 0.08 | Q14: =IF(P14=0,0,(P14*((LOG(P14))/LOG(2)))) -> -0.2915084952 | T14: =N14 -> 1222 | U14: =COUNTIF(L7:L10,T14) -> 1 | V14: =U14/(W4-U20) -> 0.25 | W14: =IF(V14=0,0,(V14*((LOG(V14))/LOG(2)))) -> -0.5 | Y14: =N14 -> 1222 | Z14: =COUNTIF(L11:L14,Y14) -> 0 | AA14: =Z14/(AB4-Z20) -> 0 | AB14: =IF(AA14=0,0,(AA14*((LOG(AA14))/LOG(2)))) -> 0 | AD14: =N14 -> 1222 | AE14: =COUNTIF(L15:L19,AD14) -> 0 | AF14: =AE14/(AG4-AE20) -> 0 | AG14: =IF(AF14=0,0,(AF14*((LOG(AF14))/LOG(2)))) -> 0 | AI14: =N14 -> 1222 | AJ14: =COUNTIF(L20:L23,AI14) -> 0 | AK14: =AJ14/(AL4-AJ20) -> 0 | AL14: =IF(AK14=0,0,(AK14*((LOG(AK14))/LOG(2)))) -> 0 | AN14: =N14 -> 1222 | AO14: =COUNTIF(L24:L27,AN14) -> 1 | AP14: =AO14/(AQ4-AO20) -> 0.25 | AQ14: =IF(AP14=0,0,(AP14*((LOG(AP14))/LOG(2)))) -> -0.5 | AS14: =N14 -> 1222 | AT14: =COUNTIF(L28:L31,AS14) -> 0 | AU14: =AT14/(AV4-AT20) -> 0 | AV14: =IF(AU14=0,0,(AU14*((LOG(AU14))/LOG(2)))) -> 0
A15: 12 | B15: 1132 | C15: 14 | D15: 1141 | E15: 13 | F15: 1147 | G15: 23 | H15: 1168 | K15: 0 | L15: 1112 | N15: 2111 | O15: =COUNTIF($L$7:$L$500,N15) -> 0 | P15: =O15/$Q$4 -> 0 | Q15: =IF(P15=0,0,(P15*((LOG(P15))/LOG(2)))) -> 0 | T15: =N15 -> 2111 | U15: =COUNTIF(L7:L10,T15) -> 0 | V15: =U15/(W4-U20) -> 0 | W15: =IF(V15=0,0,(V15*((LOG(V15))/LOG(2)))) -> 0 | Y15: =N15 -> 2111 | Z15: =COUNTIF(L11:L14,Y15) -> 0 | AA15: =Z15/(AB4-Z20) -> 0 | AB15: =IF(AA15=0,0,(AA15*((LOG(AA15))/LOG(2)))) -> 0 | AD15: =N15 -> 2111 | AE15: =COUNTIF(L15:L19,AD15) -> 0 | AF15: =AE15/(AG4-AE20) -> 0 | AG15: =IF(AF15=0,0,(AF15*((LOG(AF15))/LOG(2)))) -> 0 | AI15: =N15 -> 2111 | AJ15: =COUNTIF(L20:L23,AI15) -> 0 | AK15: =AJ15/(AL4-AJ20) -> 0 | AL15: =IF(AK15=0,0,(AK15*((LOG(AK15))/LOG(2)))) -> 0 | AN15: =N15 -> 2111 | AO15: =COUNTIF(L24:L27,AN15) -> 0 | AP15: =AO15/(AQ4-AO20) -> 0 | AQ15: =IF(AP15=0,0,(AP15*((LOG(AP15))/LOG(2)))) -> 0 | AS15: =N15 -> 2111 | AT15: =COUNTIF(L28:L31,AS15) -> 0 | AU15: =AT15/(AV4-AT20) -> 0 | AV15: =IF(AU15=0,0,(AU15*((LOG(AU15))/LOG(2)))) -> 0
A16: 12 | B16: 1265 | C16: 14 | D16: 1272 | E16: 13 | F16: 1278 | G16: 14 | H16: 1285 | K16: 0 | L16: 1111 | N16: 2112 | O16: =COUNTIF($L$7:$L$500,N16) -> 0 | P16: =O16/$Q$4 -> 0 | Q16: =IF(P16=0,0,(P16*((LOG(P16))/LOG(2)))) -> 0 | T16: =N16 -> 2112 | U16: =COUNTIF(L7:L10,T16) -> 0 | V16: =U16/(W4-U20) -> 0 | W16: =IF(V16=0,0,(V16*((LOG(V16))/LOG(2)))) -> 0 | Y16: =N16 -> 2112 | Z16: =COUNTIF(L11:L14,Y16) -> 0 | AA16: =Z16/(AB4-Z20) -> 0 | AB16: =IF(AA16=0,0,(AA16*((LOG(AA16))/LOG(2)))) -> 0 | AD16: =N16 -> 2112 | AE16: =COUNTIF(L15:L19,AD16) -> 0 | AF16: =AE16/(AG4-AE20) -> 0 | AG16: =IF(AF16=0,0,(AF16*((LOG(AF16))/LOG(2)))) -> 0 | AI16: =N16 -> 2112 | AJ16: =COUNTIF(L20:L23,AI16) -> 0 | AK16: =AJ16/(AL4-AJ20) -> 0 | AL16: =IF(AK16=0,0,(AK16*((LOG(AK16))/LOG(2)))) -> 0 | AN16: =N16 -> 2112 | AO16: =COUNTIF(L24:L27,AN16) -> 0 | AP16: =AO16/(AQ4-AO20) -> 0 | AQ16: =IF(AP16=0,0,(AP16*((LOG(AP16))/LOG(2)))) -> 0 | AS16: =N16 -> 2112 | AT16: =COUNTIF(L28:L31,AS16) -> 0 | AU16: =AT16/(AV4-AT20) -> 0 | AV16: =IF(AU16=0,0,(AU16*((LOG(AU16))/LOG(2)))) -> 0
A17: 12 | B17: 1382 | C17: 14 | D17: 1387 | E17: 13 | F17: 1393 | G17: 14 | H17: 1399 | K17: 0 | L17: 1111 | N17: 2121 | O17: =COUNTIF($L$7:$L$500,N17) -> 0 | P17: =O17/$Q$4 -> 0 | Q17: =IF(P17=0,0,(P17*((LOG(P17))/LOG(2)))) -> 0 | T17: =N17 -> 2121 | U17: =COUNTIF(L7:L10,T17) -> 0 | V17: =U17/(W4-U20) -> 0 | W17: =IF(V17=0,0,(V17*((LOG(V17))/LOG(2)))) -> 0 | Y17: =N17 -> 2121 | Z17: =COUNTIF(L11:L14,Y17) -> 0 | AA17: =Z17/(AB4-Z20) -> 0 | AB17: =IF(AA17=0,0,(AA17*((LOG(AA17))/LOG(2)))) -> 0 | AD17: =N17 -> 2121 | AE17: =COUNTIF(L15:L19,AD17) -> 0 | AF17: =AE17/(AG4-AE20) -> 0 | AG17: =IF(AF17=0,0,(AF17*((LOG(AF17))/LOG(2)))) -> 0 | AI17: =N17 -> 2121 | AJ17: =COUNTIF(L20:L23,AI17) -> 0 | AK17: =AJ17/(AL4-AJ20) -> 0 | AL17: =IF(AK17=0,0,(AK17*((LOG(AK17))/LOG(2)))) -> 0 | AN17: =N17 -> 2121 | AO17: =COUNTIF(L24:L27,AN17) -> 0 | AP17: =AO17/(AQ4-AO20) -> 0 | AQ17: =IF(AP17=0,0,(AP17*((LOG(AP17))/LOG(2)))) -> 0 | AS17: =N17 -> 2121 | AT17: =COUNTIF(L28:L31,AS17) -> 0 | AU17: =AT17/(AV4-AT20) -> 0 | AV17: =IF(AU17=0,0,(AU17*((LOG(AU17))/LOG(2)))) -> 0
A18: 12 | B18: 1505 | C18: 14 | D18: 1511 | E18: 13 | F18: 1517 | G18: 14 | H18: 1526 | K18: 0 | L18: 1111 | N18: 2122 | O18: =COUNTIF($L$7:$L$500,N18) -> 0 | P18: =O18/$Q$4 -> 0 | Q18: =IF(P18=0,0,(P18*((LOG(P18))/LOG(2)))) -> 0 | T18: =N18 -> 2122 | U18: =COUNTIF(L7:L10,T18) -> 0 | V18: =U18/(W4-U20) -> 0 | W18: =IF(V18=0,0,(V18*((LOG(V18))/LOG(2)))) -> 0 | Y18: =N18 -> 2122 | Z18: =COUNTIF(L11:L14,Y18) -> 0 | AA18: =Z18/(AB4-Z20) -> 0 | AB18: =IF(AA18=0,0,(AA18*((LOG(AA18))/LOG(2)))) -> 0 | AD18: =N18 -> 2122 | AE18: =COUNTIF(L15:L19,AD18) -> 0 | AF18: =AE18/(AG4-AE20) -> 0 | AG18: =IF(AF18=0,0,(AF18*((LOG(AF18))/LOG(2)))) -> 0 | AI18: =N18 -> 2122 | AJ18: =COUNTIF(L20:L23,AI18) -> 0 | AK18: =AJ18/(AL4-AJ20) -> 0 | AL18: =IF(AK18=0,0,(AK18*((LOG(AK18))/LOG(2)))) -> 0 | AN18: =N18 -> 2122 | AO18: =COUNTIF(L24:L27,AN18) -> 0 | AP18: =AO18/(AQ4-AO20) -> 0 | AQ18: =IF(AP18=0,0,(AP18*((LOG(AP18))/LOG(2)))) -> 0 | AS18: =N18 -> 2122 | AT18: =COUNTIF(L28:L31,AS18) -> 0 | AU18: =AT18/(AV4-AT20) -> 0 | AV18: =IF(AU18=0,0,(AU18*((LOG(AU18))/LOG(2)))) -> 0
A19: 21 | B19: 1643 | C19: 21 | D19: 1647 | E19: 22 | F19: 1653 | G19: 23 | H19: 1658 | K19: 0 | L19: 2222 | N19: 2211 | O19: =COUNTIF($L$7:$L$500,N19) -> 0 | P19: =O19/$Q$4 -> 0 | Q19: =IF(P19=0,0,(P19*((LOG(P19))/LOG(2)))) -> 0 | T19: =N19 -> 2211 | U19: =COUNTIF(L7:L10,T19) -> 0 | V19: =U19/(W4-U20) -> 0 | W19: =IF(V19=0,0,(V19*((LOG(V19))/LOG(2)))) -> 0 | Y19: =N19 -> 2211 | Z19: =COUNTIF(L11:L14,Y19) -> 0 | AA19: =Z19/(AB4-Z20) -> 0 | AB19: =IF(AA19=0,0,(AA19*((LOG(AA19))/LOG(2)))) -> 0 | AD19: =N19 -> 2211 | AE19: =COUNTIF(L15:L19,AD19) -> 0 | AF19: =AE19/(AG4-AE20) -> 0 | AG19: =IF(AF19=0,0,(AF19*((LOG(AF19))/LOG(2)))) -> 0 | AI19: =N19 -> 2211 | AJ19: =COUNTIF(L20:L23,AI19) -> 0 | AK19: =AJ19/(AL4-AJ20) -> 0 | AL19: =IF(AK19=0,0,(AK19*((LOG(AK19))/LOG(2)))) -> 0 | AN19: =N19 -> 2211 | AO19: =COUNTIF(L24:L27,AN19) -> 0 | AP19: =AO19/(AQ4-AO20) -> 0 | AQ19: =IF(AP19=0,0,(AP19*((LOG(AP19))/LOG(2)))) -> 0 | AS19: =N19 -> 2211 | AT19: =COUNTIF(L28:L31,AS19) -> 0 | AU19: =AT19/(AV4-AT20) -> 0 | AV19: =IF(AU19=0,0,(AU19*((LOG(AU19))/LOG(2)))) -> 0
A20: 12 | B20: 1790 | C20: 14 | D20: 1801 | E20: 13 | F20: 1831 | G20: 14 | H20: 1837 | K20: 0 | L20: 1111 | N20: 2212 | O20: =COUNTIF($L$7:$L$500,N20) -> 0 | P20: =O20/$Q$4 -> 0 | Q20: =IF(P20=0,0,(P20*((LOG(P20))/LOG(2)))) -> 0 | T20: =N20 -> 2212 | U20: =COUNTIF(L7:L10,T20) -> 0 | Y20: =N20 -> 2212 | Z20: =COUNTIF(L11:L14,Y20) -> 0 | AD20: =N20 -> 2212 | AE20: =COUNTIF(L15:L19,AD20) -> 0 | AI20: =N20 -> 2212 | AJ20: =COUNTIF(L20:L23,AI20) -> 0 | AN20: =N20 -> 2212 | AO20: =COUNTIF(L24:L27,AN20) -> 0 | AS20: =N20 -> 2212 | AT20: =COUNTIF(L28:L31,AS20) -> 0
A21: 12 | B21: 1951 | C21: 14 | D21: 1961 | E21: 13 | F21: 1974 | G21: 14 | H21: 1993 | K21: 0 | L21: 1111 | N21: 2221 | O21: =COUNTIF($L$7:$L$500,N21) -> 0 | P21: =O21/$Q$4 -> 0 | Q21: =IF(P21=0,0,(P21*((LOG(P21))/LOG(2)))) -> 0 | T21: =N21 -> 2221 | U21: =COUNTIF(L7:L10,T21) -> 0 | V21: =U21/(W4-U20) -> 0 | W21: =IF(V21=0,0,(V21*((LOG(V21))/LOG(2)))) -> 0 | Y21: =N21 -> 2221 | Z21: =COUNTIF(L11:L14,Y21) -> 0 | AA21: =Z21/(AB4-Z20) -> 0 | AB21: =IF(AA21=0,0,(AA21*((LOG(AA21))/LOG(2)))) -> 0 | AD21: =N21 -> 2221 | AE21: =COUNTIF(L15:L19,AD21) -> 0 | AF21: =AE21/(AG4-AE20) -> 0 | AG21: =IF(AF21=0,0,(AF21*((LOG(AF21))/LOG(2)))) -> 0 | AI21: =N21 -> 2221 | AJ21: =COUNTIF(L20:L23,AI21) -> 0 | AK21: =AJ21/(AL4-AJ20) -> 0 | AL21: =IF(AK21=0,0,(AK21*((LOG(AK21))/LOG(2)))) -> 0 | AN21: =N21 -> 2221 | AO21: =COUNTIF(L24:L27,AN21) -> 0 | AP21: =AO21/(AQ4-AO20) -> 0 | AQ21: =IF(AP21=0,0,(AP21*((LOG(AP21))/LOG(2)))) -> 0 | AS21: =N21 -> 2221 | AT21: =COUNTIF(L28:L31,AS21) -> 0 | AU21: =AT21/(AV4-AT20) -> 0 | AV21: =IF(AU21=0,0,(AU21*((LOG(AU21))/LOG(2)))) -> 0
A22: 21 | B22: 14853 | C22: 21 | D22: 14863 | E22: 22 | F22: 14872 | G22: 23 | H22: 14881 | K22: 0 | L22: 2222 | N22: 2222 | O22: =COUNTIF($L$7:$L$500,N22) -> 5 | P22: =O22/$Q$4 -> 0.2 | Q22: =IF(P22=0,0,(P22*((LOG(P22))/LOG(2)))) -> -0.464385619 | T22: =N22 -> 2222 | U22: =COUNTIF(L7:L10,T22) -> 0 | V22: =U22/(W4-U20) -> 0 | W22: =IF(V22=0,0,(V22*((LOG(V22))/LOG(2)))) -> 0 | Y22: =N22 -> 2222 | Z22: =COUNTIF(L11:L14,Y22) -> 0 | AA22: =Z22/(AB4-Z20) -> 0 | AB22: =IF(AA22=0,0,(AA22*((LOG(AA22))/LOG(2)))) -> 0 | AD22: =N22 -> 2222 | AE22: =COUNTIF(L15:L19,AD22) -> 1 | AF22: =AE22/(AG4-AE20) -> 0.2 | AG22: =IF(AF22=0,0,(AF22*((LOG(AF22))/LOG(2)))) -> -0.464385619 | AI22: =N22 -> 2222 | AJ22: =COUNTIF(L20:L23,AI22) -> 1 | AK22: =AJ22/(AL4-AJ20) -> 0.25 | AL22: =IF(AK22=0,0,(AK22*((LOG(AK22))/LOG(2)))) -> -0.5 | AN22: =N22 -> 2222 | AO22: =COUNTIF(L24:L27,AN22) -> 0 | AP22: =AO22/(AQ4-AO20) -> 0 | AQ22: =IF(AP22=0,0,(AP22*((LOG(AP22))/LOG(2)))) -> 0 | AS22: =N22 -> 2222 | AT22: =COUNTIF(L28:L31,AS22) -> 3 | AU22: =AT22/(AV4-AT20) -> 0.75 | AV22: =IF(AU22=0,0,(AU22*((LOG(AU22))/LOG(2)))) -> -0.3112781245
A23: 12 | B23: 15457 | C23: 14 | D23: 15468 | E23: 24 | F23: 15489 | G23: 23 | H23: 15495 | K23: 0 | L23: 1122 | P23: =SUM(P7:P22) -> 1 | Q23: =-SUM(Q7:Q22) -> 2.067125159 | V23: =SUM(V7:V22) -> 1 | W23: =-SUM(W7:W22) -> 1.5 | AA23: =SUM(AA7:AA22) -> 1 | AB23: =-SUM(AB7:AB22) -> 0 | AF23: =SUM(AF7:AF22) -> 1 | AG23: =-SUM(AG7:AG22) -> 1.370950594 | AK23: =SUM(AK7:AK22) -> 1 | AL23: =-SUM(AL7:AL22) -> 1.5 | AP23: =SUM(AP7:AP22) -> 1 | AQ23: =-SUM(AQ7:AQ22) -> 1.5 | AU23: =SUM(AU7:AU22) -> 1 | AV23: =-SUM(AV7:AV22) -> 0.8112781245
A24: 12 | B24: 15610 | C24: 14 | D24: 15621 | E24: 13 | F24: 15640 | G24: 23 | H24: 15654 | K24: 0 | L24: 1112 | P24: U= | Q24: =Q23/(LOG(Q4)/LOG(2)) -> 0.4451311742 | V24: U1= | W24: =W23/(LOG(W4)/LOG(2)) -> 0.75 | AA24: U2= | AB24: =AB23/(LOG(AB4)/LOG(2)) -> 0 | AF24: U3= | AG24: =AG23/(LOG(AG4)/LOG(2)) -> 0.5904362833 | AK24: U4= | AL24: =AL23/(LOG(AL4)/LOG(2)) -> 0.75 | AP24: U5= | AQ24: =AQ23/(LOG(AQ4)/LOG(2)) -> 0.75 | AU24: U6= | AV24: =AV23/(LOG(AV4)/LOG(2)) -> 0.4056390622
A25: 12 | B25: 15766 | C25: 14 | D25: 15774 | E25: 24 | F25: 15805 | G25: 23 | H25: 15814 | K25: 0 | L25: 1122
A26: 12 | B26: 15930 | C26: 14 | D26: 15940 | E26: 24 | F26: 15966 | G26: 23 | H26: 15972 | K26: 0 | L26: 1122
A27: 12 | B27: 16181 | C27: 23 | D27: 16207 | E27: 24 | F27: 16214 | G27: 23 | H27: 16220 | K27: 0 | L27: 1222 | N27: Total Target Seq
A28: 12 | B28: 16372 | C28: 14 | D28: 16380 | E28: 13 | F28: 16392 | G28: 14 | H28: 16399 | K28: 0 | L28: 1111 | N28: =COUNTIF(L7:L31,G3) -> 0 | P28: 4 | Q28: 4 | R28: 5 | S28: 4 | T28: 4 | U28: 4
A29: 21 | B29: 16611 | C29: 21 | D29: 16630 | E29: 22 | F29: 16637 | G29: 23 | H29: 16646 | K29: 0 | L29: 2222 | P29: % of reinforcement given in 6 equal intervals based on number of trials
A30: 21 | B30: 20805 | C30: 21 | D30: 20814 | E30: 22 | F30: 20837 | G30: 23 | H30: 20851 | K30: 0 | L30: 2222 | P30: %_1 | Q30: %_2 | R30: %_3 | S30: %_4 | T30: %_5 | U30: %_6
A31: 21 | B31: 20994 | C31: 21 | D31: 21002 | E31: 22 | F31: 21010 | G31: 23 | H31: 21016 | K31: 0 | L31: 2222 | O31: target sequence | P31: =$G$3 -> 2212 | Q31: =$G$3 -> 2212 | R31: =$G$3 -> 2212 | S31: =$G$3 -> 2212 | T31: =$G$3 -> 2212 | U31: =$G$3 -> 2212
O32: total reinforcement | P32: =U20 -> 0 | Q32: =Z20 -> 0 | R32: =AE20 -> 0 | S32: =AJ20 -> 0 | T32: =AO20 -> 0 | U32: =AT20 -> 0
O33: % target
O34: CCRF
O35: % CCRf
O36: average response rate | P36: =H10/P28 -> 123.25 | Q36: =(H14-H10)/Q28 -> 132.75 | R36: =(H19-H14)/R28 -> 126.8 | S36: =(H23-H19)/S28 -> 3459.25 | T36: =(H27-H23)/T28 -> 181.25 | U36: =(H31-H27)/U28 -> 1199

Sheet !M907940.102
A1: Report for:!M907940.102
A2: Date: | B2: <date>
A3: Hen: | B3: <hen> | F3: Correct Sequence | G3: =Start!J2 -> 2212 | P3: Total Sequences in Data | Q3: =4994-COUNTBLANK(L7:L5000) -> 18 | V3: Total Sequences in Block Data | W3: =COUNTA(L7:L9) -> 3 | AA3: Total Sequences in Block Data | AB3: =COUNTA(L10:L12) -> 3 | AF3: Total Sequences in Block Data | AG3: =COUNTA(L13:L15) -> 3 | AK3: Total Sequences in Block Data | AL3: =COUNTA(L16:L18) -> 3 | AP3: Total Sequences in Block Data | AQ3: =COUNTA(L19:L21) -> 3 | AU3: Total Sequences in Block Data | AV3: =COUNTA(L22:L24) -> 3
P4: Total Sequences in Summary | Q4: =SUM(O7:O22) -> 18 | V4: Total Sequences in Block Summary | W4: =SUM(U7:U22) -> 3 | AA4: Total Sequences in Block Summary | AB4: =SUM(Z7:Z22) -> 3 | AF4: Total Sequences in Block Summary | AG4: =SUM(AE7:AE22) -> 3 | AK4: Total Sequences in Block Summary | AL4: =SUM(AJ7:AJ22) -> 3 | AP4: Total Sequences in Block Summary | AQ4: =SUM(AO7:AO22) -> 3 | AU4: Total Sequences in Block Summary | AV4: =SUM(AT7:AT22) -> 3
T5: Block 1 | Y5: Block 2 | AD5: Block 3 | AI5: Block 4 | AN5: Block 5 | AS5: Block 6
A6: Sequence Component 1 | B6: Time 1 | C6: Sequence Component 2 | D6: Time 2 | E6: Sequence Component 3 | F6: Time 3 | G6: Sequence Component 4 | H6: Time 4 | I6: Sequence Component 5 | J6: Time 5 | K6: Correct? 0=No 1=Yes | L6: Sequence | N6: Frequency | P6: Relative Frequency | Q6: Variability | T6: Frequency | V6: Relative Frequency | W6: Variability | Y6: Frequency | AA6: Relative Frequency | AB6: Variability | AD6: Frequency | AF6: Relative Frequency | AG6: Variability | AI6: Frequency | AK6: Relative Frequency | AL6: Variability | AN6: Frequency | AP6: Relative Frequency | AQ6: Variability | AS6: Frequency | AU6: Relative Frequency | AV6: Variability
A7: 12 | B7: 39 | C7: 14 | D7: 80 | E7: 13 | F7: 86 | G7: 14 | H7: 97 | K7: 0 | L7: 1111 | N7: 1111 | O7: =COUNTIF($L$7:$L$500,N7) -> 13 | P7: =O7/$Q$4 -> 0.7222222222 | Q7: =IF(P7=0,0,(P7*((LOG(P7))/LOG(2)))) -> -0.3390727046 | T7: =N7 -> 1111 | U7: =COUNTIF(L7:L9,T7) -> 3 | V7: =U7/(W4-U20) -> 1 | W7: =IF(V7=0,0,(V7*((LOG(V7))/LOG(2)))) -> 0 | Y7: =N7 -> 1111 | Z7: =COUNTIF(L10:L12,Y7) -> 2 | AA7: =Z7/(AB4-Z20) -> 0.6666666667 | AB7: =IF(AA7=0,0,(AA7*((LOG(AA7))/LOG(2)))) -> -0.3899750005 | AD7: =N7 -> 1111 | AE7: =COUNTIF(L13:L15,AD7) -> 3 | AF7: =AE7/(AG4-AE20) -> 1 | AG7: =IF(AF7=0,0,(AF7*((LOG(AF7))/LOG(2)))) -> 0 | AI7: =N7 -> 1111 | AJ7: =COUNTIF(L16:L18,AI7) -> 3 | AK7: =AJ7/(AL4-AJ20) -> 1 | AL7: =IF(AK7=0,0,(AK7*((LOG(AK7))/LOG(2)))) -> 0 | AN7: =N7 -> 1111 | AO7: =COUNTIF(L19:L21,AN7) -> 1 | AP7: =AO7/(AQ4-AO20) -> 0.3333333333 | AQ7: =IF(AP7=0,0,(AP7*((LOG(AP7))/LOG(2)))) -> -0.5283208336 | AS7: =N7 -> 1111 | AT7: =COUNTIF(L22:L24,AS7) -> 1 | AU7: =AT7/(AV4-AT20) -> 0.3333333333 | AV7: =IF(AU7=0,0,(AU7*((LOG(AU7))/LOG(2)))) -> -0.5283208336
A8: 12 | B8: 194 | C8: 14 | D8: 200 | E8: 13 | F8: 221 | G8: 14 | H8: 228 | K8: 0 | L8: 1111 | N8: 1112 | O8: =COUNTIF($L$7:$L$500,N8) -> 0 | P8: =O8/$Q$4 -> 0 | Q8: =IF(P8=0,0,(P8*((LOG(P8))/LOG(2)))) -> 0 | T8: =N8 -> 1112 | U8: =COUNTIF(L7:L9,T8) -> 0 | V8: =U8/(W4-U20) -> 0 | W8: =IF(V8=0,0,(V8*((LOG(V8))/LOG(2)))) -> 0 | Y8: =N8 -> 1112 | Z8: =COUNTIF(L10:L12,Y8) -> 0 | AA8: =Z8/(AB4-Z20) -> 0 | AB8: =IF(AA8=0,0,(AA8*((LOG(AA8))/LOG(2)))) -> 0 | AD8: =N8 -> 1112 | AE8: =COUNTIF(L13:L15,AD8) -> 0 | AF8: =AE8/(AG4-AE20) -> 0 | AG8: =IF(AF8=0,0,(AF8*((LOG(AF8))/LOG(2)))) -> 0 | AI8: =N8 -> 1112 | AJ8: =COUNTIF(L16:L18,AI8) -> 0 | AK8: =AJ8/(AL4-AJ20) -> 0 | AL8: =IF(AK8=0,0,(AK8*((LOG(AK8))/LOG(2)))) -> 0 | AN8: =N8 -> 1112 | AO8: =COUNTIF(L19:L21,AN8) -> 0 | AP8: =AO8/(AQ4-AO20) -> 0 | AQ8: =IF(AP8=0,0,(AP8*((LOG(AP8))/LOG(2)))) -> 0 | AS8: =N8 -> 1112 | AT8: =COUNTIF(L22:L24,AS8) -> 0 | AU8: =AT8/(AV4-AT20) -> 0 | AV8: =IF(AU8=0,0,(AU8*((LOG(AU8))/LOG(2)))) -> 0
A9: 12 | B9: 327 | C9: 14 | D9: 339 | E9: 13 | F9: 375 | G9: 14 | H9: 385 | K9: 0 | L9: 1111 | N9: 1121 | O9: =COUNTIF($L$7:$L$500,N9) -> 0 | P9: =O9/$Q$4 -> 0 | Q9: =IF(P9=0,0,(P9*((LOG(P9))/LOG(2)))) -> 0 | T9: =N9 -> 1121 | U9: =COUNTIF(L7:L9,T9) -> 0 | V9: =U9/(W4-U20) -> 0 | W9: =IF(V9=0,0,(V9*((LOG(V9))/LOG(2)))) -> 0 | Y9: =N9 -> 1121 | Z9: =COUNTIF(L10:L12,Y9) -> 0 | AA9: =Z9/(AB4-Z20) -> 0 | AB9: =IF(AA9=0,0,(AA9*((LOG(AA9))/LOG(2)))) -> 0 | AD9: =N9 -> 1121 | AE9: =COUNTIF(L13:L15,AD9) -> 0 | AF9: =AE9/(AG4-AE20) -> 0 | AG9: =IF(AF9=0,0,(AF9*((LOG(AF9))/LOG(2)))) -> 0 | AI9: =N9 -> 1121 | AJ9: =COUNTIF(L16:L18,AI9) -> 0 | AK9: =AJ9/(AL4-AJ20) -> 0 | AL9: =IF(AK9=0,0,(AK9*((LOG(AK9))/LOG(2)))) -> 0 | AN9: =N9 -> 1121 | AO9: =COUNTIF(L19:L21,AN9) -> 0 | AP9: =AO9/(AQ4-AO20) -> 0 | AQ9: =IF(AP9=0,0,(AP9*((LOG(AP9))/LOG(2)))) -> 0 | AS9: =N9 -> 1121 | AT9: =COUNTIF(L22:L24,AS9) -> 0 | AU9: =AT9/(AV4-AT20) -> 0 | AV9: =IF(AU9=0,0,(AU9*((LOG(AU9))/LOG(2)))) -> 0
A10: 12 | B10: 488 | C10: 14 | D10: 494 | E10: 13 | F10: 502 | G10: 14 | H10: 510 | K10: 0 | L10: 1111 | N10: 1122 | O10: =COUNTIF($L$7:$L$500,N10) -> 2 | P10: =O10/$Q$4 -> 0.1111111111 | Q10: =IF(P10=0,0,(P10*((LOG(P10))/LOG(2)))) -> -0.352213889 | T10: =N10 -> 1122 | U10: =COUNTIF(L7:L9,T10) -> 0 | V10: =U10/(W4-U20) -> 0 | W10: =IF(V10=0,0,(V10*((LOG(V10))/LOG(2)))) -> 0 | Y10: =N10 -> 1122 | Z10: =COUNTIF(L10:L12,Y10) -> 1 | AA10: =Z10/(AB4-Z20) -> 0.3333333333 | AB10: =IF(AA10=0,0,(AA10*((LOG(AA10))/LOG(2)))) -> -0.5283208336 | AD10: =N10 -> 1122 | AE10: =COUNTIF(L13:L15,AD10) -> 0 | AF10: =AE10/(AG4-AE20) -> 0 | AG10: =IF(AF10=0,0,(AF10*((LOG(AF10))/LOG(2)))) -> 0 | AI10: =N10 -> 1122 | AJ10: =COUNTIF(L16:L18,AI10) -> 0 | AK10: =AJ10/(AL4-AJ20) -> 0 | AL10: =IF(AK10=0,0,(AK10*((LOG(AK10))/LOG(2)))) -> 0 | AN10: =N10 -> 1122 | AO10: =COUNTIF(L19:L21,AN10) -> 0 | AP10: =AO10/(AQ4-AO20) -> 0 | AQ10: =IF(AP10=0,0,(AP10*((LOG(AP10))/LOG(2)))) -> 0 | AS10: =N10 -> 1122 | AT10: =COUNTIF(L22:L24,AS10) -> 1 | AU10: =AT10/(AV4-AT20) -> 0.3333333333 | AV10: =IF(AU10=0,0,(AU10*((LOG(AU10))/LOG(2)))) -> -0.5283208336
A11: 12 | B11: 614 | C11: 14 | D11: 623 | E11: 13 | F11: 632 | G11: 14 | H11: 641 | K11: 0 | L11: 1111 | N11: 1211 | O11: =COUNTIF($L$7:$L$500,N11) -> 0 | P11: =O11/$Q$4 -> 0 | Q11: =IF(P11=0,0,(P11*((LOG(P11))/LOG(2)))) -> 0 | T11: =N11 -> 1211 | U11: =COUNTIF(L7:L9,T11) -> 0 | V11: =U11/(W4-U20) -> 0 | W11: =IF(V11=0,0,(V11*((LOG(V11))/LOG(2)))) -> 0 | Y11: =N11 -> 1211 | Z11: =COUNTIF(L10:L12,Y11) -> 0 | AA11: =Z11/(AB4-Z20) -> 0 | AB11: =IF(AA11=0,0,(AA11*((LOG(AA11))/LOG(2)))) -> 0 | AD11: =N11 -> 1211 | AE11: =COUNTIF(L13:L15,AD11) -> 0 | AF11: =AE11/(AG4-AE20) -> 0 | AG11: =IF(AF11=0,0,(AF11*((LOG(AF11))/LOG(2)))) -> 0 | AI11: =N11 -> 1211 | AJ11: =COUNTIF(L16:L18,AI11) -> 0 | AK11: =AJ11/(AL4-AJ20) -> 0 | AL11: =IF(AK11=0,0,(AK11*((LOG(AK11))/LOG(2)))) -> 0 | AN11: =N11 -> 1211 | AO11: =COUNTIF(L19:L21,AN11) -> 0 | AP11: =AO11/(AQ4-AO20) -> 0 | AQ11: =IF(AP11=0,0,(AP11*((LOG(AP11))/LOG(2)))) -> 0 | AS11: =N11 -> 1211 | AT11: =COUNTIF(L22:L24,AS11) -> 0 | AU11: =AT11/(AV4-AT20) -> 0 | AV11: =IF(AU11=0,0,(AU11*((LOG(AU11))/LOG(2)))) -> 0
A12: 12 | B12: 753 | C12: 14 | D12: 763 | E12: 24 | F12: 789 | G12: 23 | H12: 797 | K12: 0 | L12: 1122 | N12: 1212 | O12: =COUNTIF($L$7:$L$500,N12) -> 0 | P12: =O12/$Q$4 -> 0 | Q12: =IF(P12=0,0,(P12*((LOG(P12))/LOG(2)))) -> 0 | T12: =N12 -> 1212 | U12: =COUNTIF(L7:L9,T12) -> 0 | V12: =U12/(W4-U20) -> 0 | W12: =IF(V12=0,0,(V12*((LOG(V12))/LOG(2)))) -> 0 | Y12: =N12 -> 1212 | Z12: =COUNTIF(L10:L12,Y12) -> 0 | AA12: =Z12/(AB4-Z20) -> 0 | AB12: =IF(AA12=0,0,(AA12*((LOG(AA12))/LOG(2)))) -> 0 | AD12: =N12 -> 1212 | AE12: =COUNTIF(L13:L15,AD12) -> 0 | AF12: =AE12/(AG4-AE20) -> 0 | AG12: =IF(AF12=0,0,(AF12*((LOG(AF12))/LOG(2)))) -> 0 | AI12: =N12 -> 1212 | AJ12: =COUNTIF(L16:L18,AI12) -> 0 | AK12: =AJ12/(AL4-AJ20) -> 0 | AL12: =IF(AK12=0,0,(AK12*((LOG(AK12))/LOG(2)))) -> 0 | AN12: =N12 -> 1212 | AO12: =COUNTIF(L19:L21,AN12) -> 0 | AP12: =AO12/(AQ4-AO20) -> 0 | AQ12: =IF(AP12=0,0,(AP12*((LOG(AP12))/LOG(2)))) -> 0 | AS12: =N12 -> 1212 | AT12: =COUNTIF(L22:L24,AS12) -> 0 | AU12: =AT12/(AV4-AT20) -> 0 | AV12: =IF(AU12=0,0,(AU12*((LOG(AU12))/LOG(2)))) -> 0
A13: 12 | B13: 898 | C13: 14 | D13: 903 | E13: 13 | F13: 910 | G13: 14 | H13: 921 | K13: 0 | L13: 1111 | N13: 1221 | O13: =COUNTIF($L$7:$L$500,N13) -> 0 | P13: =O13/$Q$4 -> 0 | Q13: =IF(P13=0,0,(P13*((LOG(P13))/LOG(2)))) -> 0 | T13: =N13 -> 1221 | U13: =COUNTIF(L7:L9,T13) -> 0 | V13: =U13/(W4-U20) -> 0 | W13: =IF(V13=0,0,(V13*((LOG(V13))/LOG(2)))) -> 0 | Y13: =N13 -> 1221 | Z13: =COUNTIF(L10:L12,Y13) -> 0 | AA13: =Z13/(AB4-Z20) -> 0 | AB13: =IF(AA13=0,0,(AA13*((LOG(AA13))/LOG(2)))) -> 0 | AD13: =N13 -> 1221 | AE13: =COUNTIF(L13:L15,AD13) -> 0 | AF13: =AE13/(AG4-AE20) -> 0 | AG13: =IF(AF13=0,0,(AF13*((LOG(AF13))/LOG(2)))) -> 0 | AI13: =N13 -> 1221 | AJ13: =COUNTIF(L16:L18,AI13) -> 0 | AK13: =AJ13/(AL4-AJ20) -> 0 | AL13: =IF(AK13=0,0,(AK13*((LOG(AK13))/LOG(2)))) -> 0 | AN13: =N13 -> 1221 | AO13: =COUNTIF(L19:L21,AN13) -> 0 | AP13: =AO13/(AQ4-AO20) -> 0 | AQ13: =IF(AP13=0,0,(AP13*((LOG(AP13))/LOG(2)))) -> 0 | AS13: =N13 -> 1221 | AT13: =COUNTIF(L22:L24,AS13) -> 0 | AU13: =AT13/(AV4-AT20) -> 0 | AV13: =IF(AU13=0,0,(AU13*((LOG(AU13))/LOG(2)))) -> 0
A14: 12 | B14: 1020 | C14: 14 | D14: 1026 | E14: 13 | F14: 1032 | G14: 14 | H14: 1039 | K14: 0 | L14: 1111 | N14: 1222 | O14: =COUNTIF($L$7:$L$500,N14) -> 0 | P14: =O14/$Q$4 -> 0 | Q14: =IF(P14=0,0,(P14*((LOG(P14))/LOG(2)))) -> 0 | T14: =N14 -> 1222 | U14: =COUNTIF(L7:L9,T14) -> 0 | V14: =U14/(W4-U20) -> 0 | W14: =IF(V14=0,0,(V14*((LOG(V14))/LOG(2)))) -> 0 | Y14: =N14 -> 1222 | Z14: =COUNTIF(L10:L12,Y14) -> 0 | AA14: =Z14/(AB4-Z20) -> 0 | AB14: =IF(AA14=0,0,(AA14*((LOG(AA14))/LOG(2)))) -> 0 | AD14: =N14 -> 1222 | AE14: =COUNTIF(L13:L15,AD14) -> 0 | AF14: =AE14/(AG4-AE20) -> 0 | AG14: =IF(AF14=0,0,(AF14*((LOG(AF14))/LOG(2)))) -> 0 | AI14: =N14 -> 1222 | AJ14: =COUNTIF(L16:L18,AI14) -> 0 | AK14: =AJ14/(AL4-AJ20) -> 0 | AL14: =IF(AK14=0,0,(AK14*((LOG(AK14))/LOG(2)))) -> 0 | AN14: =N14 -> 1222 | AO14: =COUNTIF(L19:L21,AN14) -> 0 | AP14: =AO14/(AQ4-AO20) -> 0 | AQ14: =IF(AP14=0,0,(AP14*((LOG(AP14))/LOG(2)))) -> 0 | AS14: =N14 -> 1222 | AT14: =COUNTIF(L22:L24,AS14) -> 0 | AU14: =AT14/(AV4-AT20) -> 0 | AV14: =IF(AU14=0,0,(AU14*((LOG(AU14))/LOG(2)))) -> 0
A15: 12 | B15: 1141 | C15: 14 | D15: 1147 | E15: 13 | F15: 1153 | G15: 14 | H15: 1163 | K15: 0 | L15: 1111 | N15: 2111 | O15: =COUNTIF($L$7:$L$500,N15) -> 0 | P15: =O15/$Q$4 -> 0 | Q15: =IF(P15=0,0,(P15*((LOG(P15))/LOG(2)))) -> 0 | T15: =N15 -> 2111 | U15: =COUNTIF(L7:L9,T15) -> 0 | V15: =U15/(W4-U20) -> 0 | W15: =IF(V15=0,0,(V15*((LOG(V15))/LOG(2)))) -> 0 | Y15: =N15 -> 2111 | Z15: =COUNTIF(L10:L12,Y15) -> 0 | AA15: =Z15/(AB4-Z20) -> 0 | AB15: =IF(AA15=0,0,(AA15*((LOG(AA15))/LOG(2)))) -> 0 | AD15: =N15 -> 2111 | AE15: =COUNTIF(L13:L15,AD15) -> 0 | AF15: =AE15/(AG4-AE20) -> 0 | AG15: =IF(AF15=0,0,(AF15*((LOG(AF15))/LOG(2)))) -> 0 | AI15: =N15 -> 2111 | AJ15: =COUNTIF(L16:L18,AI15) -> 0 | AK15: =AJ15/(AL4-AJ20) -> 0 | AL15: =IF(AK15=0,0,(AK15*((LOG(AK15))/LOG(2)))) -> 0 | AN15: =N15 -> 2111 | AO15: =COUNTIF(L19:L21,AN15) -> 0 | AP15: =AO15/(AQ4-AO20) -> 0 | AQ15: =IF(AP15=0,0,(AP15*((LOG(AP15))/LOG(2)))) -> 0 | AS15: =N15 -> 2111 | AT15: =COUNTIF(L22:L24,AS15) -> 0 | AU15: =AT15/(AV4-AT20) -> 0 | AV15: =IF(AU15=0,0,(AU15*((LOG(AU15))/LOG(2)))) -> 0
A16: 12 | B16: 1284 | C16: 14 | D16: 1290 | E16: 13 | F16: 1296 | G16: 14 | H16: 1305 | K16: 0 | L16: 1111 | N16: 2112 | O16: =COUNTIF($L$7:$L$500,N16) -> 0 | P16: =O16/$Q$4 -> 0 | Q16: =IF(P16=0,0,(P16*((LOG(P16))/LOG(2)))) -> 0 | T16: =N16 -> 2112 | U16: =COUNTIF(L7:L9,T16) -> 0 | V16: =U16/(W4-U20) -> 0 | W16: =IF(V16=0,0,(V16*((LOG(V16))/LOG(2)))) -> 0 | Y16: =N16 -> 2112 | Z16: =COUNTIF(L10:L12,Y16) -> 0 | AA16: =Z16/(AB4-Z20) -> 0 | AB16: =IF(AA16=0,0,(AA16*((LOG(AA16))/LOG(2)))) -> 0 | AD16: =N16 -> 2112 | AE16: =COUNTIF(L13:L15,AD16) -> 0 | AF16: =AE16/(AG4-AE20) -> 0 | AG16: =IF(AF16=0,0,(AF16*((LOG(AF16))/LOG(2)))) -> 0 | AI16: =N16 -> 2112 | AJ16: =COUNTIF(L16:L18,AI16) -> 0 | AK16: =AJ16/(AL4-AJ20) -> 0 | AL16: =IF(AK16=0,0,(AK16*((LOG(AK16))/LOG(2)))) -> 0 | AN16: =N16 -> 2112 | AO16: =COUNTIF(L19:L21,AN16) -> 0 | AP16: =AO16/(AQ4-AO20) -> 0 | AQ16: =IF(AP16=0,0,(AP16*((LOG(AP16))/LOG(2)))) -> 0 | AS16: =N16 -> 2112 | AT16: =COUNTIF(L22:L24,AS16) -> 0 | AU16: =AT16/(AV4-AT20) -> 0 | AV16: =IF(AU16=0,0,(AU16*((LOG(AU16))/LOG(2)))) -> 0
A17: 12 | B17: 1404 | C17: 14 | D17: 1409 | E17: 13 | F17: 1418 | G17: 14 | H17: 1429 | K17: 0 | L17: 1111 | N17: 2121 | O17: =COUNTIF($L$7:$L$500,N17) -> 0 | P17: =O17/$Q$4 -> 0 | Q17: =IF(P17=0,0,(P17*((LOG(P17))/LOG(2)))) -> 0 | T17: =N17 -> 2121 | U17: =COUNTIF(L7:L9,T17) -> 0 | V17: =U17/(W4-U20) -> 0 | W17: =IF(V17=0,0,(V17*((LOG(V17))/LOG(2)))) -> 0 | Y17: =N17 -> 2121 | Z17: =COUNTIF(L10:L12,Y17) -> 0 | AA17: =Z17/(AB4-Z20) -> 0 | AB17: =IF(AA17=0,0,(AA17*((LOG(AA17))/LOG(2)))) -> 0 | AD17: =N17 -> 2121 | AE17: =COUNTIF(L13:L15,AD17) -> 0 | AF17: =AE17/(AG4-AE20) -> 0 | AG17: =IF(AF17=0,0,(AF17*((LOG(AF17))/LOG(2)))) -> 0 | AI17: =N17 -> 2121 | AJ17: =COUNTIF(L16:L18,AI17) -> 0 | AK17: =AJ17/(AL4-AJ20) -> 0 | AL17: =IF(AK17=0,0,(AK17*((LOG(AK17))/LOG(2)))) -> 0 | AN17: =N17 -> 2121 | AO17: =COUNTIF(L19:L21,AN17) -> 0 | AP17: =AO17/(AQ4-AO20) -> 0 | AQ17: =IF(AP17=0,0,(AP17*((LOG(AP17))/LOG(2)))) -> 0 | AS17: =N17 -> 2121 | AT17: =COUNTIF(L22:L24,AS17) -> 0 | AU17: =AT17/(AV4-AT20) -> 0 | AV17: =IF(AU17=0,0,(AU17*((LOG(AU17))/LOG(2)))) -> 0
A18: 12 | B18: 1541 | C18: 14 | D18: 1555 | E18: 13 | F18: 1562 | G18: 14 | H18: 1568 | K18: 0 | L18: 1111 | N18: 2122 | O18: =COUNTIF($L$7:$L$500,N18) -> 0 | P18: =O18/$Q$4 -> 0 | Q18: =IF(P18=0,0,(P18*((LOG(P18))/LOG(2)))) -> 0 | T18: =N18 -> 2122 | U18: =COUNTIF(L7:L9,T18) -> 0 | V18: =U18/(W4-U20) -> 0 | W18: =IF(V18=0,0,(V18*((LOG(V18))/LOG(2)))) -> 0 | Y18: =N18 -> 2122 | Z18: =COUNTIF(L10:L12,Y18) -> 0 | AA18: =Z18/(AB4-Z20) -> 0 | AB18: =IF(AA18=0,0,(AA18*((LOG(AA18))/LOG(2)))) -> 0 | AD18: =N18 -> 2122 | AE18: =COUNTIF(L13:L15,AD18) -> 0 | AF18: =AE18/(AG4-AE20) -> 0 | AG18: =IF(AF18=0,0,(AF18*((LOG(AF18))/LOG(2)))) -> 0 | AI18: =N18 -> 2122 | AJ18: =COUNTIF(L16:L18,AI18) -> 0 | AK18: =AJ18/(AL4-AJ20) -> 0 | AL18: =IF(AK18=0,0,(AK18*((LOG(AK18))/LOG(2)))) -> 0 | AN18: =N18 -> 2122 | AO18: =COUNTIF(L19:L21,AN18) -> 0 | AP18: =AO18/(AQ4-AO20) -> 0 | AQ18: =IF(AP18=0,0,(AP18*((LOG(AP18))/LOG(2)))) -> 0 | AS18: =N18 -> 2122 | AT18: =COUNTIF(L22:L24,AS18) -> 0 | AU18: =AT18/(AV4-AT20) -> 0 | AV18: =IF(AU18=0,0,(AU18*((LOG(AU18))/LOG(2)))) -> 0
A19: 12 | B19: 1690 | C19: 14 | D19: 1699 | E19: 13 | F19: 1705 | G19: 14 | H19: 1716 | K19: 0 | L19: 1111 | N19: 2211 | O19: =COUNTIF($L$7:$L$500,N19) -> 0 | P19: =O19/$Q$4 -> 0 | Q19: =IF(P19=0,0,(P19*((LOG(P19))/LOG(2)))) -> 0 | T19: =N19 -> 2211 | U19: =COUNTIF(L7:L9,T19) -> 0 | V19: =U19/(W4-U20) -> 0 | W19: =IF(V19=0,0,(V19*((LOG(V19))/LOG(2)))) -> 0 | Y19: =N19 -> 2211 | Z19: =COUNTIF(L10:L12,Y19) -> 0 | AA19: =Z19/(AB4-Z20) -> 0 | AB19: =IF(AA19=0,0,(AA19*((LOG(AA19))/LOG(2)))) -> 0 | AD19: =N19 -> 2211 | AE19: =COUNTIF(L13:L15,AD19) -> 0 | AF19: =AE19/(AG4-AE20) -> 0 | AG19: =IF(AF19=0,0,(AF19*((LOG(AF19))/LOG(2)))) -> 0 | AI19: =N19 -> 2211 | AJ19: =COUNTIF(L16:L18,AI19) -> 0 | AK19: =AJ19/(AL4-AJ20) -> 0 | AL19: =IF(AK19=0,0,(AK19*((LOG(AK19))/LOG(2)))) -> 0 | AN19: =N19 -> 2211 | AO19: =COUNTIF(L19:L21,AN19) -> 0 | AP19: =AO19/(AQ4-AO20) -> 0 | AQ19: =IF(AP19=0,0,(AP19*((LOG(AP19))/LOG(2)))) -> 0 | AS19: =N19 -> 2211 | AT19: =COUNTIF(L22:L24,AS19) -> 0 | AU19: =AT19/(AV4-AT20) -> 0 | AV19: =IF(AU19=0,0,(AU19*((LOG(AU19))/LOG(2)))) -> 0
A20: 21 | B20: 2269 | C20: 21 | D20: 2277 | E20: 22 | F20: 2286 | G20: 23 | H20: 2294 | K20: 0 | L20: 2222 | N20: 2212 | O20: =COUNTIF($L$7:$L$500,N20) -> 0 | P20: =O20/$Q$4 -> 0 | Q20: =IF(P20=0,0,(P20*((LOG(P20))/LOG(2)))) -> 0 | T20: =N20 -> 2212 | U20: =COUNTIF(L7:L9,T20) -> 0 | Y20: =N20 -> 2212 | Z20: =COUNTIF(L10:L12,Y20) -> 0 | AD20: =N20 -> 2212 | AE20: =COUNTIF(L13:L15,AD20) -> 0 | AI20: =N20 -> 2212 | AJ20: =COUNTIF(L16:L18,AI20) -> 0 | AN20: =N20 -> 2212 | AO20: =COUNTIF(L19:L21,AN20) -> 0 | AS20: =N20 -> 2212 | AT20: =COUNTIF(L22:L24,AS20) -> 0
A21: 21 | B21: 12490 | C21: 21 | D21: 12500 | E21: 22 | F21: 12506 | G21: 23 | H21: 12520 | K21: 0 | L21: 2222 | N21: 2221 | O21: =COUNTIF($L$7:$L$500,N21) -> 0 | P21: =O21/$Q$4 -> 0 | Q21: =IF(P21=0,0,(P21*((LOG(P21))/LOG(2)))) -> 0 | T21: =N21 -> 2221 | U21: =COUNTIF(L7:L9,T21) -> 0 | V21: =U21/(W4-U20) -> 0 | W21: =IF(V21=0,0,(V21*((LOG(V21))/LOG(2)))) -> 0 | Y21: =N21 -> 2221 | Z21: =COUNTIF(L10:L12,Y21) -> 0 | AA21: =Z21/(AB4-Z20) -> 0 | AB21: =IF(AA21=0,0,(AA21*((LOG(AA21))/LOG(2)))) -> 0 | AD21: =N21 -> 2221 | AE21: =COUNTIF(L13:L15,AD21) -> 0 | AF21: =AE21/(AG4-AE20) -> 0 | AG21: =IF(AF21=0,0,(AF21*((LOG(AF21))/LOG(2)))) -> 0 | AI21: =N21 -> 2221 | AJ21: =COUNTIF(L16:L18,AI21) -> 0 | AK21: =AJ21/(AL4-AJ20) -> 0 | AL21: =IF(AK21=0,0,(AK21*((LOG(AK21))/LOG(2)))) -> 0 | AN21: =N21 -> 2221 | AO21: =COUNTIF(L19:L21,AN21) -> 0 | AP21: =AO21/(AQ4-AO20) -> 0 | AQ21: =IF(AP21=0,0,(AP21*((LOG(AP21))/LOG(2)))) -> 0 | AS21: =N21 -> 2221 | AT21: =COUNTIF(L22:L24,AS21) -> 0 | AU21: =AT21/(AV4-AT20) -> 0 | AV21: =IF(AU21=0,0,(AU21*((LOG(AU21))/LOG(2)))) -> 0
A22: 12 | B22: 12641 | C22: 14 | D22: 12652 | E22: 13 | F22: 12663 | G22: 14 | H22: 12676 | K22: 0 | L22: 1111 | N22: 2222 | O22: =COUNTIF($L$7:$L$500,N22) -> 3 | P22: =O22/$Q$4 -> 0.1666666667 | Q22: =IF(P22=0,0,(P22*((LOG(P22))/LOG(2)))) -> -0.4308270835 | T22: =N22 -> 2222 | U22: =COUNTIF(L7:L9,T22) -> 0 | V22: =U22/(W4-U20) -> 0 | W22: =IF(V22=0,0,(V22*((LOG(V22))/LOG(2)))) -> 0 | Y22: =N22 -> 2222 | Z22: =COUNTIF(L10:L12,Y22) -> 0 | AA22: =Z22/(AB4-Z20) -> 0 | AB22: =IF(AA22=0,0,(AA22*((LOG(AA22))/LOG(2)))) -> 0 | AD22: =N22 -> 2222 | AE22: =COUNTIF(L13:L15,AD22) -> 0 | AF22: =AE22/(AG4-AE20) -> 0 | AG22: =IF(AF22=0,0,(AF22*((LOG(AF22))/LOG(2)))) -> 0 | AI22: =N22 -> 2222 | AJ22: =COUNTIF(L16:L18,AI22) -> 0 | AK22: =AJ22/(AL4-AJ20) -> 0 | AL22: =IF(AK22=0,0,(AK22*((LOG(AK22))/LOG(2)))) -> 0 | AN22: =N22 -> 2222 | AO22: =COUNTIF(L19:L21,AN22) -> 2 | AP22: =AO22/(AQ4-AO20) -> 0.6666666667 | AQ22: =IF(AP22=0,0,(AP22*((LOG(AP22))/LOG(2)))) -> -0.3899750005 | AS22: =N22 -> 2222 | AT22: =COUNTIF(L22:L24,AS22) -> 1 | AU22: =AT22/(AV4-AT20) -> 0.3333333333 | AV22: =IF(AU22=0,0,(AU22*((LOG(AU22))/LOG(2)))) -> -0.5283208336
A23: 21 | B23: 21139 | C23: 21 | D23: 21147 | E23: 22 | F23: 21160 | G23: 23 | H23: 21165 | K23: 0 | L23: 2222 | P23: =SUM(P7:P22) -> 1 | Q23: =-SUM(Q7:Q22) -> 1.122113677 | V23: =SUM(V7:V22) -> 1 | W23: =-SUM(W7:W22) -> 0 | AA23: =SUM(AA7:AA22) -> 1 | AB23: =-SUM(AB7:AB22) -> 0.9182958341 | AF23: =SUM(AF7:AF22) -> 1 | AG23: =-SUM(AG7:AG22) -> 0 | AK23: =SUM(AK7:AK22) -> 1 | AL23: =-SUM(AL7:AL22) -> 0 | AP23: =SUM(AP7:AP22) -> 1 | AQ23: =-SUM(AQ7:AQ22) -> 0.9182958341 | AU23: =SUM(AU7:AU22) -> 1 | AV23: =-SUM(AV7:AV22) -> 1.584962501
A24: 12 | B24: 21277 | C24: 14 | D24: 21288 | E24: 24 | F24: 21352 | G24: 23 | H24: 21359 | K24: 0 | L24: 1122 | P24: U= | Q24: =Q23/(LOG(Q4)/LOG(2)) -> 0.2690968487 | V24: U1= | W24: =W23/(LOG(W4)/LOG(2)) -> 0 | AA24: U2= | AB24: =AB23/(LOG(AB4)/LOG(2)) -> 0.5793801643 | AF24: U3= | AG24: =AG23/(LOG(AG4)/LOG(2)) -> 0 | AK24: U4= | AL24: =AL23/(LOG(AL4)/LOG(2)) -> 0 | AP24: U5= | AQ24: =AQ23/(LOG(AQ4)/LOG(2)) -> 0.5793801643 | AU24: U6= | AV24: =AV23/(LOG(AV4)/LOG(2)) -> 1
N27: Total Target Seq
N28: =COUNTIF(L7:L24,G3) -> 0 | P28: 3 | Q28: 3 | R28: 3 | S28: 3 | T28: 3 | U28: 3
P29: % of reinforcement given in 6 equal intervals based on number of trials
P30: %_1 | Q30: %_2 | R30: %_3 | S30: %_4 | T30: %_5 | U30: %_6
O31: target sequence | P31: =$G$3 -> 2212 | Q31: =$G$3 -> 2212 | R31: =$G$3 -> 2212 | S31: =$G$3 -> 2212 | T31: =$G$3 -> 2212 | U31: =$G$3 -> 2212
O32: total reinforcement | P32: =U20 -> 0 | Q32: =Z20 -> 0 | R32: =AE20 -> 0 | S32: =AJ20 -> 0 | T32: =AO20 -> 0 | U32: =AT20 -> 0
O33: % target
O34: CCRF
O35: % CCRf
O36: average response rate | P36: =H9/P28 -> 128.3333333 | Q36: =(H12-H9)/Q28 -> 137.3333333 | R36: =(H15-H12)/R28 -> 122 | S36: =(H18-H15)/S28 -> 135 | T36: =(H21-H18)/T28 -> 3650.666667 | U36: =(H24-H21)/U28 -> 2946.333333

Sheet !M908900.102
A1: Report for:!M908900.102
A2: Date: | B2: <date>
A3: Hen: | B3: <hen> | F3: Correct Sequence | G3: =Start!J2 -> 2212 | P3: Total Sequences in Data | Q3: =4994-COUNTBLANK(L7:L5000) -> 22 | V3: Total Sequences in Block Data | W3: =COUNTA(L7:L10) -> 4 | AA3: Total Sequences in Block Data | AB3: =COUNTA(L11:L13) -> 3 | AF3: Total Sequences in Block Data | AG3: =COUNTA(L14:L17) -> 4 | AK3: Total Sequences in Block Data | AL3: =COUNTA(L18:L21) -> 4 | AP3: Total Sequences in Block Data | AQ3: =COUNTA(L22:L24) -> 3 | AU3: Total Sequences in Block Data | AV3: =COUNTA(L25:L28) -> 4
P4: Total Sequences in Summary | Q4: =SUM(O7:O22) -> 22 | V4: Total Sequences in Block Summary | W4: =SUM(U7:U22) -> 4 | AA4: Total Sequences in Block Summary | AB4: =SUM(Z7:Z22) -> 3 | AF4: Total Sequences in Block Summary | AG4: =SUM(AE7:AE22) -> 4 | AK4: Total Sequences in Block Summary | AL4: =SUM(AJ7:AJ22) -> 4 | AP4: Total Sequences in Block Summary | AQ4: =SUM(AO7:AO22) -> 3 | AU4: Total Sequences in Block Summary | AV4: =SUM(AT7:AT22) -> 4
T5: Block 1 | Y5: Block 2 | AD5: Block 3 | AI5: Block 4 | AN5: Block 5 | AS5: Block 6
A6: Sequence Component 1 | B6: Time 1 | C6: Sequence Component 2 | D6: Time 2 | E6: Sequence Component 3 | F6: Time 3 | G6: Sequence Component 4 | H6: Time 4 | I6: Sequence Component 5 | J6: Time 5 | K6: Correct? 0=No 1=Yes | L6: Sequence | N6: Frequency | P6: Relative Frequency | Q6: Variability | T6: Frequency | V6: Relative Frequency | W6: Variability | Y6: Frequency | AA6: Relative Frequency | AB6: Variability | AD6: Frequency | AF6: Relative Frequency | AG6: Variability | AI6: Frequency | AK6: Relative Frequency | AL6: Variability | AN6: Frequency | AP6: Relative Frequency | AQ6: Variability | AS6: Frequency | AU6: Relative Frequency | AV6: Variability
A7: 12 | B7: 99 | C7: 14 | D7: 108 | E7: 13 | F7: 130 | G7: 14 | H7: 141 | K7: 0 | L7: 1111 | N7: 1111 | O7: =COUNTIF($L$7:$L$500,N7) -> 12 | P7: =O7/$Q$4 -> 0.5454545455 | Q7: =IF(P7=0,0,(P7*((LOG(P7))/LOG(2)))) -> -0.4769831552 | T7: =N7 -> 1111 | U7: =COUNTIF(L7:L10,T7) -> 2 | V7: =U7/(W4-U20) -> 0.5 | W7: =IF(V7=0,0,(V7*((LOG(V7))/LOG(2)))) -> -0.5 | Y7: =N7 -> 1111 | Z7: =COUNTIF(L11:L13,Y7) -> 1 | AA7: =Z7/(AB4-Z20) -> 0.3333333333 | AB7: =IF(AA7=0,0,(AA7*((LOG(AA7))/LOG(2)))) -> -0.5283208336 | AD7: =N7 -> 1111 | AE7: =COUNTIF(L14:L17,AD7) -> 2 | AF7: =AE7/(AG4-AE20) -> 0.5 | AG7: =IF(AF7=0,0,(AF7*((LOG(AF7))/LOG(2)))) -> -0.5 | AI7: =N7 -> 1111 | AJ7: =COUNTIF(L18:L21,AI7) -> 3 | AK7: =AJ7/(AL4-AJ20) -> 0.75 | AL7: =IF(AK7=0,0,(AK7*((LOG(AK7))/LOG(2)))) -> -0.3112781245 | AN7: =N7 -> 1111 | AO7: =COUNTIF(L22:L24,AN7) -> 2 | AP7: =AO7/(AQ4-AO20) -> 0.6666666667 | AQ7: =IF(AP7=0,0,(AP7*((LOG(AP7))/LOG(2)))) -> -0.3899750005 | AS7: =N7 -> 1111 | AT7: =COUNTIF(L25:L28,AS7) -> 2 | AU7: =AT7/(AV4-AT20) -> 0.5 | AV7: =IF(AU7=0,0,(AU7*((LOG(AU7))/LOG(2)))) -> -0.5
A8: 12 | B8: 244 | C8: 14 | D8: 252 | E8: 13 | F8: 258 | G8: 14 | H8: 267 | K8: 0 | L8: 1111 | N8: 1112 | O8: =COUNTIF($L$7:$L$500,N8) -> 6 | P8: =O8/$Q$4 -> 0.2727272727 | Q8: =IF(P8=0,0,(P8*((LOG(P8))/LOG(2)))) -> -0.5112188503 | T8: =N8 -> 1112 | U8: =COUNTIF(L7:L10,T8) -> 1 | V8: =U8/(W4-U20) -> 0.25 | W8: =IF(V8=0,0,(V8*((LOG(V8))/LOG(2)))) -> -0.5 | Y8: =N8 -> 1112 | Z8: =COUNTIF(L11:L13,Y8) -> 2 | AA8: =Z8/(AB4-Z20) -> 0.6666666667 | AB8: =IF(AA8=0,0,(AA8*((LOG(AA8))/LOG(2)))) -> -0.3899750005 | AD8: =N8 -> 1112 | AE8: =COUNTIF(L14:L17,AD8) -> 2 | AF8: =AE8/(AG4-AE20) -> 0.5 | AG8: =IF(AF8=0,0,(AF8*((LOG(AF8))/LOG(2)))) -> -0.5 | AI8: =N8 -> 1112 | AJ8: =COUNTIF(L18:L21,AI8) -> 1 | AK8: =AJ8/(AL4-AJ20) -> 0.25 | AL8: =IF(AK8=0,0,(AK8*((LOG(AK8))/LOG(2)))) -> -0.5 | AN8: =N8 -> 1112 | AO8: =COUNTIF(L22:L24,AN8) -> 0 | AP8: =AO8/(AQ4-AO20) -> 0 | AQ8: =IF(AP8=0,0,(AP8*((LOG(AP8))/LOG(2)))) -> 0 | AS8: =N8 -> 1112 | AT8: =COUNTIF(L25:L28,AS8) -> 0 | AU8: =AT8/(AV4-AT20) -> 0 | AV8: =IF(AU8=0,0,(AU8*((LOG(AU8))/LOG(2)))) -> 0
A9: 21 | B9: 430 | C9: 21 | D9: 439 | E9: 22 | F9: 448 | G9: 23 | H9: 453 | K9: 0 | L9: 2222 | N9: 1121 | O9: =COUNTIF($L$7:$L$500,N9) -> 0 | P9: =O9/$Q$4 -> 0 | Q9: =IF(P9=0,0,(P9*((LOG(P9))/LOG(2)))) -> 0 | T9: =N9 -> 1121 | U9: =COUNTIF(L7:L10,T9) -> 0 | V9: =U9/(W4-U20) -> 0 | W9: =IF(V9=0,0,(V9*((LOG(V9))/LOG(2)))) -> 0 | Y9: =N9 -> 1121 | Z9: =COUNTIF(L11:L13,Y9) -> 0 | AA9: =Z9/(AB4-Z20) -> 0 | AB9: =IF(AA9=0,0,(AA9*((LOG(AA9))/LOG(2)))) -> 0 | AD9: =N9 -> 1121 | AE9: =COUNTIF(L14:L17,AD9) -> 0 | AF9: =AE9/(AG4-AE20) -> 0 | AG9: =IF(AF9=0,0,(AF9*((LOG(AF9))/LOG(2)))) -> 0 | AI9: =N9 -> 1121 | AJ9: =COUNTIF(L18:L21,AI9) -> 0 | AK9: =AJ9/(AL4-AJ20) -> 0 | AL9: =IF(AK9=0,0,(AK9*((LOG(AK9))/LOG(2)))) -> 0 | AN9: =N9 -> 1121 | AO9: =COUNTIF(L22:L24,AN9) -> 0 | AP9: =AO9/(AQ4-AO20) -> 0 | AQ9: =IF(AP9=0,0,(AP9*((LOG(AP9))/LOG(2)))) -> 0 | AS9: =N9 -> 1121 | AT9: =COUNTIF(L25:L28,AS9) -> 0 | AU9: =AT9/(AV4-AT20) -> 0 | AV9: =IF(AU9=0,0,(AU9*((LOG(AU9))/LOG(2)))) -> 0
A10: 12 | B10: 593 | C10: 14 | D10: 602 | E10: 13 | F10: 620 | G10: 23 | H10: 648 | K10: 0 | L10: 1112 | N10: 1122 | O10: =COUNTIF($L$7:$L$500,N10) -> 0 | P10: =O10/$Q$4 -> 0 | Q10: =IF(P10=0,0,(P10*((LOG(P10))/LOG(2)))) -> 0 | T10: =N10 -> 1122 | U10: =COUNTIF(L7:L10,T10) -> 0 | V10: =U10/(W4-U20) -> 0 | W10: =IF(V10=0,0,(V10*((LOG(V10))/LOG(2)))) -> 0 | Y10: =N10 -> 1122 | Z10: =COUNTIF(L11:L13,Y10) -> 0 | AA10: =Z10/(AB4-Z20) -> 0 | AB10: =IF(AA10=0,0,(AA10*((LOG(AA10))/LOG(2)))) -> 0 | AD10: =N10 -> 1122 | AE10: =COUNTIF(L14:L17,AD10) -> 0 | AF10: =AE10/(AG4-AE20) -> 0 | AG10: =IF(AF10=0,0,(AF10*((LOG(AF10))/LOG(2)))) -> 0 | AI10: =N10 -> 1122 | AJ10: =COUNTIF(L18:L21,AI10) -> 0 | AK10: =AJ10/(AL4-AJ20) -> 0 | AL10: =IF(AK10=0,0,(AK10*((LOG(AK10))/LOG(2)))) -> 0 | AN10: =N10 -> 1122 | AO10: =COUNTIF(L22:L24,AN10) -> 0 | AP10: =AO10/(AQ4-AO20) -> 0 | AQ10: =IF(AP10=0,0,(AP10*((LOG(AP10))/LOG(2)))) -> 0 | AS10: =N10 -> 1122 | AT10: =COUNTIF(L25:L28,AS10) -> 0 | AU10: =AT10/(AV4-AT20) -> 0 | AV10: =IF(AU10=0,0,(AU10*((LOG(AU10))/LOG(2)))) -> 0
A11: 12 | B11: 746 | C11: 14 | D11: 756 | E11: 13 | F11: 769 | G11: 23 | H11: 794 | K11: 0 | L11: 1112 | N11: 1211 | O11: =COUNTIF($L$7:$L$500,N11) -> 0 | P11: =O11/$Q$4 -> 0 | Q11: =IF(P11=0,0,(P11*((LOG(P11))/LOG(2)))) -> 0 | T11: =N11 -> 1211 | U11: =COUNTIF(L7:L10,T11) -> 0 | V11: =U11/(W4-U20) -> 0 | W11: =IF(V11=0,0,(V11*((LOG(V11))/LOG(2)))) -> 0 | Y11: =N11 -> 1211 | Z11: =COUNTIF(L11:L13,Y11) -> 0 | AA11: =Z11/(AB4-Z20) -> 0 | AB11: =IF(AA11=0,0,(AA11*((LOG(AA11))/LOG(2)))) -> 0 | AD11: =N11 -> 1211 | AE11: =COUNTIF(L14:L17,AD11) -> 0 | AF11: =AE11/(AG4-AE20) -> 0 | AG11: =IF(AF11=0,0,(AF11*((LOG(AF11))/LOG(2)))) -> 0 | AI11: =N11 -> 1211 | AJ11: =COUNTIF(L18:L21,AI11) -> 0 | AK11: =AJ11/(AL4-AJ20) -> 0 | AL11: =IF(AK11=0,0,(AK11*((LOG(AK11))/LOG(2)))) -> 0 | AN11: =N11 -> 1211 | AO11: =COUNTIF(L22:L24,AN11) -> 0 | AP11: =AO11/(AQ4-AO20) -> 0 | AQ11: =IF(AP11=0,0,(AP11*((LOG(AP11))/LOG(2)))) -> 0 | AS11: =N11 -> 1211 | AT11: =COUNTIF(L25:L28,AS11) -> 0 | AU11: =AT11/(AV4-AT20) -> 0 | AV11: =IF(AU11=0,0,(AU11*((LOG(AU11))/LOG(2)))) -> 0
A12: 12 | B12: 953 | C12: 14 | D12: 969 | E12: 13 | F12: 980 | G12: 23 | H12: 1001 | K12: 0 | L12: 1112 | N12: 1212 | O12: =COUNTIF($L$7:$L$500,N12) -> 0 | P12: =O12/$Q$4 -> 0 | Q12: =IF(P12=0,0,(P12*((LOG(P12))/LOG(2)))) -> 0 | T12: =N12 -> 1212 | U12: =COUNTIF(L7:L10,T12) -> 0 | V12: =U12/(W4-U20) -> 0 | W12: =IF(V12=0,0,(V12*((LOG(V12))/LOG(2)))) -> 0 | Y12: =N12 -> 1212 | Z12: =COUNTIF(L11:L13,Y12) -> 0 | AA12: =Z12/(AB4-Z20) -> 0 | AB12: =IF(AA12=0,0,(AA12*((LOG(AA12))/LOG(2)))) -> 0 | AD12: =N12 -> 1212 | AE12: =COUNTIF(L14:L17,AD12) -> 0 | AF12: =AE12/(AG4-AE20) -> 0 | AG12: =IF(AF12=0,0,(AF12*((LOG(AF12))/LOG(2)))) -> 0 | AI12: =N12 -> 1212 | AJ12: =COUNTIF(L18:L21,AI12) -> 0 | AK12: =AJ12/(AL4-AJ20) -> 0 | AL12: =IF(AK12=0,0,(AK12*((LOG(AK12))/LOG(2)))) -> 0 | AN12: =N12 -> 1212 | AO12: =COUNTIF(L22:L24,AN12) -> 0 | AP12: =AO12/(AQ4-AO20) -> 0 | AQ12: =IF(AP12=0,0,(AP12*((LOG(AP12))/LOG(2)))) -> 0 | AS12: =N12 -> 1212 | AT12: =COUNTIF(L25:L28,AS12) -> 0 | AU12: =AT12/(AV4-AT20) -> 0 | AV12: =IF(AU12=0,0,(AU12*((LOG(AU12))/LOG(2)))) -> 0
A13: 12 | B13: 1100 | C13: 14 | D13: 1110 | E13: 13 | F13: 1123 | G13: 14 | H13: 1138 | K13: 0 | L13: 1111 | N13: 1221 | O13: =COUNTIF($L$7:$L$500,N13) -> 0 | P13: =O13/$Q$4 -> 0 | Q13: =IF(P13=0,0,(P13*((LOG(P13))/LOG(2)))) -> 0 | T13: =N13 -> 1221 | U13: =COUNTIF(L7:L10,T13) -> 0 | V13: =U13/(W4-U20) -> 0 | W13: =IF(V13=0,0,(V13*((LOG(V13))/LOG(2)))) -> 0 | Y13: =N13 -> 1221 | Z13: =COUNTIF(L11:L13,Y13) -> 0 | AA13: =Z13/(AB4-Z20) -> 0 | AB13: =IF(AA13=0,0,(AA13*((LOG(AA13))/LOG(2)))) -> 0 | AD13: =N13 -> 1221 | AE13: =COUNTIF(L14:L17,AD13) -> 0 | AF13: =AE13/(AG4-AE20) -> 0 | AG13: =IF(AF13=0,0,(AF13*((LOG(AF13))/LOG(2)))) -> 0 | AI13: =N13 -> 1221 | AJ13: =COUNTIF(L18:L21,AI13) -> 0 | AK13: =AJ13/(AL4-AJ20) -> 0 | AL13: =IF(AK13=0,0,(AK13*((LOG(AK13))/LOG(2)))) -> 0 | AN13: =N13 -> 1221 | AO13: =COUNTIF(L22:L24,AN13) -> 0 | AP13: =AO13/(AQ4-AO20) -> 0 | AQ13: =IF(AP13=0,0,(AP13*((LOG(AP13))/LOG(2)))) -> 0 | AS13: =N13 -> 1221 | AT13: =COUNTIF(L25:L28,AS13) -> 0 | AU13: =AT13/(AV4-AT20) -> 0 | AV13: =IF(AU13=0,0,(AU13*((LOG(AU13))/LOG(2)))) -> 0
A14: 12 | B14: 1275 | C14: 14 | D14: 1287 | E14: 13 | F14: 1299 | G14: 14 | H14: 1309 | K14: 0 | L14: 1111 | N14: 1222 | O14: =COUNTIF($L$7:$L$500,N14) -> 0 | P14: =O14/$Q$4 -> 0 | Q14: =IF(P14=0,0,(P14*((LOG(P14))/LOG(2)))) -> 0 | T14: =N14 -> 1222 | U14: =COUNTIF(L7:L10,T14) -> 0 | V14: =U14/(W4-U20) -> 0 | W14: =IF(V14=0,0,(V14*((LOG(V14))/LOG(2)))) -> 0 | Y14: =N14 -> 1222 | Z14: =COUNTIF(L11:L13,Y14) -> 0 | AA14: =Z14/(AB4-Z20) -> 0 | AB14: =IF(AA14=0,0,(AA14*((LOG(AA14))/LOG(2)))) -> 0 | AD14: =N14 -> 1222 | AE14: =COUNTIF(L14:L17,AD14) -> 0 | AF14: =AE14/(AG4-AE20) -> 0 | AG14: =IF(AF14=0,0,(AF14*((LOG(AF14))/LOG(2)))) -> 0 | AI14: =N14 -> 1222 | AJ14: =COUNTIF(L18:L21,AI14) -> 0 | AK14: =AJ14/(AL4-AJ20) -> 0 | AL14: =IF(AK14=0,0,(AK14*((LOG(AK14))/LOG(2)))) -> 0 | AN14: =N14 -> 1222 | AO14: =COUNTIF(L22:L24,AN14) -> 0 | AP14: =AO14/(AQ4-AO20) -> 0 | AQ14: =IF(AP14=0,0,(AP14*((LOG(AP14))/LOG(2)))) -> 0 | AS14: =N14 -> 1222 | AT14: =COUNTIF(L25:L28,AS14) -> 0 | AU14: =AT14/(AV4-AT20) -> 0 | AV14: =IF(AU14=0,0,(AU14*((LOG(AU14))/LOG(2)))) -> 0
A15: 12 | B15: 1427 | C15: 14 | D15: 1433 | E15: 13 | F15: 1439 | G15: 23 | H15: 1489 | K15: 0 | L15: 1112 | N15: 2111 | O15: =COUNTIF($L$7:$L$500,N15) -> 0 | P15: =O15/$Q$4 -> 0 | Q15: =IF(P15=0,0,(P15*((LOG(P15))/LOG(2)))) -> 0 | T15: =N15 -> 2111 | U15: =COUNTIF(L7:L10,T15) -> 0 | V15: =U15/(W4-U20) -> 0 | W15: =IF(V15=0,0,(V15*((LOG(V15))/LOG(2)))) -> 0 | Y15: =N15 -> 2111 | Z15: =COUNTIF(L11:L13,Y15) -> 0 | AA15: =Z15/(AB4-Z20) -> 0 | AB15: =IF(AA15=0,0,(AA15*((LOG(AA15))/LOG(2)))) -> 0 | AD15: =N15 -> 2111 | AE15: =COUNTIF(L14:L17,AD15) -> 0 | AF15: =AE15/(AG4-AE20) -> 0 | AG15: =IF(AF15=0,0,(AF15*((LOG(AF15))/LOG(2)))) -> 0 | AI15: =N15 -> 2111 | AJ15: =COUNTIF(L18:L21,AI15) -> 0 | AK15: =AJ15/(AL4-AJ20) -> 0 | AL15: =IF(AK15=0,0,(AK15*((LOG(AK15))/LOG(2)))) -> 0 | AN15: =N15 -> 2111 | AO15: =COUNTIF(L22:L24,AN15) -> 0 | AP15: =AO15/(AQ4-AO20) -> 0 | AQ15: =IF(AP15=0,0,(AP15*((LOG(AP15))/LOG(2)))) -> 0 | AS15: =N15 -> 2111 | AT15: =COUNTIF(L25:L28,AS15) -> 0 | AU15: =AT15/(AV4-AT20) -> 0 | AV15: =IF(AU15=0,0,(AU15*((LOG(AU15))/LOG(2)))) -> 0
A16: 12 | B16: 1587 | C16: 14 | D16: 1594 | E16: 13 | F16: 1605 | G16: 14 | H16: 1611 | K16: 0 | L16: 1111 | N16: 2112 | O16: =COUNTIF($L$7:$L$500,N16) -> 0 | P16: =O16/$Q$4 -> 0 | Q16: =IF(P16=0,0,(P16*((LOG(P16))/LOG(2)))) -> 0 | T16: =N16 -> 2112 | U16: =COUNTIF(L7:L10,T16) -> 0 | V16: =U16/(W4-U20) -> 0 | W16: =IF(V16=0,0,(V16*((LOG(V16))/LOG(2)))) -> 0 | Y16: =N16 -> 2112 | Z16: =COUNTIF(L11:L13,Y16) -> 0 | AA16: =Z16/(AB4-Z20) -> 0 | AB16: =IF(AA16=0,0,(AA16*((LOG(AA16))/LOG(2)))) -> 0 | AD16: =N16 -> 2112 | AE16: =COUNTIF(L14:L17,AD16) -> 0 | AF16: =AE16/(AG4-AE20) -> 0 | AG16: =IF(AF16=0,0,(AF16*((LOG(AF16))/LOG(2)))) -> 0 | AI16: =N16 -> 2112 | AJ16: =COUNTIF(L18:L21,AI16) -> 0 | AK16: =AJ16/(AL4-AJ20) -> 0 | AL16: =IF(AK16=0,0,(AK16*((LOG(AK16))/LOG(2)))) -> 0 | AN16: =N16 -> 2112 | AO16: =COUNTIF(L22:L24,AN16) -> 0 | AP16: =AO16/(AQ4-AO20) -> 0 | AQ16: =IF(AP16=0,0,(AP16*((LOG(AP16))/LOG(2)))) -> 0 | AS16: =N16 -> 2112 | AT16: =COUNTIF(L25:L28,AS16) -> 0 | AU16: =AT16/(AV4-AT20) -> 0 | AV16: =IF(AU16=0,0,(AU16*((LOG(AU16))/LOG(2)))) -> 0
A17: 12 | B17: 1726 | C17: 14 | D17: 1735 | E17: 13 | F17: 1747 | G17: 23 | H17: 1760 | K17: 0 | L17: 1112 | N17: 2121 | O17: =COUNTIF($L$7:$L$500,N17) -> 0 | P17: =O17/$Q$4 -> 0 | Q17: =IF(P17=0,0,(P17*((LOG(P17))/LOG(2)))) -> 0 | T17: =N17 -> 2121 | U17: =COUNTIF(L7:L10,T17) -> 0 | V17: =U17/(W4-U20) -> 0 | W17: =IF(V17=0,0,(V17*((LOG(V17))/LOG(2)))) -> 0 | Y17: =N17 -> 2121 | Z17: =COUNTIF(L11:L13,Y17) -> 0 | AA17: =Z17/(AB4-Z20) -> 0 | AB17: =IF(AA17=0,0,(AA17*((LOG(AA17))/LOG(2)))) -> 0 | AD17: =N17 -> 2121 | AE17: =COUNTIF(L14:L17,AD17) -> 0 | AF17: =AE17/(AG4-AE20) -> 0 | AG17: =IF(AF17=0,0,(AF17*((LOG(AF17))/LOG(2)))) -> 0 | AI17: =N17 -> 2121 | AJ17: =COUNTIF(L18:L21,AI17) -> 0 | AK17: =AJ17/(AL4-AJ20) -> 0 | AL17: =IF(AK17=0,0,(AK17*((LOG(AK17))/LOG(2)))) -> 0 | AN17: =N17 -> 2121 | AO17: =COUNTIF(L22:L24,AN17) -> 0 | AP17: =AO17/(AQ4-AO20) -> 0 | AQ17: =IF(AP17=0,0,(AP17*((LOG(AP17))/LOG(2)))) -> 0 | AS17: =N17 -> 2121 | AT17: =COUNTIF(L25:L28,AS17) -> 0 | AU17: =AT17/(AV4-AT20) -> 0 | AV17: =IF(AU17=0,0,(AU17*((LOG(AU17))/LOG(2)))) -> 0
A18: 12 | B18: 1864 | C18: 14 | D18: 1869 | E18: 13 | F18: 1884 | G18: 14 | H18: 1894 | K18: 0 | L18: 1111 | N18: 2122 | O18: =COUNTIF($L$7:$L$500,N18) -> 0 | P18: =O18/$Q$4 -> 0 | Q18: =IF(P18=0,0,(P18*((LOG(P18))/LOG(2)))) -> 0 | T18: =N18 -> 2122 | U18: =COUNTIF(L7:L10,T18) -> 0 | V18: =U18/(W4-U20) -> 0 | W18: =IF(V18=0,0,(V18*((LOG(V18))/LOG(2)))) -> 0 | Y18: =N18 -> 2122 | Z18: =COUNTIF(L11:L13,Y18) -> 0 | AA18: =Z18/(AB4-Z20) -> 0 | AB18: =IF(AA18=0,0,(AA18*((LOG(AA18))/LOG(2)))) -> 0 | AD18: =N18 -> 2122 | AE18: =COUNTIF(L14:L17,AD18) -> 0 | AF18: =AE18/(AG4-AE20) -> 0 | AG18: =IF(AF18=0,0,(AF18*((LOG(AF18))/LOG(2)))) -> 0 | AI18: =N18 -> 2122 | AJ18: =COUNTIF(L18:L21,AI18) -> 0 | AK18: =AJ18/(AL4-AJ20) -> 0 | AL18: =IF(AK18=0,0,(AK18*((LOG(AK18))/LOG(2)))) -> 0 | AN18: =N18 -> 2122 | AO18: =COUNTIF(L22:L24,AN18) -> 0 | AP18: =AO18/(AQ4-AO20) -> 0 | AQ18: =IF(AP18=0,0,(AP18*((LOG(AP18))/LOG(2)))) -> 0 | AS18: =N18 -> 2122 | AT18: =COUNTIF(L25:L28,AS18) -> 0 | AU18: =AT18/(AV4-AT20) -> 0 | AV18: =IF(AU18=0,0,(AU18*((LOG(AU18))/LOG(2)))) -> 0
A19: 12 | B19: 2006 | C19: 14 | D19: 2014 | E19: 13 | F19: 2019 | G19: 14 | H19: 2025 | K19: 0 | L19: 1111 | N19: 2211 | O19: =COUNTIF($L$7:$L$500,N19) -> 0 | P19: =O19/$Q$4 -> 0 | Q19: =IF(P19=0,0,(P19*((LOG(P19))/LOG(2)))) -> 0 | T19: =N19 -> 2211 | U19: =COUNTIF(L7:L10,T19) -> 0 | V19: =U19/(W4-U20) -> 0 | W19: =IF(V19=0,0,(V19*((LOG(V19))/LOG(2)))) -> 0 | Y19: =N19 -> 2211 | Z19: =COUNTIF(L11:L13,Y19) -> 0 | AA19: =Z19/(AB4-Z20) -> 0 | AB19: =IF(AA19=0,0,(AA19*((LOG(AA19))/LOG(2)))) -> 0 | AD19: =N19 -> 2211 | AE19: =COUNTIF(L14:L17,AD19) -> 0 | AF19: =AE19/(AG4-AE20) -> 0 | AG19: =IF(AF19=0,0,(AF19*((LOG(AF19))/LOG(2)))) -> 0 | AI19: =N19 -> 2211 | AJ19: =COUNTIF(L18:L21,AI19) -> 0 | AK19: =AJ19/(AL4-AJ20) -> 0 | AL19: =IF(AK19=0,0,(AK19*((LOG(AK19))/LOG(2)))) -> 0 | AN19: =N19 -> 2211 | AO19: =COUNTIF(L22:L24,AN19) -> 0 | AP19: =AO19/(AQ4-AO20) -> 0 | AQ19: =IF(AP19=0,0,(AP19*((LOG(AP19))/LOG(2)))) -> 0 | AS19: =N19 -> 2211 | AT19: =COUNTIF(L25:L28,AS19) -> 0 | AU19: =AT19/(AV4-AT20) -> 0 | AV19: =IF(AU19=0,0,(AU19*((LOG(AU19))/LOG(2)))) -> 0
A20: 12 | B20: 2132 | C20: 14 | D20: 2138 | E20: 13 | F20: 2144 | G20: 14 | H20: 2153 | K20: 0 | L20: 1111 | N20: 2212 | O20: =COUNTIF($L$7:$L$500,N20) -> 0 | P20: =O20/$Q$4 -> 0 | Q20: =IF(P20=0,0,(P20*((LOG(P20))/LOG(2)))) -> 0 | T20: =N20 -> 2212 | U20: =COUNTIF(L7:L10,T20) -> 0 | Y20: =N20 -> 2212 | Z20: =COUNTIF(L11:L13,Y20) -> 0 | AD20: =N20 -> 2212 | AE20: =COUNTIF(L14:L17,AD20) -> 0 | AI20: =N20 -> 2212 | AJ20: =COUNTIF(L18:L21,AI20) -> 0 | AN20: =N20 -> 2212 | AO20: =COUNTIF(L22:L24,AN20) -> 0 | AS20: =N20 -> 2212 | AT20: =COUNTIF(L25:L28,AS20) -> 0
A21: 12 | B21: 2284 | C21: 14 | D21: 2294 | E21: 13 | F21: 2311 | G21: 23 | H21: 2326 | K21: 0 | L21: 1112 | N21: 2221 | O21: =COUNTIF($L$7:$L$500,N21) -> 0 | P21: =O21/$Q$4 -> 0 | Q21: =IF(P21=0,0,(P21*((LOG(P21))/LOG(2)))) -> 0 | T21: =N21 -> 2221 | U21: =COUNTIF(L7:L10,T21) -> 0 | V21: =U21/(W4-U20) -> 0 | W21: =IF(V21=0,0,(V21*((LOG(V21))/LOG(2)))) -> 0 | Y21: =N21 -> 2221 | Z21: =COUNTIF(L11:L13,Y21) -> 0 | AA21: =Z21/(AB4-Z20) -> 0 | AB21: =IF(AA21=0,0,(AA21*((LOG(AA21))/LOG(2)))) -> 0 | AD21: =N21 -> 2221 | AE21: =COUNTIF(L14:L17,AD21) -> 0 | AF21: =AE21/(AG4-AE20) -> 0 | AG21: =IF(AF21=0,0,(AF21*((LOG(AF21))/LOG(2)))) -> 0 | AI21: =N21 -> 2221 | AJ21: =COUNTIF(L18:L21,AI21) -> 0 | AK21: =AJ21/(AL4-AJ20) -> 0 | AL21: =IF(AK21=0,0,(AK21*((LOG(AK21))/LOG(2)))) -> 0 | AN21: =N21 -> 2221 | AO21: =COUNTIF(L22:L24,AN21) -> 0 | AP21: =AO21/(AQ4-AO20) -> 0 | AQ21: =IF(AP21=0,0,(AP21*((LOG(AP21))/LOG(2)))) -> 0 | AS21: =N21 -> 2221 | AT21: =COUNTIF(L25:L28,AS21) -> 0 | AU21: =AT21/(AV4-AT20) -> 0 | AV21: =IF(AU21=0,0,(AU21*((LOG(AU21))/LOG(2)))) -> 0
A22: 12 | B22: 2452 | C22: 14 | D22: 2457 | E22: 13 | F22: 2466 | G22: 14 | H22: 2475 | K22: 0 | L22: 1111 | N22: 2222 | O22: =COUNTIF($L$7:$L$500,N22) -> 4 | P22: =O22/$Q$4 -> 0.1818181818 | Q22: =IF(P22=0,0,(P22*((LOG(P22))/LOG(2)))) -> -0.4471693852 | T22: =N22 -> 2222 | U22: =COUNTIF(L7:L10,T22) -> 1 | V22: =U22/(W4-U20) -> 0.25 | W22: =IF(V22=0,0,(V22*((LOG(V22))/LOG(2)))) -> -0.5 | Y22: =N22 -> 2222 | Z22: =COUNTIF(L11:L13,Y22) -> 0 | AA22: =Z22/(AB4-Z20) -> 0 | AB22: =IF(AA22=0,0,(AA22*((LOG(AA22))/LOG(2)))) -> 0 | AD22: =N22 -> 2222 | AE22: =COUNTIF(L14:L17,AD22) -> 0 | AF22: =AE22/(AG4-AE20) -> 0 | AG22: =IF(AF22=0,0,(AF22*((LOG(AF22))/LOG(2)))) -> 0 | AI22: =N22 -> 2222 | AJ22: =COUNTIF(L18:L21,AI22) -> 0 | AK22: =AJ22/(AL4-AJ20) -> 0 | AL22: =IF(AK22=0,0,(AK22*((LOG(AK22))/LOG(2)))) -> 0 | AN22: =N22 -> 2222 | AO22: =COUNTIF(L22:L24,AN22) -> 1 | AP22: =AO22/(AQ4-AO20) -> 0.3333333333 | AQ22: =IF(AP22=0,0,(AP22*((LOG(AP22))/LOG(2)))) -> -0.5283208336 | AS22: =N22 -> 2222 | AT22: =COUNTIF(L25:L28,AS22) -> 2 | AU22: =AT22/(AV4-AT20) -> 0.5 | AV22: =IF(AU22=0,0,(AU22*((LOG(AU22))/LOG(2)))) -> -0.5
A23: 12 | B23: 2581 | C23: 14 | D23: 2587 | E23: 13 | F23: 2599 | G23: 14 | H23: 2609 | K23: 0 | L23: 1111 | P23: =SUM(P7:P22) -> 1 | Q23: =-SUM(Q7:Q22) -> 1.435371391 | V23: =SUM(V7:V22) -> 1 | W23: =-SUM(W7:W22) -> 1.5 | AA23: =SUM(AA7:AA22) -> 1 | AB23: =-SUM(AB7:AB22) -> 0.9182958341 | AF23: =SUM(AF7:AF22) -> 1 | AG23: =-SUM(AG7:AG22) -> 1 | AK23: =SUM(AK7:AK22) -> 1 | AL23: =-SUM(AL7:AL22) -> 0.8112781245 | AP23: =SUM(AP7:AP22) -> 1 | AQ23: =-SUM(AQ7:AQ22) -> 0.9182958341 | AU23: =SUM(AU7:AU22) -> 1 | AV23: =-SUM(AV7:AV22) -> 1
A24: 21 | B24: 2753 | C24: 21 | D24: 2758 | E24: 22 | F24: 2763 | G24: 23 | H24: 2768 | K24: 0 | L24: 2222 | P24: U= | Q24: =Q23/(LOG(Q4)/LOG(2)) -> 0.3218731698 | V24: U1= | W24: =W23/(LOG(W4)/LOG(2)) -> 0.75 | AA24: U2= | AB24: =AB23/(LOG(AB4)/LOG(2)) -> 0.5793801643 | AF24: U3= | AG24: =AG23/(LOG(AG4)/LOG(2)) -> 0.5 | AK24: U4= | AL24: =AL23/(LOG(AL4)/LOG(2)) -> 0.4056390622 | AP24: U5= | AQ24: =AQ23/(LOG(AQ4)/LOG(2)) -> 0.5793801643 | AU24: U6= | AV24: =AV23/(LOG(AV4)/LOG(2)) -> 0.5
A25: 21 | B25: 13494 | C25: 21 | D25: 13504 | E25: 22 | F25: 13513 | G25: 23 | H25: 13519 | K25: 0 | L25: 2222
A26: 21 | B26: 13712 | C26: 21 | D26: 13728 | E26: 22 | F26: 13737 | G26: 23 | H26: 13745 | K26: 0 | L26: 2222
A27: 12 | B27: 23462 | C27: 14 | D27: 23483 | E27: 13 | F27: 23509 | G27: 14 | H27: 23522 | K27: 0 | L27: 1111 | N27: Total Target Seq
A28: 12 | B28: 23684 | C28: 14 | D28: 23708 | E28: 13 | F28: 23720 | G28: 14 | H28: 23801 | K28: 0 | L28: 1111 | N28: =COUNTIF(L7:L28,G3) -> 0 | P28: 4 | Q28: 3 | R28: 4 | S28: 4 | T28: 3 | U28: 4
P29: % of reinforcement given in 6 equal intervals based on number of trials
P30: %_1 | Q30: %_2 | R30: %_3 | S30: %_4 | T30: %_5 | U30: %_6
O31: target sequence | P31: =$G$3 -> 2212 | Q31: =$G$3 -> 2212 | R31: =$G$3 -> 2212 | S31: =$G$3 -> 2212 | T31: =$G$3 -> 2212 | U31: =$G$3 -> 2212
O32: total reinforcement | P32: =U20 -> 0 | Q32: =Z20 -> 0 | R32: =AE20 -> 0 | S32: =AJ20 -> 0 | T32: =AO20 -> 0 | U32: =AT20 -> 0
O33: % target
O34: CCRF
O35: % CCRf
O36: average response rate | P36: =H10/P28 -> 162 | Q36: =(H13-H10)/Q28 -> 163.3333333 | R36: =(H17-H13)/R28 -> 155.5 | S36: =(H21-H17)/S28 -> 141.5 | T36: =(H24-H21)/T28 -> 147.3333333 | U36: =(H28-H24)/U28 -> 5258.25

Sheet !M909940.102
A1: Report for:!M909940.102
A2: Date: | B2: <date>
A3: Hen: | B3: <hen> | F3: Correct Sequence | G3: =Start!J2 -> 2212 | P3: Total Sequences in Data | Q3: =4994-COUNTBLANK(L7:L5000) -> 13 | V3: Total Sequences in Block Data | W3: =COUNTA(L7:L8) -> 2 | AA3: Total Sequences in Block Data | AB3: =COUNTA(L9:L10) -> 2 | AF3: Total Sequences in Block Data | AG3: =COUNTA(L11:L13) -> 3 | AK3: Total Sequences in Block Data | AL3: =COUNTA(L14:L15) -> 2 | AP3: Total Sequences in Block Data | AQ3: =COUNTA(L16:L17) -> 2 | AU3: Total Sequences in Block Data | AV3: =COUNTA(L18:L19) -> 2
P4: Total Sequences in Summary | Q4: =SUM(O7:O22) -> 12 | V4: Total Sequences in Block Summary | W4: =SUM(U7:U22) -> 2 | AA4: Total Sequences in Block Summary | AB4: =SUM(Z7:Z22) -> 2 | AF4: Total Sequences in Block Summary | AG4: =SUM(AE7:AE22) -> 3 | AK4: Total Sequences in Block Summary | AL4: =SUM(AJ7:AJ22) -> 2 | AP4: Total Sequences in Block Summary | AQ4: =SUM(AO7:AO22) -> 2 | AU4: Total Sequences in Block Summary | AV4: =SUM(AT7:AT22) -> 1
T5: Block 1 | Y5: Block 2 | AD5: Block 3 | AI5: Block 4 | AN5: Block 5 | AS5: Block 6
A6: Sequence Component 1 | B6: Time 1 | C6: Sequence Component 2 | D6: Time 2 | E6: Sequence Component 3 | F6: Time 3 | G6: Sequence Component 4 | H6: Time 4 | I6: Sequence Component 5 | J6: Time 5 | K6: Correct? 0=No 1=Yes | L6: Sequence | N6: Frequency | P6: Relative Frequency | Q6: Variability | T6: Frequency | V6: Relative Frequency | W6: Variability | Y6: Frequency | AA6: Relative Frequency | AB6: Variability | AD6: Frequency | AF6: Relative Frequency | AG6: Variability | AI6: Frequency | AK6: Relative Frequency | AL6: Variability | AN6: Frequency | AP6: Relative Frequency | AQ6: Variability | AS6: Frequency | AU6: Relative Frequency | AV6: Variability
A7: 12 | B7: 244 | C7: 14 | D7: 253 | E7: 13 | F7: 499 | G7: 14 | H7: 507 | K7: 0 | L7: 1111 | N7: 1111 | O7: =COUNTIF($L$7:$L$500,N7) -> 9 | P7: =O7/$Q$4 -> 0.75 | Q7: =IF(P7=0,0,(P7*((LOG(P7))/LOG(2)))) -> -0.3112781245 | T7: =N7 -> 1111 | U7: =COUNTIF(L7:L8,T7) -> 2 | V7: =U7/(W4-U20) -> 1 | W7: =IF(V7=0,0,(V7*((LOG(V7))/LOG(2)))) -> 0 | Y7: =N7 -> 1111 | Z7: =COUNTIF(L9:L10,Y7) -> 2 | AA7: =Z7/(AB4-Z20) -> 1 | AB7: =IF(AA7=0,0,(AA7*((LOG(AA7))/LOG(2)))) -> 0 | AD7: =N7 -> 1111 | AE7: =COUNTIF(L11:L13,AD7) -> 1 | AF7: =AE7/(AG4-AE20) -> 0.3333333333 | AG7: =IF(AF7=0,0,(AF7*((LOG(AF7))/LOG(2)))) -> -0.5283208336 | AI7: =N7 -> 1111 | AJ7: =COUNTIF(L14:L15,AI7) -> 2 | AK7: =AJ7/(AL4-AJ20) -> 1 | AL7: =IF(AK7=0,0,(AK7*((LOG(AK7))/LOG(2)))) -> 0 | AN7: =N7 -> 1111 | AO7: =COUNTIF(L16:L17,AN7) -> 1 | AP7: =AO7/(AQ4-AO20) -> 0.5 | AQ7: =IF(AP7=0,0,(AP7*((LOG(AP7))/LOG(2)))) -> -0.5 | AS7: =N7 -> 1111 | AT7: =COUNTIF(L18:L19,AS7) -> 1 | AU7: =AT7/(AV4-AT20) -> 1 | AV7: =IF(AU7=0,0,(AU7*((LOG(AU7))/LOG(2)))) -> 0
A8: 12 | B8: 613 | C8: 14 | D8: 619 | E8: 13 | F8: 628 | G8: 14 | H8: 638 | K8: 0 | L8: 1111 | N8: 1112 | O8: =COUNTIF($L$7:$L$500,N8) -> 2 | P8: =O8/$Q$4 -> 0.1666666667 | Q8: =IF(P8=0,0,(P8*((LOG(P8))/LOG(2)))) -> -0.4308270835 | T8: =N8 -> 1112 | U8: =COUNTIF(L7:L8,T8) -> 0 | V8: =U8/(W4-U20) -> 0 | W8: =IF(V8=0,0,(V8*((LOG(V8))/LOG(2)))) -> 0 | Y8: =N8 -> 1112 | Z8: =COUNTIF(L9:L10,Y8) -> 0 | AA8: =Z8/(AB4-Z20) -> 0 | AB8: =IF(AA8=0,0,(AA8*((LOG(AA8))/LOG(2)))) -> 0 | AD8: =N8 -> 1112 | AE8: =COUNTIF(L11:L13,AD8) -> 2 | AF8: =AE8/(AG4-AE20) -> 0.6666666667 | AG8: =IF(AF8=0,0,(AF8*((LOG(AF8))/LOG(2)))) -> -0.3899750005 | AI8: =N8 -> 1112 | AJ8: =COUNTIF(L14:L15,AI8) -> 0 | AK8: =AJ8/(AL4-AJ20) -> 0 | AL8: =IF(AK8=0,0,(AK8*((LOG(AK8))/LOG(2)))) -> 0 | AN8: =N8 -> 1112 | AO8: =COUNTIF(L16:L17,AN8) -> 0 | AP8: =AO8/(AQ4-AO20) -> 0 | AQ8: =IF(AP8=0,0,(AP8*((LOG(AP8))/LOG(2)))) -> 0 | AS8: =N8 -> 1112 | AT8: =COUNTIF(L18:L19,AS8) -> 0 | AU8: =AT8/(AV4-AT20) -> 0 | AV8: =IF(AU8=0,0,(AU8*((LOG(AU8))/LOG(2)))) -> 0
A9: 12 | B9: 754 | C9: 14 | D9: 763 | E9: 13 | F9: 773 | G9: 14 | H9: 782 | K9: 0 | L9: 1111 | N9: 1121 | O9: =COUNTIF($L$7:$L$500,N9) -> 0 | P9: =O9/$Q$4 -> 0 | Q9: =IF(P9=0,0,(P9*((LOG(P9))/LOG(2)))) -> 0 | T9: =N9 -> 1121 | U9: =COUNTIF(L7:L8,T9) -> 0 | V9: =U9/(W4-U20) -> 0 | W9: =IF(V9=0,0,(V9*((LOG(V9))/LOG(2)))) -> 0 | Y9: =N9 -> 1121 | Z9: =COUNTIF(L9:L10,Y9) -> 0 | AA9: =Z9/(AB4-Z20) -> 0 | AB9: =IF(AA9=0,0,(AA9*((LOG(AA9))/LOG(2)))) -> 0 | AD9: =N9 -> 1121 | AE9: =COUNTIF(L11:L13,AD9) -> 0 | AF9: =AE9/(AG4-AE20) -> 0 | AG9: =IF(AF9=0,0,(AF9*((LOG(AF9))/LOG(2)))) -> 0 | AI9: =N9 -> 1121 | AJ9: =COUNTIF(L14:L15,AI9) -> 0 | AK9: =AJ9/(AL4-AJ20) -> 0 | AL9: =IF(AK9=0,0,(AK9*((LOG(AK9))/LOG(2)))) -> 0 | AN9: =N9 -> 1121 | AO9: =COUNTIF(L16:L17,AN9) -> 0 | AP9: =AO9/(AQ4-AO20) -> 0 | AQ9: =IF(AP9=0,0,(AP9*((LOG(AP9))/LOG(2)))) -> 0 | AS9: =N9 -> 1121 | AT9: =COUNTIF(L18:L19,AS9) -> 0 | AU9: =AT9/(AV4-AT20) -> 0 | AV9: =IF(AU9=0,0,(AU9*((LOG(AU9))/LOG(2)))) -> 0
A10: 12 | B10: 887 | C10: 14 | D10: 894 | E10: 13 | F10: 902 | G10: 14 | H10: 912 | K10: 0 | L10: 1111 | N10: 1122 | O10: =COUNTIF($L$7:$L$500,N10) -> 0 | P10: =O10/$Q$4 -> 0 | Q10: =IF(P10=0,0,(P10*((LOG(P10))/LOG(2)))) -> 0 | T10: =N10 -> 1122 | U10: =COUNTIF(L7:L8,T10) -> 0 | V10: =U10/(W4-U20) -> 0 | W10: =IF(V10=0,0,(V10*((LOG(V10))/LOG(2)))) -> 0 | Y10: =N10 -> 1122 | Z10: =COUNTIF(L9:L10,Y10) -> 0 | AA10: =Z10/(AB4-Z20) -> 0 | AB10: =IF(AA10=0,0,(AA10*((LOG(AA10))/LOG(2)))) -> 0 | AD10: =N10 -> 1122 | AE10: =COUNTIF(L11:L13,AD10) -> 0 | AF10: =AE10/(AG4-AE20) -> 0 | AG10: =IF(AF10=0,0,(AF10*((LOG(AF10))/LOG(2)))) -> 0 | AI10: =N10 -> 1122 | AJ10: =COUNTIF(L14:L15,AI10) -> 0 | AK10: =AJ10/(AL4-AJ20) -> 0 | AL10: =IF(AK10=0,0,(AK10*((LOG(AK10))/LOG(2)))) -> 0 | AN10: =N10 -> 1122 | AO10: =COUNTIF(L16:L17,AN10) -> 0 | AP10: =AO10/(AQ4-AO20) -> 0 | AQ10: =IF(AP10=0,0,(AP10*((LOG(AP10))/LOG(2)))) -> 0 | AS10: =N10 -> 1122 | AT10: =COUNTIF(L18:L19,AS10) -> 0 | AU10: =AT10/(AV4-AT20) -> 0 | AV10: =IF(AU10=0,0,(AU10*((LOG(AU10))/LOG(2)))) -> 0
A11: 12 | B11: 1014 | C11: 14 | D11: 1019 | E11: 13 | F11: 1027 | G11: 23 | H11: 1054 | K11: 0 | L11: 1112 | N11: 1211 | O11: =COUNTIF($L$7:$L$500,N11) -> 0 | P11: =O11/$Q$4 -> 0 | Q11: =IF(P11=0,0,(P11*((LOG(P11))/LOG(2)))) -> 0 | T11: =N11 -> 1211 | U11: =COUNTIF(L7:L8,T11) -> 0 | V11: =U11/(W4-U20) -> 0 | W11: =IF(V11=0,0,(V11*((LOG(V11))/LOG(2)))) -> 0 | Y11: =N11 -> 1211 | Z11: =COUNTIF(L9:L10,Y11) -> 0 | AA11: =Z11/(AB4-Z20) -> 0 | AB11: =IF(AA11=0,0,(AA11*((LOG(AA11))/LOG(2)))) -> 0 | AD11: =N11 -> 1211 | AE11: =COUNTIF(L11:L13,AD11) -> 0 | AF11: =AE11/(AG4-AE20) -> 0 | AG11: =IF(AF11=0,0,(AF11*((LOG(AF11))/LOG(2)))) -> 0 | AI11: =N11 -> 1211 | AJ11: =COUNTIF(L14:L15,AI11) -> 0 | AK11: =AJ11/(AL4-AJ20) -> 0 | AL11: =IF(AK11=0,0,(AK11*((LOG(AK11))/LOG(2)))) -> 0 | AN11: =N11 -> 1211 | AO11: =COUNTIF(L16:L17,AN11) -> 0 | AP11: =AO11/(AQ4-AO20) -> 0 | AQ11: =IF(AP11=0,0,(AP11*((LOG(AP11))/LOG(2)))) -> 0 | AS11: =N11 -> 1211 | AT11: =COUNTIF(L18:L19,AS11) -> 0 | AU11: =AT11/(AV4-AT20) -> 0 | AV11: =IF(AU11=0,0,(AU11*((LOG(AU11))/LOG(2)))) -> 0
A12: 12 | B12: 1182 | C12: 14 | D12: 1200 | E12: 13 | F12: 1207 | G12: 14 | H12: 1218 | K12: 0 | L12: 1111 | N12: 1212 | O12: =COUNTIF($L$7:$L$500,N12) -> 0 | P12: =O12/$Q$4 -> 0 | Q12: =IF(P12=0,0,(P12*((LOG(P12))/LOG(2)))) -> 0 | T12: =N12 -> 1212 | U12: =COUNTIF(L7:L8,T12) -> 0 | V12: =U12/(W4-U20) -> 0 | W12: =IF(V12=0,0,(V12*((LOG(V12))/LOG(2)))) -> 0 | Y12: =N12 -> 1212 | Z12: =COUNTIF(L9:L10,Y12) -> 0 | AA12: =Z12/(AB4-Z20) -> 0 | AB12: =IF(AA12=0,0,(AA12*((LOG(AA12))/LOG(2)))) -> 0 | AD12: =N12 -> 1212 | AE12: =COUNTIF(L11:L13,AD12) -> 0 | AF12: =AE12/(AG4-AE20) -> 0 | AG12: =IF(AF12=0,0,(AF12*((LOG(AF12))/LOG(2)))) -> 0 | AI12: =N12 -> 1212 | AJ12: =COUNTIF(L14:L15,AI12) -> 0 | AK12: =AJ12/(AL4-AJ20) -> 0 | AL12: =IF(AK12=0,0,(AK12*((LOG(AK12))/LOG(2)))) -> 0 | AN12: =N12 -> 1212 | AO12: =COUNTIF(L16:L17,AN12) -> 0 | AP12: =AO12/(AQ4-AO20) -> 0 | AQ12: =IF(AP12=0,0,(AP12*((LOG(AP12))/LOG(2)))) -> 0 | AS12: =N12 -> 1212 | AT12: =COUNTIF(L18:L19,AS12) -> 0 | AU12: =AT12/(AV4-AT20) -> 0 | AV12: =IF(AU12=0,0,(AU12*((LOG(AU12))/LOG(2)))) -> 0
A13: 12 | B13: 1330 | C13: 14 | D13: 1335 | E13: 13 | F13: 1344 | G13: 23 | H13: 1364 | K13: 0 | L13: 1112 | N13: 1221 | O13: =COUNTIF($L$7:$L$500,N13) -> 0 | P13: =O13/$Q$4 -> 0 | Q13: =IF(P13=0,0,(P13*((LOG(P13))/LOG(2)))) -> 0 | T13: =N13 -> 1221 | U13: =COUNTIF(L7:L8,T13) -> 0 | V13: =U13/(W4-U20) -> 0 | W13: =IF(V13=0,0,(V13*((LOG(V13))/LOG(2)))) -> 0 | Y13: =N13 -> 1221 | Z13: =COUNTIF(L9:L10,Y13) -> 0 | AA13: =Z13/(AB4-Z20) -> 0 | AB13: =IF(AA13=0,0,(AA13*((LOG(AA13))/LOG(2)))) -> 0 | AD13: =N13 -> 1221 | AE13: =COUNTIF(L11:L13,AD13) -> 0 | AF13: =AE13/(AG4-AE20) -> 0 | AG13: =IF(AF13=0,0,(AF13*((LOG(AF13))/LOG(2)))) -> 0 | AI13: =N13 -> 1221 | AJ13: =COUNTIF(L14:L15,AI13) -> 0 | AK13: =AJ13/(AL4-AJ20) -> 0 | AL13: =IF(AK13=0,0,(AK13*((LOG(AK13))/LOG(2)))) -> 0 | AN13: =N13 -> 1221 | AO13: =COUNTIF(L16:L17,AN13) -> 0 | AP13: =AO13/(AQ4-AO20) -> 0 | AQ13: =IF(AP13=0,0,(AP13*((LOG(AP13))/LOG(2)))) -> 0 | AS13: =N13 -> 1221 | AT13: =COUNTIF(L18:L19,AS13) -> 0 | AU13: =AT13/(AV4-AT20) -> 0 | AV13: =IF(AU13=0,0,(AU13*((LOG(AU13))/LOG(2)))) -> 0
A14: 12 | B14: 1465 | C14: 14 | D14: 1470 | E14: 13 | F14: 1480 | G14: 14 | H14: 1490 | K14: 0 | L14: 1111 | N14: 1222 | O14: =COUNTIF($L$7:$L$500,N14) -> 0 | P14: =O14/$Q$4 -> 0 | Q14: =IF(P14=0,0,(P14*((LOG(P14))/LOG(2)))) -> 0 | T14: =N14 -> 1222 | U14: =COUNTIF(L7:L8,T14) -> 0 | V14: =U14/(W4-U20) -> 0 | W14: =IF(V14=0,0,(V14*((LOG(V14))/LOG(2)))) -> 0 | Y14: =N14 -> 1222 | Z14: =COUNTIF(L9:L10,Y14) -> 0 | AA14: =Z14/(AB4-Z20) -> 0 | AB14: =IF(AA14=0,0,(AA14*((LOG(AA14))/LOG(2)))) -> 0 | AD14: =N14 -> 1222 | AE14: =COUNTIF(L11:L13,AD14) -> 0 | AF14: =AE14/(AG4-AE20) -> 0 | AG14: =IF(AF14=0,0,(AF14*((LOG(AF14))/LOG(2)))) -> 0 | AI14: =N14 -> 1222 | AJ14: =COUNTIF(L14:L15,AI14) -> 0 | AK14: =AJ14/(AL4-AJ20) -> 0 | AL14: =IF(AK14=0,0,(AK14*((LOG(AK14))/LOG(2)))) -> 0 | AN14: =N14 -> 1222 | AO14: =COUNTIF(L16:L17,AN14) -> 0 | AP14: =AO14/(AQ4-AO20) -> 0 | AQ14: =IF(AP14=0,0,(AP14*((LOG(AP14))/LOG(2)))) -> 0 | AS14: =N14 -> 1222 | AT14: =COUNTIF(L18:L19,AS14) -> 0 | AU14: =AT14/(AV4-AT20) -> 0 | AV14: =IF(AU14=0,0,(AU14*((LOG(AU14))/LOG(2)))) -> 0
A15: 12 | B15: 1589 | C15: 14 | D15: 1597 | E15: 13 | F15: 1607 | G15: 14 | H15: 1619 | K15: 0 | L15: 1111 | N15: 2111 | O15: =COUNTIF($L$7:$L$500,N15) -> 0 | P15: =O15/$Q$4 -> 0 | Q15: =IF(P15=0,0,(P15*((LOG(P15))/LOG(2)))) -> 0 | T15: =N15 -> 2111 | U15: =COUNTIF(L7:L8,T15) -> 0 | V15: =U15/(W4-U20) -> 0 | W15: =IF(V15=0,0,(V15*((LOG(V15))/LOG(2)))) -> 0 | Y15: =N15 -> 2111 | Z15: =COUNTIF(L9:L10,Y15) -> 0 | AA15: =Z15/(AB4-Z20) -> 0 | AB15: =IF(AA15=0,0,(AA15*((LOG(AA15))/LOG(2)))) -> 0 | AD15: =N15 -> 2111 | AE15: =COUNTIF(L11:L13,AD15) -> 0 | AF15: =AE15/(AG4-AE20) -> 0 | AG15: =IF(AF15=0,0,(AF15*((LOG(AF15))/LOG(2)))) -> 0 | AI15: =N15 -> 2111 | AJ15: =COUNTIF(L14:L15,AI15) -> 0 | AK15: =AJ15/(AL4-AJ20) -> 0 | AL15: =IF(AK15=0,0,(AK15*((LOG(AK15))/LOG(2)))) -> 0 | AN15: =N15 -> 2111 | AO15: =COUNTIF(L16:L17,AN15) -> 0 | AP15: =AO15/(AQ4-AO20) -> 0 | AQ15: =IF(AP15=0,0,(AP15*((LOG(AP15))/LOG(2)))) -> 0 | AS15: =N15 -> 2111 | AT15: =COUNTIF(L18:L19,AS15) -> 0 | AU15: =AT15/(AV4-AT20) -> 0 | AV15: =IF(AU15=0,0,(AU15*((LOG(AU15))/LOG(2)))) -> 0
A16: 21 | B16: 1761 | C16: 21 | D16: 1770 | E16: 22 | F16: 1778 | G16: 23 | H16: 1792 | K16: 0 | L16: 2222 | N16: 2112 | O16: =COUNTIF($L$7:$L$500,N16) -> 0 | P16: =O16/$Q$4 -> 0 | Q16: =IF(P16=0,0,(P16*((LOG(P16))/LOG(2)))) -> 0 | T16: =N16 -> 2112 | U16: =COUNTIF(L7:L8,T16) -> 0 | V16: =U16/(W4-U20) -> 0 | W16: =IF(V16=0,0,(V16*((LOG(V16))/LOG(2)))) -> 0 | Y16: =N16 -> 2112 | Z16: =COUNTIF(L9:L10,Y16) -> 0 | AA16: =Z16/(AB4-Z20) -> 0 | AB16: =IF(AA16=0,0,(AA16*((LOG(AA16))/LOG(2)))) -> 0 | AD16: =N16 -> 2112 | AE16: =COUNTIF(L11:L13,AD16) -> 0 | AF16: =AE16/(AG4-AE20) -> 0 | AG16: =IF(AF16=0,0,(AF16*((LOG(AF16))/LOG(2)))) -> 0 | AI16: =N16 -> 2112 | AJ16: =COUNTIF(L14:L15,AI16) -> 0 | AK16: =AJ16/(AL4-AJ20) -> 0 | AL16: =IF(AK16=0,0,(AK16*((LOG(AK16))/LOG(2)))) -> 0 | AN16: =N16 -> 2112 | AO16: =COUNTIF(L16:L17,AN16) -> 0 | AP16: =AO16/(AQ4-AO20) -> 0 | AQ16: =IF(AP16=0,0,(AP16*((LOG(AP16))/LOG(2)))) -> 0 | AS16: =N16 -> 2112 | AT16: =COUNTIF(L18:L19,AS16) -> 0 | AU16: =AT16/(AV4-AT20) -> 0 | AV16: =IF(AU16=0,0,(AU16*((LOG(AU16))/LOG(2)))) -> 0
A17: 12 | B17: 1901 | C17: 14 | D17: 1911 | E17: 13 | F17: 1921 | G17: 14 | H17: 1933 | K17: 0 | L17: 1111 | N17: 2121 | O17: =COUNTIF($L$7:$L$500,N17) -> 0 | P17: =O17/$Q$4 -> 0 | Q17: =IF(P17=0,0,(P17*((LOG(P17))/LOG(2)))) -> 0 | T17: =N17 -> 2121 | U17: =COUNTIF(L7:L8,T17) -> 0 | V17: =U17/(W4-U20) -> 0 | W17: =IF(V17=0,0,(V17*((LOG(V17))/LOG(2)))) -> 0 | Y17: =N17 -> 2121 | Z17: =COUNTIF(L9:L10,Y17) -> 0 | AA17: =Z17/(AB4-Z20) -> 0 | AB17: =IF(AA17=0,0,(AA17*((LOG(AA17))/LOG(2)))) -> 0 | AD17: =N17 -> 2121 | AE17: =COUNTIF(L11:L13,AD17) -> 0 | AF17: =AE17/(AG4-AE20) -> 0 | AG17: =IF(AF17=0,0,(AF17*((LOG(AF17))/LOG(2)))) -> 0 | AI17: =N17 -> 2121 | AJ17: =COUNTIF(L14:L15,AI17) -> 0 | AK17: =AJ17/(AL4-AJ20) -> 0 | AL17: =IF(AK17=0,0,(AK17*((LOG(AK17))/LOG(2)))) -> 0 | AN17: =N17 -> 2121 | AO17: =COUNTIF(L16:L17,AN17) -> 0 | AP17: =AO17/(AQ4-AO20) -> 0 | AQ17: =IF(AP17=0,0,(AP17*((LOG(AP17))/LOG(2)))) -> 0 | AS17: =N17 -> 2121 | AT17: =COUNTIF(L18:L19,AS17) -> 0 | AU17: =AT17/(AV4-AT20) -> 0 | AV17: =IF(AU17=0,0,(AU17*((LOG(AU17))/LOG(2)))) -> 0
A18: 12 | B18: 2051 | C18: 14 | D18: 2058 | E18: 13 | F18: 2067 | G18: 14 | H18: 2077 | K18: 0 | L18: 1111 | N18: 2122 | O18: =COUNTIF($L$7:$L$500,N18) -> 0 | P18: =O18/$Q$4 -> 0 | Q18: =IF(P18=0,0,(P18*((LOG(P18))/LOG(2)))) -> 0 | T18: =N18 -> 2122 | U18: =COUNTIF(L7:L8,T18) -> 0 | V18: =U18/(W4-U20) -> 0 | W18: =IF(V18=0,0,(V18*((LOG(V18))/LOG(2)))) -> 0 | Y18: =N18 -> 2122 | Z18: =COUNTIF(L9:L10,Y18) -> 0 | AA18: =Z18/(AB4-Z20) -> 0 | AB18: =IF(AA18=0,0,(AA18*((LOG(AA18))/LOG(2)))) -> 0 | AD18: =N18 -> 2122 | AE18: =COUNTIF(L11:L13,AD18) -> 0 | AF18: =AE18/(AG4-AE20) -> 0 | AG18: =IF(AF18=0,0,(AF18*((LOG(AF18))/LOG(2)))) -> 0 | AI18: =N18 -> 2122 | AJ18: =COUNTIF(L14:L15,AI18) -> 0 | AK18: =AJ18/(AL4-AJ20) -> 0 | AL18: =IF(AK18=0,0,(AK18*((LOG(AK18))/LOG(2)))) -> 0 | AN18: =N18 -> 2122 | AO18: =COUNTIF(L16:L17,AN18) -> 0 | AP18: =AO18/(AQ4-AO20) -> 0 | AQ18: =IF(AP18=0,0,(AP18*((LOG(AP18))/LOG(2)))) -> 0 | AS18: =N18 -> 2122 | AT18: =COUNTIF(L18:L19,AS18) -> 0 | AU18: =AT18/(AV4-AT20) -> 0 | AV18: =IF(AU18=0,0,(AU18*((LOG(AU18))/LOG(2)))) -> 0
A19: 12 | B19: 13084 | L19: 1 | N19: 2211 | O19: =COUNTIF($L$7:$L$500,N19) -> 0 | P19: =O19/$Q$4 -> 0 | Q19: =IF(P19=0,0,(P19*((LOG(P19))/LOG(2)))) -> 0 | T19: =N19 -> 2211 | U19: =COUNTIF(L7:L8,T19) -> 0 | V19: =U19/(W4-U20) -> 0 | W19: =IF(V19=0,0,(V19*((LOG(V19))/LOG(2)))) -> 0 | Y19: =N19 -> 2211 | Z19: =COUNTIF(L9:L10,Y19) -> 0 | AA19: =Z19/(AB4-Z20) -> 0 | AB19: =IF(AA19=0,0,(AA19*((LOG(AA19))/LOG(2)))) -> 0 | AD19: =N19 -> 2211 | AE19: =COUNTIF(L11:L13,AD19) -> 0 | AF19: =AE19/(AG4-AE20) -> 0 | AG19: =IF(AF19=0,0,(AF19*((LOG(AF19))/LOG(2)))) -> 0 | AI19: =N19 -> 2211 | AJ19: =COUNTIF(L14:L15,AI19) -> 0 | AK19: =AJ19/(AL4-AJ20) -> 0 | AL19: =IF(AK19=0,0,(AK19*((LOG(AK19))/LOG(2)))) -> 0 | AN19: =N19 -> 2211 | AO19: =COUNTIF(L16:L17,AN19) -> 0 | AP19: =AO19/(AQ4-AO20) -> 0 | AQ19: =IF(AP19=0,0,(AP19*((LOG(AP19))/LOG(2)))) -> 0 | AS19: =N19 -> 2211 | AT19: =COUNTIF(L18:L19,AS19) -> 0 | AU19: =AT19/(AV4-AT20) -> 0 | AV19: =IF(AU19=0,0,(AU19*((LOG(AU19))/LOG(2)))) -> 0
N20: 2212 | O20: =COUNTIF($L$7:$L$500,N20) -> 0 | P20: =O20/$Q$4 -> 0 | Q20: =IF(P20=0,0,(P20*((LOG(P20))/LOG(2)))) -> 0 | T20: =N20 -> 2212 | U20: =COUNTIF(L7:L8,T20) -> 0 | Y20: =N20 -> 2212 | Z20: =COUNTIF(L9:L10,Y20) -> 0 | AD20: =N20 -> 2212 | AE20: =COUNTIF(L11:L13,AD20) -> 0 | AI20: =N20 -> 2212 | AJ20: =COUNTIF(L14:L15,AI20) -> 0 | AN20: =N20 -> 2212 | AO20: =COUNTIF(L16:L17,AN20) -> 0 | AS20: =N20 -> 2212 | AT20: =COUNTIF(L18:L19,AS20) -> 0
N21: 2221 | O21: =COUNTIF($L$7:$L$500,N21) -> 0 | P21: =O21/$Q$4 -> 0 | Q21: =IF(P21=0,0,(P21*((LOG(P21))/LOG(2)))) -> 0 | T21: =N21 -> 2221 | U21: =COUNTIF(L7:L8,T21) -> 0 | V21: =U21/(W4-U20) -> 0 | W21: =IF(V21=0,0,(V21*((LOG(V21))/LOG(2)))) -> 0 | Y21: =N21 -> 2221 | Z21: =COUNTIF(L9:L10,Y21) -> 0 | AA21: =Z21/(AB4-Z20) -> 0 | AB21: =IF(AA21=0,0,(AA21*((LOG(AA21))/LOG(2)))) -> 0 | AD21: =N21 -> 2221 | AE21: =COUNTIF(L11:L13,AD21) -> 0 | AF21: =AE21/(AG4-AE20) -> 0 | AG21: =IF(AF21=0,0,(AF21*((LOG(AF21))/LOG(2)))) -> 0 | AI21: =N21 -> 2221 | AJ21: =COUNTIF(L14:L15,AI21) -> 0 | AK21: =AJ21/(AL4-AJ20) -> 0 | AL21: =IF(AK21=0,0,(AK21*((LOG(AK21))/LOG(2)))) -> 0 | AN21: =N21 -> 2221 | AO21: =COUNTIF(L16:L17,AN21) -> 0 | AP21: =AO21/(AQ4-AO20) -> 0 | AQ21: =IF(AP21=0,0,(AP21*((LOG(AP21))/LOG(2)))) -> 0 | AS21: =N21 -> 2221 | AT21: =COUNTIF(L18:L19,AS21) -> 0 | AU21: =AT21/(AV4-AT20) -> 0 | AV21: =IF(AU21=0,0,(AU21*((LOG(AU21))/LOG(2)))) -> 0
N22: 2222 | O22: =COUNTIF($L$7:$L$500,N22) -> 1 | P22: =O22/$Q$4 -> 0.08333333333 | Q22: =IF(P22=0,0,(P22*((LOG(P22))/LOG(2)))) -> -0.2987468751 | T22: =N22 -> 2222 | U22: =COUNTIF(L7:L8,T22) -> 0 | V22: =U22/(W4-U20) -> 0 | W22: =IF(V22=0,0,(V22*((LOG(V22))/LOG(2)))) -> 0 | Y22: =N22 -> 2222 | Z22: =COUNTIF(L9:L10,Y22) -> 0 | AA22: =Z22/(AB4-Z20) -> 0 | AB22: =IF(AA22=0,0,(AA22*((LOG(AA22))/LOG(2)))) -> 0 | AD22: =N22 -> 2222 | AE22: =COUNTIF(L11:L13,AD22) -> 0 | AF22: =AE22/(AG4-AE20) -> 0 | AG22: =IF(AF22=0,0,(AF22*((LOG(AF22))/LOG(2)))) -> 0 | AI22: =N22 -> 2222 | AJ22: =COUNTIF(L14:L15,AI22) -> 0 | AK22: =AJ22/(AL4-AJ20) -> 0 | AL22: =IF(AK22=0,0,(AK22*((LOG(AK22))/LOG(2)))) -> 0 | AN22: =N22 -> 2222 | AO22: =COUNTIF(L16:L17,AN22) -> 1 | AP22: =AO22/(AQ4-AO20) -> 0.5 | AQ22: =IF(AP22=0,0,(AP22*((LOG(AP22))/LOG(2)))) -> -0.5 | AS22: =N22 -> 2222 | AT22: =COUNTIF(L18:L19,AS22) -> 0 | AU22: =AT22/(AV4-AT20) -> 0 | AV22: =IF(AU22=0,0,(AU22*((LOG(AU22))/LOG(2)))) -> 0
P23: =SUM(P7:P22) -> 1 | Q23: =-SUM(Q7:Q22) -> 1.040852083 | V23: =SUM(V7:V22) -> 1 | W23: =-SUM(W7:W22) -> 0 | AA23: =SUM(AA7:AA22) -> 1 | AB23: =-SUM(AB7:AB22) -> 0 | AF23: =SUM(AF7:AF22) -> 1 | AG23: =-SUM(AG7:AG22) -> 0.9182958341 | AK23: =SUM(AK7:AK22) -> 1 | AL23: =-SUM(AL7:AL22) -> 0 | AP23: =SUM(AP7:AP22) -> 1 | AQ23: =-SUM(AQ7:AQ22) -> 1 | AU23: =SUM(AU7:AU22) -> 1 | AV23: =-SUM(AV7:AV22) -> 0
P24: U= | Q24: =Q23/(LOG(Q4)/LOG(2)) -> 0.290338346 | V24: U1= | W24: =W23/(LOG(W4)/LOG(2)) -> 0 | AA24: U2= | AB24: =AB23/(LOG(AB4)/LOG(2)) -> 0 | AF24: U3= | AG24: =AG23/(LOG(AG4)/LOG(2)) -> 0.5793801643 | AK24: U4= | AL24: =AL23/(LOG(AL4)/LOG(2)) -> 0 | AP24: U5= | AQ24: =AQ23/(LOG(AQ4)/LOG(2)) -> 1 | AU24: U6= | AV24: =AV23/(LOG(AV4)/LOG(2)) -> 
N27: Total Target Seq
N28: =COUNTIF(L7:L19,G3) -> 0 | P28: 2 | Q28: 2 | R28: 3 | S28: 2 | T28: 2 | U28: 2
P29: % of reinforcement given in 6 equal intervals based on number of trials
P30: %_1 | Q30: %_2 | R30: %_3 | S30: %_4 | T30: %_5 | U30: %_6
O31: target sequence | P31: =$G$3 -> 2212 | Q31: =$G$3 -> 2212 | R31: =$G$3 -> 2212 | S31: =$G$3 -> 2212 | T31: =$G$3 -> 2212 | U31: =$G$3 -> 2212
O32: total reinforcement | P32: =U20 -> 0 | Q32: =Z20 -> 0 | R32: =AE20 -> 0 | S32: =AJ20 -> 0 | T32: =AO20 -> 0 | U32: =AT20 -> 0
O33: % target
O34: CCRF
O35: % CCRf
O36: average response rate | P36: =H8/P28 -> 319 | Q36: =(H10-H8)/Q28 -> 137 | R36: =(H13-H10)/R28 -> 150.6666667 | S36: =(H15-H13)/S28 -> 127.5 | T36: =(H17-H15)/T28 -> 157 | U36: =(H19-H17)/U28 -> -966.5

Sheet !M910900.102
A1: Report for:!M910900.102
A2: Date: | B2: <date>
A3: Hen: | B3: <hen> | F3: Correct Sequence | G3: =Start!J2 -> 2212 | P3: Total Sequences in Data | Q3: =4994-COUNTBLANK(L7:L5000) -> 11 | V3: Total Sequences in Block Data | W3: =COUNTA(L7:L8) -> 2 | AA3: Total Sequences in Block Data | AB3: =COUNTA(L9:L10) -> 2 | AF3: Total Sequences in Block Data | AG3: =COUNTA(L11:L11) -> 1 | AK3: Total Sequences in Block Data | AL3: =COUNTA(L12:L13) -> 2 | AP3: Total Sequences in Block Data | AQ3: =COUNTA(L14:L15) -> 2 | AU3: Total Sequences in Block Data | AV3: =COUNTA(L16:L17) -> 2
P4: Total Sequences in Summary | Q4: =SUM(O7:O22) -> 10 | V4: Total Sequences in Block Summary | W4: =SUM(U7:U22) -> 2 | AA4: Total Sequences in Block Summary | AB4: =SUM(Z7:Z22) -> 2 | AF4: Total Sequences in Block Summary | AG4: =SUM(AE7:AE22) -> 1 | AK4: Total Sequences in Block Summary | AL4: =SUM(AJ7:AJ22) -> 2 | AP4: Total Sequences in Block Summary | AQ4: =SUM(AO7:AO22) -> 2 | AU4: Total Sequences in Block Summary | AV4: =SUM(AT7:AT22) -> 1
T5: Block 1 | Y5: Block 2 | AD5: Block 3 | AI5: Block 4 | AN5: Block 5 | AS5: Block 6
A6: Sequence Component 1 | B6: Time 1 | C6: Sequence Component 2 | D6: Time 2 | E6: Sequence Component 3 | F6: Time 3 | G6: Sequence Component 4 | H6: Time 4 | I6: Sequence Component 5 | J6: Time 5 | K6: Correct? 0=No 1=Yes | L6: Sequence | N6: Frequency | P6: Relative Frequency | Q6: Variability | T6: Frequency | V6: Relative Frequency | W6: Variability | Y6: Frequency | AA6: Relative Frequency | AB6: Variability | AD6: Frequency | AF6: Relative Frequency | AG6: Variability | AI6: Frequency | AK6: Relative Frequency | AL6: Variability | AN6: Frequency | AP6: Relative Frequency | AQ6: Variability | AS6: Frequency | AU6: Relative Frequency | AV6: Variability
A7: 12 | B7: 320 | C7: 14 | D7: 332 | E7: 13 | F7: 342 | G7: 14 | H7: 352 | K7: 0 | L7: 1111 | N7: 1111 | O7: =COUNTIF($L$7:$L$500,N7) -> 5 | P7: =O7/$Q$4 -> 0.5 | Q7: =IF(P7=0,0,(P7*((LOG(P7))/LOG(2)))) -> -0.5 | T7: =N7 -> 1111 | U7: =COUNTIF(L7:L8,T7) -> 2 | V7: =U7/(W4-U20) -> 1 | W7: =IF(V7=0,0,(V7*((LOG(V7))/LOG(2)))) -> 0 | Y7: =N7 -> 1111 | Z7: =COUNTIF(L9:L10,Y7) -> 1 | AA7: =Z7/(AB4-Z20) -> 0.5 | AB7: =IF(AA7=0,0,(AA7*((LOG(AA7))/LOG(2)))) -> -0.5 | AD7: =N7 -> 1111 | AE7: =COUNTIF(L11:L11,AD7) -> 0 | AF7: =AE7/(AG4-AE20) -> 0 | AG7: =IF(AF7=0,0,(AF7*((LOG(AF7))/LOG(2)))) -> 0 | AI7: =N7 -> 1111 | AJ7: =COUNTIF(L12:L13,AI7) -> 1 | AK7: =AJ7/(AL4-AJ20) -> 0.5 | AL7: =IF(AK7=0,0,(AK7*((LOG(AK7))/LOG(2)))) -> -0.5 | AN7: =N7 -> 1111 | AO7: =COUNTIF(L14:L15,AN7) -> 1 | AP7: =AO7/(AQ4-AO20) -> 0.5 | AQ7: =IF(AP7=0,0,(AP7*((LOG(AP7))/LOG(2)))) -> -0.5 | AS7: =N7 -> 1111 | AT7: =COUNTIF(L16:L17,AS7) -> 0 | AU7: =AT7/(AV4-AT20) -> 0 | AV7: =IF(AU7=0,0,(AU7*((LOG(AU7))/LOG(2)))) -> 0
A8: 12 | B8: 513 | C8: 14 | D8: 523 | E8: 13 | F8: 534 | G8: 14 | H8: 543 | K8: 0 | L8: 1111 | N8: 1112 | O8: =COUNTIF($L$7:$L$500,N8) -> 3 | P8: =O8/$Q$4 -> 0.3 | Q8: =IF(P8=0,0,(P8*((LOG(P8))/LOG(2)))) -> -0.5210896782 | T8: =N8 -> 1112 | U8: =COUNTIF(L7:L8,T8) -> 0 | V8: =U8/(W4-U20) -> 0 | W8: =IF(V8=0,0,(V8*((LOG(V8))/LOG(2)))) -> 0 | Y8: =N8 -> 1112 | Z8: =COUNTIF(L9:L10,Y8) -> 1 | AA8: =Z8/(AB4-Z20) -> 0.5 | AB8: =IF(AA8=0,0,(AA8*((LOG(AA8))/LOG(2)))) -> -0.5 | AD8: =N8 -> 1112 | AE8: =COUNTIF(L11:L11,AD8) -> 1 | AF8: =AE8/(AG4-AE20) -> 1 | AG8: =IF(AF8=0,0,(AF8*((LOG(AF8))/LOG(2)))) -> 0 | AI8: =N8 -> 1112 | AJ8: =COUNTIF(L12:L13,AI8) -> 0 | AK8: =AJ8/(AL4-AJ20) -> 0 | AL8: =IF(AK8=0,0,(AK8*((LOG(AK8))/LOG(2)))) -> 0 | AN8: =N8 -> 1112 | AO8: =COUNTIF(L14:L15,AN8) -> 1 | AP8: =AO8/(AQ4-AO20) -> 0.5 | AQ8: =IF(AP8=0,0,(AP8*((LOG(AP8))/LOG(2)))) -> -0.5 | AS8: =N8 -> 1112 | AT8: =COUNTIF(L16:L17,AS8) -> 0 | AU8: =AT8/(AV4-AT20) -> 0 | AV8: =IF(AU8=0,0,(AU8*((LOG(AU8))/LOG(2)))) -> 0
A9: 12 | B9: 672 | C9: 14 | D9: 678 | E9: 13 | F9: 683 | G9: 23 | H9: 698 | K9: 0 | L9: 1112 | N9: 1121 | O9: =COUNTIF($L$7:$L$500,N9) -> 0 | P9: =O9/$Q$4 -> 0 | Q9: =IF(P9=0,0,(P9*((LOG(P9))/LOG(2)))) -> 0 | T9: =N9 -> 1121 | U9: =COUNTIF(L7:L8,T9) -> 0 | V9: =U9/(W4-U20) -> 0 | W9: =IF(V9=0,0,(V9*((LOG(V9))/LOG(2)))) -> 0 | Y9: =N9 -> 1121 | Z9: =COUNTIF(L9:L10,Y9) -> 0 | AA9: =Z9/(AB4-Z20) -> 0 | AB9: =IF(AA9=0,0,(AA9*((LOG(AA9))/LOG(2)))) -> 0 | AD9: =N9 -> 1121 | AE9: =COUNTIF(L11:L11,AD9) -> 0 | AF9: =AE9/(AG4-AE20) -> 0 | AG9: =IF(AF9=0,0,(AF9*((LOG(AF9))/LOG(2)))) -> 0 | AI9: =N9 -> 1121 | AJ9: =COUNTIF(L12:L13,AI9) -> 0 | AK9: =AJ9/(AL4-AJ20) -> 0 | AL9: =IF(AK9=0,0,(AK9*((LOG(AK9))/LOG(2)))) -> 0 | AN9: =N9 -> 1121 | AO9: =COUNTIF(L14:L15,AN9) -> 0 | AP9: =AO9/(AQ4-AO20) -> 0 | AQ9: =IF(AP9=0,0,(AP9*((LOG(AP9))/LOG(2)))) -> 0 | AS9: =N9 -> 1121 | AT9: =COUNTIF(L16:L17,AS9) -> 0 | AU9: =AT9/(AV4-AT20) -> 0 | AV9: =IF(AU9=0,0,(AU9*((LOG(AU9))/LOG(2)))) -> 0
A10: 12 | B10: 796 | C10: 14 | D10: 802 | E10: 13 | F10: 808 | G10: 14 | H10: 814 | K10: 0 | L10: 1111 | N10: 1122 | O10: =COUNTIF($L$7:$L$500,N10) -> 0 | P10: =O10/$Q$4 -> 0 | Q10: =IF(P10=0,0,(P10*((LOG(P10))/LOG(2)))) -> 0 | T10: =N10 -> 1122 | U10: =COUNTIF(L7:L8,T10) -> 0 | V10: =U10/(W4-U20) -> 0 | W10: =IF(V10=0,0,(V10*((LOG(V10))/LOG(2)))) -> 0 | Y10: =N10 -> 1122 | Z10: =COUNTIF(L9:L10,Y10) -> 0 | AA10: =Z10/(AB4-Z20) -> 0 | AB10: =IF(AA10=0,0,(AA10*((LOG(AA10))/LOG(2)))) -> 0 | AD10: =N10 -> 1122 | AE10: =COUNTIF(L11:L11,AD10) -> 0 | AF10: =AE10/(AG4-AE20) -> 0 | AG10: =IF(AF10=0,0,(AF10*((LOG(AF10))/LOG(2)))) -> 0 | AI10: =N10 -> 1122 | AJ10: =COUNTIF(L12:L13,AI10) -> 0 | AK10: =AJ10/(AL4-AJ20) -> 0 | AL10: =IF(AK10=0,0,(AK10*((LOG(AK10))/LOG(2)))) -> 0 | AN10: =N10 -> 1122 | AO10: =COUNTIF(L14:L15,AN10) -> 0 | AP10: =AO10/(AQ4-AO20) -> 0 | AQ10: =IF(AP10=0,0,(AP10*((LOG(AP10))/LOG(2)))) -> 0 | AS10: =N10 -> 1122 | AT10: =COUNTIF(L16:L17,AS10) -> 0 | AU10: =AT10/(AV4-AT20) -> 0 | AV10: =IF(AU10=0,0,(AU10*((LOG(AU10))/LOG(2)))) -> 0
A11: 12 | B11: 977 | C11: 14 | D11: 989 | E11: 13 | F11: 999 | G11: 23 | H11: 1014 | K11: 0 | L11: 1112 | N11: 1211 | O11: =COUNTIF($L$7:$L$500,N11) -> 0 | P11: =O11/$Q$4 -> 0 | Q11: =IF(P11=0,0,(P11*((LOG(P11))/LOG(2)))) -> 0 | T11: =N11 -> 1211 | U11: =COUNTIF(L7:L8,T11) -> 0 | V11: =U11/(W4-U20) -> 0 | W11: =IF(V11=0,0,(V11*((LOG(V11))/LOG(2)))) -> 0 | Y11: =N11 -> 1211 | Z11: =COUNTIF(L9:L10,Y11) -> 0 | AA11: =Z11/(AB4-Z20) -> 0 | AB11: =IF(AA11=0,0,(AA11*((LOG(AA11))/LOG(2)))) -> 0 | AD11: =N11 -> 1211 | AE11: =COUNTIF(L11:L11,AD11) -> 0 | AF11: =AE11/(AG4-AE20) -> 0 | AG11: =IF(AF11=0,0,(AF11*((LOG(AF11))/LOG(2)))) -> 0 | AI11: =N11 -> 1211 | AJ11: =COUNTIF(L12:L13,AI11) -> 0 | AK11: =AJ11/(AL4-AJ20) -> 0 | AL11: =IF(AK11=0,0,(AK11*((LOG(AK11))/LOG(2)))) -> 0 | AN11: =N11 -> 1211 | AO11: =COUNTIF(L14:L15,AN11) -> 0 | AP11: =AO11/(AQ4-AO20) -> 0 | AQ11: =IF(AP11=0,0,(AP11*((LOG(AP11))/LOG(2)))) -> 0 | AS11: =N11 -> 1211 | AT11: =COUNTIF(L16:L17,AS11) -> 0 | AU11: =AT11/(AV4-AT20) -> 0 | AV11: =IF(AU11=0,0,(AU11*((LOG(AU11))/LOG(2)))) -> 0
A12: 21 | B12: 1153 | C12: 21 | D12: 1160 | E12: 22 | F12: 1174 | G12: 23 | H12: 1182 | K12: 0 | L12: 2222 | N12: 1212 | O12: =COUNTIF($L$7:$L$500,N12) -> 0 | P12: =O12/$Q$4 -> 0 | Q12: =IF(P12=0,0,(P12*((LOG(P12))/LOG(2)))) -> 0 | T12: =N12 -> 1212 | U12: =COUNTIF(L7:L8,T12) -> 0 | V12: =U12/(W4-U20) -> 0 | W12: =IF(V12=0,0,(V12*((LOG(V12))/LOG(2)))) -> 0 | Y12: =N12 -> 1212 | Z12: =COUNTIF(L9:L10,Y12) -> 0 | AA12: =Z12/(AB4-Z20) -> 0 | AB12: =IF(AA12=0,0,(AA12*((LOG(AA12))/LOG(2)))) -> 0 | AD12: =N12 -> 1212 | AE12: =COUNTIF(L11:L11,AD12) -> 0 | AF12: =AE12/(AG4-AE20) -> 0 | AG12: =IF(AF12=0,0,(AF12*((LOG(AF12))/LOG(2)))) -> 0 | AI12: =N12 -> 1212 | AJ12: =COUNTIF(L12:L13,AI12) -> 0 | AK12: =AJ12/(AL4-AJ20) -> 0 | AL12: =IF(AK12=0,0,(AK12*((LOG(AK12))/LOG(2)))) -> 0 | AN12: =N12 -> 1212 | AO12: =COUNTIF(L14:L15,AN12) -> 0 | AP12: =AO12/(AQ4-AO20) -> 0 | AQ12: =IF(AP12=0,0,(AP12*((LOG(AP12))/LOG(2)))) -> 0 | AS12: =N12 -> 1212 | AT12: =COUNTIF(L16:L17,AS12) -> 0 | AU12: =AT12/(AV4-AT20) -> 0 | AV12: =IF(AU12=0,0,(AU12*((LOG(AU12))/LOG(2)))) -> 0
A13: 12 | B13: 1291 | C13: 14 | D13: 1328 | E13: 13 | F13: 1337 | G13: 14 | H13: 1343 | K13: 0 | L13: 1111 | N13: 1221 | O13: =COUNTIF($L$7:$L$500,N13) -> 0 | P13: =O13/$Q$4 -> 0 | Q13: =IF(P13=0,0,(P13*((LOG(P13))/LOG(2)))) -> 0 | T13: =N13 -> 1221 | U13: =COUNTIF(L7:L8,T13) -> 0 | V13: =U13/(W4-U20) -> 0 | W13: =IF(V13=0,0,(V13*((LOG(V13))/LOG(2)))) -> 0 | Y13: =N13 -> 1221 | Z13: =COUNTIF(L9:L10,Y13) -> 0 | AA13: =Z13/(AB4-Z20) -> 0 | AB13: =IF(AA13=0,0,(AA13*((LOG(AA13))/LOG(2)))) -> 0 | AD13: =N13 -> 1221 | AE13: =COUNTIF(L11:L11,AD13) -> 0 | AF13: =AE13/(AG4-AE20) -> 0 | AG13: =IF(AF13=0,0,(AF13*((LOG(AF13))/LOG(2)))) -> 0 | AI13: =N13 -> 1221 | AJ13: =COUNTIF(L12:L13,AI13) -> 0 | AK13: =AJ13/(AL4-AJ20) -> 0 | AL13: =IF(AK13=0,0,(AK13*((LOG(AK13))/LOG(2)))) -> 0 | AN13: =N13 -> 1221 | AO13: =COUNTIF(L14:L15,AN13) -> 0 | AP13: =AO13/(AQ4-AO20) -> 0 | AQ13: =IF(AP13=0,0,(AP13*((LOG(AP13))/LOG(2)))) -> 0 | AS13: =N13 -> 1221 | AT13: =COUNTIF(L16:L17,AS13) -> 0 | AU13: =AT13/(AV4-AT20) -> 0 | AV13: =IF(AU13=0,0,(AU13*((LOG(AU13))/LOG(2)))) -> 0
A14: 12 | B14: 1623 | C14: 14 | D14: 1637 | E14: 13 | F14: 1646 | G14: 23 | H14: 1662 | K14: 0 | L14: 1112 | N14: 1222 | O14: =COUNTIF($L$7:$L$500,N14) -> 0 | P14: =O14/$Q$4 -> 0 | Q14: =IF(P14=0,0,(P14*((LOG(P14))/LOG(2)))) -> 0 | T14: =N14 -> 1222 | U14: =COUNTIF(L7:L8,T14) -> 0 | V14: =U14/(W4-U20) -> 0 | W14: =IF(V14=0,0,(V14*((LOG(V14))/LOG(2)))) -> 0 | Y14: =N14 -> 1222 | Z14: =COUNTIF(L9:L10,Y14) -> 0 | AA14: =Z14/(AB4-Z20) -> 0 | AB14: =IF(AA14=0,0,(AA14*((LOG(AA14))/LOG(2)))) -> 0 | AD14: =N14 -> 1222 | AE14: =COUNTIF(L11:L11,AD14) -> 0 | AF14: =AE14/(AG4-AE20) -> 0 | AG14: =IF(AF14=0,0,(AF14*((LOG(AF14))/LOG(2)))) -> 0 | AI14: =N14 -> 1222 | AJ14: =COUNTIF(L12:L13,AI14) -> 0 | AK14: =AJ14/(AL4-AJ20) -> 0 | AL14: =IF(AK14=0,0,(AK14*((LOG(AK14))/LOG(2)))) -> 0 | AN14: =N14 -> 1222 | AO14: =COUNTIF(L14:L15,AN14) -> 0 | AP14: =AO14/(AQ4-AO20) -> 0 | AQ14: =IF(AP14=0,0,(AP14*((LOG(AP14))/LOG(2)))) -> 0 | AS14: =N14 -> 1222 | AT14: =COUNTIF(L16:L17,AS14) -> 0 | AU14: =AT14/(AV4-AT20) -> 0 | AV14: =IF(AU14=0,0,(AU14*((LOG(AU14))/LOG(2)))) -> 0
A15: 12 | B15: 1763 | C15: 14 | D15: 1770 | E15: 13 | F15: 1779 | G15: 14 | H15: 1787 | K15: 0 | L15: 1111 | N15: 2111 | O15: =COUNTIF($L$7:$L$500,N15) -> 0 | P15: =O15/$Q$4 -> 0 | Q15: =IF(P15=0,0,(P15*((LOG(P15))/LOG(2)))) -> 0 | T15: =N15 -> 2111 | U15: =COUNTIF(L7:L8,T15) -> 0 | V15: =U15/(W4-U20) -> 0 | W15: =IF(V15=0,0,(V15*((LOG(V15))/LOG(2)))) -> 0 | Y15: =N15 -> 2111 | Z15: =COUNTIF(L9:L10,Y15) -> 0 | AA15: =Z15/(AB4-Z20) -> 0 | AB15: =IF(AA15=0,0,(AA15*((LOG(AA15))/LOG(2)))) -> 0 | AD15: =N15 -> 2111 | AE15: =COUNTIF(L11:L11,AD15) -> 0 | AF15: =AE15/(AG4-AE20) -> 0 | AG15: =IF(AF15=0,0,(AF15*((LOG(AF15))/LOG(2)))) -> 0 | AI15: =N15 -> 2111 | AJ15: =COUNTIF(L12:L13,AI15) -> 0 | AK15: =AJ15/(AL4-AJ20) -> 0 | AL15: =IF(AK15=0,0,(AK15*((LOG(AK15))/LOG(2)))) -> 0 | AN15: =N15 -> 2111 | AO15: =COUNTIF(L14:L15,AN15) -> 0 | AP15: =AO15/(AQ4-AO20) -> 0 | AQ15: =IF(AP15=0,0,(AP15*((LOG(AP15))/LOG(2)))) -> 0 | AS15: =N15 -> 2111 | AT15: =COUNTIF(L16:L17,AS15) -> 0 | AU15: =AT15/(AV4-AT20) -> 0 | AV15: =IF(AU15=0,0,(AU15*((LOG(AU15))/LOG(2)))) -> 0
A16: 21 | B16: 3655 | C16: 21 | D16: 3666 | E16: 22 | F16: 3671 | G16: 23 | H16: 3681 | K16: 0 | L16: 2222 | N16: 2112 | O16: =COUNTIF($L$7:$L$500,N16) -> 0 | P16: =O16/$Q$4 -> 0 | Q16: =IF(P16=0,0,(P16*((LOG(P16))/LOG(2)))) -> 0 | T16: =N16 -> 2112 | U16: =COUNTIF(L7:L8,T16) -> 0 | V16: =U16/(W4-U20) -> 0 | W16: =IF(V16=0,0,(V16*((LOG(V16))/LOG(2)))) -> 0 | Y16: =N16 -> 2112 | Z16: =COUNTIF(L9:L10,Y16) -> 0 | AA16: =Z16/(AB4-Z20) -> 0 | AB16: =IF(AA16=0,0,(AA16*((LOG(AA16))/LOG(2)))) -> 0 | AD16: =N16 -> 2112 | AE16: =COUNTIF(L11:L11,AD16) -> 0 | AF16: =AE16/(AG4-AE20) -> 0 | AG16: =IF(AF16=0,0,(AF16*((LOG(AF16))/LOG(2)))) -> 0 | AI16: =N16 -> 2112 | AJ16: =COUNTIF(L12:L13,AI16) -> 0 | AK16: =AJ16/(AL4-AJ20) -> 0 | AL16: =IF(AK16=0,0,(AK16*((LOG(AK16))/LOG(2)))) -> 0 | AN16: =N16 -> 2112 | AO16: =COUNTIF(L14:L15,AN16) -> 0 | AP16: =AO16/(AQ4-AO20) -> 0 | AQ16: =IF(AP16=0,0,(AP16*((LOG(AP16))/LOG(2)))) -> 0 | AS16: =N16 -> 2112 | AT16: =COUNTIF(L16:L17,AS16) -> 0 | AU16: =AT16/(AV4-AT20) -> 0 | AV16: =IF(AU16=0,0,(AU16*((LOG(AU16))/LOG(2)))) -> 0
A17: 21 | B17: 4409 | L17: 2 | N17: 2121 | O17: =COUNTIF($L$7:$L$500,N17) -> 0 | P17: =O17/$Q$4 -> 0 | Q17: =IF(P17=0,0,(P17*((LOG(P17))/LOG(2)))) -> 0 | T17: =N17 -> 2121 | U17: =COUNTIF(L7:L8,T17) -> 0 | V17: =U17/(W4-U20) -> 0 | W17: =IF(V17=0,0,(V17*((LOG(V17))/LOG(2)))) -> 0 | Y17: =N17 -> 2121 | Z17: =COUNTIF(L9:L10,Y17) -> 0 | AA17: =Z17/(AB4-Z20) -> 0 | AB17: =IF(AA17=0,0,(AA17*((LOG(AA17))/LOG(2)))) -> 0 | AD17: =N17 -> 2121 | AE17: =COUNTIF(L11:L11,AD17) -> 0 | AF17: =AE17/(AG4-AE20) -> 0 | AG17: =IF(AF17=0,0,(AF17*((LOG(AF17))/LOG(2)))) -> 0 | AI17: =N17 -> 2121 | AJ17: =COUNTIF(L12:L13,AI17) -> 0 | AK17: =AJ17/(AL4-AJ20) -> 0 | AL17: =IF(AK17=0,0,(AK17*((LOG(AK17))/LOG(2)))) -> 0 | AN17: =N17 -> 2121 | AO17: =COUNTIF(L14:L15,AN17) -> 0 | AP17: =AO17/(AQ4-AO20) -> 0 | AQ17: =IF(AP17=0,0,(AP17*((LOG(AP17))/LOG(2)))) -> 0 | AS17: =N17 -> 2121 | AT17: =COUNTIF(L16:L17,AS17) -> 0 | AU17: =AT17/(AV4-AT20) -> 0 | AV17: =IF(AU17=0,0,(AU17*((LOG(AU17))/LOG(2)))) -> 0
N18: 2122 | O18: =COUNTIF($L$7:$L$500,N18) -> 0 | P18: =O18/$Q$4 -> 0 | Q18: =IF(P18=0,0,(P18*((LOG(P18))/LOG(2)))) -> 0 | T18: =N18 -> 2122 | U18: =COUNTIF(L7:L8,T18) -> 0 | V18: =U18/(W4-U20) -> 0 | W18: =IF(V18=0,0,(V18*((LOG(V18))/LOG(2)))) -> 0 | Y18: =N18 -> 2122 | Z18: =COUNTIF(L9:L10,Y18) -> 0 | AA18: =Z18/(AB4-Z20) -> 0 | AB18: =IF(AA18=0,0,(AA18*((LOG(AA18))/LOG(2)))) -> 0 | AD18: =N18 -> 2122 | AE18: =COUNTIF(L11:L11,AD18) -> 0 | AF18: =AE18/(AG4-AE20) -> 0 | AG18: =IF(AF18=0,0,(AF18*((LOG(AF18))/LOG(2)))) -> 0 | AI18: =N18 -> 2122 | AJ18: =COUNTIF(L12:L13,AI18) -> 0 | AK18: =AJ18/(AL4-AJ20) -> 0 | AL18: =IF(AK18=0,0,(AK18*((LOG(AK18))/LOG(2)))) -> 0 | AN18: =N18 -> 2122 | AO18: =COUNTIF(L14:L15,AN18) -> 0 | AP18: =AO18/(AQ4-AO20) -> 0 | AQ18: =IF(AP18=0,0,(AP18*((LOG(AP18))/LOG(2)))) -> 0 | AS18: =N18 -> 2122 | AT18: =COUNTIF(L16:L17,AS18) -> 0 | AU18: =AT18/(AV4-AT20) -> 0 | AV18: =IF(AU18=0,0,(AU18*((LOG(AU18))/LOG(2)))) -> 0
N19: 2211 | O19: =COUNTIF($L$7:$L$500,N19) -> 0 | P19: =O19/$Q$4 -> 0 | Q19: =IF(P19=0,0,(P19*((LOG(P19))/LOG(2)))) -> 0 | T19: =N19 -> 2211 | U19: =COUNTIF(L7:L8,T19) -> 0 | V19: =U19/(W4-U20) -> 0 | W19: =IF(V19=0,0,(V19*((LOG(V19))/LOG(2)))) -> 0 | Y19: =N19 -> 2211 | Z19: =COUNTIF(L9:L10,Y19) -> 0 | AA19: =Z19/(AB4-Z20) -> 0 | AB19: =IF(AA19=0,0,(AA19*((LOG(AA19))/LOG(2)))) -> 0 | AD19: =N19 -> 2211 | AE19: =COUNTIF(L11:L11,AD19) -> 0 | AF19: =AE19/(AG4-AE20) -> 0 | AG19: =IF(AF19=0,0,(AF19*((LOG(AF19))/LOG(2)))) -> 0 | AI19: =N19 -> 2211 | AJ19: =COUNTIF(L12:L13,AI19) -> 0 | AK19: =AJ19/(AL4-AJ20) -> 0 | AL19: =IF(AK19=0,0,(AK19*((LOG(AK19))/LOG(2)))) -> 0 | AN19: =N19 -> 2211 | AO19: =COUNTIF(L14:L15,AN19) -> 0 | AP19: =AO19/(AQ4-AO20) -> 0 | AQ19: =IF(AP19=0,0,(AP19*((LOG(AP19))/LOG(2)))) -> 0 | AS19: =N19 -> 2211 | AT19: =COUNTIF(L16:L17,AS19) -> 0 | AU19: =AT19/(AV4-AT20) -> 0 | AV19: =IF(AU19=0,0,(AU19*((LOG(AU19))/LOG(2)))) -> 0
N20: 2212 | O20: =COUNTIF($L$7:$L$500,N20) -> 0 | P20: =O20/$Q$4 -> 0 | Q20: =IF(P20=0,0,(P20*((LOG(P20))/LOG(2)))) -> 0 | T20: =N20 -> 2212 | U20: =COUNTIF(L7:L8,T20) -> 0 | Y20: =N20 -> 2212 | Z20: =COUNTIF(L9:L10,Y20) -> 0 | AD20: =N20 -> 2212 | AE20: =COUNTIF(L11:L11,AD20) -> 0 | AI20: =N20 -> 2212 | AJ20: =COUNTIF(L12:L13,AI20) -> 0 | AN20: =N20 -> 2212 | AO20: =COUNTIF(L14:L15,AN20) -> 0 | AS20: =N20 -> 2212 | AT20: =COUNTIF(L16:L17,AS20) -> 0
